Workbook

Sheet start
G2: ="overzicht workflow " & lesurenberekening!E5 & "-" & lesurenberekening!G5 -> overzicht workflow 2026-2027 | L2: =lesurenberekening!I5 -> Voorbeelden
C3: stap 1: week- en jaarrooster invullen | E3: stap 2: team invoeren | G3: stap 3: teamleden OP & OOP aanvullen
C5: Vul op dit werkblad op de eerste pagina het week- en jaarrooster in. Je kunt de tijden van maximaal 3 verschillende bouwen invoeren. Vul op de tweede pagina de gekozen arbeidsurenverdeling over de weekdagen in en enkele andere instellingen. De berekening van ieders ingeroosterde les- en arbeidsuren is gebaseerd op dit werkblad. | E5: Op dit werkblad overzie je de gehele formatie en voer je de teamleden in. Klik links op het formatieoverzicht op een blauw regelnummer voor de invoer van een nieuw teamlid of het wijzigen van al ingevoerde teamlidgegevens. Klik rechts op het formatieoverzicht op een groen regelnummer om naar het betreffende (ingevulde) teamlidblad te gaan. | G5: De teamlidbladen 1 t/m 100 zijn bestemd voor het OP en OOP met lesondersteunende en/of behandel-taken. Alleen ingevulde teamlidbladen zijn zichtbaar. In rubriek E en F kunnen nog uren individueel worden uit- of ingeroosterd. Op de 2e pagina kunnen de activiteiten p.d.i. en overige taken worden ingevuld. Ga naar een ingevuld teamlidblad OP door onderaan op de tab te klikken, of door rechts op het formatieoverzicht op het groene regelnummer te klikken. | I5: De teamlidbladen 101 t/m 120 zijn bestemd voor het OOP zonder lesondersteunende en/of behandel-taken, zoals een conciërge of admini-stratief medewerker. De arbeidsuren van de vaste werkdagen worden bij dit OOP op het teamlidblad in rubriek A ingevuld. Net als bij het OP kunnen de activiteiten op de tweede pagina worden ingevuld. Ga naar een teamlidblad OOP door onderaan op de tab te klikken, of door rechts op het formatieoverzicht op het groene regelnummer te klikken. | L5: Als je de planner voor het eerst hebt geopend (na het downloaden of na de ontvangst als bijlage bij een email), zal de planner nog niet werken. Voordat je de planner kunt gebruiken, moeten namelijk eerst de macro's (de inhoud) worden ingeschakeld. Klik op de icoon hieronder en lees hoe je dat doet.
C23: lijst p.d.i. | E23: Maak op dit werkblad een overzicht van de groepsindeling, de personele bezetting van de groepen en de overige functies, en ieders vaste werkdagen. Zo'n scenario is handig bij de besprekingen tijdens het werkverdelingsoverleg en kan bij het werkverdelingsplan worden gevoegd. | G23: Op dit werkblad bereken je het ouderschapverlof en het overig verlof, zoals het verlof lerarenbeurs. Het verlof duurzame inzetbaarheid wordt hier niet berekend, want dit wordt al op het invoerformulier van het formatie-overzicht ingevuld. | I23: Met de PDF-module (linksboven) druk je op basis van de ingevulde werkbladen ook een compleet werkverdelingsplan als PDF af (optie 3). Het werkblad WVP bevat het titelblad, een ondertekeningsblad en het blad overige afspraken. Daarbij worden automatisch de werkbladen lesurenberekening, formatieoverzicht, groepsverdeling en activiteitenoverzicht afgedrukt.
C24: lijst overige taken
C25: activiteitenoverzicht team | N25: werkwijze: 1 - Download de planner en schakel de macro's in (zie informatievak links); 2 - Bestel een activeercode (knop); 3 - Activeer de planner met de code (knop); 4 - Optimaliseer beeldinstelling en maak een snelkoppeling op je bureaublad (knoppen); 5 - Importeer (als je de planner vorig jaar ook al gebruikte) het team en de lijsten uit je vorige planner (knoppen).
C26: Op de twee werkbladen met lijsten vul je alle op jouw school voorkomende activiteiten voor de p.d.i. en overige taken in. Bij het invullen van de activiteiten op de teamlidbladen, kun je via een keuzescherm uit deze lijsten kiezen. Via dit keuzescherm zie je ook snel welke teamleden eenzelfde activiteit hebben. Op het werkblad activiteitenoverzicht maak je per lijst een totaaloverzicht van de verdeling van de activiteiten over het team.

Sheet lesurenberekening
Q1: Verberg of vertoon het grijze lint hierboven door op Ctrl + F1 te drukken.
B2: LESURENBEREKENING SCHOOL | M2: © taakberekeningPO.nl | Q2: toelichting
I3: =DATE(E5,8,1) -> 2026-08-01 | Q3: *Bewerk deze planner niet online in een browser, maar altijd offline in
I4: =DATE(G5,9,30) -> 2027-09-30 | Q4: in de desktop(bureaublad)modus.
C5: schooljaar: | E5: 2026 | F5: / | G5: =E5+1 -> 2027 | I5: Voorbeelden | Q5: *Kies met de zoomknop (rechtsonder van het scherm) de gewenste
C6: onderwijstijd hele school: | E6: =E89 -> 39.52083333 | Q6: afbeeldingsgrootte.
C7: onderwijstijd per bouw : | E7: =E72 -> 39.52083333 | I7: =E77 -> 0 | M7: =E82 -> 0 | Q7: Alleen in cellen met deze kleuren kunnen gegevens worden ingevoerd:
B8: A jaartotaal lesuren | E8: lestijd 1 | I8: lestijd 2 | M8: lestijd 3 | Q8: lesuren (format: u:m)
B9: groepen | E9: 1 | F9: t/m | G9: 8 | J9: t/m | N9: t/m | Q9: arbeidsuren (format: u:m)
E10: ochtend | G10: middag | I10: ochtend | K10: middag | M10: ochtend | O10: middag | Q10: datums (format: d-m-j), gewone getallen en tekst
C11: maandag | E11: 0.1354166667 | G11: 0.08333333333 | Q11: Alle invoer is zwart en cursief
C12: dinsdag | E12: 0.1354166667 | G12: 0.08333333333
C13: woensdag | E13: 0.1458333333 | Q13: A lesuren van de groepen per week
C14: donderdag | E14: 0.1354166667 | G14: 0.08333333333 | Q14: Voer alle tijden in met uren en minuten gescheiden door een dub-
C15: vrijdag | E15: 0.1354166667 | G15: 0.08333333333 | Q15: bele punt. Dus bijv. 2 uur en 30 minuten => 2:30
Q16: Er kunnen drie verschillende lestijden voor 3 bouwen worden ingevoerd.
C17: lestijd per week | E17: =SUM(E11,G11,E12,G12,E13,G13,E14,G14,E15,G15,) -> 1.020833333 | I17: =SUM(I11,K11,I12,K12,I13,K13,I14,K14,I15,K15,) -> 0 | M17: =SUM(M11,O11,M12,O12,M13,O13,M14,O14,M15,O15,) -> 0 | Q17: Vul bij één lestijd in groep 1 t/m 8 alleen de kolom van lestijden 1 in.
C18: in 52 weken | G18: =E17*52 -> 53.08333333 | K18: =I17*52 -> 0 | O18: =M17*52 -> 0 | Q18: Bij een lestijd in één groep het groepsnummer tweemaal invullen!
B19: =WEEKDAY(CONCATENATE(C19,G5)) -> 1900-01-04 | C19: 29 september | D19: =IF(MOD(G5,4)=0,WEEKDAY(CONCATENATE(C19,G5),2),0) -> 0 | G19: =IF(D19=1,E11+G11,IF(D19=2,E12+G12,IF(D19=3,E13+G13,IF(D19=4,E14+G14,IF(D19=5,E15+G15,0))))) -> 0 | K19: =IF(D19=1,I11+K11,IF(D19=2,I12+K12,IF(D19=3,I13+K13,IF(D19=4,I14+K14,IF(D19=5,I15+K15,0))))) -> 0 | O19: =IF(D19=1,M11+O11,IF(D19=2,M12+O12,IF(D19=3,M13+O13,IF(D19=4,M14+O14,IF(D19=5,M15+O15,0))))) -> 0
B20: =WEEKDAY(CONCATENATE(C20,G5)) -> 1900-01-05 | C20: 30 september | D20: =WEEKDAY(CONCATENATE(C20,G5),2) -> 4 | F20: + | G20: =IF(D20=1,E11+G11,IF(D20=2,E12+G12,IF(D20=3,E13+G13,IF(D20=4,E14+G14,IF(D20=5,E15+G15,0))))) -> 0.21875 | J20: + | K20: =IF(D20=1,I11+K11,IF(D20=2,I12+K12,IF(D20=3,I13+K13,IF(D20=4,I14+K14,IF(D20=5,I15+K15,0))))) -> 0 | N20: + | O20: =IF(D20=1,M11+O11,IF(D20=2,M12+O12,IF(D20=3,M13+O13,IF(D20=4,M14+O14,IF(D20=5,M15+O15,0))))) -> 0
C21: jaartotaal A: | G21: =SUM(G18:G20) -> 53.30208333 | K21: =SUM(K18:K20) -> 0 | O21: =SUM(O18:O20) -> 0
B23: B héle vakantieweken | D23: vakantieregio | G23: lestijd 1 | K23: lestijd 2 | O23: lestijd 3 | Q23: B lesuren héle vakantieweken
C24: Kies vakantieregio: | D24: Midden | Q24: Klik op de regio en kies je regio. Het aantal héle vakantieweken en de 1e
C25: herfstvakantie | D25: 1 | E25: 17-10-26 | G25: =D25*E17 -> 1.020833333 | K25: =D25*I17 -> 0 | O25: =D25*M17 -> 0 | Q25: vakantiedag kunnen handmatig aangepast worden.
C26: kerstvakantie | D26: 2 | E26: 19-12-26 | G26: =D26*E17 -> 2.041666667 | K26: =D26*I17 -> 0 | O26: =D26*M17 -> 0 | Q26: Als een vakantie 1 of meer dagen langer duurt: de héle weken in rubriek B
C27: voorjaarsvakantie | D27: 1 | E27: 20-2-27 | G27: =D27*E17 -> 1.020833333 | K27: =D27*I17 -> 0 | O27: =D27*M17 -> 0 | Q27: invullen en de resterende dag(en) per dag in C.
C28: meivakantie | D28: 2 | E28: 24-4-27 | G28: =D28*E17 -> 2.041666667 | K28: =D28*I17 -> 0 | O28: =D28*M17 -> 0
G29: =D29*E17 -> 0 | K29: =D29*I17 -> 0 | O29: =D29*M17 -> 0 | Q29: Voer een datum in deze vorm in: d-m-j
C30: zomervakantie | D30: 6 | E30: 17-7-27 | F30: + | G30: =D30*E17 -> 6.125 | J30: + | K30: =D30*I17 -> 0 | N30: + | O30: =D30*M17 -> 0
C31: totaal uit te roosteren B: | G31: =SUM(G25:G30) -> 12.25 | K31: =SUM(K25:K30) -> 0 | O31: =SUM(O25:O30) -> 0
B32: C overige héle vakantie- en studiedagen | G32: lestijd 1 | K32: lestijd 2 | O32: lestijd 3 | Q32: C lesuren overige héle vakantie- en studiedagen
B33: dag | C33: omschrijving | E33: datum | Q33: Vul in rubriek C per regel alle overige héle feest- en vakantiedagen in
B34: =IF(E34="","",E34) -> 2027-03-26 | C34: goede vrijdag | D34: v | E34: 2027-03-26 | F34: =WEEKDAY(E34,2) -> 5 | G34: =IF(F34=1,E11+G11,IF(F34=2,E12+G12,IF(F34=3,E13+G13,IF(F34=4,E14+G14,IF(F34=5,E15+G15,""))))) -> 0.21875 | K34: =IF(F34=1,I$11+K$11,IF(F34=2,I$12+K$12,IF(F34=3,I$13+K$13,IF(F34=4,I$14+K$14,IF(F34=5,I$15+K$15,""))))) -> 0 | O34: =IF(F34=1,M$11+O$11,IF(F34=2,M$12+O$12,IF(F34=3,M$13+O$13,IF(F34=4,M$14+O$14,IF(F34=5,M$15+O$15,""))))) -> 0 | Q34: waarop ook het OP en OOP vrij heeft. Verander bij studiedagen de v
B35: 2027-05-06 | C35: hemelvaartsdag | D35: v | E35: 2027-05-06 | F35: 4 | G35: =IF(F35=1,E11+G11,IF(F35=2,E12+G12,IF(F35=3,E13+G13,IF(F35=4,E14+G14,IF(F35=5,E15+G15,""))))) -> 0.21875 | K35: 0 | O35: 0 | Q35: in een s, zodat in de berekening op de teamlidbladen OP alleen de
B36: 2027-05-07 | C36: vrijdag na hemelvaartsdag | D36: v | E36: 2027-05-07 | F36: 5 | G36: =IF(F36=1,E11+G11,IF(F36=2,E12+G12,IF(F36=3,E13+G13,IF(F36=4,E14+G14,IF(F36=5,E15+G15,""))))) -> 0.21875 | K36: 0 | O36: 0 | Q36: lesuren van deze studiedagen worden afgetrokken.
B37: 2027-05-17 | C37: 2e pinksterdag | D37: v | E37: 2027-05-17 | F37: 1 | G37: =IF(F37=1,E11+G11,IF(F37=2,E12+G12,IF(F37=3,E13+G13,IF(F37=4,E14+G14,IF(F37=5,E15+G15,""))))) -> 0.21875 | K37: 0 | O37: 0
B38: 2027-07-16 | C38: laatste dag voor zomervakantie | D38: v | E38: 2027-07-16 | F38: 5 | G38: =IF(F38=1,E11+G11,IF(F38=2,E12+G12,IF(F38=3,E13+G13,IF(F38=4,E14+G14,IF(F38=5,E15+G15,""))))) -> 0.21875 | K38: 0 | O38: 0 | Q38: Opm. Wanneer er in C te weinig regels zijn voor alle losse hele dagen,
B39: 2027-03-25 | C39: studiedag 1 | D39: s | E39: 2027-03-25 | F39: 4 | G39: =IF(F39=1,E11+G11,IF(F39=2,E12+G12,IF(F39=3,E13+G13,IF(F39=4,E14+G14,IF(F39=5,E15+G15,""))))) -> 0.21875 | K39: 0 | O39: 0 | Q39: kunnen deze ook in D worden geplaatst.
B40: 2027-04-27 | C40: studiedag 2 | D40: s | E40: 2027-04-27 | F40: 2 | G40: =IF(F40=1,E11+G11,IF(F40=2,E12+G12,IF(F40=3,E13+G13,IF(F40=4,E14+G14,IF(F40=5,E15+G15,""))))) -> 0.21875 | K40: 0 | O40: 0
F41: 6 | G41: =IF(F41=1,E11+G11,IF(F41=2,E12+G12,IF(F41=3,E13+G13,IF(F41=4,E14+G14,IF(F41=5,E15+G15,""))))) -> 
F42: 6 | G42: =IF(F42=1,E11+G11,IF(F42=2,E12+G12,IF(F42=3,E13+G13,IF(F42=4,E14+G14,IF(F42=5,E15+G15,""))))) -> 
F43: =WEEKDAY(E43,2) -> 6 | G43: =IF(F43=1,E11+G11,IF(F43=2,E12+G12,IF(F43=3,E13+G13,IF(F43=4,E14+G14,IF(F43=5,E15+G15,""))))) -> 
F44: =WEEKDAY(E43,2) -> 6 | G44: =IF(F44=1,E11+G11,IF(F44=2,E12+G12,IF(F44=3,E13+G13,IF(F44=4,E14+G14,IF(F44=5,E15+G15,""))))) ->  | H44: + | J44: + | N44: +
C45: totaal uit te roosteren C: | G45: =SUM(G34:G44) -> 1.53125 | K45: =SUM(K34:K44) -> 0 | O45: =SUM(O34:O44) -> 0
B46: D overige uit te roosteren dagdelen en uren | G46: hieronder de uit te roosteren les- en arbeidsuren per bouw zelf invullen | Q46: D overige uit te roosteren dagen, dagdelen en uren
B47: dag | C47: omschrijving | E47: datum | G47: lestijd 1 | I47: lestijd 2 | K47: lestijd 3 | O47: arbeidsuren | Q47: Vul hier zelf per bouw de lesuren in van de dagdelen of
B48: =IF(E48="","",E48) ->  | F48: =WEEKDAY(E48,2) -> 6 | Q48: losse uren waarop geen les wordt gegeven. Als de teamleden op zo'n
F49: 6 | Q49: dagdeel helemaal vrij zijn, vul je ook de betreffende arbeidsuren in.
F50: 6 | Q50: Kom je regels te kort?
F51: 6 | Q51: Als je in C of D regels te kort komt, kun je roosterafwijkingen die op
F52: 6 | Q52: eenzelfde weekdag vallen ook clusteren op één regel in rubriek D.
F53: 6
F54: 6 | Q54: Heb je verschillende roosterafwijkingen in verschillende bouwen?
F55: 6 | Q55: Heb je bij gelijke lestijden in alle groepen bij roosterafwijkingen toch
F56: =WEEKDAY(E56,2) -> 6 | Q56: verschillen tussen bouwen, dan kun je in A de gelijke lestijden van de
F57: =WEEKDAY(E57,2) -> 6 | Q57: betreffende bouwen invullen en dan de roosterafwijkingen in C en D per
C58: totaal uit te roosteren D: | G58: =SUM(G48:G57) -> 0 | I58: =SUM(I48:I57) -> 0 | K58: =SUM(K48:K57) -> 0 | Q58: bouw invullen.
B60: opmerkingen | Q60: opmerkingenvak
B61: Dubbelklik op dit vak om het geheel te tonen. Vul in A (bij verschillende lestijden per bouw) de betreffende groepen en lestijden op jouw school in. Bij gelijke lestijden in groep 1 t/m 8 vul je alleen lestijden 1 in. Kies in B je vakantieregio en controleer het aantal vakantieweken en de datum van de eerste vakantiedag. Pas eventueel aan. Vul in C de losse hele vakantie- en studiedagen in (verander bij studiedagen of andere dagen waarbij de leerlingen niet, maar het team wél op school is, de v in een s!), en in D de vrije lesuren of lesdagdelen (en als het team op die dag ook vrij is, ook de arbeidsuren invullen). Vul in G de zelfgekozen verdeling van de 40 arbeidsuren over de dagdelen in (liefst in verhouding tot de lestijden) en de gekozen opslagfactor. Na volledige invulling van deze lesurenberekening en de volledige inroostering van een voltijder, kan hier (bij toepassing van de verhoudingsgewijze inroostering - klik in G op de icoon voor meer informatie hierover - ook het inroosterpercentage van de volledig ingeroosterde voltijder worden ingevuld. Dit percentage kan per school en schooljaar verschillen, maar schommelt doorgaans rond de 96%. Klik op dit vak en druk op de Delete-toets om deze opmerkingen te wissen. | Q61: Druk op Alt-Enter voor een nieuwe regel. Alleen de zichtbare regels
Q62: worden afgedrukt. Dubbelklik op het opmerkingenvak om het gehele vak
Q63: zichtbaar te maken in het geval de tekst langer is dan het zichtbare deel.
G67: pagina 2
B68: E netto lestijd per bouw en totaal | E68: lesuren | I68: F feestdagen | Q68: E netto lestijd
M69: 2026 | N69: / | O69: =M69+1 -> 2027 | Q69: In deze rubriek is de netto lestijd voor de leerlingen berekend.
C70: lestijd 1 basistotaal A | E70: =G21 -> 53.30208333 | Q70: Onderaan deze rubriek is de lestijd over 8 jaar geëxtrapoleerd op basis
C71: B + C + D | E71: =G31+G45+G58 -> 13.78125 | F71: _ | I71: 1e kerstdag | L71: =DATE(M69,12,25) -> 2026-12-25 | Q71: van de lesurenberekening van dit berekeningsjaar. Deze lestijd dient
C72: ="netto lestijd groep "&E9&" t/m "&G9 -> netto lestijd groep 1 t/m 8 | E72: =IF(E70-E71<0,0,E70-E71) -> 39.52083333 | I72: 2e kerstdag | L72: =DATE(M69,12,26) -> 2026-12-26 | Q72: elk schooljaar minimaal 7520 uur te zijn.
C73: berekend aantal lesweken | E73: =IF(E72>0,E72/E17,0) -> 38.71428571 | I73: carnaval | L73: =L75-49 -> 2027-02-07
I74: goede vrijdag | L74: =L75-2 -> 2027-03-26 | Q74: Het berekend aantal lesweken, is het aantal lesweken dat overblijft na
C75: lestijd 2 basistotaal A | E75: =K21 -> 0 | I75: 1e paasdag | L75: =FIXED(("4/"&(M69+1))/7+MOD(MOD((M69+1),19)*19-7,30)*14%,0)*7-6 -> 2027-03-28 | Q75: aftrek van de vakantieweken en alle losse vrije dagen en uren.
C76: B + C + D | E76: =K31+K45+I58 -> 0 | F76: _ | I76: 2e paasdag | L76: =L75+1 -> 2027-03-29
C77: ="netto lestijd groep "&I9&" t/m "&K9 -> netto lestijd groep t/m | E77: =IF(E75-E76<0,0,E75-E76) -> 0 | I77: koningsdag | L77: =DATE(M69+1,4,27) -> 2027-04-27
C78: berekend aantal lesweken | E78: =IF(E77>0,E77/I17,0) -> 0 | I78: hemelvaartsdag | L78: =L75+39 -> 2027-05-06
I79: 1e pinksterdag | L79: =L75+49 -> 2027-05-16
C80: lestijd 3 basistotaal A | E80: =O21 -> 0 | I80: 2e pinksterdag | L80: =L79+1 -> 2027-05-17
C81: B + C + D | E81: =O31+O45+K58 -> 0 | F81: _ | I81: ramadan (30 dgn) | L81: =TRUNC(((M69+1)-1900)*354.3667+1421.44+IF((M69+1)<1997,-366,IF((M69+1)>2030,365,0))) -> 2027-02-08
C82: ="netto lestijd groep "&M9&" t/m "&O9 -> netto lestijd groep t/m | E82: =IF(E80-E81<0,0,E80-E81) -> 0 | I82: suikerfeest (3 d.) | L82: =L81+30 -> 2027-03-10
C83: berekend aantal lesweken | E83: =IF(E82>0,E82/M17,0) -> 0
C85: Lestijd in 8 leerjaren
C86: ="groep "&E9&" t/m "&G9 -> groep 1 t/m 8 | E86: =((G9-E9)+1)*E72 -> 316.1666667
C87: ="groep "&I9&" t/m "&K9 -> groep t/m | E87: =((K9-I9)+1)*E77 -> 0 | K87: netto lestijd
C88: ="groep "&M9&" t/m "&O9 -> groep t/m | E88: =((O9-M9)+1)*E82 -> 0 | K88: =E89 -> 39.52083333
C89: netto lestijd per jaar hele school | E89: =E90/8 -> 39.52083333
C90: netto lestijd in 8 leerjaren | E90: =SUM(E86:E88) -> 316.1666667
C91: resterende marge over 8 jaar | E91: =(E90*24)-7520 -> 68
C92: marge dit schooljaar | E92: =E91/8 -> 8.5
B94: G Instellingen | Q94: G instellingen jaartaakberekening
Q95: standaardverdeling arbeidsuren
C96: standaardverdeling arbeidsuren over de weekdagen | Q96: Vul hier de afgesproken standaardverdeling in van de arbeidsuren over
E97: ochtend | G97: middag | I97: totaal | Q97: de weekdagen. De verdeling moet aansluiten op het lesrooster.
C98: maandag | E98: 0.2083333333 | G98: 0.1458333333 | I98: =E98+G98 -> 0.3541666667 | Q98: Klik op het icoon voor meer informatie hierover.
C99: dinsdag | E99: 0.2083333333 | G99: 0.1458333333 | I99: =E99+G99 -> 0.3541666667
C100: woensdag | E100: 0.25 | I100: =E100+G100 -> 0.25 | Q100: instellingen jaartaakberekening
C101: donderdag | E101: 0.2083333333 | G101: 0.1458333333 | I101: =E101+G101 -> 0.3541666667 | Q101: Klik op een icoon voor meer informatie.
C102: vrijdag | E102: 0.2083333333 | G102: 0.1458333333 | I102: =E102+G102 -> 0.3541666667 | J102: +
I103: =SUM(I98:I102) -> 1.666666667 | Q103: weergave inroosterverschil
Q104: Het berekende verschil tussen maximale lestaak en ingeroosterde
C105: instellingen jaartaakberekening | Q105: lesuren, en het berekende verschil tussen de arbeidsduur volgens de
Q106: aanstelling en de ingeroosterde arbeidsduur in werkdagen, kan op de
C107: arbeidsduur volgens CAO-PO | E107: 1659 | Q107: teamlidbladen naar keuze wel of niet getoond worden.
C108: maximale lestaak | E108: 940 | Q108: Voor een maximale transparantie van de berekening. Adviseren we het
C109: PDI-deel professionalisering | E109: 83 | Q109: verschil wél te tonen.
C110: voor- en nawerk (%) | E110: 0.4
C112: inroosterpercentage voltijders | E112: 0.96
M113: 0
C115: weergave inroosterverschil en inroosterpercentage op de teamlidbladen in rubriek I en H
C117: tonen bij arbeidsuren in rubriek H ? | E117: ja
C118: tonen bij lesuren in rubriek I ? | E118: ja
B120: H info versie | Q120: H info versie
Q121: Als je de planner al eerder in het jaar hebt gedownload, controleer dan
Q122: vóór je echt met invullen begint, of het hiernaast getoonde versienummer
Q123: overeenkomt met dat op de website op de pagina Downloads.
Q124: Zo niet, download dan i.v.m. updates altijd eerst de laatste
Q125: versie.
B130: TBPO 2627 vs 2.0 - voorbeelden

Sheet formatieoverzicht
B1: =IFERROR(VLOOKUP(C1,C5:AQ104,41,FALSE),"") ->  | H1: =lesurenberekening!I5 -> Voorbeelden | V1: OP | Y1: OOP | AB1: ambulant
B2: FORMATIEOVERZICHT - OP en OOP | D2: =lesurenberekening!E5 -> 2026 | E2: =D2+1 -> 2027 | F2: PDI-budgetdeel duurzame inzetbaarheid | V2: vaste werkdagdelen | AF2: lesuren | AK2: arbeidsuren | AM2: activiteiten | AQ2: naar teamlidblad OP | AR2: e-mailadres | AT2: toelichting formatieoverzicht | AV2: uren per week >>> wtf | AY2: wtf >>> uren per week
B3: =lesurenberekening!I5 -> Voorbeelden | D3: urenaanstelling | E3: wtf | F3: cat. | J3: opbouw budget | N3: beschikbaar vlg. WTF | O3: inzet | Q3: verdeling | T3: netto d.i. budget | U3: spaarsaldo verlof | V3: ma | X3: di | Z3: wo | AB3: do | AD3: vr | AF3: lestijden 1 - 2 - 3 | AH3: meer of minder inge-roosterde lesuren | AI3: % | AK3: meer of minder inge-roosterde arb.uren | AL3: % | AM3: PDI-saldo aan het einde dit schooljaar | AN3: % ingevuld | AP3: nog beschikbaar voor overige taken (B) | AR3: Voer het mailadres in op het invoerformulier | AT3: Invoer OP en OOP Het OP en OOP mét lesondersteunende en/of behandeltaken als een onderwijsassistent of logopedist, voer je in op regel 1 t/m 100. Het OOP zónder lesondersteunende en/of behandeltaken als een conciërge of administratief medewerker, voer je op regel 101 t/m 120 in. INVOERFORMULIER Klik in de blauwe nummerrij aan de linkerkant op het betreffende regelnummer om het invoerformulier op te roepen. Invoer OP en OOP mét lesondersteunende en/of behandeltaken Vul het invoerformulier in de volgorde van de rubrieken in (klik op de herberekenknop onder rubriek 3 wanneer je in rubriek 1 t/m 3 iets gewijzigd hebt). Klik bij het OP de lesdagdelen in de eerste kolom aan en de ambulante dagdelen in de derde kolom. Klik bij het OOP als een onderwijsassistent de lesgebonden dagdelen in de tweede kolom aan en ambulante in de derde kolom. Klik bij het OOP als een logopedist of schoolpsycholoog de werkdagdelen als ambulant aan. Aanpassing les- en of arbeidsuren in rubriek A op het teamlidblad Wanneer de les- of arbeidsduur van een dagdeel afwijkt van de standaardtijd zoals ingevuld op het werkblad ‘lesurenberekening’, kun je deze aanpassen in rubriek A op het betreffende teamlidblad. Sorteren en zoekvak Klik op de sorteerknop boven de namenlijst OP om deze te sorteren. Bij grotere teams kan ook het zoekvak linksboven gebruikt worden om snel het regelnummer van een teamlid te vinden. De beginletters van de naam zijn al voldoende om de naam te vinden. Voer de namen daarom steeds op dezelfde wijze in; dus bijv. altijd beginnen met de voornaam, of altijd met de achternaam. Klik vervolgens op het toetsenbordje of de pijl ernaast om resp. het invoerformulier op te roepen of naar het teamlidblad te gaan. (Deze sorteer- en zoekoptie werkt alleen voor regel 1 t/m 100) Inroosterresultaat meteen zichtbaar op het invoerformulier Na het opslaan van het invoerformulier OP is rechts op het formulier de ingeroosterde jaartaak onmiddellijk zichtbaar. Je kunt dus gelijk beoordelen of de ingeroosterde jaartaak past binnen de arbeidsduur en de ingeroosterde lestaak past binnen de maximale lestaak volgens de aanstelling. Invoer OOP zónder lesondersteunende of behandeltaken Vul het invoerformulier in de volgorde van de rubrieken in (klik op de herberekenknop onder rubriek 3 wanneer je in rubriek 1 t/m 3 iets gewijzigd hebt). Extra verlofuren Voor dit OOP gelden extra verlofuren op basis van leeftijd en salaris. Om dit juist te kunnen berekenen moet je bij dit OOP het geboortejaar invullen en afvinken als de geboortedatum ná 31 juli valt. Bij of boven het maximumsalaris van schaal 8, krijgt dit OOP 8 verlofuren extra. Werkdagdelen en arbeidsuren invullen op teamlidblad De werkdagdelen met de arbeidsuren per werkdag worden bij dit OOP in rubriek A op het teamlidblad ingevuld. FORMATIEOVERZICHT Activiteiten De in deze kolommen vermelde getallen betreffen de percentages van de uren die zijn ingevuld met activiteiten PDI en overige taken. Naarmate een hoger percentage is ingevuld kleurt de cel van wit naar geel tot donkergroen. Wanneer teveel activiteiten zijn ingepland, kleurt het vakje rood. Dit mag je niet negeren, omdat in dat geval de arbeidsduur wordt overschreden en er dus overwerk is ontstaan. Modules Rechtsboven staan vier rekenmodules waarmee de arbeidsduur of wtf kan worden berekend. Navigatie Klik in de nummerrij aan de rechterkant om naar het betreffende teamlidblad te gaan. Klik op het teamlidblad bovenaan op de pijl om weer terug te gaan naar het formatieoverzicht. PDF-module Met de PDF-module kun je PDF-afdrukken maken en versturen. Selecteer bij het via email versturen van PDF-afdrukken vóór je de module opent, eerst de tabs van de teamleden voor wie de mail bestemd is - aaneengesloten bladen eerste en laatste selecteren met ingedrukte Shift-toets; verspreide bladen selecteren met ingedrukte Ctrl-toets. te dagdelen in de derde kolom.
B4: 1 | C4: Klik op een nummer voor het invoerformulier OP | F4: sal.nr. 1 t/m 3 | G4: < 57 jaar | H4: 57 jr of ouder | J4: basisbudget | K4: bijz. budget | L4: overg. budget | M4: uit spaarsaldo | O4: verlofopname | P4: sparen | Q4: basisbudget | R4: bijz. budget | S4: overg. budget | V4: o | W4: m | X4: o | Y4: m | Z4: o | AA4: m | AB4: o | AC4: m | AD4: o | AE4: m | AI4: inroostering | AL4: percentage van inroostering | AN4: A: PDI | AO4: B: overige taken | AU4: Het extra | AV4: 32 | AW4: =ROUND(ROUND(AV4,1)/40,4) -> 0.8 | AY4: 0.6453 | AZ4: =ROUND(AY4*40,2) -> 25.81
B5: 1 | C5: Andriessen, Floor (voltijder) | D5: =ROUND((E5*40/24)*1440,0)/1440 -> 1.666666667 | E5: 1 | G5: X | J5: 40 | K5: 0 | M5: 0 | N5: 40 | O5: 0 | P5: 0 | Q5: 0 | R5: 0 | T5: 40 | V5: 1 | W5: 1 | X5: 1 | Y5: 1 | Z5: 1 | AB5: 1 | AC5: 1 | AD5: 1 | AE5: 1 | AF5: 1 | AH5: =INDIRECT("'"&ROW()-4&"'!M39") -> 9 | AI5: =INDIRECT("'"&ROW()-4&"'!M40") -> 101 | AJ5: 0 | AK5: =INDIRECT("'"&ROW()-4&"'!M30") -> -67 | AL5: =INDIRECT("'"&ROW()-4&"'!M31") -> 96 | AM5: =INDIRECT("'"&ROW()-4&"'!M60") -> 0 | AN5: =INDIRECT("'"&ROW()-4&"'!N64") -> 0 | AO5: =INDIRECT("'"&ROW()-4&"'!N69") -> 44.92753623 | AP5: =INDIRECT("'"&ROW()-4&"'!N157") -> 114 | AQ5: 1 | AV5: uren | AW5: wtf | AY5: wtf | AZ5: uren
B6: 2 | C6: Berndsen, Theo (deeltijder) | D6: 1.333333333 | E6: 0.8000000119 | G6: X | J6: 32 | K6: 0 | M6: 0 | N6: 32 | O6: 0 | P6: 0 | Q6: 0 | R6: 0 | T6: 32 | V6: 1 | W6: 1 | X6: 1 | Y6: 1 | Z6: 1 | AD6: 1 | AE6: 1 | AF6: 1 | AH6: -8 | AI6: 98.9 | AK6: -67 | AL6: 95 | AM6: =INDIRECT("'"&ROW()-4&"'!M60") -> 0 | AN6: =INDIRECT("'"&ROW()-4&"'!N64") -> 0 | AO6: 78.07486631 | AP6: =INDIRECT("'"&ROW()-4&"'!N157") -> 41 | AQ6: 2
B7: 3 | C7: Clingenhove, Birgit van (verlof d.i.) | D7: 1.666666667 | E7: 1 | H7: X | J7: 40 | K7: 130 | M7: 0 | N7: 170 | O7: 170 | P7: 0 | Q7: 40 | R7: 130 | T7: 0 | V7: 1 | W7: 1 | X7: 1 | Y7: 1 | Z7: 1 | AB7: 1 | AC7: 1 | AD7: 1 | AF7: 1 | AH7: 1 | AI7: 100.1 | AK7: -57 | AL7: 96.2 | AM7: =INDIRECT("'"&ROW()-4&"'!M60") -> 0 | AN7: =INDIRECT("'"&ROW()-4&"'!N64") -> 0 | AO7: 81.61434978 | AP7: =INDIRECT("'"&ROW()-4&"'!N157") -> 41 | AQ7: 3 | AV7: uren per jaar >>> wtf | AY7: wtf >>> uren per jaar
B8: 4 | C8: Doornbos, Eric ( wo om en om) | D8: 0.8333333333 | E8: 0.5 | G8: X | J8: 20 | K8: 0 | M8: 0 | N8: 20 | O8: 0 | P8: 0 | Q8: 0 | R8: 0 | T8: 20 | V8: 1 | W8: 1 | X8: 1 | Y8: 1 | Z8: 1 | AF8: 1 | AH8: 10 | AI8: 102.1 | AJ8: 0 | AK8: -4 | AL8: 99.5 | AM8: =INDIRECT("'"&ROW()-4&"'!M60") -> 0 | AN8: =INDIRECT("'"&ROW()-4&"'!N64") -> 0 | AO8: 87.5 | AP8: =INDIRECT("'"&ROW()-4&"'!N157") -> 12 | AQ8: 4
B9: 5 | C9: Everhart, Ina (wo om en om) | D9: 0.8333333333 | E9: 0.5 | G9: X | J9: 20 | K9: 0 | M9: 0 | N9: 20 | O9: 0 | P9: 0 | Q9: 0 | R9: 0 | T9: 20 | Z9: 1 | AB9: 1 | AC9: 1 | AD9: 1 | AE9: 1 | AF9: 1 | AH9: -1 | AI9: 99.8 | AK9: -21 | AL9: 97.5 | AM9: =INDIRECT("'"&ROW()-4&"'!M60") -> 0 | AN9: =INDIRECT("'"&ROW()-4&"'!N64") -> 0 | AO9: 93.69369369 | AP9: =INDIRECT("'"&ROW()-4&"'!N157") -> 7 | AQ9: 5 | AV9: 1489 | AW9: =ROUND((AV9/1659),4) -> 0.8975 | AY9: 0.8975 | AZ9: =ROUND(ROUND(AY9,4)*1659,0) -> 1489
B10: 6 | C10: Faassen, Han van (deels ambulant) | D10: 1.333333333 | E10: 0.8000000119 | G10: X | J10: 32 | K10: 0 | M10: 0 | N10: 32 | O10: 0 | P10: 0 | Q10: 0 | R10: 0 | T10: 32 | V10: 1 | W10: 1 | X10: 1 | Y10: 1 | Z10: 1 | AB10: 2 | AC10: 2 | AF10: 1 | AH10: -202 | AI10: 73.1 | AK10: -50 | AL10: 96.2 | AM10: 0 | AN10: 0 | AO10: 28.54030501 | AP10: 328 | AQ10: 6
B11: 7 | C11: Ginniken, Els van (OOP) | D11: 1.666666667 | E11: 1 | G11: X | J11: 40 | K11: 0 | M11: 0 | N11: 40 | O11: 0 | P11: 0 | Q11: 0 | R11: 0 | T11: 40 | V11: 3 | W11: 3 | X11: 3 | Y11: 3 | Z11: 3 | AB11: 3 | AC11: 3 | AD11: 3 | AE11: 3 | AF11: 1 | AH11: 9 | AI11: 101 | AK11: -67 | AL11: 96 | AM11: 0 | AN11: 0 | AO11: 37.74834437 | AP11: 188 | AQ11: 7
B12: 8 | C12: Habil, Hafsa (ouderschapsverlof) | D12: 1.333333333 | E12: 0.8000000119 | G12: X | J12: 32 | K12: 0 | M12: 0 | N12: 32 | O12: 0 | P12: 0 | Q12: 0 | R12: 0 | T12: 32 | V12: 1 | W12: 1 | X12: 1 | Y12: 1 | Z12: 1 | AB12: 1 | AC12: 1 | AF12: 1 | AH12: 2 | AI12: 100.3 | AK12: -50 | AL12: 96.2 | AM12: 0 | AN12: 0 | AO12: 76.74418605 | AP12: 30 | AQ12: 8
B13: 9 | C13: Imhoff, Carla (lerarenbeurs) | D13: 0.8069444444 | E13: 0.4842999876 | G13: X | J13: 19 | K13: 0 | M13: 0 | N13: 19 | O13: 0 | P13: 0 | Q13: 0 | R13: 0 | T13: 19 | AB13: 1 | AC13: 1 | AD13: 1 | AE13: 1 | AF13: 1 | AH13: 0 | AI13: 100 | AK13: -27 | AL13: 96.6 | AM13: 0 | AN13: 0 | AO13: 99.06542056 | AP13: 1 | AQ13: 9 | AV13: uren | AW13: wtf | AY13: wtf | AZ13: uren
B14: 10 | C14: Draaisma, Henk (inzet PDI-spaarsaldo) | D14: 1.666666667 | E14: 1 | G14: X | J14: 40 | K14: 0 | M14: 0 | N14: 40 | O14: 0 | P14: 0 | Q14: 0 | R14: 0 | T14: 40 | V14: 1 | W14: 2 | X14: 1 | Y14: 2 | Z14: 1 | AB14: 1 | AC14: 1 | AD14: 1 | AE14: 1 | AF14: 1 | AH14: -147 | AI14: 84.4 | AK14: -67 | AL14: 96 | AM14: 0 | AN14: 0 | AO14: 89.47368421 | AP14: 6 | AQ14: 10
B15: 11 | C15: Kornelissen, Fleur ( OOP logopedist) | D15: 1.333333333 | E15: 0.8000000119 | G15: X | J15: 32 | K15: 0 | M15: 0 | N15: 32 | O15: 0 | P15: 0 | Q15: 0 | R15: 0 | T15: 32 | V15: 2 | W15: 2 | X15: 2 | Y15: 2 | Z15: 2 | AB15: 2 | AC15: 2 | AF15: 1 | AH15: -752 | AI15: 0 | AK15: -50 | AL15: 96.2 | AM15: 0 | AN15: 0 | AO15: 45 | AP15: 55 | AQ15: 11 | AV15: =ROUND(ROUND(AY4,4)*1659,0) -> 1071
B16: 12 | D16: 0 | AH16: 0 | AI16: 0 | AK16: 0 | AL16: 0 | AM16: 0 | AN16: 0 | AO16: 0 | AP16: 0 | AQ16: 12
B17: 13 | D17: 0 | AH17: 0 | AI17: 0 | AK17: 0 | AL17: 0 | AM17: 0 | AN17: 0 | AO17: 0 | AP17: 0 | AQ17: 13
B18: 14 | D18: 0 | AH18: 0 | AI18: 0 | AK18: 0 | AL18: 0 | AM18: 0 | AN18: 0 | AO18: 0 | AP18: 0 | AQ18: 14
B19: 15 | D19: 0 | AH19: 0 | AI19: 0 | AK19: 0 | AL19: 0 | AM19: 0 | AN19: 0 | AO19: 0 | AP19: 0 | AQ19: 15
B20: 16 | D20: 0 | AH20: 0 | AI20: 0 | AK20: 0 | AL20: 0 | AM20: 0 | AN20: 0 | AO20: 0 | AP20: 0 | AQ20: 16
B21: 17 | D21: 0 | AH21: 0 | AI21: 0 | AK21: 0 | AL21: 0 | AM21: 0 | AN21: 0 | AO21: 0 | AP21: 0 | AQ21: 17
B22: 18 | D22: 0 | AH22: 0 | AI22: 0 | AK22: 0 | AL22: 0 | AM22: 0 | AN22: 0 | AO22: 0 | AP22: 0 | AQ22: 18
B23: 19 | D23: 0 | AH23: 0 | AI23: 0 | AK23: 0 | AL23: 0 | AM23: 0 | AN23: 0 | AO23: 0 | AP23: 0 | AQ23: 19
B24: 20 | D24: 0 | AH24: 0 | AI24: 0 | AK24: 0 | AL24: 0 | AM24: 0 | AN24: 0 | AO24: 0 | AP24: 0 | AQ24: 20
B25: 21 | D25: 0 | AH25: 0 | AI25: 0 | AK25: 0 | AL25: 0 | AM25: 0 | AN25: 0 | AO25: 0 | AP25: 0 | AQ25: 21
B26: 22 | D26: 0 | AH26: 0 | AI26: 0 | AK26: 0 | AL26: 0 | AM26: 0 | AN26: 0 | AO26: 0 | AP26: 0 | AQ26: 22
B27: 23 | D27: 0 | AH27: 0 | AI27: 0 | AK27: 0 | AL27: 0 | AM27: 0 | AN27: 0 | AO27: 0 | AP27: 0 | AQ27: 23
B28: 24 | D28: 0 | AH28: 0 | AI28: 0 | AJ28: 0 | AK28: 0 | AL28: 0 | AM28: 0 | AN28: 0 | AO28: 0 | AP28: 0 | AQ28: 24
B29: 25 | D29: 0 | AH29: 0 | AI29: 0 | AJ29: 0 | AK29: 0 | AL29: 0 | AM29: 0 | AN29: 0 | AO29: 0 | AP29: 0 | AQ29: 25
B30: 26 | D30: 0 | AH30: 0 | AI30: 0 | AJ30: 0 | AK30: 0 | AL30: 0 | AM30: 0 | AN30: 0 | AO30: 0 | AP30: 0 | AQ30: 26
B31: 27 | D31: 0 | AH31: 0 | AI31: 0 | AJ31: 0 | AK31: 0 | AL31: 0 | AM31: 0 | AN31: 0 | AO31: 0 | AP31: 0 | AQ31: 27
B32: 28 | D32: 0 | AH32: 0 | AI32: 0 | AJ32: 0 | AK32: 0 | AL32: 0 | AM32: 0 | AN32: 0 | AO32: 0 | AP32: 0 | AQ32: 28
B33: 29 | D33: 0 | AH33: 0 | AI33: 0 | AJ33: 0 | AK33: 0 | AL33: 0 | AM33: 0 | AN33: 0 | AO33: 0 | AP33: 0 | AQ33: 29
B34: 30 | D34: 0 | AH34: 0 | AI34: 0 | AJ34: 0 | AK34: 0 | AL34: 0 | AM34: 0 | AN34: 0 | AO34: 0 | AP34: 0 | AQ34: 30
B35: 31 | D35: 0 | AH35: 0 | AI35: 0 | AJ35: 0 | AK35: 0 | AL35: 0 | AM35: 0 | AN35: 0 | AO35: 0 | AP35: 0 | AQ35: 31
B36: 32 | D36: 0 | AH36: 0 | AI36: 0 | AJ36: 0 | AK36: 0 | AL36: 0 | AM36: 0 | AN36: 0 | AO36: 0 | AP36: 0 | AQ36: 32
B37: 33 | D37: =ROUND((E37*40/24)*1440,0)/1440 -> 0 | AH37: =INDIRECT("'"&ROW()-4&"'!M39") -> 0 | AI37: =INDIRECT("'"&ROW()-4&"'!M40") -> 0 | AJ37: 0 | AK37: =INDIRECT("'"&ROW()-4&"'!M30") -> 0 | AL37: =INDIRECT("'"&ROW()-4&"'!M31") -> 0 | AM37: 0 | AN37: 0 | AO37: 0 | AP37: 0 | AQ37: 33
B38: 34 | D38: 0 | AH38: 0 | AI38: 0 | AJ38: 0 | AK38: 0 | AL38: 0 | AM38: 0 | AN38: 0 | AO38: 0 | AP38: 0 | AQ38: 34
B39: 35 | D39: 0 | AH39: 0 | AI39: 0 | AJ39: 0 | AK39: 0 | AL39: 0 | AM39: 0 | AN39: 0 | AO39: 0 | AP39: 0 | AQ39: 35
B40: 36 | D40: 0 | AH40: 0 | AI40: 0 | AJ40: 0 | AK40: 0 | AL40: 0 | AM40: 0 | AN40: 0 | AO40: 0 | AP40: 0 | AQ40: 36
B41: 37 | D41: 0 | AH41: 0 | AI41: 0 | AJ41: 0 | AK41: 0 | AL41: 0 | AM41: 0 | AN41: 0 | AO41: 0 | AP41: 0 | AQ41: 37
B42: 38 | D42: 0 | AH42: 0 | AI42: 0 | AJ42: 0 | AK42: 0 | AL42: 0 | AM42: 0 | AN42: 0 | AO42: 0 | AP42: 0 | AQ42: 38
B43: 39 | D43: 0 | AH43: 0 | AI43: 0 | AJ43: 0 | AK43: 0 | AL43: 0 | AM43: 0 | AN43: 0 | AO43: 0 | AP43: 0 | AQ43: 39
B44: 40 | D44: 0 | AH44: 0 | AI44: 0 | AJ44: 0 | AK44: 0 | AL44: 0 | AM44: 0 | AN44: 0 | AO44: 0 | AP44: 0 | AQ44: 40
B45: 41 | D45: 0 | AH45: 0 | AI45: 0 | AJ45: 0 | AK45: 0 | AL45: 0 | AM45: 0 | AN45: 0 | AO45: 0 | AP45: 0 | AQ45: 41
B46: 42 | D46: 0 | AH46: 0 | AI46: 0 | AJ46: 0 | AK46: 0 | AL46: 0 | AM46: 0 | AN46: 0 | AO46: 0 | AP46: 0 | AQ46: 42
B47: 43 | D47: 0 | AH47: 0 | AI47: 0 | AJ47: 0 | AK47: 0 | AL47: 0 | AM47: 0 | AN47: 0 | AO47: 0 | AP47: 0 | AQ47: 43
B48: 44 | D48: 0 | AH48: 0 | AI48: 0 | AJ48: 0 | AK48: 0 | AL48: 0 | AM48: 0 | AN48: 0 | AO48: 0 | AP48: 0 | AQ48: 44
B49: 45 | D49: 0 | AH49: 0 | AI49: 0 | AJ49: 0 | AK49: 0 | AL49: 0 | AM49: 0 | AN49: 0 | AO49: 0 | AP49: 0 | AQ49: 45
B50: 46 | D50: 0 | AH50: 0 | AI50: 0 | AJ50: 0 | AK50: 0 | AL50: 0 | AM50: 0 | AN50: 0 | AO50: 0 | AP50: 0 | AQ50: 46
B51: 47 | D51: 0 | AH51: 0 | AI51: 0 | AJ51: 0 | AK51: 0 | AL51: 0 | AM51: 0 | AN51: 0 | AO51: 0 | AP51: 0 | AQ51: 47
B52: 48 | D52: 0 | AH52: 0 | AI52: 0 | AJ52: 0 | AK52: 0 | AL52: 0 | AM52: 0 | AN52: 0 | AO52: 0 | AP52: 0 | AQ52: 48
B53: 49 | D53: 0 | AH53: 0 | AI53: 0 | AJ53: 0 | AK53: 0 | AL53: 0 | AM53: 0 | AN53: 0 | AO53: 0 | AP53: 0 | AQ53: 49
B54: 50 | D54: 0 | AH54: 0 | AI54: 0 | AJ54: 0 | AK54: 0 | AL54: 0 | AM54: 0 | AN54: 0 | AO54: 0 | AP54: 0 | AQ54: 50
B55: 51 | D55: 0 | AH55: 0 | AI55: 0 | AJ55: 0 | AK55: 0 | AL55: 0 | AM55: 0 | AN55: 0 | AO55: 0 | AP55: 0 | AQ55: 51
B56: 52 | D56: 0 | AH56: 0 | AI56: 0 | AJ56: 0 | AK56: 0 | AL56: 0 | AM56: 0 | AN56: 0 | AO56: 0 | AP56: 0 | AQ56: 52
B57: 53 | D57: 0 | AH57: 0 | AI57: 0 | AJ57: 0 | AK57: 0 | AL57: 0 | AM57: 0 | AN57: 0 | AO57: 0 | AP57: 0 | AQ57: 53
B58: 54 | D58: 0 | AH58: 0 | AI58: 0 | AJ58: 0 | AK58: 0 | AL58: 0 | AM58: 0 | AN58: 0 | AO58: 0 | AP58: 0 | AQ58: 54
B59: 55 | D59: 0 | AH59: 0 | AI59: 0 | AJ59: 0 | AK59: 0 | AL59: 0 | AM59: 0 | AN59: 0 | AO59: 0 | AP59: 0 | AQ59: 55
B60: 56 | D60: 0 | AH60: 0 | AI60: 0 | AJ60: 0 | AK60: 0 | AL60: 0 | AM60: 0 | AN60: 0 | AO60: 0 | AP60: 0 | AQ60: 56
B61: 57 | D61: 0 | AH61: 0 | AI61: 0 | AJ61: 0 | AK61: 0 | AL61: 0 | AM61: 0 | AN61: 0 | AO61: 0 | AP61: 0 | AQ61: 57
B62: 58 | D62: 0 | AH62: 0 | AI62: 0 | AJ62: 0 | AK62: 0 | AL62: 0 | AM62: 0 | AN62: 0 | AO62: 0 | AP62: 0 | AQ62: 58
B63: 59 | D63: 0 | AH63: 0 | AI63: 0 | AJ63: 0 | AK63: 0 | AL63: 0 | AM63: 0 | AN63: 0 | AO63: 0 | AP63: 0 | AQ63: 59
B64: 60 | D64: 0 | AH64: 0 | AI64: 0 | AJ64: 0 | AK64: 0 | AL64: 0 | AM64: 0 | AN64: 0 | AO64: 0 | AP64: 0 | AQ64: 60
B65: 61 | D65: 0 | AH65: 0 | AI65: 0 | AJ65: 0 | AK65: 0 | AL65: 0 | AM65: 0 | AN65: 0 | AO65: 0 | AP65: 0 | AQ65: 61
B66: 62 | D66: 0 | AH66: 0 | AI66: 0 | AJ66: 0 | AK66: 0 | AL66: 0 | AM66: 0 | AN66: 0 | AO66: 0 | AP66: 0 | AQ66: 62
B67: 63 | D67: 0 | AH67: 0 | AI67: 0 | AJ67: 0 | AK67: 0 | AL67: 0 | AM67: 0 | AN67: 0 | AO67: 0 | AP67: 0 | AQ67: 63
B68: 64 | D68: 0 | AH68: 0 | AI68: 0 | AJ68: 0 | AK68: 0 | AL68: 0 | AM68: 0 | AN68: 0 | AO68: 0 | AP68: 0 | AQ68: 64
B69: 65 | D69: =ROUND((E69*40/24)*1440,0)/1440 -> 0 | AH69: =INDIRECT("'"&ROW()-4&"'!M39") -> 0 | AI69: =INDIRECT("'"&ROW()-4&"'!M40") -> 0 | AJ69: 0 | AK69: =INDIRECT("'"&ROW()-4&"'!M30") -> 0 | AL69: =INDIRECT("'"&ROW()-4&"'!M31") -> 0 | AM69: 0 | AN69: 0 | AO69: =INDIRECT("'"&ROW()-4&"'!N69") -> 0 | AP69: 0 | AQ69: 65
B70: 66 | D70: 0 | AH70: 0 | AI70: 0 | AJ70: 0 | AK70: 0 | AL70: 0 | AM70: 0 | AN70: 0 | AO70: 0 | AP70: 0 | AQ70: 66
B71: 67 | D71: 0 | AH71: 0 | AI71: 0 | AJ71: 0 | AK71: 0 | AL71: 0 | AM71: 0 | AN71: 0 | AO71: 0 | AP71: 0 | AQ71: 67
B72: 68 | D72: 0 | AH72: 0 | AI72: 0 | AJ72: 0 | AK72: 0 | AL72: 0 | AM72: 0 | AN72: 0 | AO72: 0 | AP72: 0 | AQ72: 68
B73: 69 | D73: 0 | AH73: 0 | AI73: 0 | AJ73: 0 | AK73: 0 | AL73: 0 | AM73: =INDIRECT("'"&ROW()-4&"'!M60") -> 0 | AN73: =INDIRECT("'"&ROW()-4&"'!N64") -> 0 | AO73: 0 | AP73: =INDIRECT("'"&ROW()-4&"'!N157") -> 0 | AQ73: 69
B74: 70 | D74: 0 | AH74: 0 | AI74: 0 | AJ74: 0 | AK74: 0 | AL74: 0 | AM74: 0 | AN74: 0 | AO74: 0 | AP74: 0 | AQ74: 70
B75: 71 | D75: 0 | AH75: 0 | AI75: 0 | AJ75: 0 | AK75: 0 | AL75: 0 | AM75: 0 | AN75: 0 | AO75: 0 | AP75: 0 | AQ75: 71
B76: 72 | D76: 0 | AH76: 0 | AI76: 0 | AJ76: 0 | AK76: 0 | AL76: 0 | AM76: 0 | AN76: 0 | AO76: 0 | AP76: 0 | AQ76: 72
B77: 73 | D77: 0 | AH77: 0 | AI77: 0 | AJ77: 0 | AK77: 0 | AL77: 0 | AM77: 0 | AN77: 0 | AO77: 0 | AP77: 0 | AQ77: 73
B78: 74 | D78: 0 | AH78: 0 | AI78: 0 | AJ78: 0 | AK78: 0 | AL78: 0 | AM78: 0 | AN78: 0 | AO78: 0 | AP78: 0 | AQ78: 74
B79: 75 | D79: 0 | AH79: 0 | AI79: 0 | AJ79: 0 | AK79: 0 | AL79: 0 | AM79: 0 | AN79: 0 | AO79: 0 | AP79: 0 | AQ79: 75
B80: 76 | D80: 0 | AH80: 0 | AI80: 0 | AJ80: 0 | AK80: 0 | AL80: 0 | AM80: 0 | AN80: 0 | AO80: 0 | AP80: 0 | AQ80: 76
B81: 77 | D81: 0 | AH81: 0 | AI81: 0 | AJ81: 0 | AK81: 0 | AL81: 0 | AM81: 0 | AN81: 0 | AO81: 0 | AP81: 0 | AQ81: 77
B82: 78 | D82: 0 | AH82: 0 | AI82: 0 | AJ82: 0 | AK82: 0 | AL82: 0 | AM82: 0 | AN82: 0 | AO82: 0 | AP82: 0 | AQ82: 78
B83: 79 | D83: 0 | AH83: 0 | AI83: 0 | AJ83: 0 | AK83: 0 | AL83: 0 | AM83: 0 | AN83: 0 | AO83: 0 | AP83: 0 | AQ83: 79
B84: 80 | D84: 0 | AH84: 0 | AI84: 0 | AJ84: 0 | AK84: 0 | AL84: 0 | AM84: 0 | AN84: 0 | AO84: 0 | AP84: 0 | AQ84: 80
B85: 81 | D85: 0 | AH85: 0 | AI85: 0 | AJ85: 0 | AK85: 0 | AL85: 0 | AM85: 0 | AN85: 0 | AO85: 0 | AP85: 0 | AQ85: 81
B86: 82 | D86: 0 | AH86: 0 | AI86: 0 | AJ86: 0 | AK86: 0 | AL86: 0 | AM86: 0 | AN86: 0 | AO86: 0 | AP86: 0 | AQ86: 82
B87: 83 | D87: 0 | AH87: 0 | AI87: 0 | AJ87: 0 | AK87: 0 | AL87: 0 | AM87: 0 | AN87: 0 | AO87: 0 | AP87: 0 | AQ87: 83
B88: 84 | D88: 0 | AH88: 0 | AI88: 0 | AJ88: 0 | AK88: 0 | AL88: 0 | AM88: 0 | AN88: 0 | AO88: 0 | AP88: 0 | AQ88: 84
B89: 85 | D89: 0 | AH89: 0 | AI89: 0 | AJ89: 0 | AK89: 0 | AL89: 0 | AM89: 0 | AN89: 0 | AO89: 0 | AP89: 0 | AQ89: 85
B90: 86 | D90: 0 | AH90: 0 | AI90: 0 | AJ90: 0 | AK90: 0 | AL90: 0 | AM90: 0 | AN90: 0 | AO90: 0 | AP90: 0 | AQ90: 86
B91: 87 | D91: 0 | AH91: 0 | AI91: 0 | AJ91: 0 | AK91: 0 | AL91: 0 | AM91: 0 | AN91: 0 | AO91: 0 | AP91: 0 | AQ91: 87
B92: 88 | D92: 0 | AH92: 0 | AI92: 0 | AJ92: 0 | AK92: 0 | AL92: 0 | AM92: 0 | AN92: 0 | AO92: 0 | AP92: 0 | AQ92: 88
B93: 89 | D93: 0 | AH93: 0 | AI93: 0 | AJ93: 0 | AK93: 0 | AL93: 0 | AM93: 0 | AN93: 0 | AO93: 0 | AP93: 0 | AQ93: 89
B94: 90 | D94: 0 | AH94: 0 | AI94: 0 | AJ94: 0 | AK94: 0 | AL94: 0 | AM94: 0 | AN94: 0 | AO94: 0 | AP94: 0 | AQ94: 90
B95: 91 | D95: 0 | AH95: 0 | AI95: 0 | AJ95: 0 | AK95: 0 | AL95: 0 | AM95: 0 | AN95: 0 | AO95: 0 | AP95: 0 | AQ95: 91
B96: 92 | D96: 0 | AH96: 0 | AI96: 0 | AJ96: 0 | AK96: 0 | AL96: 0 | AM96: 0 | AN96: 0 | AO96: 0 | AP96: 0 | AQ96: 92
B97: 93 | D97: 0 | AH97: 0 | AI97: 0 | AJ97: 0 | AK97: 0 | AL97: 0 | AM97: 0 | AN97: 0 | AO97: 0 | AP97: 0 | AQ97: 93
B98: 94 | D98: 0 | AH98: 0 | AI98: 0 | AJ98: 0 | AK98: 0 | AL98: 0 | AM98: 0 | AN98: 0 | AO98: 0 | AP98: 0 | AQ98: 94
B99: 95 | D99: 0 | AH99: 0 | AI99: 0 | AJ99: 0 | AK99: 0 | AL99: 0 | AM99: 0 | AN99: 0 | AO99: 0 | AP99: 0 | AQ99: 95
B100: 96 | D100: 0 | AH100: 0 | AI100: 0 | AJ100: 0 | AK100: 0 | AL100: 0 | AM100: 0 | AN100: 0 | AO100: 0 | AP100: 0 | AQ100: 96
B101: 97 | D101: =ROUND((E101*40/24)*1440,0)/1440 -> 0 | AH101: 0 | AI101: 0 | AJ101: 0 | AK101: 0 | AL101: 0 | AM101: 0 | AN101: 0 | AO101: 0 | AP101: 0 | AQ101: 97
B102: 98 | D102: =ROUND((E102*40/24)*1440,0)/1440 -> 0 | AH102: 0 | AI102: 0 | AJ102: 0 | AK102: 0 | AL102: 0 | AM102: 0 | AN102: 0 | AO102: 0 | AP102: 0 | AQ102: 98
B103: 99 | D103: =ROUND((E103*40/24)*1440,0)/1440 -> 0 | AH103: 0 | AI103: 0 | AJ103: 0 | AK103: 0 | AL103: 0 | AM103: 0 | AN103: 0 | AO103: 0 | AP103: 0 | AQ103: 99
B104: 100 | D104: =ROUND((E104*40/24)*1440,0)/1440 -> 0 | AH104: 0 | AI104: 0 | AJ104: 0 | AK104: 0 | AL104: 0 | AM104: 0 | AN104: 0 | AO104: 0 | AP104: 0 | AQ104: 100
E105: =SUM(E5:E104) -> 8.684300035 | AP105: =SUM(AP5:AP104) -> 823
B107: FORMATIEOVERZICHT - OOP zonder lesonderst. taken | G107: PDI-budgetdeel duurzame inzetbaarheid | V107: arbeidsuren op vaste werkdagen | AJ107: ingeroosterd | AM107: activit. | AO107: leeftijd | AQ107: naar teamlidblad OOP | AR107: e-mailadres
B108: =lesurenberekening!J4 -> 00:00:00 | D108: urenaanstelling | E108: wtf | F108: schaal 8 of hoger | G108: cat. | J108: opbouw budget | N108: tot. beschikbaar | O108: verlof | Q108: verdeling | T108: (rest) d.i. budget | U108: spaarsaldo verlof | V108: ma | X108: di | Z108: wo | AB108: do | AD108: vr | AJ108: urentotaal per week | AK108: meer of minder inger- arbeidsuren | AL108: % | AM108: PDI-saldo aan het einde dit schooljaar | AN108: % | AO108: geb.datum na 31 juli? | AP108: geboortejaar | AR108: voer het mailadres in op het invoerformulier
B109: Plaats hieronder alleen het OOP zonder lesondersteunende taken, zoals een concierge, administratief ondersteuner of logopedist. OOP mét lesgevende of behandeltaken, zoals een onderwijsassistent, moet hierboven bij het OP worden geplaatst (nr. 1 t/m 100). Klik op een nummer voor het invoerformulier OOP | G109: < 57 jaar | H109: 57 jr of ouder | I109: overg.regeling | J109: basisbudget | K109: bijz. budget | L109: overg. budget | M109: uit spaarsaldo | O109: opname verlof | P109: sparen | Q109: basisbudget | R109: bijz. budget | S109: overg. budget | AL109: inroostering | AN109: PDI - ingevuld
B110: 101 | C110: Albrechts, Janine (inroosterwijze 2) | D110: =ROUND((E110*40/24)*1440,0)/1440 -> 1 | E110: 0.6000000238 | G110: X | J110: 24 | K110: 0 | M110: 0 | N110: 24 | O110: 0 | P110: 0 | Q110: 0 | R110: 0 | T110: 24 | V110: =INDIRECT("'"&ROW()-9&"'!E9") -> 0.3333333333 | X110: =INDIRECT("'"&ROW()-9&"'!E10") -> 0.3333333333 | Z110: =INDIRECT("'"&ROW()-9&"'!E11") -> 0.2708333333 | AB110: =INDIRECT("'"&ROW()-9&"'!E12") -> 0 | AD110: =INDIRECT("'"&ROW()-9&"'!E13") -> 0 | AJ110: =INDIRECT("'"&ROW()-9&"'!E15") -> 0.9375 | AK110: =INDIRECT("'"&ROW()-9&"'!M49") -> -74 | AL110: =INDIRECT("'"&ROW()-9&"'!M51") -> 92.5 | AM110: =INDIRECT("'"&ROW()-9&"'!M68") -> 0 | AN110: =INDIRECT("'"&ROW()-9&"'!N71") -> 0 | AO110: na | AP110: 1990 | AQ110: 101
B111: 102 | C111: Duiker, Antoinette | D111: =ROUND((E111*40/24)*1440,0)/1440 -> 0.6666666667 | E111: 0.400000006 | H111: X | J111: 16 | K111: 52 | M111: 0 | N111: 68 | O111: 68 | P111: 0 | Q111: 16 | R111: 52 | T111: 0 | V111: 0.2083333333 | X111: =INDIRECT("'"&ROW()-9&"'!E10") -> 0.1944444444 | Z111: 0.1736111111 | AB111: 0 | AD111: 0 | AJ111: =INDIRECT("'"&ROW()-9&"'!E15") -> 0.5763888889 | AK111: =INDIRECT("'"&ROW()-9&"'!M49") -> -33 | AL111: =INDIRECT("'"&ROW()-9&"'!M51") -> 94.3 | AM111: =INDIRECT("'"&ROW()-9&"'!M68") -> 0 | AN111: =INDIRECT("'"&ROW()-9&"'!N71") -> 0 | AP111: 1965 | AQ111: 102
B112: 103 | D112: =ROUND((E112*40/24)*1440,0)/1440 -> 0 | V112: 0 | X112: =INDIRECT("'"&ROW()-9&"'!E10") -> 0 | Z112: 0 | AB112: 0 | AD112: 0 | AJ112: 0 | AK112: =INDIRECT("'"&ROW()-9&"'!M49") -> 0 | AL112: =INDIRECT("'"&ROW()-9&"'!M51") -> 0 | AM112: =INDIRECT("'"&ROW()-9&"'!M68") -> 0 | AN112: =INDIRECT("'"&ROW()-9&"'!N71") -> 0 | AP112: 0 | AQ112: 103
B113: 104 | D113: =ROUND((E113*40/24)*1440,0)/1440 -> 0 | V113: 0 | X113: =INDIRECT("'"&ROW()-9&"'!E10") -> 0 | Z113: 0 | AB113: 0 | AD113: 0 | AJ113: 0 | AK113: 0 | AL113: =INDIRECT("'"&ROW()-9&"'!M47") -> 0 | AM113: =INDIRECT("'"&ROW()-9&"'!M68") -> 0 | AN113: =INDIRECT("'"&ROW()-9&"'!N71") -> 0 | AP113: 0 | AQ113: 104
B114: 105 | D114: 0 | V114: 0 | X114: 0 | Z114: 0 | AB114: 0 | AD114: 0 | AJ114: 0 | AK114: 0 | AL114: 0 | AM114: =INDIRECT("'"&ROW()-9&"'!M68") -> 0 | AN114: =INDIRECT("'"&ROW()-9&"'!N71") -> 0 | AP114: 0 | AQ114: 105
B115: 106 | D115: 0 | V115: 0 | X115: 0 | Z115: 0 | AB115: 0 | AD115: 0 | AJ115: 0 | AK115: 0 | AL115: 0 | AM115: 0 | AN115: 0 | AP115: 0 | AQ115: 106
B116: 107 | D116: 0 | V116: 0 | X116: 0 | Z116: 0 | AB116: 0 | AD116: 0 | AJ116: 0 | AK116: 0 | AL116: 0 | AM116: 0 | AN116: 0 | AP116: 0 | AQ116: 107
B117: 108 | D117: 0 | V117: 0 | X117: 0 | Z117: 0 | AB117: 0 | AD117: 0 | AJ117: 0 | AK117: 0 | AL117: 0 | AM117: 0 | AN117: 0 | AP117: 0 | AQ117: 108
B118: 109 | D118: 0 | V118: 0 | X118: 0 | Z118: 0 | AB118: 0 | AD118: 0 | AJ118: 0 | AK118: 0 | AL118: 0 | AM118: 0 | AN118: 0 | AP118: 0 | AQ118: 109
B119: 110 | D119: 0 | V119: 0 | X119: 0 | Z119: 0 | AB119: 0 | AD119: 0 | AJ119: 0 | AK119: 0 | AL119: 0 | AM119: 0 | AN119: 0 | AP119: 0 | AQ119: 110
B120: 111 | D120: 0 | V120: 0 | X120: 0 | Z120: 0 | AB120: 0 | AD120: 0 | AJ120: 0 | AK120: 0 | AL120: 0 | AM120: 0 | AN120: 0 | AP120: 0 | AQ120: 111
B121: 112 | D121: 0 | V121: 0 | X121: 0 | Z121: 0 | AB121: 0 | AD121: 0 | AJ121: 0 | AK121: 0 | AL121: 0 | AM121: 0 | AN121: 0 | AP121: 0 | AQ121: 112
B122: 113 | D122: 0 | V122: 0 | X122: 0 | Z122: 0 | AB122: 0 | AD122: 0 | AJ122: 0 | AK122: 0 | AL122: 0 | AM122: 0 | AN122: 0 | AP122: 0 | AQ122: 113
B123: 114 | D123: 0 | V123: 0 | X123: 0 | Z123: 0 | AB123: 0 | AD123: 0 | AJ123: 0 | AK123: 0 | AL123: 0 | AM123: 0 | AN123: 0 | AP123: 0 | AQ123: 114
B124: 115 | D124: 0 | V124: 0 | X124: 0 | Z124: 0 | AB124: 0 | AD124: 0 | AJ124: 0 | AK124: 0 | AL124: 0 | AM124: 0 | AN124: 0 | AP124: 0 | AQ124: 115
B125: 116 | D125: 0 | V125: 0 | X125: 0 | Z125: 0 | AB125: 0 | AD125: 0 | AJ125: 0 | AK125: 0 | AL125: 0 | AM125: 0 | AN125: 0 | AP125: 0 | AQ125: 116
B126: 117 | D126: 0 | V126: 0 | X126: 0 | Z126: 0 | AB126: 0 | AD126: 0 | AJ126: 0 | AK126: 0 | AL126: 0 | AM126: 0 | AN126: 0 | AP126: 0 | AQ126: 117
B127: 118 | D127: 0 | V127: 0 | X127: 0 | Z127: 0 | AB127: 0 | AD127: 0 | AJ127: 0 | AK127: 0 | AL127: 0 | AM127: 0 | AN127: 0 | AP127: 0 | AQ127: 118
B128: 119 | D128: 0 | V128: 0 | X128: 0 | Z128: 0 | AB128: 0 | AD128: 0 | AJ128: 0 | AK128: 0 | AL128: 0 | AM128: 0 | AN128: 0 | AP128: 0 | AQ128: 119
B129: 120 | D129: 0 | V129: 0 | X129: 0 | Z129: 0 | AB129: 0 | AD129: 0 | AJ129: 0 | AK129: 0 | AL129: 0 | AM129: 0 | AN129: 0 | AP129: 0 | AQ129: 120
E130: =SUM(E110:E129) -> 1.00000003

Sheet groepsverdeling
B1: Sorteer (klik op de floating sorteerknop) steeds na elke nieuw ingevulde regel
B2: ="GROEPSVERDELING " & lesurenberekening!E5 & "/ "& lesurenberekening!G5 -> GROEPSVERDELING 2026/ 2027 | G2: scenario nr. | M2: 1 | O2: © taakberekeningPO.nl | S2: toelichting groepsverdeling
B3: 1e groepsnummer | C3: 2e grpsnr. (combi) | D3: groepsletter/cat. | E3: rangschikking | F3: =lesurenberekening!I5 -> Voorbeelden | G3: ma | I3: di | K3: wo | M3: do | O3: vrij
G4: o | H4: m | I4: o | J4: m | K4: o | L4: m | M4: o | N4: m | O4: o | P4: m | Q4: opmerkingen | S4: Op dit werkblad kun je scenario's van de groepsindeling en groeps- en functiebezetting maken voor het werkverdelingsoverleg en werkverdelingsplan. Sorteer na elke ingevoerde regel steeds op groep en functie door op de sorteerpijl te klikken.
B5: 1 | C5: 2 | D5: a | F5: Floor | G5: 1 | H5: 1 | I5: 1 | J5: 1 | K5: 1 | M5: 1 | N5: 1 | O5: 1 | P5: 1
B6: 1 | C6: 2 | D6: a | I6: 3 | J6: 3
B7: 3 | D7: a | F7: Birgit | G7: 1 | H7: 1 | I7: 1 | J7: 1 | K7: 1 | M7: 1 | N7: 1 | O7: 1
B8: 3 | D8: a | F8: Els | G8: 3 | H8: 3 | P8: 3
B9: 3 | D9: a | S9: Invoegen formatiegegevens
B10: 4 | D10: a | F10: Theo | G10: 1 | H10: 1 | I10: 1 | J10: 1 | K10: 1 | O10: 1 | P10: 1 | S10: Voeg de namenlijst en de vaste les- en werkdagdelen van het formatieoverzicht in door op
B11: 4 | D11: a | F11: Carla | M11: 1 | N11: 1 | S11: bovenstaande knop te klikken, of voer de namen van het team handmatig in.
B12: 4 | D12: a | S12: De eerste 4 kolommen worden alleen goed zichtbaar wanneer een naam is ingevuld.
B13: 5 | D13: a | F13: Eric | G13: 1 | H13: 1 | I13: 1 | J13: 1 | K13: 1
B14: 5 | D14: a | F14: Ina | K14: 1 | M14: 1 | N14: 1 | O14: 1 | P14: 1 | S14: Actualiseren voor het nieuwe schooljaar
B15: 5 | D15: a | F15: Carla | K15: 1 | Q15: Carla valt 4 woensdagen in voor Eric | S15: Wis na het importeren de teamleden die na de zomervakantie niet terugkeren en vul
B16: 5 | D16: a | S16: bij vacatures in de namenlijst in als Vacature 1, Vacature 2 enz., met eventueel de beoogde
B17: 6 | D17: a | F17: Han | G17: 1 | H17: 1 | I17: 1 | J17: 1 | K17: 1 | M17: 2 | N17: 2 | S17: werkdagdelen.
B18: 6 | D18: a | F18: Henk | M18: 1 | N18: 1 | O18: 1 | P18: 1
B19: 6 | D19: a | S19: Overzicht op het oorspronkelijke formatieoverzicht behouden
B20: 7 | D20: a | F20: ? | Q20: vacature | S20: Sommige teamleden worden in meerdere groepen of fucties ingezet en zullen dus op meerdere
B21: 7 | D21: a | S21: regels geplaatst moeten worden. Om het overzicht op ieders totale werkweek te behouden, kun
B22: 8 | D22: a | F22: Hafsa | G22: 1 | H22: 1 | I22: 1 | J22: 1 | K22: 1 | M22: 1 | N22: 1 | S22: je het oorspronkelijke overzicht na het importeren behouden door bij iedereen in de eerste
B23: 8 | D23: a | F23: Carla | O23: 1 | P23: 1 | S23: kolom een nul te zetten. Deze nul blijft onzichtbaar, maar zorgt ervoor dat het oorspronkelijke
B24: 8 | D24: a | F24: Henk | G24: 1 | I24: 1 | Q24: Henk assisteert op ma- en di-ochtend in gr 8a | S24: overzicht na sorteren steeds bovenaan blijft staan. Daaronder maak je dan het groepenoverzicht
B25: 8 | D25: a | S25: met de personele bezetting en het overzicht van de overige niet groepsgebonden functies.
B26: 9 | D26: OOP | F26: Els | K26: 3 | M26: 3 | N26: 3 | O26: 3 | Q26: lesondersteunenede taken in div. groepen
B27: 9 | D27: PDI | F27: Henk | H27: 2 | J27: 2 | Q27: Henk werkt op ma-mi en di-mi aan PDI-activiteit | S27: Afdruk maken van het geïmporteerde overzicht
S28: Bij een groot team kun je er natuurlijk ook voor kiezen om direct na het importeren eerst een
S29: afdruk te maken en deze dan voor het overzicht op ieders totale werkweek bij de hand te houden.
S34: Sorteren
S35: Klik op bovenstaande knop om de floating sorteerknop te laden. De knop kan aan de
S36: bovenbalk met ingedrukte (linker)muisknop naar elke gewenste plek worden versleept.
S37: Sluit de knop weer door op het kruisje te klikken.
S39: Door op de sorteerknop te klikken wordt de lijst gesorteerd. De sortering gebeurt op
S40: basis van het ingevulde in de eerste 4 kolommen. De eerste twee kolommen zijn gereserveerd
S41: voor de groepnummers, de 3e voor de letteraanduiding van de groep of de afkorting
S42: van een categorie, zoals bijv. amb en oop. De 4e kolom kun je gebruiken om binnen een
S43: groep of categorie indien nodig een rangschikking aan te geven - zie onder.
S45: Door steeds na elke regel die je hebt ingevuld te sorteren, behoud je het overzicht.
S47: Dagdelen wissen en invullen
S48: Dagdelen worden gewist door ze te selecteren en op de Deleteknop op je toetsenbord te
S49: drukken. Dagdelen worden toegevoegd door 1, 2 of 3 in te vullen: 1=lesdagdeel, 2=ambulant
S50: dagdeel en 3=OOP-dagdeel (met lesondersteunende taken).
S51: OOP'ers zonder lesondersteunnende taken kunnen onderaan de lijst worden geplaatst.
S52: Hun werkdagdelen kunnen met een 2 worden aangegeven.
S54: Groepsaanduiding invullen
S55: Vul in de 1e kolom bij elke leerkracht het beoogde groepsnummer in
S56: en bij een combinatiegroep in de 2e kolom het andere groepsnummer.
S57: In de 3e kolom kun je een letteraanduiding invullen. Dus bijv. |1| | a| of |1|2|a|
S59: Volgorde binnen meederere leerkrachten in één groep
S60: Leerkrachten die samen een groep hebben krijgen dezelfde bovenbeschreven groeps-
S61: aanduiding. Je kunt bij hen een volgorde aanbrengen door in de 4e kolom een 1 te zetten
S62: bij degene die de groep aan het begin van de week lesgeeft, en een 2 bij de andere
S63: leerkracht.
S65: OOP'ers
S66: OOP'ers die op vaste dagen in een groep assisteren krijgen dezelfde groepsaansaanduiding
S67: als de leerkrachten van die groep. Zij kunnen nader worden aangeduid door in de 4e kolom
S68: oop in te vullen. Zij komen dan boven (zonder nummering in kolom 4) de leerkrachten van die
S69: groep, of eronder (mét nummering in kolom 4)
S71: Leerkrachten en OOP'ers die in meerdere groepen werken
S72: Van OP'ers en OOP'ers die in meerdere groepen werken, worden de namen zo vaak als nodig is
S73: extra ingevuld op de namenlijst. Bij elke naam wordt de betreffende groepsaanduiding inge-
S74: vuld en op de betreffende werkdagdelen een 1 (bij leerkrachten) of een 3 (bij OOP'ers).
S75: Wanneer de naam geïmporteerd is, staan er op deze geïmporteerde regel alle werkdagdelen
S76: van deze leerkracht en moeten er dan een aantal worden gewist, zodat alleen de
S77: betreffende dagdelen overblijven die in de op die regel vermelde groep gewerkt worden.
S79: Nieuwe regel toevoegen
S80: Wanneer een naam op meerdere regels moet komen of wanneer een nieuwe naam moet
S81: worden toegevoegd, vul je dit op een willekeurige lege regel in. Na het sorteren komt deze
S82: op basis van het ingevulde in de eerste 4 kolommen vanzelf op de goede plaats.
S84: Groeperen in categorieën
S85: OP-teamleden die (deels) ambulant zijn, kunnen apart gegroepeerd worden door bij hen de
S86: eerste 2 kolommen leeg te laten en in de derde kolom amb in te vullen. Binnen de categorie
S87: kunnen zij eventueel gerangschikt worden met een nummer in de vierde kolom.
S88: OOP'ers die op bepaalde dagdelen geen vaste groep hebben kunnen op dezelfde wijze
S89: worden gegroepeerd door bij hen in de derde kolom oop in te vullen.
S90: Teamleden die deels ambulant zijn, staan in het overzicht dus zowel in het groepsoverzicht
S91: als in een categorie vermeld met hun respectievelijke les- en ambulante dagdelen.
S93: Lege regels toevoegen tussen groepen en categorieën
S94: Lege regels tussen de groepen verbeteren het overzicht. Een lege regel voeg je onder een
S95: groep toe, door op een willekeurige lege regel alleen de groepsaanduiding in te vullen. Deze
S96: verder lege regel komt dan na het sorteren onder de ingevulde regels van deze groep te staan.
S97: Die groepsaanduiding op de verder lege regel blijft licht zichtbaar. Wil je dit tijdens het
S98: invullen tijdelijk beter zichtbaar maken, dan zet je in de naamkolom even een punt of i.d..
S99: Voeg de lege regel pas toe als alle regels van de betreffende groep zijn ingevuld. Indien nodig
S100: wis je een verkeerd geplaatste lege regel door de groepsaanduiding te wissen en voeg je de lege
S101: regel opnieuw toe.
S103: Categorieën rangschikken
S104: Categorieën kunnen gerangschikt en bij elkaar worden gehouden door in de eerste kolom een
S105: getal (categorienummer) te plaatsen. Elk getal groeter dan 8 is hiervoor bruikbaar.
S106: Een lege regel onder een categorie maak je door op een lege regel in de derde kolom alleen
S107: de categorieafkorting in te vullen (+ eventueel het categorienummer) en te sorteren.
S109: Het scenario geheel of gedeeltelijk wissen
S110: Je kunt het scenario geheel of gedeeltelijk wissen door de meest linksboven te wissen cel
S111: te selecteren en vervolgens met ingedrukte linkermuisknop naar de meest rechtsonder
S112: gelegen te wissen cel te gaan. Het geselecteerde gebied wis je vervolgens door op de
S113: delete-knop op het toetsenbord te drukken.
S115: (PDF-)Afdrukken meerdere scenario's voor het werkverdelingsoverleg
S116: Door wijzigingen in het scenario aan te brengen kunnen meerdere scenario's van de verdeling
S117: worden gemaakt. Geef op de bovenste regel elk af te drukken scenario een volgnummer.
S118: De standaard afdrukinstelling van dit werkblad is ingesteld op kleurenafdruk.
S120: Druk elk scenario af in kleur.
S121: (zie voorbeelden op de website en in de handleiding)
S123: Werkverdelingsplan
S124: Met een afdruk van de werkbladen Lesurenberekening, Formatieoverzicht, Groepsverdeling en
S125: Activiteitenoverzicht (overige taken), heb je een compleet werkverdelingsplan dat kan worden
S126: voorgelegd aan de PMR. Gebruik het werkblad Werkverdeling-voorblad als titelblad
S127: en ondertekeningsblad van het werkverdelingsplan. Klik op de icoon voor meer
S128: informatie hierover.

Sheet overig verlof
B2: BEREKENING OUDERSCHAPSVERLOF EN OVERIG VERLOF OP EN OOP | H2: © taakberekeningPO.nl | L2: toelichting
B3: A persoonsgegevens | E3: =lesurenberekening!I5 -> Voorbeelden | L3: Het vakantieverlof en een verlof duurzame inzetbaarheid is al verwerkt in de jaartaak-berekening op het teamlidblad. Op dit werkblad wordt het ouderschaps- en overig verlof apart berekend. Bij een berekening voor het overig verlof worden de rubrieken B en D leeg gelaten. Het aantal arbeidsuren van het opgenomen verlof vul je na berekening in op het betreffende teamlidblad in rubriek J; de uren voor de duurzame inzetbaarheid, professionalisering en overige taken worden dan opnieuw berekend op basis van de kleinere netto arbeidsduur. Aan de oorspronkelijke jaartaak-berekening verandert verder niets. Ouderschapsverlof Het ouderschapsverlof is bij wtf 1,0 maximaal 1040 uur (= 26 weken) per kind, waarvan maximaal 415 uur wordt doorbetaald (art. 8.20 en 8.21). De werknemer bepaalt in principe zelf hoe - hoeveel en in welke periode(s) (maximaal 6 periodes van minimaal 1 maand tot het kind 8 jaar wordt) - het verlof wordt opgenomen. Maak na de berekening een afdruk van dit werkblad voor het teamlid, het administratiekantoor en voor het dossier van het teamlid. De werkgever is verplicht het opgenomen verlof bij te houden. Invulling Alle uren worden als hele getallen ingevoerd, behalve de op te nemen arbeidsuren per dag in de weekkolom in vak C. Vul de tijden hier in met een dubbele punt tussen de uren en minuten. B (alleen invullen bij ouderschapsverlof) Vul hier de namen van de kinderen in waarvoor verlof wordt aangevraagd en kies bij aanvragen? "ja". C Vul hier de verlofperiode in en de arbeidsuren die per dag worden opgenomen (denk om de dubbele punt tussen de uren en minuten in de eerste kolom). Tel het aantal werkweken in de verlofperiode zonder de héle vakantieweken. Vul tenslotte de uren in van de losse vakantiedagen die in deze periode op de verlofdagen vallen. Wanneer een verlof het gehele schooljaar bestrijkt, kan het totaal ook worden berekend door de wekelijkse opname te vermenigvuldigen met het berekend aantal lesweken zoals vermeld in rubriek E op het werkblad lesurenberekening. D (alleen invullen bij ouderschapsverlof) Verdeel de opgenomen uren over het betaald en onbetaald verlof, en eventueel over de kinderen.
B8: nummer teamlid: | D8: 8
B9: naam aanvrager : | D9: =IF(D8<>"",INDIRECT("formatieoverzicht!C"&D8+4),0) -> Habil, Hafsa (ouderschapsverlof)
C10: aanstelling : | D10: =IF(D8<>"",INDIRECT("formatieoverzicht!D"&D8+4),0) -> 1.333333333
C11: wtf : | D11: =IF(D8<>"",INDIRECT("formatieoverzicht!E"&D8+4),0) -> 0.8000000119
B14: B gegevens kinderen en eerder opgenomen ouderschapsverlof
I17: al eerder opgenomen uren
C18: kinderen waarvoor verlof wordt aangevraagd | F18: aanvragen? | G18: geboortedatum | I18: totaal | J18: waarvan betaald
B19: kind 1 | C19: Chadisja | F19: ja
B20: kind 2 | F20: nee
B21: kind 3 | F21: nee
B22: kind 4 | F22: nee
B23: kind 5 | F23: nee
B27: C periode verlofopname (ouderschapsverlof & overig verlof)
B29: periode verlofopname m.i.v.: | F29: t/m
E31: arbeidsuren verlof per dag | G31: totaal uren verlofopname:
J32: 4
C33: maandag | E33: 0.3541666667 | G33: verlof per week: | I33: =E38 -> 0.7083333333
C34: dinsdag | E34: 0.3541666667 | F34: aantal lesweken in verlofperiode: | I34: 20 | J34: x
C35: woensdag | G35: aantal uren verlofperiode: | I35: =ROUND((I33*I34)*24,0) -> 340
C36: donderdag | F36: arbeidsuren vakantiedagen in periode: | J36: -
C37: vrijdag | F37: netto uren opgenomen verlof: | I37: =I31+I35-I36 -> 340
C38: totaal: | E38: =SUM(E33:E37) -> 0.7083333333 | G38: wtf verlofuren: | I38: =ROUND((I37/1659),4) -> 0.2049
F39: resterende wtf na aftrek verlof: | I39: =D11-I38 -> 0.5951000119
B41: D verdeling opname ouderschapsverlof
E44: nog beschikbaar | G44: verdeling uren per kind | I44: resteert
B45: kinderen waarvoor verlof wordt aangevraagd | E45: totaal | F45: waarvan betaald | G45: totaal | H45: waarvan betaald | I45: totaal | J45: waarvan betaald
B46: =C19 -> Chadisja | E46: =IF(F19="ja",ROUND((D11*1040)-I19,0),0) -> 832 | F46: =IF(F19="ja",ROUND((D11*415)-J19,0),0) -> 332 | G46: 340 | H46: 332 | I46: =E46-G46 -> 492 | J46: =IF((F46-H46)>I46,I46,F46-H46) -> 0
B47: =C20 -> 0 | E47: =IF(F20="ja",ROUND((D11*1040)-I20,0),0) -> 0 | F47: =IF(F20="ja",ROUND((D11*415)-J20,0),0) -> 0 | I47: =E47-G47 -> 0 | J47: =IF((F47-H47)>I47,I47,F47-H47) -> 0
B48: =C21 -> 0 | E48: =IF(F21="ja",ROUND((D11*1040)-I21,0),0) -> 0 | F48: =IF(F21="ja",ROUND((D11*415)-J21,0),0) -> 0 | I48: =E48-G48 -> 0 | J48: =IF((F48-H48)>I48,I48,F48-H48) -> 0
B49: =C22 -> 0 | E49: =IF(F22="ja",ROUND((D11*1040)-I22,0),0) -> 0 | F49: =IF(F22="ja",ROUND((D11*415)-J22,0),0) -> 0 | I49: =E49-G49 -> 0 | J49: =IF((F49-H49)>I49,I49,F49-H49) -> 0
B50: =C23 -> 0 | E50: =IF(F23="ja",ROUND((D11*1040)-I23,0),0) -> 0 | F50: =IF(F23="ja",ROUND((D11*415)-J23,0),0) -> 0 | I50: =E50-G50 -> 0 | J50: =IF((F50-H50)>I50,I50,F50-H50) -> 0
D51: + | E51: =SUM(E46:E50) -> 832 | F51: 332 | G51: 340 | H51: 332 | I51: 492 | J51: 0
C52: verschil met opgenomen verlof: | G52: =I37-G51 -> 0
B55: opmerkingen | D55: Druk op Alt+Enter voor nieuwe regel
B56: In rubriek A vul je het regelnummer van het teamlid in eventuele eerder velofopnamen waarna in rubriek D het nog beschikbare aantal uren betaald en onbetaald verlof is berekend. De verdere invulling spreekt voor zich. Van deze berekening maak je een (PDF)afdruk die je bewaart.

Sheet lijst p.d.i.
B2: LIJST PDI © taakberekeningPO.nl | I2: toelichting lijst
C3: =lesurenberekening!I5 -> Voorbeelden
C6: omschrijving - gebruik één regel per onderwerp Let op: er mogen in de lijst geen tussenliggende lege regels zijn. | D6: uren
B7: 1
B8: 2 | I8: Op deze lijst kunnen vaakvoorkomende items worden
B9: 3 | I9: geplaatst waaruit bij het invullen van de lijsten op het
B10: 4 | I10: teamlidblad een keus kan worden gemaakt.
B11: 5
B12: 6 | I12: Per regel kan één item met bijbehorende uren worden
B13: 7 | I13: ingevuld.
B14: 8
B15: 9 | I15: Sorteren
B16: 10 | I16: Sorteer door boven de lijst op de pijlen te klikken.
B17: 11
B18: 12 | I18: Invoerformulier
B19: 13 | I19: Door op de nummerrij te klikken verschijnt het invoer-
B20: 14 | I20: formulier voor activiteiten.
B21: 15
B22: 16 | I22: Teamleden bij zelfde activiteit zoeken
B23: 17 | I23: Door op het invoerformulier op Teamoverzicht te
B24: 18 | I24: klikken kunnen teamleden worden gezocht die
B25: 19 | I25: eenzelfde activiteit hebben.
B26: 20
B27: 21 | I27: Importeren oude lijsten
B28: 22 | I28: Bij het in gebruik nemen van een nieuwe planner kun
B29: 23 | I29: je de lijsten uit een vorige planner importeren (zie
B30: 24 | I30: eerste werkblad start)
B31: 25
B32: 26
B33: 27
B34: 28 | I34: Let op: Voor het maken van overzichten, mogen er in
B35: 29 | I35: deze lijst geen tussenliggende lege regels zijn! Klik op
B36: 30 | I36: de sorteerpijl om lege regels te verwijderen.
B37: 31
B38: 32
B39: 33
B40: 34
B41: 35
B42: 36
B43: 37
B44: 38
B45: 39
B46: 40
B47: 41
B48: 42
B49: 43
B50: 44
B51: 45
B52: 46
B53: 47
B54: 48
B55: 49
B56: 50
B57: 51
B58: 52
B59: 53
B60: 54
B61: 55
B62: 56
B63: 57
B64: 58
B65: 59
B66: 60
B67: 61
B68: 62
B69: 63
B70: 64
B71: 65
B72: 66
B73: 67
B74: 68
B75: 69
B76: 70
B77: 71
B78: 72
B79: 73
B80: 74
B81: 75
B82: 76
B83: 77
B84: 78
B85: 79
B86: 80
B87: 81
B88: 82
B89: 83
B90: 84
B91: 85
B92: 86
B93: 87
B94: 88
B95: 89
B96: 90
B97: 91
B98: 92
B99: 93
B100: 94
B101: 95
B102: 96
B103: 97
B104: 98
B105: 99
B106: 100
B107: 101
B108: 102
B109: 103
B110: 104
B111: 105
B112: 106
B113: 107
B114: 108
B115: 109
B116: 110
B117: 111
B118: 112
B119: 113
B120: 114
B121: 115
B122: 116
B123: 117
B124: 118
B125: 119
B126: 120
D127: =SUM(D7:D126) -> 0
B136: teamoverzicht PDI © taakberekening-po.nl | I136: toelichting teamoverzicht
C138: zoekterm: | I138: Via het invoerformulier kunnen teamleden met
I139: dezelfde activiteit gezocht worden.
B141: 1 | I141: 1. Klik op de nummerbalk links;
B142: 2 | I142: 2. Selecteer een lijst, klik op de pijl naast het
B143: 3 | I143: invoervak en selecteer een activiteit;
B144: 4 | I144: 3. Klik vervolgens op de knop 'Teamoverzicht';
B145: 5 | I145: 4. De gevonden teamleden verschijnen op de
B146: 6 | I146: lijst hiernaast.
B147: 7
B148: 8 | I148: De zoekfunctie is niet hoofdlettergevoelig en er kan
B149: 9 | I149: ook met steekwoorden worden gezocht, mits deze
B150: 10 | I150: uniek zijn.
B151: 11
B152: 12
B153: 13
B154: 14
B155: 15
B156: 16
B157: 17
B158: 18
B159: 19
B160: 20
B161: 21
B162: 22
B163: 23
B164: 24
B165: 25
B166: 26
B167: 27
B168: 28
B169: 29
B170: 30
B171: 31
B172: 32
B173: 33
B174: 34
B175: 35
B176: 36
B177: 37
B178: 38
B179: 39
B180: 40
B181: 41
B182: 42
B183: 43
B184: 44
B185: 45
B186: 46
B187: 47
B188: 48
B189: 49
B190: 50
B191: 51
B192: 52
B193: 53
B194: 54
B195: 55
B196: 56
B197: 57
B198: 58
B199: 59
B200: 60
B201: 61
B202: 62
B203: 63
B204: 64
B205: 65
B206: 66
B207: 67
B208: 68
B209: 69
B210: 70
B211: 71
B212: 72
B213: 73
... 48 more rows

Sheet lijst o.t.
B2: LIJST OVERIGE TAKEN © taakberekeningPO.nl | I2: toelichting lijst
C3: =lesurenberekening!I5 -> Voorbeelden | F3: totaal
C6: omschrijving - gebruik één regel per onderwerp Let op: er mogen in de lijst geen tussenliggende lege regels zijn! | D6: uren | E6: pers.
B7: 1 | C7: Afscheidsavond groep 8 | D7: 3 | E7: 15 | F7: =PRODUCT(D7,E7) -> 45
B8: 2 | C8: Algemene ouderavond | D8: 2 | E8: 15 | F8: =PRODUCT(D8,E8) -> 30 | I8: Op deze lijst kunnen vaakvoorkomende items worden
B9: 3 | C9: Begeleiding Pabo studenten | D9: 12 | E9: 9 | F9: =PRODUCT(D9,E9) -> 108 | I9: geplaatst waaruit bij het invullen van de lijsten op het
B10: 4 | C10: BHV en EHBO | D10: 5 | E10: 6 | F10: 30 | I10: teamlidblad een keus kan worden gemaakt.
B11: 5 | C11: Bouwcoordinator | D11: 30 | E11: 3 | F11: 90
B12: 6 | C12: Bouwvergaderingen 4 x 1:30 uur | D12: 6 | E12: 15 | F12: 90 | I12: Per regel kan één item met bijbehorende uren worden
B13: 7 | C13: Contactpersoon vertrouwelijke zaken | D13: 5 | E13: 1 | F13: 5 | I13: ingevuld.
B14: 8 | C14: Coördinator Antipestbeleid | D14: 20 | E14: 1 | F14: 20
B15: 9 | C15: Coördinator Cultuur | D15: 20 | E15: 1 | F15: 20 | I15: Sorteren
B16: 10 | C16: Coördinator Engels | D16: 20 | E16: 1 | F16: 20 | I16: Sorteer door boven de lijst op de pijlen te klikken.
B17: 11 | C17: Coördinator ICT Beheer | D17: 40 | E17: 1 | F17: 40
B18: 12 | C18: Coördinator Rekenen | D18: 20 | E18: 1 | F18: 20 | I18: Invoerformulier
B19: 13 | C19: Coördinator Schrijven | D19: 20 | E19: 1 | F19: 20 | I19: Door op de nummerrij te klikken verschijnt het invoer-
B20: 14 | C20: Coördinator Spelontwikkeling binnen en buiten (plein) | D20: 20 | E20: 1 | F20: 20 | I20: formulier voor activiteiten.
B21: 15 | C21: Coördinator Taal en Lezen | D21: 20 | E21: 1 | F21: 20
B22: 16 | C22: Coördinator Veiligheid > Locatieleider | D22: 20 | E22: 1 | F22: 20 | I22: Teamleden bij zelfde activiteit zoeken
B23: 17 | C23: Coördinator Verkeer | D23: 20 | E23: 1 | F23: 20 | I23: Door op het invoerformulier op Teamoverzicht te
B24: 18 | C24: Coördinator Werldorientatie | D24: 20 | E24: 1 | F24: 20 | I24: klikken kunnen teamleden worden gezocht die
B25: 19 | C25: Feest Sintviering | D25: 15 | E25: 6 | F25: 90 | I25: eenzelfde activiteit hebben.
B26: 20 | C26: GMR-lid | D26: 40 | E26: 1 | F26: 40
B27: 21 | C27: Inwerken nieuwe collega | D27: 10 | E27: 2 | F27: 20 | I27: Importeren oude lijsten
B28: 22 | C28: Kamp | D28: 20 | E28: 4 | F28: 80 | I28: Bij het in gebruik nemen van een nieuwe planner kun
B29: 23 | C29: Kerstviering | D29: 3 | E29: 15 | F29: 45 | I29: je de lijsten uit een vorige planner importeren (zie
B30: 24 | C30: MR-lid | D30: 20 | E30: 6 | F30: 120 | I30: eerste werkblad start)
B31: 25 | C31: Schoolverlatersactiviteiten | D31: 10 | E31: 1 | F31: 10
B32: 26 | C32: Studiedagen 2 x 5 uur | D32: 10 | E32: 15 | F32: 150
B33: 27 | C33: Teamvergaderingen 10 x 1:30 uur | D33: 15 | E33: 15 | F33: 225
B34: 28 | C34: werkgroep Gezamenlijke verjaardag | D34: 15 | E34: 4 | F34: 60 | I34: Let op: Voor het maken van overzichten, mogen er in
B35: 29 | C35: Werkgroep Spelontwikkeling binnen en buiten de school (plein) | D35: 20 | E35: 2 | F35: 40 | I35: deze lijst geen tussenliggende lege regels zijn! Klik op
B36: 30 | C36: werkgroep Sportactiviteiten en Koningsdag | D36: 10 | E36: 3 | F36: 30 | I36: de sorteerpijl om lege regels te verwijderen.
B37: 31 | C37: Werkgroep Taal en Lezen | D37: 20 | E37: 4 | F37: 80
B38: 32 | C38: Werkgroep Wereldorientatie | D38: 15 | E38: 4 | F38: 60
B39: 33 | F39: 0
B40: 34 | F40: 0
B41: 35 | F41: 0
B42: 36 | F42: 0
B43: 37 | F43: 0
B44: 38 | F44: 0
B45: 39 | F45: 0
B46: 40 | F46: 0
B47: 41 | F47: 0
B48: 42 | F48: 0
B49: 43 | F49: 0
B50: 44 | F50: 0 | I50: beschikbare uren overige taken
B51: 45 | F51: 0 | I51: Door het benodigd aantal uren voor de activiteiten
B52: 46 | F52: 0 | I52: van de lijst te vergelijken met het binnen het team
B53: 47 | F53: 0 | I53: aantal nog in te vullen uren, kun je beoordelen of de
B54: 48 | F54: 0 | I54: geplande activiteiten daar in passen.
B55: 49 | F55: 0
B56: 50 | F56: 0
B57: 51 | F57: 0 | I57: beschikbaar binnen team (zie formatieoverzicht): | J57: =formatieoverzicht!AP105 -> 823
B58: 52 | F58: 0 | I58: benodigd volgens lijst: | J58: =F127 -> 1688
B59: 53 | F59: 0 | I59: verschil: | J59: =J57-F127 -> -865
B60: 54 | F60: 0
B61: 55 | F61: 0 | I61: Let op:
B62: 56 | F62: 0 | I62: Omdat het aantal nog in te vullen uren wordt
B63: 57 | F63: 0 | I63: opgeteld, mogen op de teamlidbladen in de rubriek
B64: 58 | F64: 0 | I64: Overige taken op de tweede pagina nog geen uren
B65: 59 | F65: 0 | I65: zijn ingevuld. Tevens moeten bij de teamleden
B66: 60 | F66: 0 | I66: die geheel of gedeeltelijk ambulant zijn, in rubriek K
B67: 61 | F67: 0 | I67: éérst de uren zijn ingevuld die gereserveerd worden
B68: 62 | F68: 0 | I68: voor de ambulante functietaken.
B69: 63 | F69: 0
B70: 64 | F70: 0 | I70: deelnemers per activiteit
B71: 65 | F71: 0 | I71: Om te kunnen berekenen hoeveel uren alle activi-
B72: 66 | F72: 0 | I72: teiten samen tellen, kan op de lijst achter elke
B73: 67 | D73: 0 | F73: =PRODUCT(D73,E73) -> 0 | I73: activiteit het aantal deelnemers worden ingevuld.
B74: 68 | F74: 0 | I74: Dit aantal wordt ook vermeld wanneer een intekenlijst
B75: 69 | F75: 0 | I75: wordt afgedrukt (zie volgende werkblad: act.overzicht)
B76: 70 | F76: 0
B77: 71 | F77: 0
B78: 72 | F78: 0
B79: 73 | F79: 0
B80: 74 | F80: 0
B81: 75 | F81: 0
B82: 76 | F82: 0
B83: 77 | F83: 0
B84: 78 | F84: 0
B85: 79 | F85: 0
B86: 80 | F86: 0
B87: 81 | F87: 0
B88: 82 | F88: 0
B89: 83 | F89: =PRODUCT(D89,E89) -> 0
B90: 84 | F90: 0
B91: 85 | F91: 0
B92: 86 | F92: 0
B93: 87 | F93: 0
B94: 88 | F94: 0
B95: 89 | F95: 0
B96: 90 | F96: 0
B97: 91 | F97: 0
B98: 92 | F98: 0
B99: 93 | F99: 0
B100: 94 | F100: 0
B101: 95 | F101: 0
B102: 96 | F102: 0
B103: 97 | F103: 0
B104: 98 | F104: =PRODUCT(D104,E104) -> 0
B105: 99 | F105: =PRODUCT(D105,E105) -> 0
B106: 100 | F106: =PRODUCT(D106,E106) -> 0
B107: 101 | F107: =PRODUCT(D107,E107) -> 0
B108: 102 | F108: =PRODUCT(D108,E108) -> 0
B109: 103 | F109: 0
B110: 104 | F110: 0
B111: 105 | F111: 0
B112: 106 | F112: 0
B113: 107 | F113: 0
B114: 108 | F114: 0
B115: 109 | F115: 0
B116: 110 | F116: 0
B117: 111 | F117: 0
B118: 112 | F118: 0
B119: 113 | F119: 0
B120: 114 | F120: 0
B121: 115 | F121: 0
B122: 116 | E122: tot. | F122: 0
B123: 117 | F123: =PRODUCT(D123,E123) -> 0
B124: 118 | F124: =PRODUCT(D124,E124) -> 0
B125: 119 | F125: =PRODUCT(D125,E125) -> 0
B126: 120 | F126: =PRODUCT(D126,E126) -> 0
E127: tot. | F127: =SUM(F7:F126) -> 1688
B136: teamoverzicht overige taken © taakberekening-po.nl | I136: toelichting teamoverzicht
C138: zoekterm: | I138: Via het invoerformulier kunnen teamleden met
C139: Begeleiding Pabo studenten | I139: dezelfde activiteit gezocht worden.
B141: 1 | C141: Andriessen, Floor (voltijder) | D141: 12 | I141: 1. Klik op de nummerbalk links;
B142: 2 | C142: Berndsen, Theo (deeltijder) | D142: 12 | I142: 2. Selecteer een lijst, klik op de pijl naast het
B143: 3 | C143: Clingenhove, Birgit van (verlof d.i.) | D143: 12 | I143: invoervak en selecteer een activiteit;
B144: 4 | I144: 3. Klik vervolgens op de knop 'Teamoverzicht';
B145: 5 | I145: 4. De gevonden teamleden verschijnen op de
B146: 6 | I146: lijst hiernaast.
B147: 7
B148: 8 | I148: De zoekfunctie is niet hoofdlettergevoelig en er kan
B149: 9 | I149: ook met steekwoorden worden gezocht, mits deze
B150: 10 | I150: uniek zijn.
B151: 11
B152: 12
B153: 13
B154: 14
B155: 15
B156: 16
B157: 17
B158: 18
B159: 19
B160: 20
B161: 21
B162: 22
B163: 23
B164: 24
B165: 25
B166: 26
B167: 27
B168: 28
B169: 29
B170: 30
B171: 31
B172: 32
B173: 33
B174: 34
B175: 35
B176: 36
B177: 37
B178: 38
B179: 39
B180: 40
B181: 41
B182: 42
B183: 43
B184: 44
B185: 45
B186: 46
B187: 47
B188: 48
B189: 49
B190: 50
B191: 51
B192: 52
B193: 53
B194: 54
B195: 55
B196: 56
B197: 57
B198: 58
B199: 59
B200: 60
B201: 61
B202: 62
B203: 63
B204: 64
B205: 65
B206: 66
B207: 67
B208: 68
B209: 69
B210: 70
B211: 71
B212: 72
B213: 73
... 48 more rows

Sheet act.overzicht
B2: ACTIVITEITENOVERZICHT © taakberekeningPO.nl | H2: toelichting activiteitenoverzicht
C3: =lesurenberekening!I5 -> Voorbeelden
C4: ="overzicht teamleden per activiteit: "&H26 -> overzicht teamleden per activiteit: lijst o.t. | D4: uren | F4: pers. | H4: Op dit werkblad maak je een overzicht van alle
H5: activiteiten PDI en overige taken met de deelnemende
H6: teamleden per activiteit.
B7: * | C7: Afscheidsavond groep 8 | E7: 3 | F7: 15
C8: Andriessen, Floor (voltijder) | D8: 3 | H8: Let op: In het overzicht worden alleen de activiteiten
C9: Berndsen, Theo (deeltijder) | D9: 3 | H9: opgenomen die in de betreffende lijst staan!
C10: Clingenhove, Birgit van (verlof d.i.) | D10: 3
C11: Doornbos, Eric ( wo om en om) | D11: 3 | H11: Intekenlijst
C12: Everhart, Ina (wo om en om) | D12: 3 | H12: Het overzicht kan ook gebruikt worden als intekenlijst.
C13: Faassen, Han van (deels ambulant) | D13: 3 | H13: Kies daartoe het aantal lege regels dat je onder elke
C14: Ginniken, Els van (OOP) | D14: 3 | H14: activiteit voor de intekening wilt gebruiken. Kies bij
C15: Habil, Hafsa (ouderschapsverlof) | D15: 3 | H15: een gewoon overzicht 0 of 1 regel tussenruimte.
C16: Imhoff, Carla (lerarenbeurs) | D16: 3
C17: Albrechts, Janine (inroosterwijze 2) | D17: 3 | H17: Afdrukken
C18: Duiker, Antoinette | D18: 3 | H18: De lijst wordt standaard zwart-wit afgedrukt. Druk de
H19: lijst enkelzijdig af wanneer deze als intekenlijst wordt
B20: * | C20: Algemene ouderavond | E20: 2 | F20: 15 | H20: gebruikt.
C21: Andriessen, Floor (voltijder) | D21: 2 | H21: kies het aantal lege regels tussen
C22: Berndsen, Theo (deeltijder) | D22: 2 | H22: elke activiteit
C23: Clingenhove, Birgit van (verlof d.i.) | D23: 2 | H23: 1
C24: Doornbos, Eric ( wo om en om) | D24: 2
C25: Everhart, Ina (wo om en om) | D25: 2 | H25: kies de rubriek voor het totaaloverzicht
C26: Faassen, Han van (deels ambulant) | D26: 2 | H26: lijst o.t.
C27: Ginniken, Els van (OOP) | D27: 2
C28: Habil, Hafsa (ouderschapsverlof) | D28: 2 | H28: Klik op de knop om het overzicht te maken.
C29: Imhoff, Carla (lerarenbeurs) | D29: 2 | H29: Het samenstellen van de lijst kan afhankelijk van het
C30: Albrechts, Janine (inroosterwijze 2) | D30: 2 | H30: aantal activiteiten en teamleden enige tijd in
C31: Duiker, Antoinette | D31: 2 | H31: beslag nemen.
B33: * | C33: Begeleiding Pabo studenten | E33: 12 | F33: 9
C34: Andriessen, Floor (voltijder) | D34: 12
C35: Berndsen, Theo (deeltijder) | D35: 12
C36: Clingenhove, Birgit van (verlof d.i.) | D36: 12 | H36: Het overzicht wordt samengesteld op basis van de
H37: lijsten p.d.i. en o.t.. Activiteiten die hierin niet
B38: * | C38: BHV en EHBO | E38: 5 | F38: 6 | H38: zijn opgenomen, komen dus niet in het overzicht.
C39: Andriessen, Floor (voltijder) | D39: 5 | H39: Plaats alle ingeroosterde activiteiten dus zoveel
C40: Berndsen, Theo (deeltijder) | D40: 5 | H40: mogelijk in de betreffende lijst.
C41: Clingenhove, Birgit van (verlof d.i.) | D41: 5
C42: Ginniken, Els van (OOP) | D42: 5 | H42: Let op: Wanneer het overzicht incompleet is, wordt
H43: dit veroorzaakt door een tussenliggende lege regel
B44: * | C44: Bouwcoordinator | E44: 30 | F44: 3 | H44: in de betreffende lijst, of in de betreffende rubriek
H45: van één of meerdere teamlidbladen.
B46: * | C46: Bouwvergaderingen 4 x 1:30 uur | E46: 6 | F46: 15 | H46: Sorteer de lijst of rubriek en maak het overzicht opnieuw.
C47: Andriessen, Floor (voltijder) | D47: 6
C48: Berndsen, Theo (deeltijder) | D48: 6
C49: Clingenhove, Birgit van (verlof d.i.) | D49: 6
C50: Doornbos, Eric ( wo om en om) | D50: 6
C51: Everhart, Ina (wo om en om) | D51: 6
C52: Faassen, Han van (deels ambulant) | D52: 6
C53: Ginniken, Els van (OOP) | D53: 6
C54: Habil, Hafsa (ouderschapsverlof) | D54: 6
C55: Imhoff, Carla (lerarenbeurs) | D55: 6
C56: Draaisma, Henk (inzet PDI-spaarsaldo) | D56: 6
B58: * | C58: Contactpersoon vertrouwelijke zaken | E58: 5 | F58: 1
C59: Andriessen, Floor (voltijder) | D59: 5
B61: * | C61: Coördinator Antipestbeleid | E61: 20 | F61: 1
C62: Andriessen, Floor (voltijder) | D62: 20
C63: Berndsen, Theo (deeltijder) | D63: 20
B65: * | C65: Coördinator Cultuur | E65: 20 | F65: 1
C66: Clingenhove, Birgit van (verlof d.i.) | D66: 20
B68: * | C68: Coördinator Engels | E68: 20 | F68: 1
C69: Doornbos, Eric ( wo om en om) | D69: 20
B71: * | C71: Coördinator ICT Beheer | E71: 40 | F71: 1
C72: Faassen, Han van (deels ambulant) | D72: 40
B74: * | C74: Coördinator Rekenen | E74: 20 | F74: 1
C75: Everhart, Ina (wo om en om) | D75: 20
C76: Habil, Hafsa (ouderschapsverlof) | D76: 20
B78: * | C78: Coördinator Schrijven | E78: 20 | F78: 1
C79: Imhoff, Carla (lerarenbeurs) | D79: 20
B81: * | C81: Coördinator Spelontwikkeling binnen en buiten (plein) | E81: 20 | F81: 1
B83: * | C83: Coördinator Taal en Lezen | E83: 20 | F83: 1
B85: * | C85: Coördinator Veiligheid > Locatieleider | E85: 20 | F85: 1
B87: * | C87: Coördinator Verkeer | E87: 20 | F87: 1
C88: Draaisma, Henk (inzet PDI-spaarsaldo) | D88: 20
B90: * | C90: Coördinator Werldorientatie | E90: 20 | F90: 1
B92: * | C92: Feest Sintviering | E92: 15 | F92: 6
C93: Andriessen, Floor (voltijder) | D93: 15
C94: Berndsen, Theo (deeltijder) | D94: 15
C95: Ginniken, Els van (OOP) | D95: 15
B97: * | C97: GMR-lid | E97: 40 | F97: 1
B99: * | C99: Inwerken nieuwe collega | E99: 10 | F99: 2
C100: Doornbos, Eric ( wo om en om) | D100: 10
C101: Imhoff, Carla (lerarenbeurs) | D101: 10
B103: * | C103: Kamp | E103: 20 | F103: 4
C104: Clingenhove, Birgit van (verlof d.i.) | D104: 20
B106: * | C106: Kerstviering | E106: 3 | F106: 15
C107: Berndsen, Theo (deeltijder) | D107: 3
C108: Clingenhove, Birgit van (verlof d.i.) | D108: 3
C109: Doornbos, Eric ( wo om en om) | D109: 3
C110: Everhart, Ina (wo om en om) | D110: 3
C111: Ginniken, Els van (OOP) | D111: 3
C112: Habil, Hafsa (ouderschapsverlof) | D112: 3
B114: * | C114: MR-lid | E114: 20 | F114: 6
C115: Clingenhove, Birgit van (verlof d.i.) | D115: 20
C116: Faassen, Han van (deels ambulant) | D116: 20
C117: Imhoff, Carla (lerarenbeurs) | D117: 20
C118: Albrechts, Janine (inroosterwijze 2) | D118: 20
B120: * | C120: Schoolverlatersactiviteiten | E120: 10 | F120: 1
C121: Berndsen, Theo (deeltijder) | D121: 10
C122: Everhart, Ina (wo om en om) | D122: 10
C123: Ginniken, Els van (OOP) | D123: 10
B125: * | C125: Studiedagen 2 x 5 uur | E125: 10 | F125: 15
C126: Andriessen, Floor (voltijder) | D126: 10
C127: Berndsen, Theo (deeltijder) | D127: 10
C128: Clingenhove, Birgit van (verlof d.i.) | D128: 10
C129: Doornbos, Eric ( wo om en om) | D129: 10
C130: Everhart, Ina (wo om en om) | D130: 10
C131: Faassen, Han van (deels ambulant) | D131: 10
C132: Ginniken, Els van (OOP) | D132: 10
C133: Habil, Hafsa (ouderschapsverlof) | D133: 10
C134: Imhoff, Carla (lerarenbeurs) | D134: 10
C135: Draaisma, Henk (inzet PDI-spaarsaldo) | D135: 10
C136: Kornelissen, Fleur ( OOP logopedist) | D136: 10
B138: * | C138: Teamvergaderingen 10 x 1:30 uur | E138: 15 | F138: 15
C139: Andriessen, Floor (voltijder) | D139: 15
C140: Berndsen, Theo (deeltijder) | D140: 15
C141: Clingenhove, Birgit van (verlof d.i.) | D141: 15
C142: Doornbos, Eric ( wo om en om) | D142: 15
C143: Everhart, Ina (wo om en om) | D143: 15
C144: Faassen, Han van (deels ambulant) | D144: 15
C145: Ginniken, Els van (OOP) | D145: 15
C146: Habil, Hafsa (ouderschapsverlof) | D146: 15
C147: Imhoff, Carla (lerarenbeurs) | D147: 15
C148: Draaisma, Henk (inzet PDI-spaarsaldo) | D148: 15
C149: Kornelissen, Fleur ( OOP logopedist) | D149: 15
B151: * | C151: werkgroep Gezamenlijke verjaardag | E151: 15 | F151: 4
C152: Clingenhove, Birgit van (verlof d.i.) | D152: 15
C153: Doornbos, Eric ( wo om en om) | D153: 15
C154: Ginniken, Els van (OOP) | D154: 15
C155: Habil, Hafsa (ouderschapsverlof) | D155: 15
B157: * | C157: Werkgroep Spelontwikkeling binnen en buiten de school (plein) | E157: 20 | F157: 2
C158: Ginniken, Els van (OOP) | D158: 20
B160: * | C160: werkgroep Sportactiviteiten en Koningsdag | E160: 10 | F160: 3
C161: Berndsen, Theo (deeltijder) | D161: 10
C162: Clingenhove, Birgit van (verlof d.i.) | D162: 10
C163: Ginniken, Els van (OOP) | D163: 10
C164: Habil, Hafsa (ouderschapsverlof) | D164: 10
B166: * | C166: Werkgroep Taal en Lezen | E166: 20 | F166: 4
C167: Berndsen, Theo (deeltijder) | D167: 20
C168: Clingenhove, Birgit van (verlof d.i.) | D168: 20
C169: Everhart, Ina (wo om en om) | D169: 20
C170: Imhoff, Carla (lerarenbeurs) | D170: 20
C171: Kornelissen, Fleur ( OOP logopedist) | D171: 20
B173: * | C173: Werkgroep Wereldorientatie | E173: 15 | F173: 4
C174: Berndsen, Theo (deeltijder) | D174: 15
C175: Clingenhove, Birgit van (verlof d.i.) | D175: 15
C176: Everhart, Ina (wo om en om) | D176: 15
C177: Faassen, Han van (deels ambulant) | D177: 15
C178: Habil, Hafsa (ouderschapsverlof) | D178: 15

Sheet WVP
B2: WVP © taakberekeningPO.nl | L2: toelichting
L3: Afbeelding wijzigen De afbeelding kan desgewenst worden vervangen door bijv. het eigen schoollogo: > Rechtsklik op de afbeelding; > Kies: Afbeelding wijzigen; > Selecteer (in Verkenner) de afbeelding; > En klik op Invoegen: > Pas indien nodig het formaat en de positie aan. WVP afdrukken op papier Gebruik bij de afdruk op papier de eerste twee pagina's als voorblad en ondertekeningsblad van het werkverdelingsplan. Voeg daarachter de afdrukken van de werkbladen Lesurenberekening, Formatieoverzicht, Groepsverdeling en Activiteitenoverzicht (verdeling overige taken) toe. Op het laatste blad kunnen de punten worden vermeld die op de bovengenoemde werkbladen niet aan de orde komen. WVP afdrukken als PDF Het WVP kan via de PDF-module (optie 3) in één pdf worden afgedrukt en bestaat uit de volgende tabbladen: 1. WVP 2. lesurenberekening 3. formatieoverzicht 4. groepsverdeling 5. act. overzicht
C17: schoolnaam
C21: 1. Lesurenberekening
C24: 2. Formatieoverzicht
C27: 3. Groepsindeling & pers. inzet
C30: 4. Activiteitenoverzicht
C33: 5. Overige afspraken
C36: 6.
C40: Werkverdelingsplan
D42: =lesurenberekening!E5 -> 2026 | F42: - | G42: =lesurenberekening!G5 -> 2027
C53: ="Werkverdelingsplan "&lesurenberekening!E5&"/"&lesurenberekening!G5 -> Werkverdelingsplan 2026/2027
C56: =C17 -> schoolnaam
C59: namens:
C63: PMR
D65: ondertekening
D70: naam
C75: bestuur
D77: ondertekening
D82: naam
D87: plaats en datum
C103: Overige afspraken | L103: toelichting overige afspraken
L104: Druk in elk tekstvak op Alt+Enter voor nieuwe regel of om een regel over te slaan. Vermeld hier alles puntsgewijs en verwijs eventueel naar (PDF-)bijlagen waarin deze onderwerpen uitgebreider beschreven worden. De tabtitels kunnen aangepast worden.
B106: Pauzeregeling
B107: Hier kunnen de eigen afspraken worden vermeld.
B115: Aanwezigheidstijden team
B124: Besteding werkdrukmiddelen
B133: Vervangingsbeleid

Sheet 1
B2: =lesurenberekening!I5 -> Voorbeelden | P2: toelichting teamlidblad OP en OOP met lesondersteunende taken
H3: naam: | K3: =INDIRECT("formatieoverzicht!C"&(4+N3)) -> Andriessen, Floor (voltijder) | N3: =MID(CELL("bestandsnaam",A1),SEARCH("]",CELL("bestandsnaam",A1),1)+1,99) -> 1
E4: =lesurenberekening!E5 -> 2026 | F4: / | G4: =lesurenberekening!G5 -> 2027 | H4: aanstelling: | K4: =INDIRECT("formatieoverzicht!D"&(4+N3)) -> 1.666666667
B5: =INDIRECT("formatieoverzicht!AR"&(4+N3)) -> 0 | H5: wtf: | K5: =INDIRECT("formatieoverzicht!E"&(4+N3)) -> 1 | P5: Klik op dit icoon voor meer informatie
B6: OVERZICHT IN- EN UITGEROOSTERDE LES- EN ARBEIDSUREN | K6: OVERZICHT GEPLANDE JAARTAAK
B7: A jaartotaal les- en arbeidsuren | E7: lestijd bouw: | G7: =INDIRECT("formatieoverzicht!"&"AF"&N3+4) -> 1 | I7: arbeidsuren | K7: G PDI-budget duurzame inzetbaarheid | P7: Dit teamlidblad is voor het OP en OOP met lesondersteunende en/of | R7: standaardtijden
E8: o | G8: m | P8: behandeltaken zoals een onderwijsassistent of logopedist. | R8: o | T8: m | V8: arb.uren
C9: maandag | D9: =IF(INDIRECT("formatieoverzicht!V"&(N3+4))=2,"A","") ->  | E9: =R9 -> 0.1354166667 | F9: =IF(INDIRECT("formatieoverzicht!W"&(N3+4))=2,"A","") ->  | G9: =T9 -> 0.08333333333 | H9: =IF(INDIRECT("formatieoverzicht!V"&(N3+4))>0,lesurenberekening!E98,0) -> 0.2083333333 | I9: =V9 -> 0.3541666667 | J9: =IF(INDIRECT("formatieoverzicht!W"&(N3+4))>0,lesurenberekening!G98,0) -> 0.1458333333 | M9: vlg. wtf | N9: opname | R9: =IF(AND(INDIRECT("formatieoverzicht!V"&(N3+4))=1,INDIRECT("formatieoverzicht!AF"&(N3+4))=1),lesurenberekening!E11,IF(AND(INDIRECT("formatieoverzicht!V"&(N3+4))=1,INDIRECT("formatieoverzicht!AF"&(N3+4))=2),lesurenberekening!I11,IF(AND(INDIRECT("formatieoverzicht!V"&(N3+4))=1,INDIRECT("formatieoverzicht!AF"&(N3+4))=3),lesurenberekening!M11,IF(AND(INDIRECT("formatieoverzicht!V"&(N3+4))=3,INDIRECT("formatieoverzicht!AF"&(N3+4))=1),lesurenberekening!E11,IF(AND(INDIRECT("formatieoverzicht!V"&(N3+4))=3,INDIRECT("formatieoverzicht!AF"&(N3+4))=2),lesurenberekening!I11,IF(AND(INDIRECT("formatieoverzicht!V"&(N3+4))=3,INDIRECT("formatieoverzicht!AF"&(N3+4))=3),lesurenberekening!M11,0)))))) -> 0.1354166667 | T9: =IF(AND(INDIRECT("formatieoverzicht!W"&(N3+4))=1,INDIRECT("formatieoverzicht!AF"&(N3+4))=1),lesurenberekening!G11,IF(AND(INDIRECT("formatieoverzicht!W"&(N3+4))=1,INDIRECT("formatieoverzicht!AF"&(N3+4))=2),lesurenberekening!K11,IF(AND(INDIRECT("formatieoverzicht!W"&(N3+4))=1,INDIRECT("formatieoverzicht!AF"&(N3+4))=3),lesurenberekening!O11,IF(AND(INDIRECT("formatieoverzicht!W"&(N3+4))=3,INDIRECT("formatieoverzicht!AF"&(N3+4))=1),lesurenberekening!G11,IF(AND(INDIRECT("formatieoverzicht!W"&(N3+4))=3,INDIRECT("formatieoverzicht!AF"&(N3+4))=2),lesurenberekening!K11,IF(AND(INDIRECT("formatieoverzicht!W"&(N3+4))=3,INDIRECT("formatieoverzicht!AF"&(N3+4))=3),lesurenberekening!O11,0)))))) -> 0.08333333333 | V9: =H9+J9 -> 0.3541666667
C10: dinsdag | D10: =IF(INDIRECT("formatieoverzicht!X"&(N3+4))=2,"A","") ->  | E10: =R10 -> 0.1354166667 | F10: =IF(INDIRECT("formatieoverzicht!Y"&(N3+4))=2,"A","") ->  | G10: =T10 -> 0.08333333333 | H10: =IF(INDIRECT("formatieoverzicht!X"&(N3+4))>0,lesurenberekening!E99,0) -> 0.2083333333 | I10: =V10 -> 0.3541666667 | J10: =IF(INDIRECT("formatieoverzicht!Y"&(N3+4))>0,lesurenberekening!G99,0) -> 0.1458333333 | K10: basisbudget | M10: =INDIRECT("formatieoverzicht!J"&(4+N3)) -> 40 | N10: =INDIRECT("formatieoverzicht!Q"&(4+N3)) -> 0 | P10: A t/m D | R10: =IF(AND(INDIRECT("formatieoverzicht!X"&(N3+4))=1,INDIRECT("formatieoverzicht!AF"&(N3+4))=1),lesurenberekening!E12,IF(AND(INDIRECT("formatieoverzicht!X"&(N3+4))=1,INDIRECT("formatieoverzicht!AF"&(N3+4))=2),lesurenberekening!I12,IF(AND(INDIRECT("formatieoverzicht!X"&(N3+4))=1,INDIRECT("formatieoverzicht!AF"&(N3+4))=3),lesurenberekening!M12,IF(AND(INDIRECT("formatieoverzicht!X"&(N3+4))=3,INDIRECT("formatieoverzicht!AF"&(N3+4))=1),lesurenberekening!E12,IF(AND(INDIRECT("formatieoverzicht!X"&(N3+4))=3,INDIRECT("formatieoverzicht!AF"&(N3+4))=2),lesurenberekening!I12,IF(AND(INDIRECT("formatieoverzicht!X"&(N3+4))=3,INDIRECT("formatieoverzicht!AF"&(N3+4))=3),lesurenberekening!M12,0)))))) -> 0.1354166667 | T10: =IF(AND(INDIRECT("formatieoverzicht!Y"&(N3+4))=1,INDIRECT("formatieoverzicht!AF"&(N3+4))=1),lesurenberekening!G12,IF(AND(INDIRECT("formatieoverzicht!Y"&(N3+4))=1,INDIRECT("formatieoverzicht!AF"&(N3+4))=2),lesurenberekening!K12,IF(AND(INDIRECT("formatieoverzicht!Y"&(N3+4))=1,INDIRECT("formatieoverzicht!AF"&(N3+4))=3),lesurenberekening!O12,IF(AND(INDIRECT("formatieoverzicht!Y"&(N3+4))=3,INDIRECT("formatieoverzicht!AF"&(N3+4))=1),lesurenberekening!G12,IF(AND(INDIRECT("formatieoverzicht!Y"&(N3+4))=3,INDIRECT("formatieoverzicht!AF"&(N3+4))=2),lesurenberekening!K12,IF(AND(INDIRECT("formatieoverzicht!Y"&(N3+4))=3,INDIRECT("formatieoverzicht!AF"&(N3+4))=3),lesurenberekening!O12,0)))))) -> 0.08333333333 | V10: =H10+J10 -> 0.3541666667
C11: woensdag | D11: =IF(INDIRECT("formatieoverzicht!Z"&(N3+4))=2,"A","") ->  | E11: =R11 -> 0.1458333333 | F11: =IF(INDIRECT("formatieoverzicht!AA"&(N3+4))=2,"A","") ->  | G11: =T11 -> 0 | H11: =IF(INDIRECT("formatieoverzicht!Z"&(N3+4))>0,lesurenberekening!E100,0) -> 0.25 | I11: =V11 -> 0.25 | J11: =IF(INDIRECT("formatieoverzicht!AA"&(N3+4))>0,lesurenberekening!G100,0) -> 0 | K11: bijzonder budget | M11: =INDIRECT("formatieoverzicht!K"&(4+N3)) -> 0 | N11: =INDIRECT("formatieoverzicht!R"&(4+N3)) -> 0 | P11: In deze rubrieken is alles automatisch berekend. | R11: =IF(AND(INDIRECT("formatieoverzicht!Z"&(N3+4))=1,INDIRECT("formatieoverzicht!AF"&(N3+4))=1),lesurenberekening!E13,IF(AND(INDIRECT("formatieoverzicht!Z"&(N3+4))=1,INDIRECT("formatieoverzicht!AF"&(N3+4))=2),lesurenberekening!I13,IF(AND(INDIRECT("formatieoverzicht!Z"&(N3+4))=1,INDIRECT("formatieoverzicht!AF"&(N3+4))=3),lesurenberekening!M13,IF(AND(INDIRECT("formatieoverzicht!Z"&(N3+4))=3,INDIRECT("formatieoverzicht!AF"&(N3+4))=1),lesurenberekening!E13,IF(AND(INDIRECT("formatieoverzicht!Z"&(N3+4))=3,INDIRECT("formatieoverzicht!AF"&(N3+4))=2),lesurenberekening!I13,IF(AND(INDIRECT("formatieoverzicht!Z"&(N3+4))=3,INDIRECT("formatieoverzicht!AF"&(N3+4))=3),lesurenberekening!M13,0)))))) -> 0.1458333333 | T11: =IF(AND(INDIRECT("formatieoverzicht!AA"&(N3+4))=1,INDIRECT("formatieoverzicht!AF"&(N3+4))=1),lesurenberekening!G13,IF(AND(INDIRECT("formatieoverzicht!AA"&(N3+4))=1,INDIRECT("formatieoverzicht!AF"&(N3+4))=2),lesurenberekening!K13,IF(AND(INDIRECT("formatieoverzicht!AA"&(N3+4))=1,INDIRECT("formatieoverzicht!AF"&(N3+4))=3),lesurenberekening!O13,IF(AND(INDIRECT("formatieoverzicht!AA"&(N3+4))=3,INDIRECT("formatieoverzicht!AF"&(N3+4))=1),lesurenberekening!G13,IF(AND(INDIRECT("formatieoverzicht!AA"&(N3+4))=3,INDIRECT("formatieoverzicht!AF"&(N3+4))=2),lesurenberekening!K13,IF(AND(INDIRECT("formatieoverzicht!AA"&(N3+4))=3,INDIRECT("formatieoverzicht!AF"&(N3+4))=3),lesurenberekening!O13,0)))))) -> 0 | V11: =H11+J11 -> 0.25
C12: donderdag | D12: =IF(INDIRECT("formatieoverzicht!AB"&(N3+4))=2,"A","") ->  | E12: =R12 -> 0.1354166667 | F12: =IF(INDIRECT("formatieoverzicht!AC"&(N3+4))=2,"A","") ->  | G12: =T12 -> 0.08333333333 | H12: =IF(INDIRECT("formatieoverzicht!AB"&(N3+4))>0,lesurenberekening!E101,0) -> 0.2083333333 | I12: =V12 -> 0.3541666667 | J12: =IF(INDIRECT("formatieoverzicht!AC"&(N3+4))>0,lesurenberekening!G101,0) -> 0.1458333333 | R12: =IF(AND(INDIRECT("formatieoverzicht!AB"&(N3+4))=1,INDIRECT("formatieoverzicht!AF"&(N3+4))=1),lesurenberekening!E14,IF(AND(INDIRECT("formatieoverzicht!AB"&(N3+4))=1,INDIRECT("formatieoverzicht!AF"&(N3+4))=2),lesurenberekening!I14,IF(AND(INDIRECT("formatieoverzicht!AB"&(N3+4))=1,INDIRECT("formatieoverzicht!AF"&(N3+4))=3),lesurenberekening!M14,IF(AND(INDIRECT("formatieoverzicht!AB"&(N3+4))=3,INDIRECT("formatieoverzicht!AF"&(N3+4))=1),lesurenberekening!E14,IF(AND(INDIRECT("formatieoverzicht!AB"&(N3+4))=3,INDIRECT("formatieoverzicht!AF"&(N3+4))=2),lesurenberekening!I14,IF(AND(INDIRECT("formatieoverzicht!AB"&(N3+4))=3,INDIRECT("formatieoverzicht!AF"&(N3+4))=3),lesurenberekening!M14,0)))))) -> 0.1354166667 | T12: =IF(AND(INDIRECT("formatieoverzicht!AC"&(N3+4))=1,INDIRECT("formatieoverzicht!AF"&(N3+4))=1),lesurenberekening!G14,IF(AND(INDIRECT("formatieoverzicht!AC"&(N3+4))=1,INDIRECT("formatieoverzicht!AF"&(N3+4))=2),lesurenberekening!K14,IF(AND(INDIRECT("formatieoverzicht!AC"&(N3+4))=1,INDIRECT("formatieoverzicht!AF"&(N3+4))=3),lesurenberekening!O14,IF(AND(INDIRECT("formatieoverzicht!AC"&(N3+4))=3,INDIRECT("formatieoverzicht!AF"&(N3+4))=1),lesurenberekening!G14,IF(AND(INDIRECT("formatieoverzicht!AC"&(N3+4))=3,INDIRECT("formatieoverzicht!AF"&(N3+4))=2),lesurenberekening!K14,IF(AND(INDIRECT("formatieoverzicht!AC"&(N3+4))=3,INDIRECT("formatieoverzicht!AF"&(N3+4))=3),lesurenberekening!O14,0)))))) -> 0.08333333333 | V12: =H12+J12 -> 0.3541666667
C13: vrijdag | D13: =IF(INDIRECT("formatieoverzicht!AD"&(N3+4))=2,"A","") ->  | E13: =R13 -> 0.1354166667 | F13: =IF(INDIRECT("formatieoverzicht!AE"&(N3+4))=2,"A","") ->  | G13: =T13 -> 0.08333333333 | H13: =IF(INDIRECT("formatieoverzicht!AD"&(N3+4))>0,lesurenberekening!E102,0) -> 0.2083333333 | I13: =V13 -> 0.3541666667 | J13: =IF(INDIRECT("formatieoverzicht!AE"&(N3+4))>0,lesurenberekening!G102,0) -> 0.1458333333 | K13: ingezet uit spaarsaldo | L13: + | M13: =INDIRECT("formatieoverzicht!M"&(4+N3)) -> 0 | P13: In rubriek A staat voor ambulante dagdelen een A. | R13: =IF(AND(INDIRECT("formatieoverzicht!AD"&(N3+4))=1,INDIRECT("formatieoverzicht!AF"&(N3+4))=1),lesurenberekening!E15,IF(AND(INDIRECT("formatieoverzicht!AD"&(N3+4))=1,INDIRECT("formatieoverzicht!AF"&(N3+4))=2),lesurenberekening!I15,IF(AND(INDIRECT("formatieoverzicht!AD"&(N3+4))=1,INDIRECT("formatieoverzicht!AF"&(N3+4))=3),lesurenberekening!M15,IF(AND(INDIRECT("formatieoverzicht!AD"&(N3+4))=3,INDIRECT("formatieoverzicht!AF"&(N3+4))=1),lesurenberekening!E15,IF(AND(INDIRECT("formatieoverzicht!AD"&(N3+4))=3,INDIRECT("formatieoverzicht!AF"&(N3+4))=2),lesurenberekening!I15,IF(AND(INDIRECT("formatieoverzicht!AD"&(N3+4))=3,INDIRECT("formatieoverzicht!AF"&(N3+4))=3),lesurenberekening!M15,0)))))) -> 0.1354166667 | T13: =IF(AND(INDIRECT("formatieoverzicht!AE"&(N3+4))=1,INDIRECT("formatieoverzicht!AF"&(N3+4))=1),lesurenberekening!G15,IF(AND(INDIRECT("formatieoverzicht!AE"&(N3+4))=1,INDIRECT("formatieoverzicht!AF"&(N3+4))=2),lesurenberekening!K15,IF(AND(INDIRECT("formatieoverzicht!AE"&(N3+4))=1,INDIRECT("formatieoverzicht!AF"&(N3+4))=3),lesurenberekening!O15,IF(AND(INDIRECT("formatieoverzicht!AE"&(N3+4))=3,INDIRECT("formatieoverzicht!AF"&(N3+4))=1),lesurenberekening!G15,IF(AND(INDIRECT("formatieoverzicht!AE"&(N3+4))=3,INDIRECT("formatieoverzicht!AF"&(N3+4))=2),lesurenberekening!K15,IF(AND(INDIRECT("formatieoverzicht!AE"&(N3+4))=3,INDIRECT("formatieoverzicht!AF"&(N3+4))=3),lesurenberekening!O15,0)))))) -> 0.08333333333 | V13: =H13+J13 -> 0.3541666667
K14: beschikbaar | M14: =M10+M11+M12+M13 -> 40 | N14: =SUM(N10:N13) -> 0 | P14: Indien noodzakelijk, kunnen in rubriek A de les- en arbeidsuren hand-
P15: matig worden aangepast. Klik op de resetknop eronder om de standaard-
G16: reset uren | K16: opgenomen verlof d.i. | M16: =INDIRECT("formatieoverzicht!O"&(4+N3)) -> 0 | P16: tijden en de koppeling met het werkblad lesurenberekening te herstellen.
C17: ingeroosterd per week | E17: =E9+G9+E10+G10+E11+G11+E12+G12+E13+G13 -> 1.020833333 | I17: =SUM(I9:I13) -> 1.666666667 | K17: waarvan lesuren | N17: =ROUND(MaxLestaak/1659*M16,0) -> 0
C18: in 52 weken | E18: =52*E17 -> 53.08333333 | I18: =52*I17 -> 86.66666667 | K18: sparen* | L18: _ | M18: =INDIRECT("formatieoverzicht!P"&(4+N3)) -> 0 | P18: E + F
B19: =WEEKDAY(CONCATENATE(C19,G4)) -> 1900-01-04 | C19: 29 september | D19: =IF(MOD(G4,4)=0,WEEKDAY(CONCATENATE(C19,G4),2),0) -> 0 | E19: =IF(D19=1,E9+G9,IF(D19=2,E10+G10,IF(D19=3,E11+G11,IF(D19=4,E12+G12,IF(D19=5,E13+G13,0))))) -> 0 | F19: (in schrikkeljaar) | I19: =IF(D19=1,I9,IF(D19=2,I10,IF(D19=3,I11,IF(D19=4,I12,IF(D19=5,I13,0))))) -> 0 | K19: over na aftrek verlof | M19: =INDIRECT("formatieoverzicht!T"&(4+N3)) -> 40 | P19: Hier kunnen de dagen en uren worden ingevuld waarop het teamlid nog
B20: =WEEKDAY(CONCATENATE(C20,G4)) -> 1900-01-05 | C20: 30 september | D20: =WEEKDAY(CONCATENATE(C20,G4),2) -> 4 | E20: =IF(D20=1,E9+G9,IF(D20=2,E10+G10,IF(D20=3,E11+G11,IF(D20=4,E12+G12,IF(D20=5,E13+G13,0))))) -> 0.21875 | F20: + | H20: + | I20: =IF(D20=1,I9,IF(D20=2,I10,IF(D20=3,I11,IF(D20=4,I12,IF(D20=5,I13,0))))) -> 0.3541666667 | P20: individueel wordt uit- of ingeroosterd.
C21: totaal A | E21: =E18+E19+E20 -> 53.30208333 | I21: =I18+I19+I20 -> 87.02083333 | K21: ="spaarsaldo eind "&lesurenberekening!E5-1&"/"&lesurenberekening!G5-1 -> spaarsaldo eind 2025/2026 | M21: =INDIRECT("formatieoverzicht!U"&(4+N3)) -> 0
B22: B hele vakantieweken | E22: lesuren | G22: datum | I22: arbeidsuren | P22: Vul alle kolommen handmatig in. Denk om de dubbele punt achter de
K23: * Sparen tot 57 jr. : max. 3 jaar; vanaf 57 jr.: max. 5 jaar | P23: uren. Wanneer is afgesproken een aantal dagen door te werken in één
C24: herfstvakantie | D24: =lesurenberekening!D25 -> 1 | E24: =E17*D24 -> 1.020833333 | G24: =lesurenberekening!E25 -> 17-10-26 | I24: =I17*D24 -> 1.666666667 | K24: H ingeroosterde arbeidsuren | M24: wtf 1,0: | N24: =jaartaak -> 1659 | P24: of meer vakantieweken, vul je in F het totaal van die arbeidsuren in.
C25: kerstvakantie | D25: =lesurenberekening!D26 -> 2 | E25: =E17*D25 -> 2.041666667 | G25: =lesurenberekening!E26 -> 19-12-26 | I25: =I17*D25 -> 3.333333333 | O25: Volgens het inrooster- percentage voltijders
C26: voorjaarsvakantie | D26: =lesurenberekening!D27 -> 1 | E26: =E17*D26 -> 1.020833333 | G26: =lesurenberekening!E27 -> 20-2-27 | I26: =I17*D26 -> 1.666666667 | K26: bruto arbeidsduur (wtf x 1659) | M26: =ROUND(K5*jaartaak,0) -> 1659 | P26: Wanneer je hier bij meerdere teamleden hetzelfde moet invullen, kun je
C27: meivakantie | D27: =lesurenberekening!D28 -> 2 | E27: =E17*D27 -> 2.041666667 | G27: =lesurenberekening!E28 -> 24-4-27 | I27: =I17*D27 -> 3.333333333 | K27: opgenomen verlof d.i. | L27: _ | M27: =M16 -> 0 | P27: dat op meerdere teamlidbladen tegelijk in één keer invullen.
C28: =lesurenberekening!C29 -> 0 | D28: =lesurenberekening!D29 -> 0 | E28: =E17*D28 -> 0 | G28: =lesurenberekening!E29 -> 00:00:00 | I28: =I17*D28 -> 0 | K28: netto arbeidsduur | M28: =M26-M27 -> 1659
C29: zomervakantie | D29: =lesurenberekening!D30 -> 6 | E29: =E17*D29 -> 6.125 | G29: =lesurenberekening!E30 -> 17-7-27 | I29: =I17*D29 -> 10 | K29: ingeroosterd: (A + F) - (B t/m E) | M29: =ROUND(((I21+I73)-(I30+I43+I55+I64))*24,0) -> 1592 | O29: =ROUND(O31*M28,0) -> 1593 | P29: G
C30: totaal af B | E30: =SUM(E24:E29) -> 12.25 | I30: =SUM(I24:I29) -> 20 | K30: =IF(lesurenberekening!E117="ja","verschil","") -> verschil | M30: =IF(lesurenberekening!E117="ja",(M29-M28),0) -> -67 | O30: =IF(O29<>0,O29-M28,0) -> -66 | P30: Het aantal lesuren dat een verlof PDI bevat is gebaseerd op artikel
B31: C hele vakantie (v) - of studiedagen (s) | E31: lesuren | G31: datum | I31: arbeidsuren | K31: =IF(lesurenberekening!E117="ja","inroosteringspercentage", "") -> inroosteringspercentage | M31: =ROUND(IF(lesurenberekening!E117="ja",IF(M28>0,M29/M28*100,0),0),1) -> 96 | N31: =IF(lesurenberekening!E117="ja","%","") -> % | O31: =lesurenberekening!E112*100&" %" -> 96 % | P31: 9.6 lid 6 (CAO-PO 2024). Het PDI-deel professionalisering blijft dus even
B32: =lesurenberekening!B34 -> 2027-03-26 | C32: =IF(lesurenberekening!C34="","",lesurenberekening!C34) -> goede vrijdag | D32: =lesurenberekening!D34 -> v | E32: =(INDIRECT("E"&8+F32)+INDIRECT("G"&8+F32)) -> 0.21875 | F32: =WEEKDAY(G32,2) -> 5 | G32: =lesurenberekening!E34 -> 2027-03-26 | I32: =IF(D32="v",INDIRECT("I"&8+F32),0) -> 0.3541666667 | P32: groot als vóór de verlofopname.
B33: =lesurenberekening!B35 -> 2027-05-06 | C33: =IF(lesurenberekening!C35="","",lesurenberekening!C35) -> hemelvaartsdag | D33: =lesurenberekening!D35 -> v | E33: =(INDIRECT("E"&8+F33)+INDIRECT("G"&8+F33)) -> 0.21875 | F33: =WEEKDAY(G33,2) -> 4 | G33: =lesurenberekening!E35 -> 2027-05-06 | I33: =IF(D33="v",INDIRECT("I"&8+F33),0) -> 0.3541666667 | K33: I ingeroosterde lesuren | M33: wtf 1,0: | N33: =MaxLestaak -> 940
B34: =lesurenberekening!B36 -> 2027-05-07 | C34: =IF(lesurenberekening!C36="","",lesurenberekening!C36) -> vrijdag na hemelvaartsdag | D34: =lesurenberekening!D36 -> v | E34: =(INDIRECT("E"&8+F34)+INDIRECT("G"&8+F34)) -> 0.21875 | F34: 5 | G34: =lesurenberekening!E36 -> 2027-05-07 | I34: =IF(D34="v",INDIRECT("I"&8+F34),0) -> 0.3541666667 | P34: H + I
B35: =lesurenberekening!B37 -> 2027-05-17 | C35: =IF(lesurenberekening!C37="","",lesurenberekening!C37) -> 2e pinksterdag | D35: =lesurenberekening!D37 -> v | E35: 0.21875 | F35: 1 | G35: =lesurenberekening!E37 -> 2027-05-17 | I35: 0.3541666667 | K35: maximale lestaak vlg. wtf | M35: =ROUND(K5*MaxLestaak,0) -> 940 | P35: De weergave van het inroosterverschil en het inroosterpercentage kan
B36: =lesurenberekening!B38 -> 2027-07-16 | C36: =IF(lesurenberekening!C38="","",lesurenberekening!C38) -> laatste dag voor zomervakantie | D36: =lesurenberekening!D38 -> v | E36: 0.21875 | F36: 5 | G36: =lesurenberekening!E38 -> 2027-07-16 | I36: 0.3541666667 | K36: lesuren opgenomen verlof d.i. | L36: _ | M36: =N17 -> 0 | P36: in rubriek G op het eerste werkblad Lesurenberekening aan of uit
B37: =lesurenberekening!B39 -> 2027-03-25 | C37: =IF(lesurenberekening!C39="","",lesurenberekening!C39) -> studiedag 1 | D37: =lesurenberekening!D39 -> s | E37: 0.21875 | F37: 4 | G37: =lesurenberekening!E39 -> 2027-03-25 | I37: 0 | K37: netto maximale lestaak | M37: =M35-M36 -> 940 | P37: worden gezet.
B38: =lesurenberekening!B40 -> 2027-04-27 | C38: =IF(lesurenberekening!C40="","",lesurenberekening!C40) -> studiedag 2 | D38: =lesurenberekening!D40 -> s | E38: 0.21875 | F38: 2 | G38: =lesurenberekening!E40 -> 2027-04-27 | I38: 0 | K38: ingeroosterd: (A + F) - (B t/m E) | L38: _ | M38: =ROUND(((E21+E73)-(E30+E43+E55+E64))*24,0) -> 949
B39: =lesurenberekening!B41 ->  | C39: =IF(lesurenberekening!C41="","",lesurenberekening!C41) ->  | D39: =lesurenberekening!D41 -> 0 | E39: 0 | F39: 6 | G39: =lesurenberekening!E41 -> 00:00:00 | I39: 0 | K39: =IF(lesurenberekening!E117="ja","verschil","") -> verschil | M39: =IF(lesurenberekening!E118="ja",M38-M37,"") -> 9 | P39: Wanneer in rubriek G (instellingen) op het eerste werkblad Lesuren-
B40: =lesurenberekening!B42 ->  | C40: =IF(lesurenberekening!C42="","",lesurenberekening!C42) ->  | D40: =lesurenberekening!D42 -> 0 | E40: 0 | F40: 6 | G40: =lesurenberekening!E42 -> 00:00:00 | I40: 0 | K40: =IF(lesurenberekening!E118="ja"," inroosteringspercentage","") -> inroosteringspercentage | M40: =ROUND(IF(lesurenberekening!E118="ja",IF(M37>0,M38/M37*100,0),0),1) -> 101 | N40: =IF(lesurenberekening!E118="ja","%","") -> % | P40: berekening het inroosteringspercentage van de voltijders is ingevuld,
B41: =lesurenberekening!B43 ->  | C41: =IF(lesurenberekening!C43="","",lesurenberekening!C43) ->  | D41: =lesurenberekening!D43 -> 0 | E41: 0 | F41: 6 | G41: =lesurenberekening!E43 -> 00:00:00 | I41: 0 | P41: wordt naast rubriek H ter referentie het daaraan evenredig aantal in te
B42: =lesurenberekening!B44 ->  | C42: =IF(lesurenberekening!C44="","",lesurenberekening!C44) ->  | D42: =lesurenberekening!D44 -> 0 | E42: 0 | F42: 6 | G42: =lesurenberekening!E44 -> 00:00:00 | I42: 0 | K42: J opbouw ingeroosterde jaartaak | N42: =IF(M52>0,"na verlof-opname", "") ->  | P42: roosteren arbeidsuren getoond.
C43: totaal af C | E43: =SUM(E32:E42) -> 1.53125 | I43: =SUM(I32:I42) -> 1.770833333
B44: D overige dagdelen en uren | E44: lesuren | G44: datum | I44: arbeidsuren | K44: =IF(M58>0,"Inzet spaarsaldo PDI-budget","") ->  | M44: =M58 -> 0 | N44: =IF(M52>0,M58,0) -> 0 | O44: =IF(M52>0,N44,M44) -> 0 | P44: J
B45: =IF(G45="","",G45) -> 00:00:00 | C45: =lesurenberekening!C48 -> 0 | D45: =IF(G$7=1,lesurenberekening!G48,IF(G$7=2,lesurenberekening!I48,IF(G$7=3,lesurenberekening!K48,0))) -> 0 | E45: =IF((INDIRECT("E"&8+F45)+INDIRECT("G"&8+F45))<>0,D45,0) -> 0 | F45: =WEEKDAY(G45,2) -> 6 | G45: =lesurenberekening!E48 -> 00:00:00 | I45: =IF(AND(INDIRECT("I"&8+F45)<>0,E45<>0),lesurenberekening!O48,0) -> 0 | K45: PDI-budget dit schooljaar | M45: =IF(M52=0,(ROUND(K5*professionalisering,0)+M19)-M59,ROUND(K5*professionalisering,0)+M19) -> 123 | N45: =IF(M52>0,ROUND((N50/M50)*M45,0)-M59,0) -> 0 | O45: =IF(M52>0,N45,M45) -> 123 | P45: overige & ambulante (functie)taken
B46: =IF(G46="","",G46) -> 00:00:00 | C46: =lesurenberekening!C49 -> 0 | D46: =IF(G$7=1,lesurenberekening!G49,IF(G$7=2,lesurenberekening!I49,IF(G$7=3,lesurenberekening!K49,0))) -> 0 | E46: =IF((INDIRECT("E"&8+F46)+INDIRECT("G"&8+F46))<>0,D46,0) -> 0 | F46: =WEEKDAY(G46,2) -> 6 | G46: =lesurenberekening!E49 -> 00:00:00 | I46: =IF(AND(INDIRECT("I"&8+F46)<>0,E46<>0),lesurenberekening!O49,0) -> 0 | K46: ingeroosterde lestaak | M46: =M38 -> 949 | O46: =M46 -> 949 | P46: Wanneer er sprake is van ambulante uren, zal het aantal uren dat over-
B47: =IF(G47="","",G47) -> 00:00:00 | C47: =lesurenberekening!C50 -> 0 | D47: =IF(G$7=1,lesurenberekening!G50,IF(G$7=2,lesurenberekening!I50,IF(G$7=3,lesurenberekening!K50,0))) -> 0 | E47: =IF((INDIRECT("E"&8+F47)+INDIRECT("G"&8+F47))<>0,D47,0) -> 0 | F47: 6 | G47: =lesurenberekening!E50 -> 00:00:00 | I47: =IF(AND(INDIRECT("I"&8+F47)<>0,E47<>0),lesurenberekening!O50,0) -> 0 | K47: voor- en nawerk* | M47: =IF(N47=0,ROUND(nawerk*M46,0),ROUND(N47*M46,0)) -> 380 | O47: =M47 -> 380 | P47: blijft voor de overige taken groter zijn. Onderaan rubriek K kan
B48: 00:00:00 | C48: =lesurenberekening!C51 -> 0 | D48: =IF(G$7=1,lesurenberekening!G51,IF(G$7=2,lesurenberekening!I51,IF(G$7=3,lesurenberekening!K51,0))) -> 0 | E48: 0 | F48: 6 | G48: =lesurenberekening!E51 -> 00:00:00 | I48: =IF(AND(INDIRECT("I"&8+F48)<>0,E48<>0),lesurenberekening!O51,0) -> 0 | K48: =IF(COUNTIF(D9:F13,"A")>0,"overige & amb. taken","overige taken") -> overige taken | M48: =M50-(M44+M45+M46+M47) -> 207 | N48: =IF(M52>0,ROUND((N50/M50)*M48,0),M48) -> 207 | O48: =IF(M52>0,N48,M48) -> 207 | P48: het aantal uren voor de ambulante taken worden ingevuld; de over-
B49: 00:00:00 | C49: =lesurenberekening!C52 -> 0 | D49: =IF(G$7=1,lesurenberekening!G52,IF(G$7=2,lesurenberekening!I52,IF(G$7=3,lesurenberekening!K52,0))) -> 0 | E49: 0 | F49: 6 | G49: =lesurenberekening!E52 -> 00:00:00 | I49: =IF(AND(INDIRECT("I"&8+F49)<>0,E49<>0),lesurenberekening!O52,0) -> 0 | O49: =M48 -> 207 | P49: blijvende uren gaan dan naar de overige taken (zie rubriek C, pag. 2).
B50: =IF(G50="","",G50) -> 00:00:00 | C50: =lesurenberekening!C53 -> 0 | D50: =IF(G$7=1,lesurenberekening!G53,IF(G$7=2,lesurenberekening!I53,IF(G$7=3,lesurenberekening!K53,0))) -> 0 | E50: =IF((INDIRECT("E"&8+F50)+INDIRECT("G"&8+F50))<>0,D50,0) -> 0 | F50: 6 | G50: =lesurenberekening!E53 -> 00:00:00 | I50: =IF(AND(INDIRECT("I"&8+F50)<>0,E50<>0),lesurenberekening!O53,0) -> 0 | K50: netto arbeidsduur | M50: =M28 -> 1659 | N50: =IF(M52>0,(M50-M52),0) -> 0
B51: =IF(G51="","",G51) -> 00:00:00 | C51: =lesurenberekening!C54 -> 0 | D51: =IF(G$7=1,lesurenberekening!G54,IF(G$7=2,lesurenberekening!I54,IF(G$7=3,lesurenberekening!K54,0))) -> 0 | E51: 0 | F51: 6 | G51: =lesurenberekening!E54 -> 00:00:00 | I51: =IF(AND(INDIRECT("I"&8+F51)<>0,E51<>0),lesurenberekening!O54,0) -> 0 | P51: verlofopname
B52: =IF(G52="","",G52) -> 00:00:00 | C52: =lesurenberekening!C55 -> 0 | D52: =IF(G$7=1,lesurenberekening!G55,IF(G$7=2,lesurenberekening!I55,IF(G$7=3,lesurenberekening!K55,0))) -> 0 | E52: 0 | F52: 6 | G52: =lesurenberekening!E55 -> 00:00:00 | I52: =IF(AND(INDIRECT("I"&8+F52)<>0,E52<>0),lesurenberekening!O55,0) -> 0 | K52: opname overig verlof dit schooljaar: | P52: Dit vakje mag slechts in bepaalde gevallen worden ingevuld. Klik op de
B53: =IF(G53="","",G53) -> 00:00:00 | C53: =lesurenberekening!C56 -> 0 | D53: =IF(G$7=1,lesurenberekening!G56,IF(G$7=2,lesurenberekening!I56,IF(G$7=3,lesurenberekening!K56,0))) -> 0 | E53: 0 | F53: 6 | G53: =lesurenberekening!E56 -> 00:00:00 | I53: =IF(AND(INDIRECT("I"&8+F53)<>0,E53<>0),lesurenberekening!O56,0) -> 0 | P53: icoon of houd de muisaanwijzer boven de tooltip voor meer informatie.
B54: 00:00:00 | C54: =lesurenberekening!C57 -> 0 | D54: =IF(G$7=1,lesurenberekening!G57,IF(G$7=2,lesurenberekening!I57,IF(G$7=3,lesurenberekening!K57,0))) -> 0 | E54: 0 | F54: 6 | G54: =lesurenberekening!E57 -> 00:00:00 | I54: =IF(AND(INDIRECT("I"&8+F54)<>0,E54<>0),lesurenberekening!O57,0) -> 0 | K54: *afgesproken reguliere opslagfactor: | N54: =nawerk -> 0.4
C55: totaal af D | E55: =SUM(E45:E54) -> 0 | I55: =SUM(I45:I54) -> 0 | K55: K PDI-budget en overige taken(zie inzet op pag. 2) | P55: voor- en nawerk
B56: E individueel uitgeroosterd | E56: lesuren | G56: datum | I56: arbeidsuren | K56: sparen PDI-budget | P56: In dit vakje kan een afwijkende individuele opslagfactor worden inge-
K57: Spaarsaldo eind vorig schooljaar | P57: vuld. Dit kan een grótere factor zijn bij beginnnende leerkrachten, of
K58: Inzet uit spaarsaldo in dit schooljaar | P58: juist een kleinere bij OOP'ers met lesondersteunende taken indien dat
K59: Te sparen in dit schooljaar | P59: is afgesproken.
K60: Spaarsaldo eind van dit schooljaar | M60: =(M57+M59)-M58 -> 0
K61: inzet PDI-budget | P61: K
N62: % | P62: Hier zie je in hoeverre de uren van deze twee taakonderdelen al met
K63: beschikbaar | M63: =IF(M52=0,(M44+M45),N44+N45) -> 123 | P63: activiteiten zijn gevuld op de tweede pagina van dit teamlidblad.
C64: totaal af E | E64: =SUM(E57:E63) -> 0 | I64: =SUM(I57:I63) -> 0 | K64: ingevuld | L64: _ | M64: =M109 -> 0 | N64: =IF(M63>0,IF(100,M64/M63*100,0),0) -> 0 | P64: Dit is ook te zien geheel rechts op het Formatieoverzicht.
B65: F individueel ingeroosterd | E65: lesuren | G65: datum | I65: arbeidsuren | K65: =IF(M63<0,"teveel ingepland","nog beschikbaar") -> nog beschikbaar | M65: =IF(M63<M64,0,N110) -> 123 | P65: In deze rubriek kun je ook het spaarsaldo (niet voor verlof) bijhouden en
C66: 3 dagen in zomervakantie | I66: 1.0625 | P66: de inzet uit of de inleg in het spaarsaldo invullen. De inzet van veel
K67: inzet overige taken | P67: gespaarde uren kan er toe leiden dat er geen of zelfs een negatief aantal
K68: beschikbaar | M68: =N48-M72 -> 207 | P68: overblijft' voor de overige taken. Dit kan dan alleeen worden opgelost
K69: ingevuld | L69: _ | M69: =M156 -> 93 | N69: =IF(M68>0,IF(100,M69/M68*100,0),0) -> 44.92753623 | P69: door zoveel lesuren uit te roosteren dat er een klein minimaal noodzake-
K70: =IF(M70<0,"teveel ingepland","nog beschikbaar") -> nog beschikbaar | M70: =IF(M68<M69,0,N157) -> 114 | P70: lijk aantal uren voor de overige taken overblijft.
K72: ambulante functietaken: | P72: ambulante functietaken
C73: totaal bij F | E73: =SUM(E66:E72) -> 0 | I73: =SUM(I66:I72) -> 1.0625 | P73: Bij (deels) ambulante teamleden moeten de overblijvende uren verdeeld
B74: opmerkingen | E74: =((E21+E73)-(E30+E43+E55+E64)) -> 39.52083333 | G74: < ingeroosterd > | I74: =((I21+I73)-(I30+I43+I55+I64)) -> 66.3125 | P74: worden over de ambulante functietaken en de overige taken.
B75: De arbeidsuren van deze voltijder zijn inclusief 3 dagen in de zomervakantie voor 96% in werkdagen ingeroosterd (zie rubriek H). Dit percentage is op het werkblad 'lesurenberekening' ingevuld in rubriek G en kan dan ter referentie gebruikt worden als ondergrens bij het inroosterpercentage van de deeltijders. Er zijn 9 lesuren méér ingeroosterd dan de maximale lestaak van 940 uur (zie rubriek I). Als de leerkracht hier niet mee akkoord gaat, kunnen deze uren in rubriek E worden uitgeroosterd (niet vrij). Het aantal uren voor de overige taken zal dan toenemen tot 220. Probeer maar uit. Studiedagen: de beide studiedagen vallen bij deze voltijder binnen de ingeroosterde werkdagen. Omdat ongeveer 5 uur per studiedag daadwerkelijk aan de activiteit is gewijd, is er bij de overige taken in rubriek B hieronder 2 x 5 uur voor de activiteit studiedag gerekend ipv 2 x 8,5 uur. | P75: Vul, indien van toepassing, hier de uren voor de ambulante taken in, óf
P76: vul de verdeling op pag. 2 in rubriek C in (dus niet in beide tegelijk!).
P78: opmerkingenvak
P79: Druk op Alt+Enter voor een nieuwe regel.
P80: Dubbelklik op het vak wanneer niet de hele tekst zichtbaar is. Alleen het
P81: zichtbare deel wordt afgedrukt.
G82: 2e pagina
B83: OVERZICHT GEPLANDE ACTIVITEITEN PDI EN OVERIGE TAKEN | P83: Teamlidblad 2e pagina
P85: overzicht van geplande activiteiten en uren p.d.i. en overige taken
C86: schooljaar | E86: =E4 -> 2026 | F86: / | G86: =G4 -> 2027 | H86: naam: | K86: =K3 -> Andriessen, Floor (voltijder) | P86: Op deze pagina worden de geplande activiteiten en uren ingevuld.
P87: Een regel moet aan de linkerkant geselecteerd worden om in te vullen.
B88: A | C88: PDI-budget | K88: beschikbaar: | M88: uren | N88: =M63 -> 123 | P88: De uren worden hier als gewone hele getallen ingevoerd zonder
B89: 1 | P89: dubbele punt.
B90: 2
B91: 3 | P91: invoerformulier voor de activiteiten
B92: 4 | P92: Voor het maken van overzichten is het noodzakelijk dat activiteiten
B93: 5 | P93: uniform gespeld worden. Bovendien worden de overzichten gemaakt
B94: 6 | P94: op basis van de drie lijsten (zie de drie tabs onderaan het scherm).
B95: 7 | P95: Voer activiteiten daarom altijd zoveel mogelijk in via het activiteiten-
B96: 8 | P96: invoerformulier. Je roept dit formulier op door op een willekeurige plek
B97: 9 | P97: op de nummerrij te klikken.
B98: 10
B99: 11
B100: 12 | P100: HET ACTIVITEITENINVOERFORMULIER
B101: 13
B102: 14 | P102: Onderstaande informatie vind je ook door op de informatie-icoontjes op
B103: 15 | P103: het invoerformulier te klikken.
B104: 16
B105: 17 | P105: Lijstitem aan teamblad toevoegen
B106: 18 | P106: > Roep het formulier op door op de nummerrij te klikken en selecteer in
B107: 19 | P107: het vak Lijstkeuze de betreffende lijst.
B108: 20 | P108: > Klik op het pijltje aan het eind van de lege regel; de lijst verschijnt.
K109: totaal: | M109: =SUM(M89:M108) -> 0 | P109: > Selecteer een activiteit en klik in het vak Teamblad rubr. A of B de
N110: =N88-M109 -> 123 | P110: rubriek waaraan je de activiteit wilt toevoegen.
P111: >Klik op Toevoegen aan Teamlidblad (het aantal uren kan worden gewij-
P112: zigd, maar moet wel altijd zijn ingevuld).
P114: Nieuwe items aan een lijst én het teamlidblad toevoegen
P115: Nieuwe activiteiten kunnen gelijktijdig aan een lijst én aan een rubriek
P116: op het teamlidblad worden toegevoegd:
P117: > Selecteer in het vak Lijstkeuze een lijst en vul op de lege regel een
P118: activiteit + uren in.
P119: > Klik vervolgens op Toevoegen aan Lijst.
B120: B | C120: =K48 -> overige taken | K120: beschikbaar: | N120: =M68 -> 207 | P120: > Selecteer daarna in het vak daaronder de betreffende rubriek en
B121: 1 | C121: Afscheidsavond groep 8 | M121: 3 | P121: tenslotte op Toevoegen aan Teamlidblad.
B122: 2 | C122: Algemene ouderavond | M122: 2
B123: 3 | C123: Begeleiding Pabo studenten | M123: 12 | P123: De lijsten kunnen ook direct op de lijst zelf worden ingevuld. Aangeleg-
B124: 4 | C124: BHV en EHBO | M124: 5 | P124: de lijsten kunnen bij het ingebruiknemen van een nieuwe planner uit de
B125: 5 | C125: Bouwvergaderingen 4 x 1:30 uur | M125: 6 | P125: oude planner met enkele muisklikken geïmporteerd worden.
B126: 6 | C126: Contactpersoon vertrouwelijke zaken | M126: 5
B127: 7 | C127: Coördinator Antipestbeleid | M127: 20 | P127: sortering
B128: 8 | C128: Feest Sintviering | M128: 15 | P128: Bij gebruik van het invoerformulier worden de items automatisch
B129: 9 | C129: Studiedagen 2 x 5 uur | M129: 10 | P129: gesorteerd. Sorteer bij rechtstreeks invullen door op de sorteerpijlen
B130: 10 | C130: Teamvergaderingen 10 x 1:30 uur | M130: 15 | P130: bovenaan de pagina te klikken.
B131: 11
B132: 12 | P132: overzicht per activiteit
B133: 13 | P133: Met het invoerformulier kan ook een overzicht worden gemaakt van de
B134: 14 | P134: teamleden die eenzelfde activiteit gemeen hebben:
B135: 15 | P135: > Kies een lijst en een activiteit.
B136: 16 | P136: > Klik nu op de knop Teamoverzicht.
B137: 17 | P137: > Het overzicht wordt onderaan de gekozen lijst getoond.
B138: 18
B139: 19 | P139: overzicht van alle activiteiten overige taken van alle teamleden
B140: 20 | P140: Op het werkblad act.overzicht kun je een totaaloverzicht maken van alle
B141: 21 | P141: activiteiten en teamleden. Een leeg overzicht met alleen activiteiten kun je
B142: 22 | P142: aan het begin van het werkverdelingstraject als intekenlijst voor de overige
B143: 23 | P143: taken gebruiken.
B144: 24
B145: 25 | P145: Let op:
B146: 26 | P146: De op deze pagina vermelde activiteiten en uren zijn een specificatie
B147: 27 | P147: van de op de eerste pagina berekende uren voor deze twee taak-
B148: 28 | P148: onderdelen. Er mogen dus nooit méér uren worden ingepland dan er
B149: 29 | P149: beschikbaar zijn. Het aantal teveel ingeplande uren wordt in het rood
B150: 30 | P150: afgedrukt en mag niet genegeerd worden.
B151: 31
B152: 32
B153: 33
B154: 34
B155: 35
K156: totaal : | M156: =SUM(M121:M155) -> 93
K157: Nog beschikbaar: | N157: =N120-M156 -> 114

Sheet 2
B2: =lesurenberekening!I5 -> Voorbeelden | P2: toelichting teamlidblad OP en OOP met lesondersteunende taken
H3: naam: | K3: =INDIRECT("formatieoverzicht!C"&(4+N3)) -> Berndsen, Theo (deeltijder) | N3: =MID(CELL("bestandsnaam",A1),SEARCH("]",CELL("bestandsnaam",A1),1)+1,99) -> 2
E4: =lesurenberekening!E5 -> 2026 | F4: / | G4: =lesurenberekening!G5 -> 2027 | H4: aanstelling: | K4: =INDIRECT("formatieoverzicht!D"&(4+N3)) -> 1.333333333
B5: =INDIRECT("formatieoverzicht!AR"&(4+N3)) -> 0 | H5: wtf: | K5: =INDIRECT("formatieoverzicht!E"&(4+N3)) -> 0.8000000119 | P5: Klik op dit icoon voor meer informatie
B6: OVERZICHT IN- EN UITGEROOSTERDE LES- EN ARBEIDSUREN | K6: OVERZICHT GEPLANDE JAARTAAK
B7: A jaartotaal les- en arbeidsuren | E7: lestijd bouw: | G7: =INDIRECT("formatieoverzicht!"&"AF"&N3+4) -> 1 | I7: arbeidsuren | K7: G PDI-budget duurzame inzetbaarheid | P7: Dit teamlidblad is voor het OP en OOP met lesondersteunende en/of | R7: standaardtijden
E8: o | G8: m | P8: behandeltaken zoals een onderwijsassistent of logopedist. | R8: o | T8: m | V8: arb.uren
C9: maandag | D9: =IF(INDIRECT("formatieoverzicht!V"&(N3+4))=2,"A","") ->  | E9: =R9 -> 0.1354166667 | F9: =IF(INDIRECT("formatieoverzicht!W"&(N3+4))=2,"A","") ->  | G9: =T9 -> 0.08333333333 | H9: =IF(INDIRECT("formatieoverzicht!V"&(N3+4))>0,lesurenberekening!E98,0) -> 0.2083333333 | I9: =V9 -> 0.3541666667 | J9: =IF(INDIRECT("formatieoverzicht!W"&(N3+4))>0,lesurenberekening!G98,0) -> 0.1458333333 | M9: vlg. wtf | N9: opname | R9: =IF(AND(INDIRECT("formatieoverzicht!V"&(N3+4))=1,INDIRECT("formatieoverzicht!AF"&(N3+4))=1),lesurenberekening!E11,IF(AND(INDIRECT("formatieoverzicht!V"&(N3+4))=1,INDIRECT("formatieoverzicht!AF"&(N3+4))=2),lesurenberekening!I11,IF(AND(INDIRECT("formatieoverzicht!V"&(N3+4))=1,INDIRECT("formatieoverzicht!AF"&(N3+4))=3),lesurenberekening!M11,IF(AND(INDIRECT("formatieoverzicht!V"&(N3+4))=3,INDIRECT("formatieoverzicht!AF"&(N3+4))=1),lesurenberekening!E11,IF(AND(INDIRECT("formatieoverzicht!V"&(N3+4))=3,INDIRECT("formatieoverzicht!AF"&(N3+4))=2),lesurenberekening!I11,IF(AND(INDIRECT("formatieoverzicht!V"&(N3+4))=3,INDIRECT("formatieoverzicht!AF"&(N3+4))=3),lesurenberekening!M11,0)))))) -> 0.1354166667 | T9: =IF(AND(INDIRECT("formatieoverzicht!W"&(N3+4))=1,INDIRECT("formatieoverzicht!AF"&(N3+4))=1),lesurenberekening!G11,IF(AND(INDIRECT("formatieoverzicht!W"&(N3+4))=1,INDIRECT("formatieoverzicht!AF"&(N3+4))=2),lesurenberekening!K11,IF(AND(INDIRECT("formatieoverzicht!W"&(N3+4))=1,INDIRECT("formatieoverzicht!AF"&(N3+4))=3),lesurenberekening!O11,IF(AND(INDIRECT("formatieoverzicht!W"&(N3+4))=3,INDIRECT("formatieoverzicht!AF"&(N3+4))=1),lesurenberekening!G11,IF(AND(INDIRECT("formatieoverzicht!W"&(N3+4))=3,INDIRECT("formatieoverzicht!AF"&(N3+4))=2),lesurenberekening!K11,IF(AND(INDIRECT("formatieoverzicht!W"&(N3+4))=3,INDIRECT("formatieoverzicht!AF"&(N3+4))=3),lesurenberekening!O11,0)))))) -> 0.08333333333 | V9: =H9+J9 -> 0.3541666667
C10: dinsdag | D10: =IF(INDIRECT("formatieoverzicht!X"&(N3+4))=2,"A","") ->  | E10: =R10 -> 0.1354166667 | F10: =IF(INDIRECT("formatieoverzicht!Y"&(N3+4))=2,"A","") ->  | G10: =T10 -> 0.08333333333 | H10: =IF(INDIRECT("formatieoverzicht!X"&(N3+4))>0,lesurenberekening!E99,0) -> 0.2083333333 | I10: =V10 -> 0.3541666667 | J10: =IF(INDIRECT("formatieoverzicht!Y"&(N3+4))>0,lesurenberekening!G99,0) -> 0.1458333333 | K10: basisbudget | M10: =INDIRECT("formatieoverzicht!J"&(4+N3)) -> 32 | N10: =INDIRECT("formatieoverzicht!Q"&(4+N3)) -> 0 | P10: A t/m D | R10: =IF(AND(INDIRECT("formatieoverzicht!X"&(N3+4))=1,INDIRECT("formatieoverzicht!AF"&(N3+4))=1),lesurenberekening!E12,IF(AND(INDIRECT("formatieoverzicht!X"&(N3+4))=1,INDIRECT("formatieoverzicht!AF"&(N3+4))=2),lesurenberekening!I12,IF(AND(INDIRECT("formatieoverzicht!X"&(N3+4))=1,INDIRECT("formatieoverzicht!AF"&(N3+4))=3),lesurenberekening!M12,IF(AND(INDIRECT("formatieoverzicht!X"&(N3+4))=3,INDIRECT("formatieoverzicht!AF"&(N3+4))=1),lesurenberekening!E12,IF(AND(INDIRECT("formatieoverzicht!X"&(N3+4))=3,INDIRECT("formatieoverzicht!AF"&(N3+4))=2),lesurenberekening!I12,IF(AND(INDIRECT("formatieoverzicht!X"&(N3+4))=3,INDIRECT("formatieoverzicht!AF"&(N3+4))=3),lesurenberekening!M12,0)))))) -> 0.1354166667 | T10: =IF(AND(INDIRECT("formatieoverzicht!Y"&(N3+4))=1,INDIRECT("formatieoverzicht!AF"&(N3+4))=1),lesurenberekening!G12,IF(AND(INDIRECT("formatieoverzicht!Y"&(N3+4))=1,INDIRECT("formatieoverzicht!AF"&(N3+4))=2),lesurenberekening!K12,IF(AND(INDIRECT("formatieoverzicht!Y"&(N3+4))=1,INDIRECT("formatieoverzicht!AF"&(N3+4))=3),lesurenberekening!O12,IF(AND(INDIRECT("formatieoverzicht!Y"&(N3+4))=3,INDIRECT("formatieoverzicht!AF"&(N3+4))=1),lesurenberekening!G12,IF(AND(INDIRECT("formatieoverzicht!Y"&(N3+4))=3,INDIRECT("formatieoverzicht!AF"&(N3+4))=2),lesurenberekening!K12,IF(AND(INDIRECT("formatieoverzicht!Y"&(N3+4))=3,INDIRECT("formatieoverzicht!AF"&(N3+4))=3),lesurenberekening!O12,0)))))) -> 0.08333333333 | V10: =H10+J10 -> 0.3541666667
C11: woensdag | D11: =IF(INDIRECT("formatieoverzicht!Z"&(N3+4))=2,"A","") ->  | E11: =R11 -> 0.1458333333 | F11: =IF(INDIRECT("formatieoverzicht!AA"&(N3+4))=2,"A","") ->  | G11: =T11 -> 0 | H11: =IF(INDIRECT("formatieoverzicht!Z"&(N3+4))>0,lesurenberekening!E100,0) -> 0.25 | I11: =V11 -> 0.25 | J11: =IF(INDIRECT("formatieoverzicht!AA"&(N3+4))>0,lesurenberekening!G100,0) -> 0 | K11: bijzonder budget | M11: =INDIRECT("formatieoverzicht!K"&(4+N3)) -> 0 | N11: =INDIRECT("formatieoverzicht!R"&(4+N3)) -> 0 | P11: In deze rubrieken is alles automatisch berekend. | R11: =IF(AND(INDIRECT("formatieoverzicht!Z"&(N3+4))=1,INDIRECT("formatieoverzicht!AF"&(N3+4))=1),lesurenberekening!E13,IF(AND(INDIRECT("formatieoverzicht!Z"&(N3+4))=1,INDIRECT("formatieoverzicht!AF"&(N3+4))=2),lesurenberekening!I13,IF(AND(INDIRECT("formatieoverzicht!Z"&(N3+4))=1,INDIRECT("formatieoverzicht!AF"&(N3+4))=3),lesurenberekening!M13,IF(AND(INDIRECT("formatieoverzicht!Z"&(N3+4))=3,INDIRECT("formatieoverzicht!AF"&(N3+4))=1),lesurenberekening!E13,IF(AND(INDIRECT("formatieoverzicht!Z"&(N3+4))=3,INDIRECT("formatieoverzicht!AF"&(N3+4))=2),lesurenberekening!I13,IF(AND(INDIRECT("formatieoverzicht!Z"&(N3+4))=3,INDIRECT("formatieoverzicht!AF"&(N3+4))=3),lesurenberekening!M13,0)))))) -> 0.1458333333 | T11: =IF(AND(INDIRECT("formatieoverzicht!AA"&(N3+4))=1,INDIRECT("formatieoverzicht!AF"&(N3+4))=1),lesurenberekening!G13,IF(AND(INDIRECT("formatieoverzicht!AA"&(N3+4))=1,INDIRECT("formatieoverzicht!AF"&(N3+4))=2),lesurenberekening!K13,IF(AND(INDIRECT("formatieoverzicht!AA"&(N3+4))=1,INDIRECT("formatieoverzicht!AF"&(N3+4))=3),lesurenberekening!O13,IF(AND(INDIRECT("formatieoverzicht!AA"&(N3+4))=3,INDIRECT("formatieoverzicht!AF"&(N3+4))=1),lesurenberekening!G13,IF(AND(INDIRECT("formatieoverzicht!AA"&(N3+4))=3,INDIRECT("formatieoverzicht!AF"&(N3+4))=2),lesurenberekening!K13,IF(AND(INDIRECT("formatieoverzicht!AA"&(N3+4))=3,INDIRECT("formatieoverzicht!AF"&(N3+4))=3),lesurenberekening!O13,0)))))) -> 0 | V11: =H11+J11 -> 0.25
C12: donderdag | D12: =IF(INDIRECT("formatieoverzicht!AB"&(N3+4))=2,"A","") ->  | E12: =R12 -> 0 | F12: =IF(INDIRECT("formatieoverzicht!AC"&(N3+4))=2,"A","") ->  | G12: =T12 -> 0 | H12: =IF(INDIRECT("formatieoverzicht!AB"&(N3+4))>0,lesurenberekening!E101,0) -> 0 | I12: =V12 -> 0 | J12: =IF(INDIRECT("formatieoverzicht!AC"&(N3+4))>0,lesurenberekening!G101,0) -> 0 | R12: =IF(AND(INDIRECT("formatieoverzicht!AB"&(N3+4))=1,INDIRECT("formatieoverzicht!AF"&(N3+4))=1),lesurenberekening!E14,IF(AND(INDIRECT("formatieoverzicht!AB"&(N3+4))=1,INDIRECT("formatieoverzicht!AF"&(N3+4))=2),lesurenberekening!I14,IF(AND(INDIRECT("formatieoverzicht!AB"&(N3+4))=1,INDIRECT("formatieoverzicht!AF"&(N3+4))=3),lesurenberekening!M14,IF(AND(INDIRECT("formatieoverzicht!AB"&(N3+4))=3,INDIRECT("formatieoverzicht!AF"&(N3+4))=1),lesurenberekening!E14,IF(AND(INDIRECT("formatieoverzicht!AB"&(N3+4))=3,INDIRECT("formatieoverzicht!AF"&(N3+4))=2),lesurenberekening!I14,IF(AND(INDIRECT("formatieoverzicht!AB"&(N3+4))=3,INDIRECT("formatieoverzicht!AF"&(N3+4))=3),lesurenberekening!M14,0)))))) -> 0 | T12: =IF(AND(INDIRECT("formatieoverzicht!AC"&(N3+4))=1,INDIRECT("formatieoverzicht!AF"&(N3+4))=1),lesurenberekening!G14,IF(AND(INDIRECT("formatieoverzicht!AC"&(N3+4))=1,INDIRECT("formatieoverzicht!AF"&(N3+4))=2),lesurenberekening!K14,IF(AND(INDIRECT("formatieoverzicht!AC"&(N3+4))=1,INDIRECT("formatieoverzicht!AF"&(N3+4))=3),lesurenberekening!O14,IF(AND(INDIRECT("formatieoverzicht!AC"&(N3+4))=3,INDIRECT("formatieoverzicht!AF"&(N3+4))=1),lesurenberekening!G14,IF(AND(INDIRECT("formatieoverzicht!AC"&(N3+4))=3,INDIRECT("formatieoverzicht!AF"&(N3+4))=2),lesurenberekening!K14,IF(AND(INDIRECT("formatieoverzicht!AC"&(N3+4))=3,INDIRECT("formatieoverzicht!AF"&(N3+4))=3),lesurenberekening!O14,0)))))) -> 0 | V12: =H12+J12 -> 0
C13: vrijdag | D13: =IF(INDIRECT("formatieoverzicht!AD"&(N3+4))=2,"A","") ->  | E13: =R13 -> 0.1354166667 | F13: =IF(INDIRECT("formatieoverzicht!AE"&(N3+4))=2,"A","") ->  | G13: =T13 -> 0.08333333333 | H13: =IF(INDIRECT("formatieoverzicht!AD"&(N3+4))>0,lesurenberekening!E102,0) -> 0.2083333333 | I13: =V13 -> 0.3541666667 | J13: =IF(INDIRECT("formatieoverzicht!AE"&(N3+4))>0,lesurenberekening!G102,0) -> 0.1458333333 | K13: ingezet uit spaarsaldo | L13: + | M13: =INDIRECT("formatieoverzicht!M"&(4+N3)) -> 0 | P13: In rubriek A staat voor ambulante dagdelen een A. | R13: =IF(AND(INDIRECT("formatieoverzicht!AD"&(N3+4))=1,INDIRECT("formatieoverzicht!AF"&(N3+4))=1),lesurenberekening!E15,IF(AND(INDIRECT("formatieoverzicht!AD"&(N3+4))=1,INDIRECT("formatieoverzicht!AF"&(N3+4))=2),lesurenberekening!I15,IF(AND(INDIRECT("formatieoverzicht!AD"&(N3+4))=1,INDIRECT("formatieoverzicht!AF"&(N3+4))=3),lesurenberekening!M15,IF(AND(INDIRECT("formatieoverzicht!AD"&(N3+4))=3,INDIRECT("formatieoverzicht!AF"&(N3+4))=1),lesurenberekening!E15,IF(AND(INDIRECT("formatieoverzicht!AD"&(N3+4))=3,INDIRECT("formatieoverzicht!AF"&(N3+4))=2),lesurenberekening!I15,IF(AND(INDIRECT("formatieoverzicht!AD"&(N3+4))=3,INDIRECT("formatieoverzicht!AF"&(N3+4))=3),lesurenberekening!M15,0)))))) -> 0.1354166667 | T13: =IF(AND(INDIRECT("formatieoverzicht!AE"&(N3+4))=1,INDIRECT("formatieoverzicht!AF"&(N3+4))=1),lesurenberekening!G15,IF(AND(INDIRECT("formatieoverzicht!AE"&(N3+4))=1,INDIRECT("formatieoverzicht!AF"&(N3+4))=2),lesurenberekening!K15,IF(AND(INDIRECT("formatieoverzicht!AE"&(N3+4))=1,INDIRECT("formatieoverzicht!AF"&(N3+4))=3),lesurenberekening!O15,IF(AND(INDIRECT("formatieoverzicht!AE"&(N3+4))=3,INDIRECT("formatieoverzicht!AF"&(N3+4))=1),lesurenberekening!G15,IF(AND(INDIRECT("formatieoverzicht!AE"&(N3+4))=3,INDIRECT("formatieoverzicht!AF"&(N3+4))=2),lesurenberekening!K15,IF(AND(INDIRECT("formatieoverzicht!AE"&(N3+4))=3,INDIRECT("formatieoverzicht!AF"&(N3+4))=3),lesurenberekening!O15,0)))))) -> 0.08333333333 | V13: =H13+J13 -> 0.3541666667
K14: beschikbaar | M14: =M10+M11+M12+M13 -> 32 | N14: =SUM(N10:N13) -> 0 | P14: Indien noodzakelijk, kunnen in rubriek A de les- en arbeidsuren hand-
P15: matig worden aangepast. Klik op de resetknop eronder om de standaard-
G16: reset uren | K16: opgenomen verlof d.i. | M16: =INDIRECT("formatieoverzicht!O"&(4+N3)) -> 0 | P16: tijden en de koppeling met het werkblad lesurenberekening te herstellen.
C17: ingeroosterd per week | E17: =E9+G9+E10+G10+E11+G11+E12+G12+E13+G13 -> 0.8020833333 | I17: =SUM(I9:I13) -> 1.3125 | K17: waarvan lesuren | N17: =ROUND(MaxLestaak/1659*M16,0) -> 0
C18: in 52 weken | E18: =52*E17 -> 41.70833333 | I18: =52*I17 -> 68.25 | K18: sparen* | L18: _ | M18: =INDIRECT("formatieoverzicht!P"&(4+N3)) -> 0 | P18: E + F
B19: =WEEKDAY(CONCATENATE(C19,G4)) -> 1900-01-04 | C19: 29 september | D19: =IF(MOD(G4,4)=0,WEEKDAY(CONCATENATE(C19,G4),2),0) -> 0 | E19: =IF(D19=1,E9+G9,IF(D19=2,E10+G10,IF(D19=3,E11+G11,IF(D19=4,E12+G12,IF(D19=5,E13+G13,0))))) -> 0 | F19: (in schrikkeljaar) | I19: =IF(D19=1,I9,IF(D19=2,I10,IF(D19=3,I11,IF(D19=4,I12,IF(D19=5,I13,0))))) -> 0 | K19: over na aftrek verlof | M19: =INDIRECT("formatieoverzicht!T"&(4+N3)) -> 32 | P19: Hier kunnen de dagen en uren worden ingevuld waarop het teamlid nog
B20: =WEEKDAY(CONCATENATE(C20,G4)) -> 1900-01-05 | C20: 30 september | D20: =WEEKDAY(CONCATENATE(C20,G4),2) -> 4 | E20: =IF(D20=1,E9+G9,IF(D20=2,E10+G10,IF(D20=3,E11+G11,IF(D20=4,E12+G12,IF(D20=5,E13+G13,0))))) -> 0 | F20: + | H20: + | I20: =IF(D20=1,I9,IF(D20=2,I10,IF(D20=3,I11,IF(D20=4,I12,IF(D20=5,I13,0))))) -> 0 | P20: individueel wordt uit- of ingeroosterd.
C21: totaal A | E21: =E18+E19+E20 -> 41.70833333 | I21: =I18+I19+I20 -> 68.25 | K21: ="spaarsaldo eind "&lesurenberekening!E5-1&"/"&lesurenberekening!G5-1 -> spaarsaldo eind 2025/2026 | M21: =INDIRECT("formatieoverzicht!U"&(4+N3)) -> 0
B22: B hele vakantieweken | E22: lesuren | G22: datum | I22: arbeidsuren | P22: Vul alle kolommen handmatig in. Denk om de dubbele punt achter de
K23: * Sparen tot 57 jr. : max. 3 jaar; vanaf 57 jr.: max. 5 jaar | P23: uren. Wanneer is afgesproken een aantal dagen door te werken in één
C24: herfstvakantie | D24: =lesurenberekening!D25 -> 1 | E24: =E17*D24 -> 0.8020833333 | G24: =lesurenberekening!E25 -> 17-10-26 | I24: =I17*D24 -> 1.3125 | K24: H ingeroosterde arbeidsuren | M24: wtf 1,0: | N24: =jaartaak -> 1659 | P24: of meer vakantieweken, vul je in F het totaal van die arbeidsuren in.
C25: kerstvakantie | D25: =lesurenberekening!D26 -> 2 | E25: =E17*D25 -> 1.604166667 | G25: =lesurenberekening!E26 -> 19-12-26 | I25: =I17*D25 -> 2.625 | O25: Volgens het inrooster- percentage voltijders
C26: voorjaarsvakantie | D26: =lesurenberekening!D27 -> 1 | E26: =E17*D26 -> 0.8020833333 | G26: =lesurenberekening!E27 -> 20-2-27 | I26: =I17*D26 -> 1.3125 | K26: bruto arbeidsduur (wtf x 1659) | M26: =ROUND(K5*jaartaak,0) -> 1327 | P26: Wanneer je hier bij meerdere teamleden hetzelfde moet invullen, kun je
C27: meivakantie | D27: =lesurenberekening!D28 -> 2 | E27: =E17*D27 -> 1.604166667 | G27: =lesurenberekening!E28 -> 24-4-27 | I27: =I17*D27 -> 2.625 | K27: opgenomen verlof d.i. | L27: _ | M27: =M16 -> 0 | P27: dat op meerdere teamlidbladen tegelijk in één keer invullen.
C28: =lesurenberekening!C29 -> 0 | D28: =lesurenberekening!D29 -> 0 | E28: =E17*D28 -> 0 | G28: =lesurenberekening!E29 -> 00:00:00 | I28: =I17*D28 -> 0 | K28: netto arbeidsduur | M28: =M26-M27 -> 1327
C29: zomervakantie | D29: =lesurenberekening!D30 -> 6 | E29: =E17*D29 -> 4.8125 | G29: =lesurenberekening!E30 -> 17-7-27 | I29: =I17*D29 -> 7.875 | K29: ingeroosterd: (A + F) - (B t/m E) | M29: =ROUND(((I21+I73)-(I30+I43+I55+I64))*24,0) -> 1260 | O29: =ROUND(O31*M28,0) -> 1274 | P29: G
C30: totaal af B | E30: =SUM(E24:E29) -> 9.625 | I30: =SUM(I24:I29) -> 15.75 | K30: =IF(lesurenberekening!E117="ja","verschil","") -> verschil | M30: =IF(lesurenberekening!E117="ja",(M29-M28),0) -> -67 | O30: =IF(O29<>0,O29-M28,0) -> -53 | P30: Het aantal lesuren dat een verlof PDI bevat is gebaseerd op artikel
B31: C hele vakantie (v) - of studiedagen (s) | E31: lesuren | G31: datum | I31: arbeidsuren | K31: =IF(lesurenberekening!E117="ja","inroosteringspercentage", "") -> inroosteringspercentage | M31: =ROUND(IF(lesurenberekening!E117="ja",IF(M28>0,M29/M28*100,0),0),1) -> 95 | N31: =IF(lesurenberekening!E117="ja","%","") -> % | O31: =lesurenberekening!E112*100&" %" -> 96 % | P31: 9.6 lid 6 (CAO-PO 2024). Het PDI-deel professionalisering blijft dus even
B32: =lesurenberekening!B34 -> 2027-03-26 | C32: =IF(lesurenberekening!C34="","",lesurenberekening!C34) -> goede vrijdag | D32: =lesurenberekening!D34 -> v | E32: =(INDIRECT("E"&8+F32)+INDIRECT("G"&8+F32)) -> 0.21875 | F32: =WEEKDAY(G32,2) -> 5 | G32: =lesurenberekening!E34 -> 2027-03-26 | I32: =IF(D32="v",INDIRECT("I"&8+F32),0) -> 0.3541666667 | P32: groot als vóór de verlofopname.
B33: =lesurenberekening!B35 -> 2027-05-06 | C33: =IF(lesurenberekening!C35="","",lesurenberekening!C35) -> hemelvaartsdag | D33: =lesurenberekening!D35 -> v | E33: =(INDIRECT("E"&8+F33)+INDIRECT("G"&8+F33)) -> 0 | F33: =WEEKDAY(G33,2) -> 4 | G33: =lesurenberekening!E35 -> 2027-05-06 | I33: =IF(D33="v",INDIRECT("I"&8+F33),0) -> 0 | K33: I ingeroosterde lesuren | M33: wtf 1,0: | N33: =MaxLestaak -> 940
B34: =lesurenberekening!B36 -> 2027-05-07 | C34: =IF(lesurenberekening!C36="","",lesurenberekening!C36) -> vrijdag na hemelvaartsdag | D34: =lesurenberekening!D36 -> v | E34: =(INDIRECT("E"&8+F34)+INDIRECT("G"&8+F34)) -> 0.21875 | F34: 5 | G34: =lesurenberekening!E36 -> 2027-05-07 | I34: =IF(D34="v",INDIRECT("I"&8+F34),0) -> 0.3541666667 | P34: H + I
B35: =lesurenberekening!B37 -> 2027-05-17 | C35: =IF(lesurenberekening!C37="","",lesurenberekening!C37) -> 2e pinksterdag | D35: =lesurenberekening!D37 -> v | E35: 0.21875 | F35: 1 | G35: =lesurenberekening!E37 -> 2027-05-17 | I35: 0.3541666667 | K35: maximale lestaak vlg. wtf | M35: =ROUND(K5*MaxLestaak,0) -> 752 | P35: De weergave van het inroosterverschil en het inroosterpercentage kan
B36: =lesurenberekening!B38 -> 2027-07-16 | C36: =IF(lesurenberekening!C38="","",lesurenberekening!C38) -> laatste dag voor zomervakantie | D36: =lesurenberekening!D38 -> v | E36: 0.21875 | F36: 5 | G36: =lesurenberekening!E38 -> 2027-07-16 | I36: 0.3541666667 | K36: lesuren opgenomen verlof d.i. | L36: _ | M36: =N17 -> 0 | P36: in rubriek G op het eerste werkblad Lesurenberekening aan of uit
B37: =lesurenberekening!B39 -> 2027-03-25 | C37: =IF(lesurenberekening!C39="","",lesurenberekening!C39) -> studiedag 1 | D37: =lesurenberekening!D39 -> s | E37: 0 | F37: 4 | G37: =lesurenberekening!E39 -> 2027-03-25 | I37: 0 | K37: netto maximale lestaak | M37: =M35-M36 -> 752 | P37: worden gezet.
B38: =lesurenberekening!B40 -> 2027-04-27 | C38: =IF(lesurenberekening!C40="","",lesurenberekening!C40) -> studiedag 2 | D38: =lesurenberekening!D40 -> s | E38: 0.21875 | F38: 2 | G38: =lesurenberekening!E40 -> 2027-04-27 | I38: 0 | K38: ingeroosterd: (A + F) - (B t/m E) | L38: _ | M38: =ROUND(((E21+E73)-(E30+E43+E55+E64))*24,0) -> 744
B39: =lesurenberekening!B41 ->  | C39: =IF(lesurenberekening!C41="","",lesurenberekening!C41) ->  | D39: =lesurenberekening!D41 -> 0 | E39: 0 | F39: 6 | G39: =lesurenberekening!E41 -> 00:00:00 | I39: 0 | K39: =IF(lesurenberekening!E117="ja","verschil","") -> verschil | M39: =IF(lesurenberekening!E118="ja",M38-M37,"") -> -8 | P39: Wanneer in rubriek G (instellingen) op het eerste werkblad Lesuren-
B40: =lesurenberekening!B42 ->  | C40: =IF(lesurenberekening!C42="","",lesurenberekening!C42) ->  | D40: =lesurenberekening!D42 -> 0 | E40: 0 | F40: 6 | G40: =lesurenberekening!E42 -> 00:00:00 | I40: 0 | K40: =IF(lesurenberekening!E118="ja"," inroosteringspercentage","") -> inroosteringspercentage | M40: =ROUND(IF(lesurenberekening!E118="ja",IF(M37>0,M38/M37*100,0),0),1) -> 98.9 | N40: =IF(lesurenberekening!E118="ja","%","") -> % | P40: berekening het inroosteringspercentage van de voltijders is ingevuld,
B41: =lesurenberekening!B43 ->  | C41: =IF(lesurenberekening!C43="","",lesurenberekening!C43) ->  | D41: =lesurenberekening!D43 -> 0 | E41: 0 | F41: 6 | G41: =lesurenberekening!E43 -> 00:00:00 | I41: 0 | P41: wordt naast rubriek H ter referentie het daaraan evenredig aantal in te
B42: =lesurenberekening!B44 ->  | C42: =IF(lesurenberekening!C44="","",lesurenberekening!C44) ->  | D42: =lesurenberekening!D44 -> 0 | E42: 0 | F42: 6 | G42: =lesurenberekening!E44 -> 00:00:00 | I42: 0 | K42: J opbouw ingeroosterde jaartaak | N42: =IF(M52>0,"na verlof-opname", "") ->  | P42: roosteren arbeidsuren getoond.
C43: totaal af C | E43: =SUM(E32:E42) -> 1.09375 | I43: =SUM(I32:I42) -> 1.416666667
B44: D overige dagdelen en uren | E44: lesuren | G44: datum | I44: arbeidsuren | K44: =IF(M58>0,"Inzet spaarsaldo PDI-budget","") ->  | M44: =M58 -> 0 | N44: =IF(M52>0,M58,0) -> 0 | O44: =IF(M52>0,N44,M44) -> 0 | P44: J
B45: =IF(G45="","",G45) -> 00:00:00 | C45: =lesurenberekening!C48 -> 0 | D45: =IF(G$7=1,lesurenberekening!G48,IF(G$7=2,lesurenberekening!I48,IF(G$7=3,lesurenberekening!K48,0))) -> 0 | E45: =IF((INDIRECT("E"&8+F45)+INDIRECT("G"&8+F45))<>0,D45,0) -> 0 | F45: =WEEKDAY(G45,2) -> 6 | G45: =lesurenberekening!E48 -> 00:00:00 | I45: =IF(AND(INDIRECT("I"&8+F45)<>0,E45<>0),lesurenberekening!O48,0) -> 0 | K45: PDI-budget dit schooljaar | M45: =IF(M52=0,(ROUND(K5*professionalisering,0)+M19)-M59,ROUND(K5*professionalisering,0)+M19) -> 98 | N45: =IF(M52>0,ROUND((N50/M50)*M45,0)-M59,0) -> 0 | O45: =IF(M52>0,N45,M45) -> 98 | P45: overige & ambulante (functie)taken
B46: =IF(G46="","",G46) -> 00:00:00 | C46: =lesurenberekening!C49 -> 0 | D46: =IF(G$7=1,lesurenberekening!G49,IF(G$7=2,lesurenberekening!I49,IF(G$7=3,lesurenberekening!K49,0))) -> 0 | E46: =IF((INDIRECT("E"&8+F46)+INDIRECT("G"&8+F46))<>0,D46,0) -> 0 | F46: =WEEKDAY(G46,2) -> 6 | G46: =lesurenberekening!E49 -> 00:00:00 | I46: =IF(AND(INDIRECT("I"&8+F46)<>0,E46<>0),lesurenberekening!O49,0) -> 0 | K46: ingeroosterde lestaak | M46: =M38 -> 744 | O46: =M46 -> 744 | P46: Wanneer er sprake is van ambulante uren, zal het aantal uren dat over-
B47: =IF(G47="","",G47) -> 00:00:00 | C47: =lesurenberekening!C50 -> 0 | D47: =IF(G$7=1,lesurenberekening!G50,IF(G$7=2,lesurenberekening!I50,IF(G$7=3,lesurenberekening!K50,0))) -> 0 | E47: =IF((INDIRECT("E"&8+F47)+INDIRECT("G"&8+F47))<>0,D47,0) -> 0 | F47: 6 | G47: =lesurenberekening!E50 -> 00:00:00 | I47: =IF(AND(INDIRECT("I"&8+F47)<>0,E47<>0),lesurenberekening!O50,0) -> 0 | K47: voor- en nawerk* | M47: =IF(N47=0,ROUND(nawerk*M46,0),ROUND(N47*M46,0)) -> 298 | O47: =M47 -> 298 | P47: blijft voor de overige taken groter zijn. Onderaan rubriek K kan
B48: 00:00:00 | C48: =lesurenberekening!C51 -> 0 | D48: =IF(G$7=1,lesurenberekening!G51,IF(G$7=2,lesurenberekening!I51,IF(G$7=3,lesurenberekening!K51,0))) -> 0 | E48: 0 | F48: 6 | G48: =lesurenberekening!E51 -> 00:00:00 | I48: =IF(AND(INDIRECT("I"&8+F48)<>0,E48<>0),lesurenberekening!O51,0) -> 0 | K48: =IF(COUNTIF(D9:F13,"A")>0,"overige & amb. taken","overige taken") -> overige taken | M48: =M50-(M44+M45+M46+M47) -> 187 | N48: =IF(M52>0,ROUND((N50/M50)*M48,0),M48) -> 187 | O48: =IF(M52>0,N48,M48) -> 187 | P48: het aantal uren voor de ambulante taken worden ingevuld; de over-
B49: 00:00:00 | C49: =lesurenberekening!C52 -> 0 | D49: =IF(G$7=1,lesurenberekening!G52,IF(G$7=2,lesurenberekening!I52,IF(G$7=3,lesurenberekening!K52,0))) -> 0 | E49: 0 | F49: 6 | G49: =lesurenberekening!E52 -> 00:00:00 | I49: =IF(AND(INDIRECT("I"&8+F49)<>0,E49<>0),lesurenberekening!O52,0) -> 0 | O49: =M48 -> 187 | P49: blijvende uren gaan dan naar de overige taken (zie rubriek C, pag. 2).
B50: =IF(G50="","",G50) -> 00:00:00 | C50: =lesurenberekening!C53 -> 0 | D50: =IF(G$7=1,lesurenberekening!G53,IF(G$7=2,lesurenberekening!I53,IF(G$7=3,lesurenberekening!K53,0))) -> 0 | E50: =IF((INDIRECT("E"&8+F50)+INDIRECT("G"&8+F50))<>0,D50,0) -> 0 | F50: 6 | G50: =lesurenberekening!E53 -> 00:00:00 | I50: =IF(AND(INDIRECT("I"&8+F50)<>0,E50<>0),lesurenberekening!O53,0) -> 0 | K50: netto arbeidsduur | M50: =M28 -> 1327 | N50: =IF(M52>0,(M50-M52),0) -> 0
B51: =IF(G51="","",G51) -> 00:00:00 | C51: =lesurenberekening!C54 -> 0 | D51: =IF(G$7=1,lesurenberekening!G54,IF(G$7=2,lesurenberekening!I54,IF(G$7=3,lesurenberekening!K54,0))) -> 0 | E51: 0 | F51: 6 | G51: =lesurenberekening!E54 -> 00:00:00 | I51: =IF(AND(INDIRECT("I"&8+F51)<>0,E51<>0),lesurenberekening!O54,0) -> 0 | P51: verlofopname
B52: =IF(G52="","",G52) -> 00:00:00 | C52: =lesurenberekening!C55 -> 0 | D52: =IF(G$7=1,lesurenberekening!G55,IF(G$7=2,lesurenberekening!I55,IF(G$7=3,lesurenberekening!K55,0))) -> 0 | E52: 0 | F52: 6 | G52: =lesurenberekening!E55 -> 00:00:00 | I52: =IF(AND(INDIRECT("I"&8+F52)<>0,E52<>0),lesurenberekening!O55,0) -> 0 | K52: opname overig verlof dit schooljaar: | P52: Dit vakje mag slechts in bepaalde gevallen worden ingevuld. Klik op de
B53: =IF(G53="","",G53) -> 00:00:00 | C53: =lesurenberekening!C56 -> 0 | D53: =IF(G$7=1,lesurenberekening!G56,IF(G$7=2,lesurenberekening!I56,IF(G$7=3,lesurenberekening!K56,0))) -> 0 | E53: 0 | F53: 6 | G53: =lesurenberekening!E56 -> 00:00:00 | I53: =IF(AND(INDIRECT("I"&8+F53)<>0,E53<>0),lesurenberekening!O56,0) -> 0 | P53: icoon of houd de muisaanwijzer boven de tooltip voor meer informatie.
B54: 00:00:00 | C54: =lesurenberekening!C57 -> 0 | D54: =IF(G$7=1,lesurenberekening!G57,IF(G$7=2,lesurenberekening!I57,IF(G$7=3,lesurenberekening!K57,0))) -> 0 | E54: 0 | F54: 6 | G54: =lesurenberekening!E57 -> 00:00:00 | I54: =IF(AND(INDIRECT("I"&8+F54)<>0,E54<>0),lesurenberekening!O57,0) -> 0 | K54: *afgesproken reguliere opslagfactor: | N54: =nawerk -> 0.4
C55: totaal af D | E55: =SUM(E45:E54) -> 0 | I55: =SUM(I45:I54) -> 0 | K55: K PDI-budget en overige taken(zie inzet op pag. 2) | P55: voor- en nawerk
B56: E individueel uitgeroosterd | E56: lesuren | G56: datum | I56: arbeidsuren | K56: sparen PDI-budget | P56: In dit vakje kan een afwijkende individuele opslagfactor worden inge-
K57: Spaarsaldo eind vorig schooljaar | P57: vuld. Dit kan een grótere factor zijn bij beginnnende leerkrachten, of
K58: Inzet uit spaarsaldo in dit schooljaar | P58: juist een kleinere bij OOP'ers met lesondersteunende taken indien dat
K59: Te sparen in dit schooljaar | P59: is afgesproken.
K60: Spaarsaldo eind van dit schooljaar | M60: =(M57+M59)-M58 -> 0
K61: inzet PDI-budget | P61: K
N62: % | P62: Hier zie je in hoeverre de uren van deze twee taakonderdelen al met
K63: beschikbaar | M63: =IF(M52=0,(M44+M45),N44+N45) -> 98 | P63: activiteiten zijn gevuld op de tweede pagina van dit teamlidblad.
C64: totaal af E | E64: =SUM(E57:E63) -> 0 | I64: =SUM(I57:I63) -> 0 | K64: ingevuld | L64: _ | M64: =M109 -> 0 | N64: =IF(M63>0,IF(100,M64/M63*100,0),0) -> 0 | P64: Dit is ook te zien geheel rechts op het Formatieoverzicht.
B65: F individueel ingeroosterd | E65: lesuren | G65: datum | I65: arbeidsuren | K65: =IF(M63<0,"teveel ingepland","nog beschikbaar") -> nog beschikbaar | M65: =IF(M63<M64,0,N110) -> 98 | P65: In deze rubriek kun je ook het spaarsaldo (niet voor verlof) bijhouden en
C66: 3 dagen in zomervakantie | I66: 1.0625 | P66: de inzet uit of de inleg in het spaarsaldo invullen. De inzet van veel
C67: studiedag op donderdag | G67: 2027-03-25 | I67: 0.3541666667 | K67: inzet overige taken | P67: gespaarde uren kan er toe leiden dat er geen of zelfs een negatief aantal
K68: beschikbaar | M68: =N48-M72 -> 187 | P68: overblijft' voor de overige taken. Dit kan dan alleeen worden opgelost
K69: ingevuld | L69: _ | M69: =M156 -> 146 | N69: =IF(M68>0,IF(100,M69/M68*100,0),0) -> 78.07486631 | P69: door zoveel lesuren uit te roosteren dat er een klein minimaal noodzake-
K70: =IF(M70<0,"teveel ingepland","nog beschikbaar") -> nog beschikbaar | M70: =IF(M68<M69,0,N157) -> 41 | P70: lijk aantal uren voor de overige taken overblijft.
K72: ambulante functietaken: | P72: ambulante functietaken
C73: totaal bij F | E73: =SUM(E66:E72) -> 0 | I73: =SUM(I66:I72) -> 1.416666667 | P73: Bij (deels) ambulante teamleden moeten de overblijvende uren verdeeld
B74: opmerkingen | E74: =((E21+E73)-(E30+E43+E55+E64)) -> 30.98958333 | G74: < ingeroosterd > | I74: =((I21+I73)-(I30+I43+I55+I64)) -> 52.5 | P74: worden over de ambulante functietaken en de overige taken.
B75: Deze deeltijder zou nog 1 lesdag kunnen worden ingeroosterd. De studiedag op donderdag is extra ingeroosterd in F. Het inroosterpercentage van de arbeidsuren in werkdagen komt dan in de buurt van die van de voltijders. | P75: Vul, indien van toepassing, hier de uren voor de ambulante taken in, óf
P76: vul de verdeling op pag. 2 in rubriek C in (dus niet in beide tegelijk!).
P78: opmerkingenvak
P79: Druk op Alt+Enter voor een nieuwe regel.
P80: Dubbelklik op het vak wanneer niet de hele tekst zichtbaar is. Alleen het
P81: zichtbare deel wordt afgedrukt.
G82: 2e pagina
B83: OVERZICHT GEPLANDE ACTIVITEITEN PDI EN OVERIGE TAKEN | P83: Teamlidblad 2e pagina
P85: overzicht van geplande activiteiten en uren p.d.i. en overige taken
C86: schooljaar | E86: =E4 -> 2026 | F86: / | G86: =G4 -> 2027 | H86: naam: | K86: =K3 -> Berndsen, Theo (deeltijder) | P86: Op deze pagina worden de geplande activiteiten en uren ingevuld.
P87: Een regel moet aan de linkerkant geselecteerd worden om in te vullen.
B88: A | C88: PDI-budget | K88: beschikbaar: | M88: uren | N88: =M63 -> 98 | P88: De uren worden hier als gewone hele getallen ingevoerd zonder
B89: 1 | P89: dubbele punt.
B90: 2
B91: 3 | P91: invoerformulier voor de activiteiten
B92: 4 | P92: Voor het maken van overzichten is het noodzakelijk dat activiteiten
B93: 5 | P93: uniform gespeld worden. Bovendien worden de overzichten gemaakt
B94: 6 | P94: op basis van de drie lijsten (zie de drie tabs onderaan het scherm).
B95: 7 | P95: Voer activiteiten daarom altijd zoveel mogelijk in via het activiteiten-
B96: 8 | P96: invoerformulier. Je roept dit formulier op door op een willekeurige plek
B97: 9 | P97: op de nummerrij te klikken.
B98: 10
B99: 11
B100: 12 | P100: HET ACTIVITEITENINVOERFORMULIER
B101: 13
B102: 14 | P102: Onderstaande informatie vind je ook door op de informatie-icoontjes op
B103: 15 | P103: het invoerformulier te klikken.
B104: 16
B105: 17 | P105: Lijstitem aan teamblad toevoegen
B106: 18 | P106: > Roep het formulier op door op de nummerrij te klikken en selecteer in
B107: 19 | P107: het vak Lijstkeuze de betreffende lijst.
B108: 20 | P108: > Klik op het pijltje aan het eind van de lege regel; de lijst verschijnt.
K109: totaal: | M109: =SUM(M89:M108) -> 0 | P109: > Selecteer een activiteit en klik in het vak Teamblad rubr. A of B de
N110: =N88-M109 -> 98 | P110: rubriek waaraan je de activiteit wilt toevoegen.
P111: >Klik op Toevoegen aan Teamlidblad (het aantal uren kan worden gewij-
P112: zigd, maar moet wel altijd zijn ingevuld).
P114: Nieuwe items aan een lijst én het teamlidblad toevoegen
P115: Nieuwe activiteiten kunnen gelijktijdig aan een lijst én aan een rubriek
P116: op het teamlidblad worden toegevoegd:
P117: > Selecteer in het vak Lijstkeuze een lijst en vul op de lege regel een
P118: activiteit + uren in.
P119: > Klik vervolgens op Toevoegen aan Lijst.
B120: B | C120: =K48 -> overige taken | K120: beschikbaar: | N120: =M68 -> 187 | P120: > Selecteer daarna in het vak daaronder de betreffende rubriek en
B121: 1 | C121: Afscheidsavond groep 8 | M121: 3 | P121: tenslotte op Toevoegen aan Teamlidblad.
B122: 2 | C122: Algemene ouderavond | M122: 2
B123: 3 | C123: Begeleiding Pabo studenten | M123: 12 | P123: De lijsten kunnen ook direct op de lijst zelf worden ingevuld. Aangeleg-
B124: 4 | C124: BHV en EHBO | M124: 5 | P124: de lijsten kunnen bij het ingebruiknemen van een nieuwe planner uit de
B125: 5 | C125: Bouwvergaderingen 4 x 1:30 uur | M125: 6 | P125: oude planner met enkele muisklikken geïmporteerd worden.
B126: 6 | C126: Coördinator Antipestbeleid | M126: 20
B127: 7 | C127: Feest Sintviering | M127: 15 | P127: sortering
B128: 8 | C128: Kerstviering | M128: 3 | P128: Bij gebruik van het invoerformulier worden de items automatisch
B129: 9 | C129: Schoolverlatersactiviteiten | M129: 10 | P129: gesorteerd. Sorteer bij rechtstreeks invullen door op de sorteerpijlen
B130: 10 | C130: Studiedagen 2 x 5 uur | M130: 10 | P130: bovenaan de pagina te klikken.
B131: 11 | C131: Teamvergaderingen 10 x 1:30 uur | M131: 15
B132: 12 | C132: werkgroep Sportactiviteiten en Koningsdag | M132: 10 | P132: overzicht per activiteit
B133: 13 | C133: Werkgroep Taal en Lezen | M133: 20 | P133: Met het invoerformulier kan ook een overzicht worden gemaakt van de
B134: 14 | C134: Werkgroep Wereldorientatie | M134: 15 | P134: teamleden die eenzelfde activiteit gemeen hebben:
B135: 15 | P135: > Kies een lijst en een activiteit.
B136: 16 | P136: > Klik nu op de knop Teamoverzicht.
B137: 17 | P137: > Het overzicht wordt onderaan de gekozen lijst getoond.
B138: 18
B139: 19 | P139: overzicht van alle activiteiten overige taken van alle teamleden
B140: 20 | P140: Op het werkblad act.overzicht kun je een totaaloverzicht maken van alle
B141: 21 | P141: activiteiten en teamleden. Een leeg overzicht met alleen activiteiten kun je
B142: 22 | P142: aan het begin van het werkverdelingstraject als intekenlijst voor de overige
B143: 23 | P143: taken gebruiken.
B144: 24
B145: 25 | P145: Let op:
B146: 26 | P146: De op deze pagina vermelde activiteiten en uren zijn een specificatie
B147: 27 | P147: van de op de eerste pagina berekende uren voor deze twee taak-
B148: 28 | P148: onderdelen. Er mogen dus nooit méér uren worden ingepland dan er
B149: 29 | P149: beschikbaar zijn. Het aantal teveel ingeplande uren wordt in het rood
B150: 30 | P150: afgedrukt en mag niet genegeerd worden.
B151: 31
B152: 32
B153: 33
B154: 34
B155: 35
K156: totaal : | M156: =SUM(M121:M155) -> 146
K157: Nog beschikbaar: | N157: =N120-M156 -> 41

Sheet 3
B2: =lesurenberekening!I5 -> Voorbeelden | P2: toelichting teamlidblad OP en OOP met lesondersteunende taken
H3: naam: | K3: =INDIRECT("formatieoverzicht!C"&(4+N3)) -> Clingenhove, Birgit van (verlof d.i.) | N3: =MID(CELL("bestandsnaam",A1),SEARCH("]",CELL("bestandsnaam",A1),1)+1,99) -> 3
E4: =lesurenberekening!E5 -> 2026 | F4: / | G4: =lesurenberekening!G5 -> 2027 | H4: aanstelling: | K4: =INDIRECT("formatieoverzicht!D"&(4+N3)) -> 1.666666667
B5: =INDIRECT("formatieoverzicht!AR"&(4+N3)) -> 0 | H5: wtf: | K5: =INDIRECT("formatieoverzicht!E"&(4+N3)) -> 1 | P5: Klik op dit icoon voor meer informatie
B6: OVERZICHT IN- EN UITGEROOSTERDE LES- EN ARBEIDSUREN | K6: OVERZICHT GEPLANDE JAARTAAK
B7: A jaartotaal les- en arbeidsuren | E7: lestijd bouw: | G7: =INDIRECT("formatieoverzicht!"&"AF"&N3+4) -> 1 | I7: arbeidsuren | K7: G PDI-budget duurzame inzetbaarheid | P7: Dit teamlidblad is voor het OP en OOP met lesondersteunende en/of | R7: standaardtijden
E8: o | G8: m | P8: behandeltaken zoals een onderwijsassistent of logopedist. | R8: o | T8: m | V8: arb.uren
C9: maandag | D9: =IF(INDIRECT("formatieoverzicht!V"&(N3+4))=2,"A","") ->  | E9: =R9 -> 0.1354166667 | F9: =IF(INDIRECT("formatieoverzicht!W"&(N3+4))=2,"A","") ->  | G9: =T9 -> 0.08333333333 | H9: =IF(INDIRECT("formatieoverzicht!V"&(N3+4))>0,lesurenberekening!E98,0) -> 0.2083333333 | I9: =V9 -> 0.3541666667 | J9: =IF(INDIRECT("formatieoverzicht!W"&(N3+4))>0,lesurenberekening!G98,0) -> 0.1458333333 | M9: vlg. wtf | N9: opname | R9: =IF(AND(INDIRECT("formatieoverzicht!V"&(N3+4))=1,INDIRECT("formatieoverzicht!AF"&(N3+4))=1),lesurenberekening!E11,IF(AND(INDIRECT("formatieoverzicht!V"&(N3+4))=1,INDIRECT("formatieoverzicht!AF"&(N3+4))=2),lesurenberekening!I11,IF(AND(INDIRECT("formatieoverzicht!V"&(N3+4))=1,INDIRECT("formatieoverzicht!AF"&(N3+4))=3),lesurenberekening!M11,IF(AND(INDIRECT("formatieoverzicht!V"&(N3+4))=3,INDIRECT("formatieoverzicht!AF"&(N3+4))=1),lesurenberekening!E11,IF(AND(INDIRECT("formatieoverzicht!V"&(N3+4))=3,INDIRECT("formatieoverzicht!AF"&(N3+4))=2),lesurenberekening!I11,IF(AND(INDIRECT("formatieoverzicht!V"&(N3+4))=3,INDIRECT("formatieoverzicht!AF"&(N3+4))=3),lesurenberekening!M11,0)))))) -> 0.1354166667 | T9: =IF(AND(INDIRECT("formatieoverzicht!W"&(N3+4))=1,INDIRECT("formatieoverzicht!AF"&(N3+4))=1),lesurenberekening!G11,IF(AND(INDIRECT("formatieoverzicht!W"&(N3+4))=1,INDIRECT("formatieoverzicht!AF"&(N3+4))=2),lesurenberekening!K11,IF(AND(INDIRECT("formatieoverzicht!W"&(N3+4))=1,INDIRECT("formatieoverzicht!AF"&(N3+4))=3),lesurenberekening!O11,IF(AND(INDIRECT("formatieoverzicht!W"&(N3+4))=3,INDIRECT("formatieoverzicht!AF"&(N3+4))=1),lesurenberekening!G11,IF(AND(INDIRECT("formatieoverzicht!W"&(N3+4))=3,INDIRECT("formatieoverzicht!AF"&(N3+4))=2),lesurenberekening!K11,IF(AND(INDIRECT("formatieoverzicht!W"&(N3+4))=3,INDIRECT("formatieoverzicht!AF"&(N3+4))=3),lesurenberekening!O11,0)))))) -> 0.08333333333 | V9: =H9+J9 -> 0.3541666667
C10: dinsdag | D10: =IF(INDIRECT("formatieoverzicht!X"&(N3+4))=2,"A","") ->  | E10: =R10 -> 0.1354166667 | F10: =IF(INDIRECT("formatieoverzicht!Y"&(N3+4))=2,"A","") ->  | G10: =T10 -> 0.08333333333 | H10: =IF(INDIRECT("formatieoverzicht!X"&(N3+4))>0,lesurenberekening!E99,0) -> 0.2083333333 | I10: =V10 -> 0.3541666667 | J10: =IF(INDIRECT("formatieoverzicht!Y"&(N3+4))>0,lesurenberekening!G99,0) -> 0.1458333333 | K10: basisbudget | M10: =INDIRECT("formatieoverzicht!J"&(4+N3)) -> 40 | N10: =INDIRECT("formatieoverzicht!Q"&(4+N3)) -> 40 | P10: A t/m D | R10: =IF(AND(INDIRECT("formatieoverzicht!X"&(N3+4))=1,INDIRECT("formatieoverzicht!AF"&(N3+4))=1),lesurenberekening!E12,IF(AND(INDIRECT("formatieoverzicht!X"&(N3+4))=1,INDIRECT("formatieoverzicht!AF"&(N3+4))=2),lesurenberekening!I12,IF(AND(INDIRECT("formatieoverzicht!X"&(N3+4))=1,INDIRECT("formatieoverzicht!AF"&(N3+4))=3),lesurenberekening!M12,IF(AND(INDIRECT("formatieoverzicht!X"&(N3+4))=3,INDIRECT("formatieoverzicht!AF"&(N3+4))=1),lesurenberekening!E12,IF(AND(INDIRECT("formatieoverzicht!X"&(N3+4))=3,INDIRECT("formatieoverzicht!AF"&(N3+4))=2),lesurenberekening!I12,IF(AND(INDIRECT("formatieoverzicht!X"&(N3+4))=3,INDIRECT("formatieoverzicht!AF"&(N3+4))=3),lesurenberekening!M12,0)))))) -> 0.1354166667 | T10: =IF(AND(INDIRECT("formatieoverzicht!Y"&(N3+4))=1,INDIRECT("formatieoverzicht!AF"&(N3+4))=1),lesurenberekening!G12,IF(AND(INDIRECT("formatieoverzicht!Y"&(N3+4))=1,INDIRECT("formatieoverzicht!AF"&(N3+4))=2),lesurenberekening!K12,IF(AND(INDIRECT("formatieoverzicht!Y"&(N3+4))=1,INDIRECT("formatieoverzicht!AF"&(N3+4))=3),lesurenberekening!O12,IF(AND(INDIRECT("formatieoverzicht!Y"&(N3+4))=3,INDIRECT("formatieoverzicht!AF"&(N3+4))=1),lesurenberekening!G12,IF(AND(INDIRECT("formatieoverzicht!Y"&(N3+4))=3,INDIRECT("formatieoverzicht!AF"&(N3+4))=2),lesurenberekening!K12,IF(AND(INDIRECT("formatieoverzicht!Y"&(N3+4))=3,INDIRECT("formatieoverzicht!AF"&(N3+4))=3),lesurenberekening!O12,0)))))) -> 0.08333333333 | V10: =H10+J10 -> 0.3541666667
C11: woensdag | D11: =IF(INDIRECT("formatieoverzicht!Z"&(N3+4))=2,"A","") ->  | E11: =R11 -> 0.1458333333 | F11: =IF(INDIRECT("formatieoverzicht!AA"&(N3+4))=2,"A","") ->  | G11: =T11 -> 0 | H11: =IF(INDIRECT("formatieoverzicht!Z"&(N3+4))>0,lesurenberekening!E100,0) -> 0.25 | I11: =V11 -> 0.25 | J11: =IF(INDIRECT("formatieoverzicht!AA"&(N3+4))>0,lesurenberekening!G100,0) -> 0 | K11: bijzonder budget | M11: =INDIRECT("formatieoverzicht!K"&(4+N3)) -> 130 | N11: =INDIRECT("formatieoverzicht!R"&(4+N3)) -> 130 | P11: In deze rubrieken is alles automatisch berekend. | R11: =IF(AND(INDIRECT("formatieoverzicht!Z"&(N3+4))=1,INDIRECT("formatieoverzicht!AF"&(N3+4))=1),lesurenberekening!E13,IF(AND(INDIRECT("formatieoverzicht!Z"&(N3+4))=1,INDIRECT("formatieoverzicht!AF"&(N3+4))=2),lesurenberekening!I13,IF(AND(INDIRECT("formatieoverzicht!Z"&(N3+4))=1,INDIRECT("formatieoverzicht!AF"&(N3+4))=3),lesurenberekening!M13,IF(AND(INDIRECT("formatieoverzicht!Z"&(N3+4))=3,INDIRECT("formatieoverzicht!AF"&(N3+4))=1),lesurenberekening!E13,IF(AND(INDIRECT("formatieoverzicht!Z"&(N3+4))=3,INDIRECT("formatieoverzicht!AF"&(N3+4))=2),lesurenberekening!I13,IF(AND(INDIRECT("formatieoverzicht!Z"&(N3+4))=3,INDIRECT("formatieoverzicht!AF"&(N3+4))=3),lesurenberekening!M13,0)))))) -> 0.1458333333 | T11: =IF(AND(INDIRECT("formatieoverzicht!AA"&(N3+4))=1,INDIRECT("formatieoverzicht!AF"&(N3+4))=1),lesurenberekening!G13,IF(AND(INDIRECT("formatieoverzicht!AA"&(N3+4))=1,INDIRECT("formatieoverzicht!AF"&(N3+4))=2),lesurenberekening!K13,IF(AND(INDIRECT("formatieoverzicht!AA"&(N3+4))=1,INDIRECT("formatieoverzicht!AF"&(N3+4))=3),lesurenberekening!O13,IF(AND(INDIRECT("formatieoverzicht!AA"&(N3+4))=3,INDIRECT("formatieoverzicht!AF"&(N3+4))=1),lesurenberekening!G13,IF(AND(INDIRECT("formatieoverzicht!AA"&(N3+4))=3,INDIRECT("formatieoverzicht!AF"&(N3+4))=2),lesurenberekening!K13,IF(AND(INDIRECT("formatieoverzicht!AA"&(N3+4))=3,INDIRECT("formatieoverzicht!AF"&(N3+4))=3),lesurenberekening!O13,0)))))) -> 0 | V11: =H11+J11 -> 0.25
C12: donderdag | D12: =IF(INDIRECT("formatieoverzicht!AB"&(N3+4))=2,"A","") ->  | E12: =R12 -> 0.1354166667 | F12: =IF(INDIRECT("formatieoverzicht!AC"&(N3+4))=2,"A","") ->  | G12: =T12 -> 0.08333333333 | H12: =IF(INDIRECT("formatieoverzicht!AB"&(N3+4))>0,lesurenberekening!E101,0) -> 0.2083333333 | I12: =V12 -> 0.3541666667 | J12: =IF(INDIRECT("formatieoverzicht!AC"&(N3+4))>0,lesurenberekening!G101,0) -> 0.1458333333 | R12: =IF(AND(INDIRECT("formatieoverzicht!AB"&(N3+4))=1,INDIRECT("formatieoverzicht!AF"&(N3+4))=1),lesurenberekening!E14,IF(AND(INDIRECT("formatieoverzicht!AB"&(N3+4))=1,INDIRECT("formatieoverzicht!AF"&(N3+4))=2),lesurenberekening!I14,IF(AND(INDIRECT("formatieoverzicht!AB"&(N3+4))=1,INDIRECT("formatieoverzicht!AF"&(N3+4))=3),lesurenberekening!M14,IF(AND(INDIRECT("formatieoverzicht!AB"&(N3+4))=3,INDIRECT("formatieoverzicht!AF"&(N3+4))=1),lesurenberekening!E14,IF(AND(INDIRECT("formatieoverzicht!AB"&(N3+4))=3,INDIRECT("formatieoverzicht!AF"&(N3+4))=2),lesurenberekening!I14,IF(AND(INDIRECT("formatieoverzicht!AB"&(N3+4))=3,INDIRECT("formatieoverzicht!AF"&(N3+4))=3),lesurenberekening!M14,0)))))) -> 0.1354166667 | T12: =IF(AND(INDIRECT("formatieoverzicht!AC"&(N3+4))=1,INDIRECT("formatieoverzicht!AF"&(N3+4))=1),lesurenberekening!G14,IF(AND(INDIRECT("formatieoverzicht!AC"&(N3+4))=1,INDIRECT("formatieoverzicht!AF"&(N3+4))=2),lesurenberekening!K14,IF(AND(INDIRECT("formatieoverzicht!AC"&(N3+4))=1,INDIRECT("formatieoverzicht!AF"&(N3+4))=3),lesurenberekening!O14,IF(AND(INDIRECT("formatieoverzicht!AC"&(N3+4))=3,INDIRECT("formatieoverzicht!AF"&(N3+4))=1),lesurenberekening!G14,IF(AND(INDIRECT("formatieoverzicht!AC"&(N3+4))=3,INDIRECT("formatieoverzicht!AF"&(N3+4))=2),lesurenberekening!K14,IF(AND(INDIRECT("formatieoverzicht!AC"&(N3+4))=3,INDIRECT("formatieoverzicht!AF"&(N3+4))=3),lesurenberekening!O14,0)))))) -> 0.08333333333 | V12: =H12+J12 -> 0.3541666667
C13: vrijdag | D13: =IF(INDIRECT("formatieoverzicht!AD"&(N3+4))=2,"A","") ->  | E13: =R13 -> 0.1354166667 | F13: =IF(INDIRECT("formatieoverzicht!AE"&(N3+4))=2,"A","") ->  | G13: =T13 -> 0 | H13: =IF(INDIRECT("formatieoverzicht!AD"&(N3+4))>0,lesurenberekening!E102,0) -> 0.2083333333 | I13: =V13 -> 0.2083333333 | J13: =IF(INDIRECT("formatieoverzicht!AE"&(N3+4))>0,lesurenberekening!G102,0) -> 0 | K13: ingezet uit spaarsaldo | L13: + | M13: =INDIRECT("formatieoverzicht!M"&(4+N3)) -> 0 | P13: In rubriek A staat voor ambulante dagdelen een A. | R13: =IF(AND(INDIRECT("formatieoverzicht!AD"&(N3+4))=1,INDIRECT("formatieoverzicht!AF"&(N3+4))=1),lesurenberekening!E15,IF(AND(INDIRECT("formatieoverzicht!AD"&(N3+4))=1,INDIRECT("formatieoverzicht!AF"&(N3+4))=2),lesurenberekening!I15,IF(AND(INDIRECT("formatieoverzicht!AD"&(N3+4))=1,INDIRECT("formatieoverzicht!AF"&(N3+4))=3),lesurenberekening!M15,IF(AND(INDIRECT("formatieoverzicht!AD"&(N3+4))=3,INDIRECT("formatieoverzicht!AF"&(N3+4))=1),lesurenberekening!E15,IF(AND(INDIRECT("formatieoverzicht!AD"&(N3+4))=3,INDIRECT("formatieoverzicht!AF"&(N3+4))=2),lesurenberekening!I15,IF(AND(INDIRECT("formatieoverzicht!AD"&(N3+4))=3,INDIRECT("formatieoverzicht!AF"&(N3+4))=3),lesurenberekening!M15,0)))))) -> 0.1354166667 | T13: =IF(AND(INDIRECT("formatieoverzicht!AE"&(N3+4))=1,INDIRECT("formatieoverzicht!AF"&(N3+4))=1),lesurenberekening!G15,IF(AND(INDIRECT("formatieoverzicht!AE"&(N3+4))=1,INDIRECT("formatieoverzicht!AF"&(N3+4))=2),lesurenberekening!K15,IF(AND(INDIRECT("formatieoverzicht!AE"&(N3+4))=1,INDIRECT("formatieoverzicht!AF"&(N3+4))=3),lesurenberekening!O15,IF(AND(INDIRECT("formatieoverzicht!AE"&(N3+4))=3,INDIRECT("formatieoverzicht!AF"&(N3+4))=1),lesurenberekening!G15,IF(AND(INDIRECT("formatieoverzicht!AE"&(N3+4))=3,INDIRECT("formatieoverzicht!AF"&(N3+4))=2),lesurenberekening!K15,IF(AND(INDIRECT("formatieoverzicht!AE"&(N3+4))=3,INDIRECT("formatieoverzicht!AF"&(N3+4))=3),lesurenberekening!O15,0)))))) -> 0 | V13: =H13+J13 -> 0.2083333333
K14: beschikbaar | M14: =M10+M11+M12+M13 -> 170 | N14: =SUM(N10:N13) -> 170 | P14: Indien noodzakelijk, kunnen in rubriek A de les- en arbeidsuren hand-
P15: matig worden aangepast. Klik op de resetknop eronder om de standaard-
G16: reset uren | K16: opgenomen verlof d.i. | M16: =INDIRECT("formatieoverzicht!O"&(4+N3)) -> 170 | P16: tijden en de koppeling met het werkblad lesurenberekening te herstellen.
C17: ingeroosterd per week | E17: =E9+G9+E10+G10+E11+G11+E12+G12+E13+G13 -> 0.9375 | I17: =SUM(I9:I13) -> 1.520833333 | K17: waarvan lesuren | N17: =ROUND(MaxLestaak/1659*M16,0) -> 96
C18: in 52 weken | E18: =52*E17 -> 48.75 | I18: =52*I17 -> 79.08333333 | K18: sparen* | L18: _ | M18: =INDIRECT("formatieoverzicht!P"&(4+N3)) -> 0 | P18: E + F
B19: =WEEKDAY(CONCATENATE(C19,G4)) -> 1900-01-04 | C19: 29 september | D19: =IF(MOD(G4,4)=0,WEEKDAY(CONCATENATE(C19,G4),2),0) -> 0 | E19: =IF(D19=1,E9+G9,IF(D19=2,E10+G10,IF(D19=3,E11+G11,IF(D19=4,E12+G12,IF(D19=5,E13+G13,0))))) -> 0 | F19: (in schrikkeljaar) | I19: =IF(D19=1,I9,IF(D19=2,I10,IF(D19=3,I11,IF(D19=4,I12,IF(D19=5,I13,0))))) -> 0 | K19: over na aftrek verlof | M19: =INDIRECT("formatieoverzicht!T"&(4+N3)) -> 0 | P19: Hier kunnen de dagen en uren worden ingevuld waarop het teamlid nog
B20: =WEEKDAY(CONCATENATE(C20,G4)) -> 1900-01-05 | C20: 30 september | D20: =WEEKDAY(CONCATENATE(C20,G4),2) -> 4 | E20: =IF(D20=1,E9+G9,IF(D20=2,E10+G10,IF(D20=3,E11+G11,IF(D20=4,E12+G12,IF(D20=5,E13+G13,0))))) -> 0.21875 | F20: + | H20: + | I20: =IF(D20=1,I9,IF(D20=2,I10,IF(D20=3,I11,IF(D20=4,I12,IF(D20=5,I13,0))))) -> 0.3541666667 | P20: individueel wordt uit- of ingeroosterd.
C21: totaal A | E21: =E18+E19+E20 -> 48.96875 | I21: =I18+I19+I20 -> 79.4375 | K21: ="spaarsaldo eind "&lesurenberekening!E5-1&"/"&lesurenberekening!G5-1 -> spaarsaldo eind 2025/2026 | M21: =INDIRECT("formatieoverzicht!U"&(4+N3)) -> 0
B22: B hele vakantieweken | E22: lesuren | G22: datum | I22: arbeidsuren | P22: Vul alle kolommen handmatig in. Denk om de dubbele punt achter de
K23: * Sparen tot 57 jr. : max. 3 jaar; vanaf 57 jr.: max. 5 jaar | P23: uren. Wanneer is afgesproken een aantal dagen door te werken in één
C24: herfstvakantie | D24: =lesurenberekening!D25 -> 1 | E24: =E17*D24 -> 0.9375 | G24: =lesurenberekening!E25 -> 17-10-26 | I24: =I17*D24 -> 1.520833333 | K24: H ingeroosterde arbeidsuren | M24: wtf 1,0: | N24: =jaartaak -> 1659 | P24: of meer vakantieweken, vul je in F het totaal van die arbeidsuren in.
C25: kerstvakantie | D25: =lesurenberekening!D26 -> 2 | E25: =E17*D25 -> 1.875 | G25: =lesurenberekening!E26 -> 19-12-26 | I25: =I17*D25 -> 3.041666667 | O25: Volgens het inrooster- percentage voltijders
C26: voorjaarsvakantie | D26: =lesurenberekening!D27 -> 1 | E26: =E17*D26 -> 0.9375 | G26: =lesurenberekening!E27 -> 20-2-27 | I26: =I17*D26 -> 1.520833333 | K26: bruto arbeidsduur (wtf x 1659) | M26: =ROUND(K5*jaartaak,0) -> 1659 | P26: Wanneer je hier bij meerdere teamleden hetzelfde moet invullen, kun je
C27: meivakantie | D27: =lesurenberekening!D28 -> 2 | E27: =E17*D27 -> 1.875 | G27: =lesurenberekening!E28 -> 24-4-27 | I27: =I17*D27 -> 3.041666667 | K27: opgenomen verlof d.i. | L27: _ | M27: =M16 -> 170 | P27: dat op meerdere teamlidbladen tegelijk in één keer invullen.
C28: =lesurenberekening!C29 -> 0 | D28: =lesurenberekening!D29 -> 0 | E28: =E17*D28 -> 0 | G28: =lesurenberekening!E29 -> 00:00:00 | I28: =I17*D28 -> 0 | K28: netto arbeidsduur | M28: =M26-M27 -> 1489
C29: zomervakantie | D29: =lesurenberekening!D30 -> 6 | E29: =E17*D29 -> 5.625 | G29: =lesurenberekening!E30 -> 17-7-27 | I29: =I17*D29 -> 9.125 | K29: ingeroosterd: (A + F) - (B t/m E) | M29: =ROUND(((I21+I73)-(I30+I43+I55+I64))*24,0) -> 1432 | O29: =ROUND(O31*M28,0) -> 1429 | P29: G
C30: totaal af B | E30: =SUM(E24:E29) -> 11.25 | I30: =SUM(I24:I29) -> 18.25 | K30: =IF(lesurenberekening!E117="ja","verschil","") -> verschil | M30: =IF(lesurenberekening!E117="ja",(M29-M28),0) -> -57 | O30: =IF(O29<>0,O29-M28,0) -> -60 | P30: Het aantal lesuren dat een verlof PDI bevat is gebaseerd op artikel
B31: C hele vakantie (v) - of studiedagen (s) | E31: lesuren | G31: datum | I31: arbeidsuren | K31: =IF(lesurenberekening!E117="ja","inroosteringspercentage", "") -> inroosteringspercentage | M31: =ROUND(IF(lesurenberekening!E117="ja",IF(M28>0,M29/M28*100,0),0),1) -> 96.2 | N31: =IF(lesurenberekening!E117="ja","%","") -> % | O31: =lesurenberekening!E112*100&" %" -> 96 % | P31: 9.6 lid 6 (CAO-PO 2024). Het PDI-deel professionalisering blijft dus even
B32: =lesurenberekening!B34 -> 2027-03-26 | C32: =IF(lesurenberekening!C34="","",lesurenberekening!C34) -> goede vrijdag | D32: =lesurenberekening!D34 -> v | E32: =(INDIRECT("E"&8+F32)+INDIRECT("G"&8+F32)) -> 0.1354166667 | F32: =WEEKDAY(G32,2) -> 5 | G32: =lesurenberekening!E34 -> 2027-03-26 | I32: =IF(D32="v",INDIRECT("I"&8+F32),0) -> 0.2083333333 | P32: groot als vóór de verlofopname.
B33: =lesurenberekening!B35 -> 2027-05-06 | C33: =IF(lesurenberekening!C35="","",lesurenberekening!C35) -> hemelvaartsdag | D33: =lesurenberekening!D35 -> v | E33: =(INDIRECT("E"&8+F33)+INDIRECT("G"&8+F33)) -> 0.21875 | F33: =WEEKDAY(G33,2) -> 4 | G33: =lesurenberekening!E35 -> 2027-05-06 | I33: =IF(D33="v",INDIRECT("I"&8+F33),0) -> 0.3541666667 | K33: I ingeroosterde lesuren | M33: wtf 1,0: | N33: =MaxLestaak -> 940
B34: =lesurenberekening!B36 -> 2027-05-07 | C34: =IF(lesurenberekening!C36="","",lesurenberekening!C36) -> vrijdag na hemelvaartsdag | D34: =lesurenberekening!D36 -> v | E34: =(INDIRECT("E"&8+F34)+INDIRECT("G"&8+F34)) -> 0.1354166667 | F34: 5 | G34: =lesurenberekening!E36 -> 2027-05-07 | I34: =IF(D34="v",INDIRECT("I"&8+F34),0) -> 0.2083333333 | P34: H + I
B35: =lesurenberekening!B37 -> 2027-05-17 | C35: =IF(lesurenberekening!C37="","",lesurenberekening!C37) -> 2e pinksterdag | D35: =lesurenberekening!D37 -> v | E35: 0.21875 | F35: 1 | G35: =lesurenberekening!E37 -> 2027-05-17 | I35: 0.3541666667 | K35: maximale lestaak vlg. wtf | M35: =ROUND(K5*MaxLestaak,0) -> 940 | P35: De weergave van het inroosterverschil en het inroosterpercentage kan
B36: =lesurenberekening!B38 -> 2027-07-16 | C36: =IF(lesurenberekening!C38="","",lesurenberekening!C38) -> laatste dag voor zomervakantie | D36: =lesurenberekening!D38 -> v | E36: 0.1354166667 | F36: 5 | G36: =lesurenberekening!E38 -> 2027-07-16 | I36: 0.2083333333 | K36: lesuren opgenomen verlof d.i. | L36: _ | M36: =N17 -> 96 | P36: in rubriek G op het eerste werkblad Lesurenberekening aan of uit
B37: =lesurenberekening!B39 -> 2027-03-25 | C37: =IF(lesurenberekening!C39="","",lesurenberekening!C39) -> studiedag 1 | D37: =lesurenberekening!D39 -> s | E37: 0.21875 | F37: 4 | G37: =lesurenberekening!E39 -> 2027-03-25 | I37: 0 | K37: netto maximale lestaak | M37: =M35-M36 -> 844 | P37: worden gezet.
B38: =lesurenberekening!B40 -> 2027-04-27 | C38: =IF(lesurenberekening!C40="","",lesurenberekening!C40) -> studiedag 2 | D38: =lesurenberekening!D40 -> s | E38: 0.21875 | F38: 2 | G38: =lesurenberekening!E40 -> 2027-04-27 | I38: 0 | K38: ingeroosterd: (A + F) - (B t/m E) | L38: _ | M38: =ROUND(((E21+E73)-(E30+E43+E55+E64))*24,0) -> 845
B39: =lesurenberekening!B41 ->  | C39: =IF(lesurenberekening!C41="","",lesurenberekening!C41) ->  | D39: =lesurenberekening!D41 -> 0 | E39: 0 | F39: 6 | G39: =lesurenberekening!E41 -> 00:00:00 | I39: 0 | K39: =IF(lesurenberekening!E117="ja","verschil","") -> verschil | M39: =IF(lesurenberekening!E118="ja",M38-M37,"") -> 1 | P39: Wanneer in rubriek G (instellingen) op het eerste werkblad Lesuren-
B40: =lesurenberekening!B42 ->  | C40: =IF(lesurenberekening!C42="","",lesurenberekening!C42) ->  | D40: =lesurenberekening!D42 -> 0 | E40: 0 | F40: 6 | G40: =lesurenberekening!E42 -> 00:00:00 | I40: 0 | K40: =IF(lesurenberekening!E118="ja"," inroosteringspercentage","") -> inroosteringspercentage | M40: =ROUND(IF(lesurenberekening!E118="ja",IF(M37>0,M38/M37*100,0),0),1) -> 100.1 | N40: =IF(lesurenberekening!E118="ja","%","") -> % | P40: berekening het inroosteringspercentage van de voltijders is ingevuld,
B41: =lesurenberekening!B43 ->  | C41: =IF(lesurenberekening!C43="","",lesurenberekening!C43) ->  | D41: =lesurenberekening!D43 -> 0 | E41: 0 | F41: 6 | G41: =lesurenberekening!E43 -> 00:00:00 | I41: 0 | P41: wordt naast rubriek H ter referentie het daaraan evenredig aantal in te
B42: =lesurenberekening!B44 ->  | C42: =IF(lesurenberekening!C44="","",lesurenberekening!C44) ->  | D42: =lesurenberekening!D44 -> 0 | E42: 0 | F42: 6 | G42: =lesurenberekening!E44 -> 00:00:00 | I42: 0 | K42: J opbouw ingeroosterde jaartaak | N42: =IF(M52>0,"na verlof-opname", "") ->  | P42: roosteren arbeidsuren getoond.
C43: totaal af C | E43: =SUM(E32:E42) -> 1.28125 | I43: =SUM(I32:I42) -> 1.333333333
B44: D overige dagdelen en uren | E44: lesuren | G44: datum | I44: arbeidsuren | K44: =IF(M58>0,"Inzet spaarsaldo PDI-budget","") ->  | M44: =M58 -> 0 | N44: =IF(M52>0,M58,0) -> 0 | O44: =IF(M52>0,N44,M44) -> 0 | P44: J
B45: =IF(G45="","",G45) -> 00:00:00 | C45: =lesurenberekening!C48 -> 0 | D45: =IF(G$7=1,lesurenberekening!G48,IF(G$7=2,lesurenberekening!I48,IF(G$7=3,lesurenberekening!K48,0))) -> 0 | E45: =IF((INDIRECT("E"&8+F45)+INDIRECT("G"&8+F45))<>0,D45,0) -> 0 | F45: =WEEKDAY(G45,2) -> 6 | G45: =lesurenberekening!E48 -> 00:00:00 | I45: =IF(AND(INDIRECT("I"&8+F45)<>0,E45<>0),lesurenberekening!O48,0) -> 0 | K45: PDI-budget dit schooljaar | M45: =IF(M52=0,(ROUND(K5*professionalisering,0)+M19)-M59,ROUND(K5*professionalisering,0)+M19) -> 83 | N45: =IF(M52>0,ROUND((N50/M50)*M45,0)-M59,0) -> 0 | O45: =IF(M52>0,N45,M45) -> 83 | P45: overige & ambulante (functie)taken
B46: =IF(G46="","",G46) -> 00:00:00 | C46: =lesurenberekening!C49 -> 0 | D46: =IF(G$7=1,lesurenberekening!G49,IF(G$7=2,lesurenberekening!I49,IF(G$7=3,lesurenberekening!K49,0))) -> 0 | E46: =IF((INDIRECT("E"&8+F46)+INDIRECT("G"&8+F46))<>0,D46,0) -> 0 | F46: =WEEKDAY(G46,2) -> 6 | G46: =lesurenberekening!E49 -> 00:00:00 | I46: =IF(AND(INDIRECT("I"&8+F46)<>0,E46<>0),lesurenberekening!O49,0) -> 0 | K46: ingeroosterde lestaak | M46: =M38 -> 845 | O46: =M46 -> 845 | P46: Wanneer er sprake is van ambulante uren, zal het aantal uren dat over-
B47: =IF(G47="","",G47) -> 00:00:00 | C47: =lesurenberekening!C50 -> 0 | D47: =IF(G$7=1,lesurenberekening!G50,IF(G$7=2,lesurenberekening!I50,IF(G$7=3,lesurenberekening!K50,0))) -> 0 | E47: =IF((INDIRECT("E"&8+F47)+INDIRECT("G"&8+F47))<>0,D47,0) -> 0 | F47: 6 | G47: =lesurenberekening!E50 -> 00:00:00 | I47: =IF(AND(INDIRECT("I"&8+F47)<>0,E47<>0),lesurenberekening!O50,0) -> 0 | K47: voor- en nawerk* | M47: =IF(N47=0,ROUND(nawerk*M46,0),ROUND(N47*M46,0)) -> 338 | O47: =M47 -> 338 | P47: blijft voor de overige taken groter zijn. Onderaan rubriek K kan
B48: 00:00:00 | C48: =lesurenberekening!C51 -> 0 | D48: =IF(G$7=1,lesurenberekening!G51,IF(G$7=2,lesurenberekening!I51,IF(G$7=3,lesurenberekening!K51,0))) -> 0 | E48: 0 | F48: 6 | G48: =lesurenberekening!E51 -> 00:00:00 | I48: =IF(AND(INDIRECT("I"&8+F48)<>0,E48<>0),lesurenberekening!O51,0) -> 0 | K48: =IF(COUNTIF(D9:F13,"A")>0,"overige & amb. taken","overige taken") -> overige taken | M48: =M50-(M44+M45+M46+M47) -> 223 | N48: =IF(M52>0,ROUND((N50/M50)*M48,0),M48) -> 223 | O48: =IF(M52>0,N48,M48) -> 223 | P48: het aantal uren voor de ambulante taken worden ingevuld; de over-
B49: 00:00:00 | C49: =lesurenberekening!C52 -> 0 | D49: =IF(G$7=1,lesurenberekening!G52,IF(G$7=2,lesurenberekening!I52,IF(G$7=3,lesurenberekening!K52,0))) -> 0 | E49: 0 | F49: 6 | G49: =lesurenberekening!E52 -> 00:00:00 | I49: =IF(AND(INDIRECT("I"&8+F49)<>0,E49<>0),lesurenberekening!O52,0) -> 0 | O49: =M48 -> 223 | P49: blijvende uren gaan dan naar de overige taken (zie rubriek C, pag. 2).
B50: =IF(G50="","",G50) -> 00:00:00 | C50: =lesurenberekening!C53 -> 0 | D50: =IF(G$7=1,lesurenberekening!G53,IF(G$7=2,lesurenberekening!I53,IF(G$7=3,lesurenberekening!K53,0))) -> 0 | E50: =IF((INDIRECT("E"&8+F50)+INDIRECT("G"&8+F50))<>0,D50,0) -> 0 | F50: 6 | G50: =lesurenberekening!E53 -> 00:00:00 | I50: =IF(AND(INDIRECT("I"&8+F50)<>0,E50<>0),lesurenberekening!O53,0) -> 0 | K50: netto arbeidsduur | M50: =M28 -> 1489 | N50: =IF(M52>0,(M50-M52),0) -> 0
B51: =IF(G51="","",G51) -> 00:00:00 | C51: =lesurenberekening!C54 -> 0 | D51: =IF(G$7=1,lesurenberekening!G54,IF(G$7=2,lesurenberekening!I54,IF(G$7=3,lesurenberekening!K54,0))) -> 0 | E51: 0 | F51: 6 | G51: =lesurenberekening!E54 -> 00:00:00 | I51: =IF(AND(INDIRECT("I"&8+F51)<>0,E51<>0),lesurenberekening!O54,0) -> 0 | P51: verlofopname
B52: =IF(G52="","",G52) -> 00:00:00 | C52: =lesurenberekening!C55 -> 0 | D52: =IF(G$7=1,lesurenberekening!G55,IF(G$7=2,lesurenberekening!I55,IF(G$7=3,lesurenberekening!K55,0))) -> 0 | E52: 0 | F52: 6 | G52: =lesurenberekening!E55 -> 00:00:00 | I52: =IF(AND(INDIRECT("I"&8+F52)<>0,E52<>0),lesurenberekening!O55,0) -> 0 | K52: opname overig verlof dit schooljaar: | P52: Dit vakje mag slechts in bepaalde gevallen worden ingevuld. Klik op de
B53: =IF(G53="","",G53) -> 00:00:00 | C53: =lesurenberekening!C56 -> 0 | D53: =IF(G$7=1,lesurenberekening!G56,IF(G$7=2,lesurenberekening!I56,IF(G$7=3,lesurenberekening!K56,0))) -> 0 | E53: 0 | F53: 6 | G53: =lesurenberekening!E56 -> 00:00:00 | I53: =IF(AND(INDIRECT("I"&8+F53)<>0,E53<>0),lesurenberekening!O56,0) -> 0 | P53: icoon of houd de muisaanwijzer boven de tooltip voor meer informatie.
B54: 00:00:00 | C54: =lesurenberekening!C57 -> 0 | D54: =IF(G$7=1,lesurenberekening!G57,IF(G$7=2,lesurenberekening!I57,IF(G$7=3,lesurenberekening!K57,0))) -> 0 | E54: 0 | F54: 6 | G54: =lesurenberekening!E57 -> 00:00:00 | I54: =IF(AND(INDIRECT("I"&8+F54)<>0,E54<>0),lesurenberekening!O57,0) -> 0 | K54: *afgesproken reguliere opslagfactor: | N54: =nawerk -> 0.4
C55: totaal af D | E55: =SUM(E45:E54) -> 0 | I55: =SUM(I45:I54) -> 0 | K55: K PDI-budget en overige taken(zie inzet op pag. 2) | P55: voor- en nawerk
B56: E individueel uitgeroosterd | E56: lesuren | G56: datum | I56: arbeidsuren | K56: sparen PDI-budget | P56: In dit vakje kan een afwijkende individuele opslagfactor worden inge-
C57: 6 vrijdagochtenden vrij | E57: 0.8125 | I57: 1.25 | K57: Spaarsaldo eind vorig schooljaar | P57: vuld. Dit kan een grótere factor zijn bij beginnnende leerkrachten, of
C58: 3 vrijdagochtenden geen les | E58: 0.40625 | K58: Inzet uit spaarsaldo in dit schooljaar | P58: juist een kleinere bij OOP'ers met lesondersteunende taken indien dat
K59: Te sparen in dit schooljaar | P59: is afgesproken.
K60: Spaarsaldo eind van dit schooljaar | M60: =(M57+M59)-M58 -> 0
K61: inzet PDI-budget | P61: K
N62: % | P62: Hier zie je in hoeverre de uren van deze twee taakonderdelen al met
K63: beschikbaar | M63: =IF(M52=0,(M44+M45),N44+N45) -> 83 | P63: activiteiten zijn gevuld op de tweede pagina van dit teamlidblad.
C64: totaal af E | E64: =SUM(E57:E63) -> 1.21875 | I64: =SUM(I57:I63) -> 1.25 | K64: ingevuld | L64: _ | M64: =M109 -> 0 | N64: =IF(M63>0,IF(100,M64/M63*100,0),0) -> 0 | P64: Dit is ook te zien geheel rechts op het Formatieoverzicht.
B65: F individueel ingeroosterd | E65: lesuren | G65: datum | I65: arbeidsuren | K65: =IF(M63<0,"teveel ingepland","nog beschikbaar") -> nog beschikbaar | M65: =IF(M63<M64,0,N110) -> 83 | P65: In deze rubriek kun je ook het spaarsaldo (niet voor verlof) bijhouden en
C66: 3 dagen in zomervakantie | I66: 1.0625 | P66: de inzet uit of de inleg in het spaarsaldo invullen. De inzet van veel
K67: inzet overige taken | P67: gespaarde uren kan er toe leiden dat er geen of zelfs een negatief aantal
K68: beschikbaar | M68: =N48-M72 -> 223 | P68: overblijft' voor de overige taken. Dit kan dan alleeen worden opgelost
K69: ingevuld | L69: _ | M69: =M156 -> 182 | N69: =IF(M68>0,IF(100,M69/M68*100,0),0) -> 81.61434978 | P69: door zoveel lesuren uit te roosteren dat er een klein minimaal noodzake-
K70: =IF(M70<0,"teveel ingepland","nog beschikbaar") -> nog beschikbaar | M70: =IF(M68<M69,0,N157) -> 41 | P70: lijk aantal uren voor de overige taken overblijft.
K72: ambulante functietaken: | P72: ambulante functietaken
C73: totaal bij F | E73: =SUM(E66:E72) -> 0 | I73: =SUM(I66:I72) -> 1.0625 | P73: Bij (deels) ambulante teamleden moeten de overblijvende uren verdeeld
B74: opmerkingen | E74: =((E21+E73)-(E30+E43+E55+E64)) -> 35.21875 | G74: < ingeroosterd > | I74: =((I21+I73)-(I30+I43+I55+I64)) -> 59.66666667 | P74: worden over de ambulante functietaken en de overige taken.
B75: Deze voltijder neemt het PDI-verlof op vrijdagmiddag op en was daarmee nog 31 lesuren en ongeveer 30 arbeidsuren (op basis van 96%) teveel ingeroosterd. Om net als toen zij nog voltijder was op rond de 96% aan ingeroosterde werkdagen uit te komen, zijn in E nog 6 vrijdagochtend helemaal vrijgeroosterd. Door daarnaast nog 3 vrijdagochtenden alleen van lesuren uit te roosteren ( niet vrij) werd ook de maximale lestaak nagenoeg exact ingeroosterd. Door bij voltijders die het PDI-verlof opnemen uit te gaan van 96% van de ingeroosterde arbeidsuren in werkdagen, zal het verlof van 170 uur nagenoeg geheel kunnen worden opgenomen. | P75: Vul, indien van toepassing, hier de uren voor de ambulante taken in, óf
P76: vul de verdeling op pag. 2 in rubriek C in (dus niet in beide tegelijk!).
P78: opmerkingenvak
P79: Druk op Alt+Enter voor een nieuwe regel.
P80: Dubbelklik op het vak wanneer niet de hele tekst zichtbaar is. Alleen het
P81: zichtbare deel wordt afgedrukt.
G82: 2e pagina
B83: OVERZICHT GEPLANDE ACTIVITEITEN PDI EN OVERIGE TAKEN | P83: Teamlidblad 2e pagina
P85: overzicht van geplande activiteiten en uren p.d.i. en overige taken
C86: schooljaar | E86: =E4 -> 2026 | F86: / | G86: =G4 -> 2027 | H86: naam: | K86: =K3 -> Clingenhove, Birgit van (verlof d.i.) | P86: Op deze pagina worden de geplande activiteiten en uren ingevuld.
P87: Een regel moet aan de linkerkant geselecteerd worden om in te vullen.
B88: A | C88: PDI-budget | K88: beschikbaar: | M88: uren | N88: =M63 -> 83 | P88: De uren worden hier als gewone hele getallen ingevoerd zonder
B89: 1 | P89: dubbele punt.
B90: 2
B91: 3 | P91: invoerformulier voor de activiteiten
B92: 4 | P92: Voor het maken van overzichten is het noodzakelijk dat activiteiten
B93: 5 | P93: uniform gespeld worden. Bovendien worden de overzichten gemaakt
B94: 6 | P94: op basis van de drie lijsten (zie de drie tabs onderaan het scherm).
B95: 7 | P95: Voer activiteiten daarom altijd zoveel mogelijk in via het activiteiten-
B96: 8 | P96: invoerformulier. Je roept dit formulier op door op een willekeurige plek
B97: 9 | P97: op de nummerrij te klikken.
B98: 10
B99: 11
B100: 12 | P100: HET ACTIVITEITENINVOERFORMULIER
B101: 13
B102: 14 | P102: Onderstaande informatie vind je ook door op de informatie-icoontjes op
B103: 15 | P103: het invoerformulier te klikken.
B104: 16
B105: 17 | P105: Lijstitem aan teamblad toevoegen
B106: 18 | P106: > Roep het formulier op door op de nummerrij te klikken en selecteer in
B107: 19 | P107: het vak Lijstkeuze de betreffende lijst.
B108: 20 | P108: > Klik op het pijltje aan het eind van de lege regel; de lijst verschijnt.
K109: totaal: | M109: =SUM(M89:M108) -> 0 | P109: > Selecteer een activiteit en klik in het vak Teamblad rubr. A of B de
N110: =N88-M109 -> 83 | P110: rubriek waaraan je de activiteit wilt toevoegen.
P111: >Klik op Toevoegen aan Teamlidblad (het aantal uren kan worden gewij-
P112: zigd, maar moet wel altijd zijn ingevuld).
P114: Nieuwe items aan een lijst én het teamlidblad toevoegen
P115: Nieuwe activiteiten kunnen gelijktijdig aan een lijst én aan een rubriek
P116: op het teamlidblad worden toegevoegd:
P117: > Selecteer in het vak Lijstkeuze een lijst en vul op de lege regel een
P118: activiteit + uren in.
P119: > Klik vervolgens op Toevoegen aan Lijst.
B120: B | C120: =K48 -> overige taken | K120: beschikbaar: | N120: =M68 -> 223 | P120: > Selecteer daarna in het vak daaronder de betreffende rubriek en
B121: 1 | C121: Afscheidsavond groep 8 | M121: 3 | P121: tenslotte op Toevoegen aan Teamlidblad.
B122: 2 | C122: Algemene ouderavond | M122: 2
B123: 3 | C123: Begeleiding Pabo studenten | M123: 12 | P123: De lijsten kunnen ook direct op de lijst zelf worden ingevuld. Aangeleg-
B124: 4 | C124: BHV en EHBO | M124: 5 | P124: de lijsten kunnen bij het ingebruiknemen van een nieuwe planner uit de
B125: 5 | C125: Bouwvergaderingen 4 x 1:30 uur | M125: 6 | P125: oude planner met enkele muisklikken geïmporteerd worden.
B126: 6 | C126: Bouwvergaderingen 4 x 1:30 uur | M126: 6
B127: 7 | C127: Coördinator Cultuur | M127: 20 | P127: sortering
B128: 8 | C128: Kamp | M128: 20 | P128: Bij gebruik van het invoerformulier worden de items automatisch
B129: 9 | C129: Kerstviering | M129: 3 | P129: gesorteerd. Sorteer bij rechtstreeks invullen door op de sorteerpijlen
B130: 10 | C130: MR-lid | M130: 20 | P130: bovenaan de pagina te klikken.
B131: 11 | C131: Studiedagen 2 x 5 uur | M131: 10
B132: 12 | C132: Teamvergaderingen 10 x 1:30 uur | M132: 15 | P132: overzicht per activiteit
B133: 13 | C133: werkgroep Gezamenlijke verjaardag | M133: 15 | P133: Met het invoerformulier kan ook een overzicht worden gemaakt van de
B134: 14 | C134: werkgroep Sportactiviteiten en Koningsdag | M134: 10 | P134: teamleden die eenzelfde activiteit gemeen hebben:
B135: 15 | C135: Werkgroep Taal en Lezen | M135: 20 | P135: > Kies een lijst en een activiteit.
B136: 16 | C136: Werkgroep Wereldorientatie | M136: 15 | P136: > Klik nu op de knop Teamoverzicht.
B137: 17 | P137: > Het overzicht wordt onderaan de gekozen lijst getoond.
B138: 18
B139: 19 | P139: overzicht van alle activiteiten overige taken van alle teamleden
B140: 20 | P140: Op het werkblad act.overzicht kun je een totaaloverzicht maken van alle
B141: 21 | P141: activiteiten en teamleden. Een leeg overzicht met alleen activiteiten kun je
B142: 22 | P142: aan het begin van het werkverdelingstraject als intekenlijst voor de overige
B143: 23 | P143: taken gebruiken.
B144: 24
B145: 25 | P145: Let op:
B146: 26 | P146: De op deze pagina vermelde activiteiten en uren zijn een specificatie
B147: 27 | P147: van de op de eerste pagina berekende uren voor deze twee taak-
B148: 28 | P148: onderdelen. Er mogen dus nooit méér uren worden ingepland dan er
B149: 29 | P149: beschikbaar zijn. Het aantal teveel ingeplande uren wordt in het rood
B150: 30 | P150: afgedrukt en mag niet genegeerd worden.
B151: 31
B152: 32
B153: 33
B154: 34
B155: 35
K156: totaal : | M156: =SUM(M121:M155) -> 182
K157: Nog beschikbaar: | N157: =N120-M156 -> 41

Sheet 4
B2: =lesurenberekening!I5 -> Voorbeelden | P2: toelichting teamlidblad OP en OOP met lesondersteunende taken
H3: naam: | K3: =INDIRECT("formatieoverzicht!C"&(4+N3)) -> Doornbos, Eric ( wo om en om) | N3: =MID(CELL("bestandsnaam",A1),SEARCH("]",CELL("bestandsnaam",A1),1)+1,99) -> 4
E4: =lesurenberekening!E5 -> 2026 | F4: / | G4: =lesurenberekening!G5 -> 2027 | H4: aanstelling: | K4: =INDIRECT("formatieoverzicht!D"&(4+N3)) -> 0.8333333333
B5: =INDIRECT("formatieoverzicht!AR"&(4+N3)) -> 0 | H5: wtf: | K5: =INDIRECT("formatieoverzicht!E"&(4+N3)) -> 0.5 | P5: Klik op dit icoon voor meer informatie
B6: OVERZICHT IN- EN UITGEROOSTERDE LES- EN ARBEIDSUREN | K6: OVERZICHT GEPLANDE JAARTAAK
B7: A jaartotaal les- en arbeidsuren | E7: lestijd bouw: | G7: =INDIRECT("formatieoverzicht!"&"AF"&N3+4) -> 1 | I7: arbeidsuren | K7: G PDI-budget duurzame inzetbaarheid | P7: Dit teamlidblad is voor het OP en OOP met lesondersteunende en/of | R7: standaardtijden
E8: o | G8: m | P8: behandeltaken zoals een onderwijsassistent of logopedist. | R8: o | T8: m | V8: arb.uren
C9: maandag | D9: =IF(INDIRECT("formatieoverzicht!V"&(N3+4))=2,"A","") ->  | E9: =R9 -> 0.1354166667 | F9: =IF(INDIRECT("formatieoverzicht!W"&(N3+4))=2,"A","") ->  | G9: =T9 -> 0.08333333333 | H9: =IF(INDIRECT("formatieoverzicht!V"&(N3+4))>0,lesurenberekening!E98,0) -> 0.2083333333 | I9: =V9 -> 0.3541666667 | J9: =IF(INDIRECT("formatieoverzicht!W"&(N3+4))>0,lesurenberekening!G98,0) -> 0.1458333333 | M9: vlg. wtf | N9: opname | R9: =IF(AND(INDIRECT("formatieoverzicht!V"&(N3+4))=1,INDIRECT("formatieoverzicht!AF"&(N3+4))=1),lesurenberekening!E11,IF(AND(INDIRECT("formatieoverzicht!V"&(N3+4))=1,INDIRECT("formatieoverzicht!AF"&(N3+4))=2),lesurenberekening!I11,IF(AND(INDIRECT("formatieoverzicht!V"&(N3+4))=1,INDIRECT("formatieoverzicht!AF"&(N3+4))=3),lesurenberekening!M11,IF(AND(INDIRECT("formatieoverzicht!V"&(N3+4))=3,INDIRECT("formatieoverzicht!AF"&(N3+4))=1),lesurenberekening!E11,IF(AND(INDIRECT("formatieoverzicht!V"&(N3+4))=3,INDIRECT("formatieoverzicht!AF"&(N3+4))=2),lesurenberekening!I11,IF(AND(INDIRECT("formatieoverzicht!V"&(N3+4))=3,INDIRECT("formatieoverzicht!AF"&(N3+4))=3),lesurenberekening!M11,0)))))) -> 0.1354166667 | T9: =IF(AND(INDIRECT("formatieoverzicht!W"&(N3+4))=1,INDIRECT("formatieoverzicht!AF"&(N3+4))=1),lesurenberekening!G11,IF(AND(INDIRECT("formatieoverzicht!W"&(N3+4))=1,INDIRECT("formatieoverzicht!AF"&(N3+4))=2),lesurenberekening!K11,IF(AND(INDIRECT("formatieoverzicht!W"&(N3+4))=1,INDIRECT("formatieoverzicht!AF"&(N3+4))=3),lesurenberekening!O11,IF(AND(INDIRECT("formatieoverzicht!W"&(N3+4))=3,INDIRECT("formatieoverzicht!AF"&(N3+4))=1),lesurenberekening!G11,IF(AND(INDIRECT("formatieoverzicht!W"&(N3+4))=3,INDIRECT("formatieoverzicht!AF"&(N3+4))=2),lesurenberekening!K11,IF(AND(INDIRECT("formatieoverzicht!W"&(N3+4))=3,INDIRECT("formatieoverzicht!AF"&(N3+4))=3),lesurenberekening!O11,0)))))) -> 0.08333333333 | V9: =H9+J9 -> 0.3541666667
C10: dinsdag | D10: =IF(INDIRECT("formatieoverzicht!X"&(N3+4))=2,"A","") ->  | E10: =R10 -> 0.1354166667 | F10: =IF(INDIRECT("formatieoverzicht!Y"&(N3+4))=2,"A","") ->  | G10: =T10 -> 0.08333333333 | H10: =IF(INDIRECT("formatieoverzicht!X"&(N3+4))>0,lesurenberekening!E99,0) -> 0.2083333333 | I10: =V10 -> 0.3541666667 | J10: =IF(INDIRECT("formatieoverzicht!Y"&(N3+4))>0,lesurenberekening!G99,0) -> 0.1458333333 | K10: basisbudget | M10: =INDIRECT("formatieoverzicht!J"&(4+N3)) -> 20 | N10: =INDIRECT("formatieoverzicht!Q"&(4+N3)) -> 0 | P10: A t/m D | R10: =IF(AND(INDIRECT("formatieoverzicht!X"&(N3+4))=1,INDIRECT("formatieoverzicht!AF"&(N3+4))=1),lesurenberekening!E12,IF(AND(INDIRECT("formatieoverzicht!X"&(N3+4))=1,INDIRECT("formatieoverzicht!AF"&(N3+4))=2),lesurenberekening!I12,IF(AND(INDIRECT("formatieoverzicht!X"&(N3+4))=1,INDIRECT("formatieoverzicht!AF"&(N3+4))=3),lesurenberekening!M12,IF(AND(INDIRECT("formatieoverzicht!X"&(N3+4))=3,INDIRECT("formatieoverzicht!AF"&(N3+4))=1),lesurenberekening!E12,IF(AND(INDIRECT("formatieoverzicht!X"&(N3+4))=3,INDIRECT("formatieoverzicht!AF"&(N3+4))=2),lesurenberekening!I12,IF(AND(INDIRECT("formatieoverzicht!X"&(N3+4))=3,INDIRECT("formatieoverzicht!AF"&(N3+4))=3),lesurenberekening!M12,0)))))) -> 0.1354166667 | T10: =IF(AND(INDIRECT("formatieoverzicht!Y"&(N3+4))=1,INDIRECT("formatieoverzicht!AF"&(N3+4))=1),lesurenberekening!G12,IF(AND(INDIRECT("formatieoverzicht!Y"&(N3+4))=1,INDIRECT("formatieoverzicht!AF"&(N3+4))=2),lesurenberekening!K12,IF(AND(INDIRECT("formatieoverzicht!Y"&(N3+4))=1,INDIRECT("formatieoverzicht!AF"&(N3+4))=3),lesurenberekening!O12,IF(AND(INDIRECT("formatieoverzicht!Y"&(N3+4))=3,INDIRECT("formatieoverzicht!AF"&(N3+4))=1),lesurenberekening!G12,IF(AND(INDIRECT("formatieoverzicht!Y"&(N3+4))=3,INDIRECT("formatieoverzicht!AF"&(N3+4))=2),lesurenberekening!K12,IF(AND(INDIRECT("formatieoverzicht!Y"&(N3+4))=3,INDIRECT("formatieoverzicht!AF"&(N3+4))=3),lesurenberekening!O12,0)))))) -> 0.08333333333 | V10: =H10+J10 -> 0.3541666667
C11: woensdag | D11: =IF(INDIRECT("formatieoverzicht!Z"&(N3+4))=2,"A","") ->  | E11: 0.07291666667 | F11: =IF(INDIRECT("formatieoverzicht!AA"&(N3+4))=2,"A","") ->  | G11: =T11 -> 0 | H11: =IF(INDIRECT("formatieoverzicht!Z"&(N3+4))>0,lesurenberekening!E100,0) -> 0.25 | I11: 0.125 | J11: =IF(INDIRECT("formatieoverzicht!AA"&(N3+4))>0,lesurenberekening!G100,0) -> 0 | K11: bijzonder budget | M11: =INDIRECT("formatieoverzicht!K"&(4+N3)) -> 0 | N11: =INDIRECT("formatieoverzicht!R"&(4+N3)) -> 0 | P11: In deze rubrieken is alles automatisch berekend. | R11: =IF(AND(INDIRECT("formatieoverzicht!Z"&(N3+4))=1,INDIRECT("formatieoverzicht!AF"&(N3+4))=1),lesurenberekening!E13,IF(AND(INDIRECT("formatieoverzicht!Z"&(N3+4))=1,INDIRECT("formatieoverzicht!AF"&(N3+4))=2),lesurenberekening!I13,IF(AND(INDIRECT("formatieoverzicht!Z"&(N3+4))=1,INDIRECT("formatieoverzicht!AF"&(N3+4))=3),lesurenberekening!M13,IF(AND(INDIRECT("formatieoverzicht!Z"&(N3+4))=3,INDIRECT("formatieoverzicht!AF"&(N3+4))=1),lesurenberekening!E13,IF(AND(INDIRECT("formatieoverzicht!Z"&(N3+4))=3,INDIRECT("formatieoverzicht!AF"&(N3+4))=2),lesurenberekening!I13,IF(AND(INDIRECT("formatieoverzicht!Z"&(N3+4))=3,INDIRECT("formatieoverzicht!AF"&(N3+4))=3),lesurenberekening!M13,0)))))) -> 0.1458333333 | T11: =IF(AND(INDIRECT("formatieoverzicht!AA"&(N3+4))=1,INDIRECT("formatieoverzicht!AF"&(N3+4))=1),lesurenberekening!G13,IF(AND(INDIRECT("formatieoverzicht!AA"&(N3+4))=1,INDIRECT("formatieoverzicht!AF"&(N3+4))=2),lesurenberekening!K13,IF(AND(INDIRECT("formatieoverzicht!AA"&(N3+4))=1,INDIRECT("formatieoverzicht!AF"&(N3+4))=3),lesurenberekening!O13,IF(AND(INDIRECT("formatieoverzicht!AA"&(N3+4))=3,INDIRECT("formatieoverzicht!AF"&(N3+4))=1),lesurenberekening!G13,IF(AND(INDIRECT("formatieoverzicht!AA"&(N3+4))=3,INDIRECT("formatieoverzicht!AF"&(N3+4))=2),lesurenberekening!K13,IF(AND(INDIRECT("formatieoverzicht!AA"&(N3+4))=3,INDIRECT("formatieoverzicht!AF"&(N3+4))=3),lesurenberekening!O13,0)))))) -> 0 | V11: =H11+J11 -> 0.25
C12: donderdag | D12: =IF(INDIRECT("formatieoverzicht!AB"&(N3+4))=2,"A","") ->  | E12: =R12 -> 0 | F12: =IF(INDIRECT("formatieoverzicht!AC"&(N3+4))=2,"A","") ->  | G12: =T12 -> 0 | H12: =IF(INDIRECT("formatieoverzicht!AB"&(N3+4))>0,lesurenberekening!E101,0) -> 0 | I12: =V12 -> 0 | J12: =IF(INDIRECT("formatieoverzicht!AC"&(N3+4))>0,lesurenberekening!G101,0) -> 0 | R12: =IF(AND(INDIRECT("formatieoverzicht!AB"&(N3+4))=1,INDIRECT("formatieoverzicht!AF"&(N3+4))=1),lesurenberekening!E14,IF(AND(INDIRECT("formatieoverzicht!AB"&(N3+4))=1,INDIRECT("formatieoverzicht!AF"&(N3+4))=2),lesurenberekening!I14,IF(AND(INDIRECT("formatieoverzicht!AB"&(N3+4))=1,INDIRECT("formatieoverzicht!AF"&(N3+4))=3),lesurenberekening!M14,IF(AND(INDIRECT("formatieoverzicht!AB"&(N3+4))=3,INDIRECT("formatieoverzicht!AF"&(N3+4))=1),lesurenberekening!E14,IF(AND(INDIRECT("formatieoverzicht!AB"&(N3+4))=3,INDIRECT("formatieoverzicht!AF"&(N3+4))=2),lesurenberekening!I14,IF(AND(INDIRECT("formatieoverzicht!AB"&(N3+4))=3,INDIRECT("formatieoverzicht!AF"&(N3+4))=3),lesurenberekening!M14,0)))))) -> 0 | T12: =IF(AND(INDIRECT("formatieoverzicht!AC"&(N3+4))=1,INDIRECT("formatieoverzicht!AF"&(N3+4))=1),lesurenberekening!G14,IF(AND(INDIRECT("formatieoverzicht!AC"&(N3+4))=1,INDIRECT("formatieoverzicht!AF"&(N3+4))=2),lesurenberekening!K14,IF(AND(INDIRECT("formatieoverzicht!AC"&(N3+4))=1,INDIRECT("formatieoverzicht!AF"&(N3+4))=3),lesurenberekening!O14,IF(AND(INDIRECT("formatieoverzicht!AC"&(N3+4))=3,INDIRECT("formatieoverzicht!AF"&(N3+4))=1),lesurenberekening!G14,IF(AND(INDIRECT("formatieoverzicht!AC"&(N3+4))=3,INDIRECT("formatieoverzicht!AF"&(N3+4))=2),lesurenberekening!K14,IF(AND(INDIRECT("formatieoverzicht!AC"&(N3+4))=3,INDIRECT("formatieoverzicht!AF"&(N3+4))=3),lesurenberekening!O14,0)))))) -> 0 | V12: =H12+J12 -> 0
C13: vrijdag | D13: =IF(INDIRECT("formatieoverzicht!AD"&(N3+4))=2,"A","") ->  | E13: =R13 -> 0 | F13: =IF(INDIRECT("formatieoverzicht!AE"&(N3+4))=2,"A","") ->  | G13: =T13 -> 0 | H13: =IF(INDIRECT("formatieoverzicht!AD"&(N3+4))>0,lesurenberekening!E102,0) -> 0 | I13: =V13 -> 0 | J13: =IF(INDIRECT("formatieoverzicht!AE"&(N3+4))>0,lesurenberekening!G102,0) -> 0 | K13: ingezet uit spaarsaldo | L13: + | M13: =INDIRECT("formatieoverzicht!M"&(4+N3)) -> 0 | P13: In rubriek A staat voor ambulante dagdelen een A. | R13: =IF(AND(INDIRECT("formatieoverzicht!AD"&(N3+4))=1,INDIRECT("formatieoverzicht!AF"&(N3+4))=1),lesurenberekening!E15,IF(AND(INDIRECT("formatieoverzicht!AD"&(N3+4))=1,INDIRECT("formatieoverzicht!AF"&(N3+4))=2),lesurenberekening!I15,IF(AND(INDIRECT("formatieoverzicht!AD"&(N3+4))=1,INDIRECT("formatieoverzicht!AF"&(N3+4))=3),lesurenberekening!M15,IF(AND(INDIRECT("formatieoverzicht!AD"&(N3+4))=3,INDIRECT("formatieoverzicht!AF"&(N3+4))=1),lesurenberekening!E15,IF(AND(INDIRECT("formatieoverzicht!AD"&(N3+4))=3,INDIRECT("formatieoverzicht!AF"&(N3+4))=2),lesurenberekening!I15,IF(AND(INDIRECT("formatieoverzicht!AD"&(N3+4))=3,INDIRECT("formatieoverzicht!AF"&(N3+4))=3),lesurenberekening!M15,0)))))) -> 0 | T13: =IF(AND(INDIRECT("formatieoverzicht!AE"&(N3+4))=1,INDIRECT("formatieoverzicht!AF"&(N3+4))=1),lesurenberekening!G15,IF(AND(INDIRECT("formatieoverzicht!AE"&(N3+4))=1,INDIRECT("formatieoverzicht!AF"&(N3+4))=2),lesurenberekening!K15,IF(AND(INDIRECT("formatieoverzicht!AE"&(N3+4))=1,INDIRECT("formatieoverzicht!AF"&(N3+4))=3),lesurenberekening!O15,IF(AND(INDIRECT("formatieoverzicht!AE"&(N3+4))=3,INDIRECT("formatieoverzicht!AF"&(N3+4))=1),lesurenberekening!G15,IF(AND(INDIRECT("formatieoverzicht!AE"&(N3+4))=3,INDIRECT("formatieoverzicht!AF"&(N3+4))=2),lesurenberekening!K15,IF(AND(INDIRECT("formatieoverzicht!AE"&(N3+4))=3,INDIRECT("formatieoverzicht!AF"&(N3+4))=3),lesurenberekening!O15,0)))))) -> 0 | V13: =H13+J13 -> 0
K14: beschikbaar | M14: =M10+M11+M12+M13 -> 20 | N14: =SUM(N10:N13) -> 0 | P14: Indien noodzakelijk, kunnen in rubriek A de les- en arbeidsuren hand-
P15: matig worden aangepast. Klik op de resetknop eronder om de standaard-
G16: reset uren | K16: opgenomen verlof d.i. | M16: =INDIRECT("formatieoverzicht!O"&(4+N3)) -> 0 | P16: tijden en de koppeling met het werkblad lesurenberekening te herstellen.
C17: ingeroosterd per week | E17: =E9+G9+E10+G10+E11+G11+E12+G12+E13+G13 -> 0.5104166667 | I17: =SUM(I9:I13) -> 0.8333333333 | K17: waarvan lesuren | N17: =ROUND(MaxLestaak/1659*M16,0) -> 0
C18: in 52 weken | E18: =52*E17 -> 26.54166667 | I18: =52*I17 -> 43.33333333 | K18: sparen* | L18: _ | M18: =INDIRECT("formatieoverzicht!P"&(4+N3)) -> 0 | P18: E + F
B19: =WEEKDAY(CONCATENATE(C19,G4)) -> 1900-01-04 | C19: 29 september | D19: =IF(MOD(G4,4)=0,WEEKDAY(CONCATENATE(C19,G4),2),0) -> 0 | E19: =IF(D19=1,E9+G9,IF(D19=2,E10+G10,IF(D19=3,E11+G11,IF(D19=4,E12+G12,IF(D19=5,E13+G13,0))))) -> 0 | F19: (in schrikkeljaar) | I19: =IF(D19=1,I9,IF(D19=2,I10,IF(D19=3,I11,IF(D19=4,I12,IF(D19=5,I13,0))))) -> 0 | K19: over na aftrek verlof | M19: =INDIRECT("formatieoverzicht!T"&(4+N3)) -> 20 | P19: Hier kunnen de dagen en uren worden ingevuld waarop het teamlid nog
B20: =WEEKDAY(CONCATENATE(C20,G4)) -> 1900-01-05 | C20: 30 september | D20: =WEEKDAY(CONCATENATE(C20,G4),2) -> 4 | E20: =IF(D20=1,E9+G9,IF(D20=2,E10+G10,IF(D20=3,E11+G11,IF(D20=4,E12+G12,IF(D20=5,E13+G13,0))))) -> 0 | F20: + | H20: + | I20: =IF(D20=1,I9,IF(D20=2,I10,IF(D20=3,I11,IF(D20=4,I12,IF(D20=5,I13,0))))) -> 0 | P20: individueel wordt uit- of ingeroosterd.
C21: totaal A | E21: =E18+E19+E20 -> 26.54166667 | I21: =I18+I19+I20 -> 43.33333333 | K21: ="spaarsaldo eind "&lesurenberekening!E5-1&"/"&lesurenberekening!G5-1 -> spaarsaldo eind 2025/2026 | M21: =INDIRECT("formatieoverzicht!U"&(4+N3)) -> 0
B22: B hele vakantieweken | E22: lesuren | G22: datum | I22: arbeidsuren | P22: Vul alle kolommen handmatig in. Denk om de dubbele punt achter de
K23: * Sparen tot 57 jr. : max. 3 jaar; vanaf 57 jr.: max. 5 jaar | P23: uren. Wanneer is afgesproken een aantal dagen door te werken in één
C24: herfstvakantie | D24: =lesurenberekening!D25 -> 1 | E24: =E17*D24 -> 0.5104166667 | G24: =lesurenberekening!E25 -> 17-10-26 | I24: =I17*D24 -> 0.8333333333 | K24: H ingeroosterde arbeidsuren | M24: wtf 1,0: | N24: =jaartaak -> 1659 | P24: of meer vakantieweken, vul je in F het totaal van die arbeidsuren in.
C25: kerstvakantie | D25: =lesurenberekening!D26 -> 2 | E25: =E17*D25 -> 1.020833333 | G25: =lesurenberekening!E26 -> 19-12-26 | I25: =I17*D25 -> 1.666666667 | O25: Volgens het inrooster- percentage voltijders
C26: voorjaarsvakantie | D26: =lesurenberekening!D27 -> 1 | E26: =E17*D26 -> 0.5104166667 | G26: =lesurenberekening!E27 -> 20-2-27 | I26: =I17*D26 -> 0.8333333333 | K26: bruto arbeidsduur (wtf x 1659) | M26: =ROUND(K5*jaartaak,0) -> 830 | P26: Wanneer je hier bij meerdere teamleden hetzelfde moet invullen, kun je
C27: meivakantie | D27: =lesurenberekening!D28 -> 2 | E27: =E17*D27 -> 1.020833333 | G27: =lesurenberekening!E28 -> 24-4-27 | I27: =I17*D27 -> 1.666666667 | K27: opgenomen verlof d.i. | L27: _ | M27: =M16 -> 0 | P27: dat op meerdere teamlidbladen tegelijk in één keer invullen.
C28: =lesurenberekening!C29 -> 0 | D28: =lesurenberekening!D29 -> 0 | E28: =E17*D28 -> 0 | G28: =lesurenberekening!E29 -> 00:00:00 | I28: =I17*D28 -> 0 | K28: netto arbeidsduur | M28: =M26-M27 -> 830
C29: zomervakantie | D29: =lesurenberekening!D30 -> 6 | E29: =E17*D29 -> 3.0625 | G29: =lesurenberekening!E30 -> 17-7-27 | I29: =I17*D29 -> 5 | K29: ingeroosterd: (A + F) - (B t/m E) | M29: =ROUND(((I21+I73)-(I30+I43+I55+I64))*24,0) -> 826 | O29: =ROUND(O31*M28,0) -> 797 | P29: G
C30: totaal af B | E30: =SUM(E24:E29) -> 6.125 | I30: =SUM(I24:I29) -> 10 | K30: =IF(lesurenberekening!E117="ja","verschil","") -> verschil | M30: =IF(lesurenberekening!E117="ja",(M29-M28),0) -> -4 | O30: =IF(O29<>0,O29-M28,0) -> -33 | P30: Het aantal lesuren dat een verlof PDI bevat is gebaseerd op artikel
B31: C hele vakantie (v) - of studiedagen (s) | E31: lesuren | G31: datum | I31: arbeidsuren | K31: =IF(lesurenberekening!E117="ja","inroosteringspercentage", "") -> inroosteringspercentage | M31: =ROUND(IF(lesurenberekening!E117="ja",IF(M28>0,M29/M28*100,0),0),1) -> 99.5 | N31: =IF(lesurenberekening!E117="ja","%","") -> % | O31: =lesurenberekening!E112*100&" %" -> 96 % | P31: 9.6 lid 6 (CAO-PO 2024). Het PDI-deel professionalisering blijft dus even
B32: =lesurenberekening!B34 -> 2027-03-26 | C32: =IF(lesurenberekening!C34="","",lesurenberekening!C34) -> goede vrijdag | D32: =lesurenberekening!D34 -> v | E32: =(INDIRECT("E"&8+F32)+INDIRECT("G"&8+F32)) -> 0 | F32: =WEEKDAY(G32,2) -> 5 | G32: =lesurenberekening!E34 -> 2027-03-26 | I32: =IF(D32="v",INDIRECT("I"&8+F32),0) -> 0 | P32: groot als vóór de verlofopname.
B33: =lesurenberekening!B35 -> 2027-05-06 | C33: =IF(lesurenberekening!C35="","",lesurenberekening!C35) -> hemelvaartsdag | D33: =lesurenberekening!D35 -> v | E33: =(INDIRECT("E"&8+F33)+INDIRECT("G"&8+F33)) -> 0 | F33: =WEEKDAY(G33,2) -> 4 | G33: =lesurenberekening!E35 -> 2027-05-06 | I33: =IF(D33="v",INDIRECT("I"&8+F33),0) -> 0 | K33: I ingeroosterde lesuren | M33: wtf 1,0: | N33: =MaxLestaak -> 940
B34: =lesurenberekening!B36 -> 2027-05-07 | C34: =IF(lesurenberekening!C36="","",lesurenberekening!C36) -> vrijdag na hemelvaartsdag | D34: =lesurenberekening!D36 -> v | E34: =(INDIRECT("E"&8+F34)+INDIRECT("G"&8+F34)) -> 0 | F34: 5 | G34: =lesurenberekening!E36 -> 2027-05-07 | I34: =IF(D34="v",INDIRECT("I"&8+F34),0) -> 0 | P34: H + I
B35: =lesurenberekening!B37 -> 2027-05-17 | C35: =IF(lesurenberekening!C37="","",lesurenberekening!C37) -> 2e pinksterdag | D35: =lesurenberekening!D37 -> v | E35: 0.21875 | F35: 1 | G35: =lesurenberekening!E37 -> 2027-05-17 | I35: 0.3541666667 | K35: maximale lestaak vlg. wtf | M35: =ROUND(K5*MaxLestaak,0) -> 470 | P35: De weergave van het inroosterverschil en het inroosterpercentage kan
B36: =lesurenberekening!B38 -> 2027-07-16 | C36: =IF(lesurenberekening!C38="","",lesurenberekening!C38) -> laatste dag voor zomervakantie | D36: =lesurenberekening!D38 -> v | E36: 0 | F36: 5 | G36: =lesurenberekening!E38 -> 2027-07-16 | I36: 0 | K36: lesuren opgenomen verlof d.i. | L36: _ | M36: =N17 -> 0 | P36: in rubriek G op het eerste werkblad Lesurenberekening aan of uit
B37: =lesurenberekening!B39 -> 2027-03-25 | C37: =IF(lesurenberekening!C39="","",lesurenberekening!C39) -> studiedag 1 | D37: =lesurenberekening!D39 -> s | E37: 0 | F37: 4 | G37: =lesurenberekening!E39 -> 2027-03-25 | I37: 0 | K37: netto maximale lestaak | M37: =M35-M36 -> 470 | P37: worden gezet.
B38: =lesurenberekening!B40 -> 2027-04-27 | C38: =IF(lesurenberekening!C40="","",lesurenberekening!C40) -> studiedag 2 | D38: =lesurenberekening!D40 -> s | E38: 0.21875 | F38: 2 | G38: =lesurenberekening!E40 -> 2027-04-27 | I38: 0 | K38: ingeroosterd: (A + F) - (B t/m E) | L38: _ | M38: =ROUND(((E21+E73)-(E30+E43+E55+E64))*24,0) -> 480
B39: =lesurenberekening!B41 ->  | C39: =IF(lesurenberekening!C41="","",lesurenberekening!C41) ->  | D39: =lesurenberekening!D41 -> 0 | E39: 0 | F39: 6 | G39: =lesurenberekening!E41 -> 00:00:00 | I39: 0 | K39: =IF(lesurenberekening!E117="ja","verschil","") -> verschil | M39: =IF(lesurenberekening!E118="ja",M38-M37,"") -> 10 | P39: Wanneer in rubriek G (instellingen) op het eerste werkblad Lesuren-
B40: =lesurenberekening!B42 ->  | C40: =IF(lesurenberekening!C42="","",lesurenberekening!C42) ->  | D40: =lesurenberekening!D42 -> 0 | E40: 0 | F40: 6 | G40: =lesurenberekening!E42 -> 00:00:00 | I40: 0 | K40: =IF(lesurenberekening!E118="ja"," inroosteringspercentage","") -> inroosteringspercentage | M40: =ROUND(IF(lesurenberekening!E118="ja",IF(M37>0,M38/M37*100,0),0),1) -> 102.1 | N40: =IF(lesurenberekening!E118="ja","%","") -> % | P40: berekening het inroosteringspercentage van de voltijders is ingevuld,
B41: =lesurenberekening!B43 ->  | C41: =IF(lesurenberekening!C43="","",lesurenberekening!C43) ->  | D41: =lesurenberekening!D43 -> 0 | E41: 0 | F41: 6 | G41: =lesurenberekening!E43 -> 00:00:00 | I41: 0 | P41: wordt naast rubriek H ter referentie het daaraan evenredig aantal in te
B42: =lesurenberekening!B44 ->  | C42: =IF(lesurenberekening!C44="","",lesurenberekening!C44) ->  | D42: =lesurenberekening!D44 -> 0 | E42: 0 | F42: 6 | G42: =lesurenberekening!E44 -> 00:00:00 | I42: 0 | K42: J opbouw ingeroosterde jaartaak | N42: =IF(M52>0,"na verlof-opname", "") ->  | P42: roosteren arbeidsuren getoond.
C43: totaal af C | E43: =SUM(E32:E42) -> 0.4375 | I43: =SUM(I32:I42) -> 0.3541666667
B44: D overige dagdelen en uren | E44: lesuren | G44: datum | I44: arbeidsuren | K44: =IF(M58>0,"Inzet spaarsaldo PDI-budget","") ->  | M44: =M58 -> 0 | N44: =IF(M52>0,M58,0) -> 0 | O44: =IF(M52>0,N44,M44) -> 0 | P44: J
B45: =IF(G45="","",G45) -> 00:00:00 | C45: =lesurenberekening!C48 -> 0 | D45: =IF(G$7=1,lesurenberekening!G48,IF(G$7=2,lesurenberekening!I48,IF(G$7=3,lesurenberekening!K48,0))) -> 0 | E45: =IF((INDIRECT("E"&8+F45)+INDIRECT("G"&8+F45))<>0,D45,0) -> 0 | F45: =WEEKDAY(G45,2) -> 6 | G45: =lesurenberekening!E48 -> 00:00:00 | I45: =IF(AND(INDIRECT("I"&8+F45)<>0,E45<>0),lesurenberekening!O48,0) -> 0 | K45: PDI-budget dit schooljaar | M45: =IF(M52=0,(ROUND(K5*professionalisering,0)+M19)-M59,ROUND(K5*professionalisering,0)+M19) -> 62 | N45: =IF(M52>0,ROUND((N50/M50)*M45,0)-M59,0) -> 0 | O45: =IF(M52>0,N45,M45) -> 62 | P45: overige & ambulante (functie)taken
B46: =IF(G46="","",G46) -> 00:00:00 | C46: =lesurenberekening!C49 -> 0 | D46: =IF(G$7=1,lesurenberekening!G49,IF(G$7=2,lesurenberekening!I49,IF(G$7=3,lesurenberekening!K49,0))) -> 0 | E46: =IF((INDIRECT("E"&8+F46)+INDIRECT("G"&8+F46))<>0,D46,0) -> 0 | F46: =WEEKDAY(G46,2) -> 6 | G46: =lesurenberekening!E49 -> 00:00:00 | I46: =IF(AND(INDIRECT("I"&8+F46)<>0,E46<>0),lesurenberekening!O49,0) -> 0 | K46: ingeroosterde lestaak | M46: =M38 -> 480 | O46: =M46 -> 480 | P46: Wanneer er sprake is van ambulante uren, zal het aantal uren dat over-
B47: =IF(G47="","",G47) -> 00:00:00 | C47: =lesurenberekening!C50 -> 0 | D47: =IF(G$7=1,lesurenberekening!G50,IF(G$7=2,lesurenberekening!I50,IF(G$7=3,lesurenberekening!K50,0))) -> 0 | E47: =IF((INDIRECT("E"&8+F47)+INDIRECT("G"&8+F47))<>0,D47,0) -> 0 | F47: 6 | G47: =lesurenberekening!E50 -> 00:00:00 | I47: =IF(AND(INDIRECT("I"&8+F47)<>0,E47<>0),lesurenberekening!O50,0) -> 0 | K47: voor- en nawerk* | M47: =IF(N47=0,ROUND(nawerk*M46,0),ROUND(N47*M46,0)) -> 192 | O47: =M47 -> 192 | P47: blijft voor de overige taken groter zijn. Onderaan rubriek K kan
B48: 00:00:00 | C48: =lesurenberekening!C51 -> 0 | D48: =IF(G$7=1,lesurenberekening!G51,IF(G$7=2,lesurenberekening!I51,IF(G$7=3,lesurenberekening!K51,0))) -> 0 | E48: 0 | F48: 6 | G48: =lesurenberekening!E51 -> 00:00:00 | I48: =IF(AND(INDIRECT("I"&8+F48)<>0,E48<>0),lesurenberekening!O51,0) -> 0 | K48: =IF(COUNTIF(D9:F13,"A")>0,"overige & amb. taken","overige taken") -> overige taken | M48: =M50-(M44+M45+M46+M47) -> 96 | N48: =IF(M52>0,ROUND((N50/M50)*M48,0),M48) -> 96 | O48: =IF(M52>0,N48,M48) -> 96 | P48: het aantal uren voor de ambulante taken worden ingevuld; de over-
B49: 00:00:00 | C49: =lesurenberekening!C52 -> 0 | D49: =IF(G$7=1,lesurenberekening!G52,IF(G$7=2,lesurenberekening!I52,IF(G$7=3,lesurenberekening!K52,0))) -> 0 | E49: 0 | F49: 6 | G49: =lesurenberekening!E52 -> 00:00:00 | I49: =IF(AND(INDIRECT("I"&8+F49)<>0,E49<>0),lesurenberekening!O52,0) -> 0 | O49: =M48 -> 96 | P49: blijvende uren gaan dan naar de overige taken (zie rubriek C, pag. 2).
B50: =IF(G50="","",G50) -> 00:00:00 | C50: =lesurenberekening!C53 -> 0 | D50: =IF(G$7=1,lesurenberekening!G53,IF(G$7=2,lesurenberekening!I53,IF(G$7=3,lesurenberekening!K53,0))) -> 0 | E50: =IF((INDIRECT("E"&8+F50)+INDIRECT("G"&8+F50))<>0,D50,0) -> 0 | F50: 6 | G50: =lesurenberekening!E53 -> 00:00:00 | I50: =IF(AND(INDIRECT("I"&8+F50)<>0,E50<>0),lesurenberekening!O53,0) -> 0 | K50: netto arbeidsduur | M50: =M28 -> 830 | N50: =IF(M52>0,(M50-M52),0) -> 0
B51: =IF(G51="","",G51) -> 00:00:00 | C51: =lesurenberekening!C54 -> 0 | D51: =IF(G$7=1,lesurenberekening!G54,IF(G$7=2,lesurenberekening!I54,IF(G$7=3,lesurenberekening!K54,0))) -> 0 | E51: 0 | F51: 6 | G51: =lesurenberekening!E54 -> 00:00:00 | I51: =IF(AND(INDIRECT("I"&8+F51)<>0,E51<>0),lesurenberekening!O54,0) -> 0 | P51: verlofopname
B52: =IF(G52="","",G52) -> 00:00:00 | C52: =lesurenberekening!C55 -> 0 | D52: =IF(G$7=1,lesurenberekening!G55,IF(G$7=2,lesurenberekening!I55,IF(G$7=3,lesurenberekening!K55,0))) -> 0 | E52: 0 | F52: 6 | G52: =lesurenberekening!E55 -> 00:00:00 | I52: =IF(AND(INDIRECT("I"&8+F52)<>0,E52<>0),lesurenberekening!O55,0) -> 0 | K52: opname overig verlof dit schooljaar: | P52: Dit vakje mag slechts in bepaalde gevallen worden ingevuld. Klik op de
B53: =IF(G53="","",G53) -> 00:00:00 | C53: =lesurenberekening!C56 -> 0 | D53: =IF(G$7=1,lesurenberekening!G56,IF(G$7=2,lesurenberekening!I56,IF(G$7=3,lesurenberekening!K56,0))) -> 0 | E53: 0 | F53: 6 | G53: =lesurenberekening!E56 -> 00:00:00 | I53: =IF(AND(INDIRECT("I"&8+F53)<>0,E53<>0),lesurenberekening!O56,0) -> 0 | P53: icoon of houd de muisaanwijzer boven de tooltip voor meer informatie.
B54: 00:00:00 | C54: =lesurenberekening!C57 -> 0 | D54: =IF(G$7=1,lesurenberekening!G57,IF(G$7=2,lesurenberekening!I57,IF(G$7=3,lesurenberekening!K57,0))) -> 0 | E54: 0 | F54: 6 | G54: =lesurenberekening!E57 -> 00:00:00 | I54: =IF(AND(INDIRECT("I"&8+F54)<>0,E54<>0),lesurenberekening!O57,0) -> 0 | K54: *afgesproken reguliere opslagfactor: | N54: =nawerk -> 0.4
C55: totaal af D | E55: =SUM(E45:E54) -> 0 | I55: =SUM(I45:I54) -> 0 | K55: K PDI-budget en overige taken(zie inzet op pag. 2) | P55: voor- en nawerk
B56: E individueel uitgeroosterd | E56: lesuren | G56: datum | I56: arbeidsuren | K56: sparen PDI-budget | P56: In dit vakje kan een afwijkende individuele opslagfactor worden inge-
C57: 3 extra vrije woensdagen (zie onder) | K57: Spaarsaldo eind vorig schooljaar | P57: vuld. Dit kan een grótere factor zijn bij beginnnende leerkrachten, of
K58: Inzet uit spaarsaldo in dit schooljaar | P58: juist een kleinere bij OOP'ers met lesondersteunende taken indien dat
K59: Te sparen in dit schooljaar | P59: is afgesproken.
K60: Spaarsaldo eind van dit schooljaar | M60: =(M57+M59)-M58 -> 0
K61: inzet PDI-budget | P61: K
N62: % | P62: Hier zie je in hoeverre de uren van deze twee taakonderdelen al met
K63: beschikbaar | M63: =IF(M52=0,(M44+M45),N44+N45) -> 62 | P63: activiteiten zijn gevuld op de tweede pagina van dit teamlidblad.
C64: totaal af E | E64: =SUM(E57:E63) -> 0 | I64: =SUM(I57:I63) -> 0 | K64: ingevuld | L64: _ | M64: =M109 -> 0 | N64: =IF(M63>0,IF(100,M64/M63*100,0),0) -> 0 | P64: Dit is ook te zien geheel rechts op het Formatieoverzicht.
B65: F individueel ingeroosterd | E65: lesuren | G65: datum | I65: arbeidsuren | K65: =IF(M63<0,"teveel ingepland","nog beschikbaar") -> nog beschikbaar | M65: =IF(M63<M64,0,N110) -> 62 | P65: In deze rubriek kun je ook het spaarsaldo (niet voor verlof) bijhouden en
C66: 3 dagen in zomervakantie | I66: 1.0625 | P66: de inzet uit of de inleg in het spaarsaldo invullen. De inzet van veel
C67: studiedag op donderdag | G67: 2027-03-25 | I67: 0.3541666667 | K67: inzet overige taken | P67: gespaarde uren kan er toe leiden dat er geen of zelfs een negatief aantal
K68: beschikbaar | M68: =N48-M72 -> 96 | P68: overblijft' voor de overige taken. Dit kan dan alleeen worden opgelost
K69: ingevuld | L69: _ | M69: =M156 -> 84 | N69: =IF(M68>0,IF(100,M69/M68*100,0),0) -> 87.5 | P69: door zoveel lesuren uit te roosteren dat er een klein minimaal noodzake-
K70: =IF(M70<0,"teveel ingepland","nog beschikbaar") -> nog beschikbaar | M70: =IF(M68<M69,0,N157) -> 12 | P70: lijk aantal uren voor de overige taken overblijft.
K72: ambulante functietaken: | P72: ambulante functietaken
C73: totaal bij F | E73: =SUM(E66:E72) -> 0 | I73: =SUM(I66:I72) -> 1.416666667 | P73: Bij (deels) ambulante teamleden moeten de overblijvende uren verdeeld
B74: opmerkingen | E74: =((E21+E73)-(E30+E43+E55+E64)) -> 19.97916667 | G74: < ingeroosterd > | I74: =((I21+I73)-(I30+I43+I55+I64)) -> 34.39583333 | P74: worden over de ambulante functietaken en de overige taken.
B75: Deze deeltijder werkt met een duo-partner de woensdag om en om. In rubriek A is de les- en arbeidsduur van die dag daarom gehalveerd. De studiedag op donderdag is extra ingeroosterd in rubriek F. Er zijn nu nog 10 lesuren teveel ingeroosterd. Als deze tezamen met de bijbehorende arbeidsuren worden vrijgeroosterd, komt het inroosteringspercentage tussen de 96 en 100%. Carla Imhoff (nr. 9) valt 3 woensdagen (10,5 lesuren) voor deze leerkracht in. Rooster deze 10,5 lesuren en de arbeidsuren van 3 woensdagen (18 uur) nu dus uit in rubriek E. | P75: Vul, indien van toepassing, hier de uren voor de ambulante taken in, óf
P76: vul de verdeling op pag. 2 in rubriek C in (dus niet in beide tegelijk!).
P78: opmerkingenvak
P79: Druk op Alt+Enter voor een nieuwe regel.
P80: Dubbelklik op het vak wanneer niet de hele tekst zichtbaar is. Alleen het
P81: zichtbare deel wordt afgedrukt.
G82: 2e pagina
B83: OVERZICHT GEPLANDE ACTIVITEITEN PDI EN OVERIGE TAKEN | P83: Teamlidblad 2e pagina
P85: overzicht van geplande activiteiten en uren p.d.i. en overige taken
C86: schooljaar | E86: =E4 -> 2026 | F86: / | G86: =G4 -> 2027 | H86: naam: | K86: =K3 -> Doornbos, Eric ( wo om en om) | P86: Op deze pagina worden de geplande activiteiten en uren ingevuld.
P87: Een regel moet aan de linkerkant geselecteerd worden om in te vullen.
B88: A | C88: PDI-budget | K88: beschikbaar: | M88: uren | N88: =M63 -> 62 | P88: De uren worden hier als gewone hele getallen ingevoerd zonder
B89: 1 | P89: dubbele punt.
B90: 2
B91: 3 | P91: invoerformulier voor de activiteiten
B92: 4 | P92: Voor het maken van overzichten is het noodzakelijk dat activiteiten
B93: 5 | P93: uniform gespeld worden. Bovendien worden de overzichten gemaakt
B94: 6 | P94: op basis van de drie lijsten (zie de drie tabs onderaan het scherm).
B95: 7 | P95: Voer activiteiten daarom altijd zoveel mogelijk in via het activiteiten-
B96: 8 | P96: invoerformulier. Je roept dit formulier op door op een willekeurige plek
B97: 9 | P97: op de nummerrij te klikken.
B98: 10
B99: 11
B100: 12 | P100: HET ACTIVITEITENINVOERFORMULIER
B101: 13
B102: 14 | P102: Onderstaande informatie vind je ook door op de informatie-icoontjes op
B103: 15 | P103: het invoerformulier te klikken.
B104: 16
B105: 17 | P105: Lijstitem aan teamblad toevoegen
B106: 18 | P106: > Roep het formulier op door op de nummerrij te klikken en selecteer in
B107: 19 | P107: het vak Lijstkeuze de betreffende lijst.
B108: 20 | P108: > Klik op het pijltje aan het eind van de lege regel; de lijst verschijnt.
K109: totaal: | M109: =SUM(M89:M108) -> 0 | P109: > Selecteer een activiteit en klik in het vak Teamblad rubr. A of B de
N110: =N88-M109 -> 62 | P110: rubriek waaraan je de activiteit wilt toevoegen.
P111: >Klik op Toevoegen aan Teamlidblad (het aantal uren kan worden gewij-
P112: zigd, maar moet wel altijd zijn ingevuld).
P114: Nieuwe items aan een lijst én het teamlidblad toevoegen
P115: Nieuwe activiteiten kunnen gelijktijdig aan een lijst én aan een rubriek
P116: op het teamlidblad worden toegevoegd:
P117: > Selecteer in het vak Lijstkeuze een lijst en vul op de lege regel een
P118: activiteit + uren in.
P119: > Klik vervolgens op Toevoegen aan Lijst.
B120: B | C120: =K48 -> overige taken | K120: beschikbaar: | N120: =M68 -> 96 | P120: > Selecteer daarna in het vak daaronder de betreffende rubriek en
B121: 1 | C121: Afscheidsavond groep 8 | M121: 3 | P121: tenslotte op Toevoegen aan Teamlidblad.
B122: 2 | C122: Algemene ouderavond | M122: 2
B123: 3 | C123: Bouwvergaderingen 4 x 1:30 uur | M123: 6 | P123: De lijsten kunnen ook direct op de lijst zelf worden ingevuld. Aangeleg-
B124: 4 | C124: Coördinator Engels | M124: 20 | P124: de lijsten kunnen bij het ingebruiknemen van een nieuwe planner uit de
B125: 5 | C125: Inwerken nieuwe collega | M125: 10 | P125: oude planner met enkele muisklikken geïmporteerd worden.
B126: 6 | C126: Kerstviering | M126: 3
B127: 7 | C127: Studiedagen 2 x 5 uur | M127: 10 | P127: sortering
B128: 8 | C128: Teamvergaderingen 10 x 1:30 uur | M128: 15 | P128: Bij gebruik van het invoerformulier worden de items automatisch
B129: 9 | C129: werkgroep Gezamenlijke verjaardag | M129: 15 | P129: gesorteerd. Sorteer bij rechtstreeks invullen door op de sorteerpijlen
B130: 10 | P130: bovenaan de pagina te klikken.
B131: 11
B132: 12 | P132: overzicht per activiteit
B133: 13 | P133: Met het invoerformulier kan ook een overzicht worden gemaakt van de
B134: 14 | P134: teamleden die eenzelfde activiteit gemeen hebben:
B135: 15 | P135: > Kies een lijst en een activiteit.
B136: 16 | P136: > Klik nu op de knop Teamoverzicht.
B137: 17 | P137: > Het overzicht wordt onderaan de gekozen lijst getoond.
B138: 18
B139: 19 | P139: overzicht van alle activiteiten overige taken van alle teamleden
B140: 20 | P140: Op het werkblad act.overzicht kun je een totaaloverzicht maken van alle
B141: 21 | P141: activiteiten en teamleden. Een leeg overzicht met alleen activiteiten kun je
B142: 22 | P142: aan het begin van het werkverdelingstraject als intekenlijst voor de overige
B143: 23 | P143: taken gebruiken.
B144: 24
B145: 25 | P145: Let op:
B146: 26 | P146: De op deze pagina vermelde activiteiten en uren zijn een specificatie
B147: 27 | P147: van de op de eerste pagina berekende uren voor deze twee taak-
B148: 28 | P148: onderdelen. Er mogen dus nooit méér uren worden ingepland dan er
B149: 29 | P149: beschikbaar zijn. Het aantal teveel ingeplande uren wordt in het rood
B150: 30 | P150: afgedrukt en mag niet genegeerd worden.
B151: 31
B152: 32
B153: 33
B154: 34
B155: 35
K156: totaal : | M156: =SUM(M121:M155) -> 84
K157: Nog beschikbaar: | N157: =N120-M156 -> 12

Sheet 5
B2: =lesurenberekening!I5 -> Voorbeelden | P2: toelichting teamlidblad OP en OOP met lesondersteunende taken
H3: naam: | K3: =INDIRECT("formatieoverzicht!C"&(4+N3)) -> Everhart, Ina (wo om en om) | N3: =MID(CELL("bestandsnaam",A1),SEARCH("]",CELL("bestandsnaam",A1),1)+1,99) -> 5
E4: =lesurenberekening!E5 -> 2026 | F4: / | G4: =lesurenberekening!G5 -> 2027 | H4: aanstelling: | K4: =INDIRECT("formatieoverzicht!D"&(4+N3)) -> 0.8333333333
B5: =INDIRECT("formatieoverzicht!AR"&(4+N3)) -> 0 | H5: wtf: | K5: =INDIRECT("formatieoverzicht!E"&(4+N3)) -> 0.5 | P5: Klik op dit icoon voor meer informatie
B6: OVERZICHT IN- EN UITGEROOSTERDE LES- EN ARBEIDSUREN | K6: OVERZICHT GEPLANDE JAARTAAK
B7: A jaartotaal les- en arbeidsuren | E7: lestijd bouw: | G7: =INDIRECT("formatieoverzicht!"&"AF"&N3+4) -> 1 | I7: arbeidsuren | K7: G PDI-budget duurzame inzetbaarheid | P7: Dit teamlidblad is voor het OP en OOP met lesondersteunende en/of | R7: standaardtijden
E8: o | G8: m | P8: behandeltaken zoals een onderwijsassistent of logopedist. | R8: o | T8: m | V8: arb.uren
C9: maandag | D9: =IF(INDIRECT("formatieoverzicht!V"&(N3+4))=2,"A","") ->  | E9: =R9 -> 0 | F9: =IF(INDIRECT("formatieoverzicht!W"&(N3+4))=2,"A","") ->  | G9: =T9 -> 0 | H9: =IF(INDIRECT("formatieoverzicht!V"&(N3+4))>0,lesurenberekening!E98,0) -> 0 | I9: =V9 -> 0 | J9: =IF(INDIRECT("formatieoverzicht!W"&(N3+4))>0,lesurenberekening!G98,0) -> 0 | M9: vlg. wtf | N9: opname | R9: =IF(AND(INDIRECT("formatieoverzicht!V"&(N3+4))=1,INDIRECT("formatieoverzicht!AF"&(N3+4))=1),lesurenberekening!E11,IF(AND(INDIRECT("formatieoverzicht!V"&(N3+4))=1,INDIRECT("formatieoverzicht!AF"&(N3+4))=2),lesurenberekening!I11,IF(AND(INDIRECT("formatieoverzicht!V"&(N3+4))=1,INDIRECT("formatieoverzicht!AF"&(N3+4))=3),lesurenberekening!M11,IF(AND(INDIRECT("formatieoverzicht!V"&(N3+4))=3,INDIRECT("formatieoverzicht!AF"&(N3+4))=1),lesurenberekening!E11,IF(AND(INDIRECT("formatieoverzicht!V"&(N3+4))=3,INDIRECT("formatieoverzicht!AF"&(N3+4))=2),lesurenberekening!I11,IF(AND(INDIRECT("formatieoverzicht!V"&(N3+4))=3,INDIRECT("formatieoverzicht!AF"&(N3+4))=3),lesurenberekening!M11,0)))))) -> 0 | T9: =IF(AND(INDIRECT("formatieoverzicht!W"&(N3+4))=1,INDIRECT("formatieoverzicht!AF"&(N3+4))=1),lesurenberekening!G11,IF(AND(INDIRECT("formatieoverzicht!W"&(N3+4))=1,INDIRECT("formatieoverzicht!AF"&(N3+4))=2),lesurenberekening!K11,IF(AND(INDIRECT("formatieoverzicht!W"&(N3+4))=1,INDIRECT("formatieoverzicht!AF"&(N3+4))=3),lesurenberekening!O11,IF(AND(INDIRECT("formatieoverzicht!W"&(N3+4))=3,INDIRECT("formatieoverzicht!AF"&(N3+4))=1),lesurenberekening!G11,IF(AND(INDIRECT("formatieoverzicht!W"&(N3+4))=3,INDIRECT("formatieoverzicht!AF"&(N3+4))=2),lesurenberekening!K11,IF(AND(INDIRECT("formatieoverzicht!W"&(N3+4))=3,INDIRECT("formatieoverzicht!AF"&(N3+4))=3),lesurenberekening!O11,0)))))) -> 0 | V9: =H9+J9 -> 0
C10: dinsdag | D10: =IF(INDIRECT("formatieoverzicht!X"&(N3+4))=2,"A","") ->  | E10: =R10 -> 0 | F10: =IF(INDIRECT("formatieoverzicht!Y"&(N3+4))=2,"A","") ->  | G10: =T10 -> 0 | H10: =IF(INDIRECT("formatieoverzicht!X"&(N3+4))>0,lesurenberekening!E99,0) -> 0 | I10: =V10 -> 0 | J10: =IF(INDIRECT("formatieoverzicht!Y"&(N3+4))>0,lesurenberekening!G99,0) -> 0 | K10: basisbudget | M10: =INDIRECT("formatieoverzicht!J"&(4+N3)) -> 20 | N10: =INDIRECT("formatieoverzicht!Q"&(4+N3)) -> 0 | P10: A t/m D | R10: =IF(AND(INDIRECT("formatieoverzicht!X"&(N3+4))=1,INDIRECT("formatieoverzicht!AF"&(N3+4))=1),lesurenberekening!E12,IF(AND(INDIRECT("formatieoverzicht!X"&(N3+4))=1,INDIRECT("formatieoverzicht!AF"&(N3+4))=2),lesurenberekening!I12,IF(AND(INDIRECT("formatieoverzicht!X"&(N3+4))=1,INDIRECT("formatieoverzicht!AF"&(N3+4))=3),lesurenberekening!M12,IF(AND(INDIRECT("formatieoverzicht!X"&(N3+4))=3,INDIRECT("formatieoverzicht!AF"&(N3+4))=1),lesurenberekening!E12,IF(AND(INDIRECT("formatieoverzicht!X"&(N3+4))=3,INDIRECT("formatieoverzicht!AF"&(N3+4))=2),lesurenberekening!I12,IF(AND(INDIRECT("formatieoverzicht!X"&(N3+4))=3,INDIRECT("formatieoverzicht!AF"&(N3+4))=3),lesurenberekening!M12,0)))))) -> 0 | T10: =IF(AND(INDIRECT("formatieoverzicht!Y"&(N3+4))=1,INDIRECT("formatieoverzicht!AF"&(N3+4))=1),lesurenberekening!G12,IF(AND(INDIRECT("formatieoverzicht!Y"&(N3+4))=1,INDIRECT("formatieoverzicht!AF"&(N3+4))=2),lesurenberekening!K12,IF(AND(INDIRECT("formatieoverzicht!Y"&(N3+4))=1,INDIRECT("formatieoverzicht!AF"&(N3+4))=3),lesurenberekening!O12,IF(AND(INDIRECT("formatieoverzicht!Y"&(N3+4))=3,INDIRECT("formatieoverzicht!AF"&(N3+4))=1),lesurenberekening!G12,IF(AND(INDIRECT("formatieoverzicht!Y"&(N3+4))=3,INDIRECT("formatieoverzicht!AF"&(N3+4))=2),lesurenberekening!K12,IF(AND(INDIRECT("formatieoverzicht!Y"&(N3+4))=3,INDIRECT("formatieoverzicht!AF"&(N3+4))=3),lesurenberekening!O12,0)))))) -> 0 | V10: =H10+J10 -> 0
C11: woensdag | D11: =IF(INDIRECT("formatieoverzicht!Z"&(N3+4))=2,"A","") ->  | E11: 0.07291666667 | F11: =IF(INDIRECT("formatieoverzicht!AA"&(N3+4))=2,"A","") ->  | G11: =T11 -> 0 | H11: =IF(INDIRECT("formatieoverzicht!Z"&(N3+4))>0,lesurenberekening!E100,0) -> 0.25 | I11: 0.125 | J11: =IF(INDIRECT("formatieoverzicht!AA"&(N3+4))>0,lesurenberekening!G100,0) -> 0 | K11: bijzonder budget | M11: =INDIRECT("formatieoverzicht!K"&(4+N3)) -> 0 | N11: =INDIRECT("formatieoverzicht!R"&(4+N3)) -> 0 | P11: In deze rubrieken is alles automatisch berekend. | R11: =IF(AND(INDIRECT("formatieoverzicht!Z"&(N3+4))=1,INDIRECT("formatieoverzicht!AF"&(N3+4))=1),lesurenberekening!E13,IF(AND(INDIRECT("formatieoverzicht!Z"&(N3+4))=1,INDIRECT("formatieoverzicht!AF"&(N3+4))=2),lesurenberekening!I13,IF(AND(INDIRECT("formatieoverzicht!Z"&(N3+4))=1,INDIRECT("formatieoverzicht!AF"&(N3+4))=3),lesurenberekening!M13,IF(AND(INDIRECT("formatieoverzicht!Z"&(N3+4))=3,INDIRECT("formatieoverzicht!AF"&(N3+4))=1),lesurenberekening!E13,IF(AND(INDIRECT("formatieoverzicht!Z"&(N3+4))=3,INDIRECT("formatieoverzicht!AF"&(N3+4))=2),lesurenberekening!I13,IF(AND(INDIRECT("formatieoverzicht!Z"&(N3+4))=3,INDIRECT("formatieoverzicht!AF"&(N3+4))=3),lesurenberekening!M13,0)))))) -> 0.1458333333 | T11: =IF(AND(INDIRECT("formatieoverzicht!AA"&(N3+4))=1,INDIRECT("formatieoverzicht!AF"&(N3+4))=1),lesurenberekening!G13,IF(AND(INDIRECT("formatieoverzicht!AA"&(N3+4))=1,INDIRECT("formatieoverzicht!AF"&(N3+4))=2),lesurenberekening!K13,IF(AND(INDIRECT("formatieoverzicht!AA"&(N3+4))=1,INDIRECT("formatieoverzicht!AF"&(N3+4))=3),lesurenberekening!O13,IF(AND(INDIRECT("formatieoverzicht!AA"&(N3+4))=3,INDIRECT("formatieoverzicht!AF"&(N3+4))=1),lesurenberekening!G13,IF(AND(INDIRECT("formatieoverzicht!AA"&(N3+4))=3,INDIRECT("formatieoverzicht!AF"&(N3+4))=2),lesurenberekening!K13,IF(AND(INDIRECT("formatieoverzicht!AA"&(N3+4))=3,INDIRECT("formatieoverzicht!AF"&(N3+4))=3),lesurenberekening!O13,0)))))) -> 0 | V11: =H11+J11 -> 0.25
C12: donderdag | D12: =IF(INDIRECT("formatieoverzicht!AB"&(N3+4))=2,"A","") ->  | E12: =R12 -> 0.1354166667 | F12: =IF(INDIRECT("formatieoverzicht!AC"&(N3+4))=2,"A","") ->  | G12: =T12 -> 0.08333333333 | H12: =IF(INDIRECT("formatieoverzicht!AB"&(N3+4))>0,lesurenberekening!E101,0) -> 0.2083333333 | I12: =V12 -> 0.3541666667 | J12: =IF(INDIRECT("formatieoverzicht!AC"&(N3+4))>0,lesurenberekening!G101,0) -> 0.1458333333 | R12: =IF(AND(INDIRECT("formatieoverzicht!AB"&(N3+4))=1,INDIRECT("formatieoverzicht!AF"&(N3+4))=1),lesurenberekening!E14,IF(AND(INDIRECT("formatieoverzicht!AB"&(N3+4))=1,INDIRECT("formatieoverzicht!AF"&(N3+4))=2),lesurenberekening!I14,IF(AND(INDIRECT("formatieoverzicht!AB"&(N3+4))=1,INDIRECT("formatieoverzicht!AF"&(N3+4))=3),lesurenberekening!M14,IF(AND(INDIRECT("formatieoverzicht!AB"&(N3+4))=3,INDIRECT("formatieoverzicht!AF"&(N3+4))=1),lesurenberekening!E14,IF(AND(INDIRECT("formatieoverzicht!AB"&(N3+4))=3,INDIRECT("formatieoverzicht!AF"&(N3+4))=2),lesurenberekening!I14,IF(AND(INDIRECT("formatieoverzicht!AB"&(N3+4))=3,INDIRECT("formatieoverzicht!AF"&(N3+4))=3),lesurenberekening!M14,0)))))) -> 0.1354166667 | T12: =IF(AND(INDIRECT("formatieoverzicht!AC"&(N3+4))=1,INDIRECT("formatieoverzicht!AF"&(N3+4))=1),lesurenberekening!G14,IF(AND(INDIRECT("formatieoverzicht!AC"&(N3+4))=1,INDIRECT("formatieoverzicht!AF"&(N3+4))=2),lesurenberekening!K14,IF(AND(INDIRECT("formatieoverzicht!AC"&(N3+4))=1,INDIRECT("formatieoverzicht!AF"&(N3+4))=3),lesurenberekening!O14,IF(AND(INDIRECT("formatieoverzicht!AC"&(N3+4))=3,INDIRECT("formatieoverzicht!AF"&(N3+4))=1),lesurenberekening!G14,IF(AND(INDIRECT("formatieoverzicht!AC"&(N3+4))=3,INDIRECT("formatieoverzicht!AF"&(N3+4))=2),lesurenberekening!K14,IF(AND(INDIRECT("formatieoverzicht!AC"&(N3+4))=3,INDIRECT("formatieoverzicht!AF"&(N3+4))=3),lesurenberekening!O14,0)))))) -> 0.08333333333 | V12: =H12+J12 -> 0.3541666667
C13: vrijdag | D13: =IF(INDIRECT("formatieoverzicht!AD"&(N3+4))=2,"A","") ->  | E13: =R13 -> 0.1354166667 | F13: =IF(INDIRECT("formatieoverzicht!AE"&(N3+4))=2,"A","") ->  | G13: =T13 -> 0.08333333333 | H13: =IF(INDIRECT("formatieoverzicht!AD"&(N3+4))>0,lesurenberekening!E102,0) -> 0.2083333333 | I13: =V13 -> 0.3541666667 | J13: =IF(INDIRECT("formatieoverzicht!AE"&(N3+4))>0,lesurenberekening!G102,0) -> 0.1458333333 | K13: ingezet uit spaarsaldo | L13: + | M13: =INDIRECT("formatieoverzicht!M"&(4+N3)) -> 0 | P13: In rubriek A staat voor ambulante dagdelen een A. | R13: =IF(AND(INDIRECT("formatieoverzicht!AD"&(N3+4))=1,INDIRECT("formatieoverzicht!AF"&(N3+4))=1),lesurenberekening!E15,IF(AND(INDIRECT("formatieoverzicht!AD"&(N3+4))=1,INDIRECT("formatieoverzicht!AF"&(N3+4))=2),lesurenberekening!I15,IF(AND(INDIRECT("formatieoverzicht!AD"&(N3+4))=1,INDIRECT("formatieoverzicht!AF"&(N3+4))=3),lesurenberekening!M15,IF(AND(INDIRECT("formatieoverzicht!AD"&(N3+4))=3,INDIRECT("formatieoverzicht!AF"&(N3+4))=1),lesurenberekening!E15,IF(AND(INDIRECT("formatieoverzicht!AD"&(N3+4))=3,INDIRECT("formatieoverzicht!AF"&(N3+4))=2),lesurenberekening!I15,IF(AND(INDIRECT("formatieoverzicht!AD"&(N3+4))=3,INDIRECT("formatieoverzicht!AF"&(N3+4))=3),lesurenberekening!M15,0)))))) -> 0.1354166667 | T13: =IF(AND(INDIRECT("formatieoverzicht!AE"&(N3+4))=1,INDIRECT("formatieoverzicht!AF"&(N3+4))=1),lesurenberekening!G15,IF(AND(INDIRECT("formatieoverzicht!AE"&(N3+4))=1,INDIRECT("formatieoverzicht!AF"&(N3+4))=2),lesurenberekening!K15,IF(AND(INDIRECT("formatieoverzicht!AE"&(N3+4))=1,INDIRECT("formatieoverzicht!AF"&(N3+4))=3),lesurenberekening!O15,IF(AND(INDIRECT("formatieoverzicht!AE"&(N3+4))=3,INDIRECT("formatieoverzicht!AF"&(N3+4))=1),lesurenberekening!G15,IF(AND(INDIRECT("formatieoverzicht!AE"&(N3+4))=3,INDIRECT("formatieoverzicht!AF"&(N3+4))=2),lesurenberekening!K15,IF(AND(INDIRECT("formatieoverzicht!AE"&(N3+4))=3,INDIRECT("formatieoverzicht!AF"&(N3+4))=3),lesurenberekening!O15,0)))))) -> 0.08333333333 | V13: =H13+J13 -> 0.3541666667
K14: beschikbaar | M14: =M10+M11+M12+M13 -> 20 | N14: =SUM(N10:N13) -> 0 | P14: Indien noodzakelijk, kunnen in rubriek A de les- en arbeidsuren hand-
P15: matig worden aangepast. Klik op de resetknop eronder om de standaard-
G16: reset uren | K16: opgenomen verlof d.i. | M16: =INDIRECT("formatieoverzicht!O"&(4+N3)) -> 0 | P16: tijden en de koppeling met het werkblad lesurenberekening te herstellen.
C17: ingeroosterd per week | E17: =E9+G9+E10+G10+E11+G11+E12+G12+E13+G13 -> 0.5104166667 | I17: =SUM(I9:I13) -> 0.8333333333 | K17: waarvan lesuren | N17: =ROUND(MaxLestaak/1659*M16,0) -> 0
C18: in 52 weken | E18: =52*E17 -> 26.54166667 | I18: =52*I17 -> 43.33333333 | K18: sparen* | L18: _ | M18: =INDIRECT("formatieoverzicht!P"&(4+N3)) -> 0 | P18: E + F
B19: =WEEKDAY(CONCATENATE(C19,G4)) -> 1900-01-04 | C19: 29 september | D19: =IF(MOD(G4,4)=0,WEEKDAY(CONCATENATE(C19,G4),2),0) -> 0 | E19: =IF(D19=1,E9+G9,IF(D19=2,E10+G10,IF(D19=3,E11+G11,IF(D19=4,E12+G12,IF(D19=5,E13+G13,0))))) -> 0 | F19: (in schrikkeljaar) | I19: =IF(D19=1,I9,IF(D19=2,I10,IF(D19=3,I11,IF(D19=4,I12,IF(D19=5,I13,0))))) -> 0 | K19: over na aftrek verlof | M19: =INDIRECT("formatieoverzicht!T"&(4+N3)) -> 20 | P19: Hier kunnen de dagen en uren worden ingevuld waarop het teamlid nog
B20: =WEEKDAY(CONCATENATE(C20,G4)) -> 1900-01-05 | C20: 30 september | D20: =WEEKDAY(CONCATENATE(C20,G4),2) -> 4 | E20: =IF(D20=1,E9+G9,IF(D20=2,E10+G10,IF(D20=3,E11+G11,IF(D20=4,E12+G12,IF(D20=5,E13+G13,0))))) -> 0.21875 | F20: + | H20: + | I20: =IF(D20=1,I9,IF(D20=2,I10,IF(D20=3,I11,IF(D20=4,I12,IF(D20=5,I13,0))))) -> 0.3541666667 | P20: individueel wordt uit- of ingeroosterd.
C21: totaal A | E21: =E18+E19+E20 -> 26.76041667 | I21: =I18+I19+I20 -> 43.6875 | K21: ="spaarsaldo eind "&lesurenberekening!E5-1&"/"&lesurenberekening!G5-1 -> spaarsaldo eind 2025/2026 | M21: =INDIRECT("formatieoverzicht!U"&(4+N3)) -> 0
B22: B hele vakantieweken | E22: lesuren | G22: datum | I22: arbeidsuren | P22: Vul alle kolommen handmatig in. Denk om de dubbele punt achter de
K23: * Sparen tot 57 jr. : max. 3 jaar; vanaf 57 jr.: max. 5 jaar | P23: uren. Wanneer is afgesproken een aantal dagen door te werken in één
C24: herfstvakantie | D24: =lesurenberekening!D25 -> 1 | E24: =E17*D24 -> 0.5104166667 | G24: =lesurenberekening!E25 -> 17-10-26 | I24: =I17*D24 -> 0.8333333333 | K24: H ingeroosterde arbeidsuren | M24: wtf 1,0: | N24: =jaartaak -> 1659 | P24: of meer vakantieweken, vul je in F het totaal van die arbeidsuren in.
C25: kerstvakantie | D25: =lesurenberekening!D26 -> 2 | E25: =E17*D25 -> 1.020833333 | G25: =lesurenberekening!E26 -> 19-12-26 | I25: =I17*D25 -> 1.666666667 | O25: Volgens het inrooster- percentage voltijders
C26: voorjaarsvakantie | D26: =lesurenberekening!D27 -> 1 | E26: =E17*D26 -> 0.5104166667 | G26: =lesurenberekening!E27 -> 20-2-27 | I26: =I17*D26 -> 0.8333333333 | K26: bruto arbeidsduur (wtf x 1659) | M26: =ROUND(K5*jaartaak,0) -> 830 | P26: Wanneer je hier bij meerdere teamleden hetzelfde moet invullen, kun je
C27: meivakantie | D27: =lesurenberekening!D28 -> 2 | E27: =E17*D27 -> 1.020833333 | G27: =lesurenberekening!E28 -> 24-4-27 | I27: =I17*D27 -> 1.666666667 | K27: opgenomen verlof d.i. | L27: _ | M27: =M16 -> 0 | P27: dat op meerdere teamlidbladen tegelijk in één keer invullen.
C28: =lesurenberekening!C29 -> 0 | D28: =lesurenberekening!D29 -> 0 | E28: =E17*D28 -> 0 | G28: =lesurenberekening!E29 -> 00:00:00 | I28: =I17*D28 -> 0 | K28: netto arbeidsduur | M28: =M26-M27 -> 830
C29: zomervakantie | D29: =lesurenberekening!D30 -> 6 | E29: =E17*D29 -> 3.0625 | G29: =lesurenberekening!E30 -> 17-7-27 | I29: =I17*D29 -> 5 | K29: ingeroosterd: (A + F) - (B t/m E) | M29: =ROUND(((I21+I73)-(I30+I43+I55+I64))*24,0) -> 809 | O29: =ROUND(O31*M28,0) -> 797 | P29: G
C30: totaal af B | E30: =SUM(E24:E29) -> 6.125 | I30: =SUM(I24:I29) -> 10 | K30: =IF(lesurenberekening!E117="ja","verschil","") -> verschil | M30: =IF(lesurenberekening!E117="ja",(M29-M28),0) -> -21 | O30: =IF(O29<>0,O29-M28,0) -> -33 | P30: Het aantal lesuren dat een verlof PDI bevat is gebaseerd op artikel
B31: C hele vakantie (v) - of studiedagen (s) | E31: lesuren | G31: datum | I31: arbeidsuren | K31: =IF(lesurenberekening!E117="ja","inroosteringspercentage", "") -> inroosteringspercentage | M31: =ROUND(IF(lesurenberekening!E117="ja",IF(M28>0,M29/M28*100,0),0),1) -> 97.5 | N31: =IF(lesurenberekening!E117="ja","%","") -> % | O31: =lesurenberekening!E112*100&" %" -> 96 % | P31: 9.6 lid 6 (CAO-PO 2024). Het PDI-deel professionalisering blijft dus even
B32: =lesurenberekening!B34 -> 2027-03-26 | C32: =IF(lesurenberekening!C34="","",lesurenberekening!C34) -> goede vrijdag | D32: =lesurenberekening!D34 -> v | E32: =(INDIRECT("E"&8+F32)+INDIRECT("G"&8+F32)) -> 0.21875 | F32: =WEEKDAY(G32,2) -> 5 | G32: =lesurenberekening!E34 -> 2027-03-26 | I32: =IF(D32="v",INDIRECT("I"&8+F32),0) -> 0.3541666667 | P32: groot als vóór de verlofopname.
B33: =lesurenberekening!B35 -> 2027-05-06 | C33: =IF(lesurenberekening!C35="","",lesurenberekening!C35) -> hemelvaartsdag | D33: =lesurenberekening!D35 -> v | E33: =(INDIRECT("E"&8+F33)+INDIRECT("G"&8+F33)) -> 0.21875 | F33: =WEEKDAY(G33,2) -> 4 | G33: =lesurenberekening!E35 -> 2027-05-06 | I33: =IF(D33="v",INDIRECT("I"&8+F33),0) -> 0.3541666667 | K33: I ingeroosterde lesuren | M33: wtf 1,0: | N33: =MaxLestaak -> 940
B34: =lesurenberekening!B36 -> 2027-05-07 | C34: =IF(lesurenberekening!C36="","",lesurenberekening!C36) -> vrijdag na hemelvaartsdag | D34: =lesurenberekening!D36 -> v | E34: =(INDIRECT("E"&8+F34)+INDIRECT("G"&8+F34)) -> 0.21875 | F34: 5 | G34: =lesurenberekening!E36 -> 2027-05-07 | I34: =IF(D34="v",INDIRECT("I"&8+F34),0) -> 0.3541666667 | P34: H + I
B35: =lesurenberekening!B37 -> 2027-05-17 | C35: =IF(lesurenberekening!C37="","",lesurenberekening!C37) -> 2e pinksterdag | D35: =lesurenberekening!D37 -> v | E35: 0 | F35: 1 | G35: =lesurenberekening!E37 -> 2027-05-17 | I35: 0 | K35: maximale lestaak vlg. wtf | M35: =ROUND(K5*MaxLestaak,0) -> 470 | P35: De weergave van het inroosterverschil en het inroosterpercentage kan
B36: =lesurenberekening!B38 -> 2027-07-16 | C36: =IF(lesurenberekening!C38="","",lesurenberekening!C38) -> laatste dag voor zomervakantie | D36: =lesurenberekening!D38 -> v | E36: 0.21875 | F36: 5 | G36: =lesurenberekening!E38 -> 2027-07-16 | I36: 0.3541666667 | K36: lesuren opgenomen verlof d.i. | L36: _ | M36: =N17 -> 0 | P36: in rubriek G op het eerste werkblad Lesurenberekening aan of uit
B37: =lesurenberekening!B39 -> 2027-03-25 | C37: =IF(lesurenberekening!C39="","",lesurenberekening!C39) -> studiedag 1 | D37: =lesurenberekening!D39 -> s | E37: 0.21875 | F37: 4 | G37: =lesurenberekening!E39 -> 2027-03-25 | I37: 0 | K37: netto maximale lestaak | M37: =M35-M36 -> 470 | P37: worden gezet.
B38: =lesurenberekening!B40 -> 2027-04-27 | C38: =IF(lesurenberekening!C40="","",lesurenberekening!C40) -> studiedag 2 | D38: =lesurenberekening!D40 -> s | E38: 0 | F38: 2 | G38: =lesurenberekening!E40 -> 2027-04-27 | I38: 0 | K38: ingeroosterd: (A + F) - (B t/m E) | L38: _ | M38: =ROUND(((E21+E73)-(E30+E43+E55+E64))*24,0) -> 469
B39: =lesurenberekening!B41 ->  | C39: =IF(lesurenberekening!C41="","",lesurenberekening!C41) ->  | D39: =lesurenberekening!D41 -> 0 | E39: 0 | F39: 6 | G39: =lesurenberekening!E41 -> 00:00:00 | I39: 0 | K39: =IF(lesurenberekening!E117="ja","verschil","") -> verschil | M39: =IF(lesurenberekening!E118="ja",M38-M37,"") -> -1 | P39: Wanneer in rubriek G (instellingen) op het eerste werkblad Lesuren-
B40: =lesurenberekening!B42 ->  | C40: =IF(lesurenberekening!C42="","",lesurenberekening!C42) ->  | D40: =lesurenberekening!D42 -> 0 | E40: 0 | F40: 6 | G40: =lesurenberekening!E42 -> 00:00:00 | I40: 0 | K40: =IF(lesurenberekening!E118="ja"," inroosteringspercentage","") -> inroosteringspercentage | M40: =ROUND(IF(lesurenberekening!E118="ja",IF(M37>0,M38/M37*100,0),0),1) -> 99.8 | N40: =IF(lesurenberekening!E118="ja","%","") -> % | P40: berekening het inroosteringspercentage van de voltijders is ingevuld,
B41: =lesurenberekening!B43 ->  | C41: =IF(lesurenberekening!C43="","",lesurenberekening!C43) ->  | D41: =lesurenberekening!D43 -> 0 | E41: 0 | F41: 6 | G41: =lesurenberekening!E43 -> 00:00:00 | I41: 0 | P41: wordt naast rubriek H ter referentie het daaraan evenredig aantal in te
B42: =lesurenberekening!B44 ->  | C42: =IF(lesurenberekening!C44="","",lesurenberekening!C44) ->  | D42: =lesurenberekening!D44 -> 0 | E42: 0 | F42: 6 | G42: =lesurenberekening!E44 -> 00:00:00 | I42: 0 | K42: J opbouw ingeroosterde jaartaak | N42: =IF(M52>0,"na verlof-opname", "") ->  | P42: roosteren arbeidsuren getoond.
C43: totaal af C | E43: =SUM(E32:E42) -> 1.09375 | I43: =SUM(I32:I42) -> 1.416666667
B44: D overige dagdelen en uren | E44: lesuren | G44: datum | I44: arbeidsuren | K44: =IF(M58>0,"Inzet spaarsaldo PDI-budget","") ->  | M44: =M58 -> 0 | N44: =IF(M52>0,M58,0) -> 0 | O44: =IF(M52>0,N44,M44) -> 0 | P44: J
B45: =IF(G45="","",G45) -> 00:00:00 | C45: =lesurenberekening!C48 -> 0 | D45: =IF(G$7=1,lesurenberekening!G48,IF(G$7=2,lesurenberekening!I48,IF(G$7=3,lesurenberekening!K48,0))) -> 0 | E45: =IF((INDIRECT("E"&8+F45)+INDIRECT("G"&8+F45))<>0,D45,0) -> 0 | F45: =WEEKDAY(G45,2) -> 6 | G45: =lesurenberekening!E48 -> 00:00:00 | I45: =IF(AND(INDIRECT("I"&8+F45)<>0,E45<>0),lesurenberekening!O48,0) -> 0 | K45: PDI-budget dit schooljaar | M45: =IF(M52=0,(ROUND(K5*professionalisering,0)+M19)-M59,ROUND(K5*professionalisering,0)+M19) -> 62 | N45: =IF(M52>0,ROUND((N50/M50)*M45,0)-M59,0) -> 0 | O45: =IF(M52>0,N45,M45) -> 62 | P45: overige & ambulante (functie)taken
B46: =IF(G46="","",G46) -> 00:00:00 | C46: =lesurenberekening!C49 -> 0 | D46: =IF(G$7=1,lesurenberekening!G49,IF(G$7=2,lesurenberekening!I49,IF(G$7=3,lesurenberekening!K49,0))) -> 0 | E46: =IF((INDIRECT("E"&8+F46)+INDIRECT("G"&8+F46))<>0,D46,0) -> 0 | F46: =WEEKDAY(G46,2) -> 6 | G46: =lesurenberekening!E49 -> 00:00:00 | I46: =IF(AND(INDIRECT("I"&8+F46)<>0,E46<>0),lesurenberekening!O49,0) -> 0 | K46: ingeroosterde lestaak | M46: =M38 -> 469 | O46: =M46 -> 469 | P46: Wanneer er sprake is van ambulante uren, zal het aantal uren dat over-
B47: =IF(G47="","",G47) -> 00:00:00 | C47: =lesurenberekening!C50 -> 0 | D47: =IF(G$7=1,lesurenberekening!G50,IF(G$7=2,lesurenberekening!I50,IF(G$7=3,lesurenberekening!K50,0))) -> 0 | E47: =IF((INDIRECT("E"&8+F47)+INDIRECT("G"&8+F47))<>0,D47,0) -> 0 | F47: 6 | G47: =lesurenberekening!E50 -> 00:00:00 | I47: =IF(AND(INDIRECT("I"&8+F47)<>0,E47<>0),lesurenberekening!O50,0) -> 0 | K47: voor- en nawerk* | M47: =IF(N47=0,ROUND(nawerk*M46,0),ROUND(N47*M46,0)) -> 188 | O47: =M47 -> 188 | P47: blijft voor de overige taken groter zijn. Onderaan rubriek K kan
B48: 00:00:00 | C48: =lesurenberekening!C51 -> 0 | D48: =IF(G$7=1,lesurenberekening!G51,IF(G$7=2,lesurenberekening!I51,IF(G$7=3,lesurenberekening!K51,0))) -> 0 | E48: 0 | F48: 6 | G48: =lesurenberekening!E51 -> 00:00:00 | I48: =IF(AND(INDIRECT("I"&8+F48)<>0,E48<>0),lesurenberekening!O51,0) -> 0 | K48: =IF(COUNTIF(D9:F13,"A")>0,"overige & amb. taken","overige taken") -> overige taken | M48: =M50-(M44+M45+M46+M47) -> 111 | N48: =IF(M52>0,ROUND((N50/M50)*M48,0),M48) -> 111 | O48: =IF(M52>0,N48,M48) -> 111 | P48: het aantal uren voor de ambulante taken worden ingevuld; de over-
B49: 00:00:00 | C49: =lesurenberekening!C52 -> 0 | D49: =IF(G$7=1,lesurenberekening!G52,IF(G$7=2,lesurenberekening!I52,IF(G$7=3,lesurenberekening!K52,0))) -> 0 | E49: 0 | F49: 6 | G49: =lesurenberekening!E52 -> 00:00:00 | I49: =IF(AND(INDIRECT("I"&8+F49)<>0,E49<>0),lesurenberekening!O52,0) -> 0 | O49: =M48 -> 111 | P49: blijvende uren gaan dan naar de overige taken (zie rubriek C, pag. 2).
B50: =IF(G50="","",G50) -> 00:00:00 | C50: =lesurenberekening!C53 -> 0 | D50: =IF(G$7=1,lesurenberekening!G53,IF(G$7=2,lesurenberekening!I53,IF(G$7=3,lesurenberekening!K53,0))) -> 0 | E50: =IF((INDIRECT("E"&8+F50)+INDIRECT("G"&8+F50))<>0,D50,0) -> 0 | F50: 6 | G50: =lesurenberekening!E53 -> 00:00:00 | I50: =IF(AND(INDIRECT("I"&8+F50)<>0,E50<>0),lesurenberekening!O53,0) -> 0 | K50: netto arbeidsduur | M50: =M28 -> 830 | N50: =IF(M52>0,(M50-M52),0) -> 0
B51: =IF(G51="","",G51) -> 00:00:00 | C51: =lesurenberekening!C54 -> 0 | D51: =IF(G$7=1,lesurenberekening!G54,IF(G$7=2,lesurenberekening!I54,IF(G$7=3,lesurenberekening!K54,0))) -> 0 | E51: 0 | F51: 6 | G51: =lesurenberekening!E54 -> 00:00:00 | I51: =IF(AND(INDIRECT("I"&8+F51)<>0,E51<>0),lesurenberekening!O54,0) -> 0 | P51: verlofopname
B52: =IF(G52="","",G52) -> 00:00:00 | C52: =lesurenberekening!C55 -> 0 | D52: =IF(G$7=1,lesurenberekening!G55,IF(G$7=2,lesurenberekening!I55,IF(G$7=3,lesurenberekening!K55,0))) -> 0 | E52: 0 | F52: 6 | G52: =lesurenberekening!E55 -> 00:00:00 | I52: =IF(AND(INDIRECT("I"&8+F52)<>0,E52<>0),lesurenberekening!O55,0) -> 0 | K52: opname overig verlof dit schooljaar: | P52: Dit vakje mag slechts in bepaalde gevallen worden ingevuld. Klik op de
B53: =IF(G53="","",G53) -> 00:00:00 | C53: =lesurenberekening!C56 -> 0 | D53: =IF(G$7=1,lesurenberekening!G56,IF(G$7=2,lesurenberekening!I56,IF(G$7=3,lesurenberekening!K56,0))) -> 0 | E53: 0 | F53: 6 | G53: =lesurenberekening!E56 -> 00:00:00 | I53: =IF(AND(INDIRECT("I"&8+F53)<>0,E53<>0),lesurenberekening!O56,0) -> 0 | P53: icoon of houd de muisaanwijzer boven de tooltip voor meer informatie.
B54: 00:00:00 | C54: =lesurenberekening!C57 -> 0 | D54: =IF(G$7=1,lesurenberekening!G57,IF(G$7=2,lesurenberekening!I57,IF(G$7=3,lesurenberekening!K57,0))) -> 0 | E54: 0 | F54: 6 | G54: =lesurenberekening!E57 -> 00:00:00 | I54: =IF(AND(INDIRECT("I"&8+F54)<>0,E54<>0),lesurenberekening!O57,0) -> 0 | K54: *afgesproken reguliere opslagfactor: | N54: =nawerk -> 0.4
C55: totaal af D | E55: =SUM(E45:E54) -> 0 | I55: =SUM(I45:I54) -> 0 | K55: K PDI-budget en overige taken(zie inzet op pag. 2) | P55: voor- en nawerk
B56: E individueel uitgeroosterd | E56: lesuren | G56: datum | I56: arbeidsuren | K56: sparen PDI-budget | P56: In dit vakje kan een afwijkende individuele opslagfactor worden inge-
K57: Spaarsaldo eind vorig schooljaar | P57: vuld. Dit kan een grótere factor zijn bij beginnnende leerkrachten, of
K58: Inzet uit spaarsaldo in dit schooljaar | P58: juist een kleinere bij OOP'ers met lesondersteunende taken indien dat
K59: Te sparen in dit schooljaar | P59: is afgesproken.
K60: Spaarsaldo eind van dit schooljaar | M60: =(M57+M59)-M58 -> 0
K61: inzet PDI-budget | P61: K
N62: % | P62: Hier zie je in hoeverre de uren van deze twee taakonderdelen al met
K63: beschikbaar | M63: =IF(M52=0,(M44+M45),N44+N45) -> 62 | P63: activiteiten zijn gevuld op de tweede pagina van dit teamlidblad.
C64: totaal af E | E64: =SUM(E57:E63) -> 0 | I64: =SUM(I57:I63) -> 0 | K64: ingevuld | L64: _ | M64: =M109 -> 0 | N64: =IF(M63>0,IF(100,M64/M63*100,0),0) -> 0 | P64: Dit is ook te zien geheel rechts op het Formatieoverzicht.
B65: F individueel ingeroosterd | E65: lesuren | G65: datum | I65: arbeidsuren | K65: =IF(M63<0,"teveel ingepland","nog beschikbaar") -> nog beschikbaar | M65: =IF(M63<M64,0,N110) -> 62 | P65: In deze rubriek kun je ook het spaarsaldo (niet voor verlof) bijhouden en
C66: 3 dagen in zomervakantie | I66: 1.0625 | P66: de inzet uit of de inleg in het spaarsaldo invullen. De inzet van veel
C67: studiedag op dinsdag | G67: 2027-04-27 | I67: 0.3541666667 | K67: inzet overige taken | P67: gespaarde uren kan er toe leiden dat er geen of zelfs een negatief aantal
K68: beschikbaar | M68: =N48-M72 -> 111 | P68: overblijft' voor de overige taken. Dit kan dan alleeen worden opgelost
K69: ingevuld | L69: _ | M69: =M156 -> 104 | N69: =IF(M68>0,IF(100,M69/M68*100,0),0) -> 93.69369369 | P69: door zoveel lesuren uit te roosteren dat er een klein minimaal noodzake-
K70: =IF(M70<0,"teveel ingepland","nog beschikbaar") -> nog beschikbaar | M70: =IF(M68<M69,0,N157) -> 7 | P70: lijk aantal uren voor de overige taken overblijft.
K72: ambulante functietaken: | P72: ambulante functietaken
C73: totaal bij F | E73: =SUM(E66:E72) -> 0 | I73: =SUM(I66:I72) -> 1.416666667 | P73: Bij (deels) ambulante teamleden moeten de overblijvende uren verdeeld
B74: opmerkingen | E74: =((E21+E73)-(E30+E43+E55+E64)) -> 19.54166667 | G74: < ingeroosterd > | I74: =((I21+I73)-(I30+I43+I55+I64)) -> 33.6875 | P74: worden over de ambulante functietaken en de overige taken.
B75: De inroostering van deze duopartner van leerkracht 4 op basis van de vaste werkdagen, levert vrijwel precies de maximale lestaak op en een inroosterpercentage van de ingeroosterde arbeidsuren in werkdagen van 97,5%. Hier hoef je dus niets meer aan te veranderen. | P75: Vul, indien van toepassing, hier de uren voor de ambulante taken in, óf
P76: vul de verdeling op pag. 2 in rubriek C in (dus niet in beide tegelijk!).
P78: opmerkingenvak
P79: Druk op Alt+Enter voor een nieuwe regel.
P80: Dubbelklik op het vak wanneer niet de hele tekst zichtbaar is. Alleen het
P81: zichtbare deel wordt afgedrukt.
G82: 2e pagina
B83: OVERZICHT GEPLANDE ACTIVITEITEN PDI EN OVERIGE TAKEN | P83: Teamlidblad 2e pagina
P85: overzicht van geplande activiteiten en uren p.d.i. en overige taken
C86: schooljaar | E86: =E4 -> 2026 | F86: / | G86: =G4 -> 2027 | H86: naam: | K86: =K3 -> Everhart, Ina (wo om en om) | P86: Op deze pagina worden de geplande activiteiten en uren ingevuld.
P87: Een regel moet aan de linkerkant geselecteerd worden om in te vullen.
B88: A | C88: PDI-budget | K88: beschikbaar: | M88: uren | N88: =M63 -> 62 | P88: De uren worden hier als gewone hele getallen ingevoerd zonder
B89: 1 | P89: dubbele punt.
B90: 2
B91: 3 | P91: invoerformulier voor de activiteiten
B92: 4 | P92: Voor het maken van overzichten is het noodzakelijk dat activiteiten
B93: 5 | P93: uniform gespeld worden. Bovendien worden de overzichten gemaakt
B94: 6 | P94: op basis van de drie lijsten (zie de drie tabs onderaan het scherm).
B95: 7 | P95: Voer activiteiten daarom altijd zoveel mogelijk in via het activiteiten-
B96: 8 | P96: invoerformulier. Je roept dit formulier op door op een willekeurige plek
B97: 9 | P97: op de nummerrij te klikken.
B98: 10
B99: 11
B100: 12 | P100: HET ACTIVITEITENINVOERFORMULIER
B101: 13
B102: 14 | P102: Onderstaande informatie vind je ook door op de informatie-icoontjes op
B103: 15 | P103: het invoerformulier te klikken.
B104: 16
B105: 17 | P105: Lijstitem aan teamblad toevoegen
B106: 18 | P106: > Roep het formulier op door op de nummerrij te klikken en selecteer in
B107: 19 | P107: het vak Lijstkeuze de betreffende lijst.
B108: 20 | P108: > Klik op het pijltje aan het eind van de lege regel; de lijst verschijnt.
K109: totaal: | M109: =SUM(M89:M108) -> 0 | P109: > Selecteer een activiteit en klik in het vak Teamblad rubr. A of B de
N110: =N88-M109 -> 62 | P110: rubriek waaraan je de activiteit wilt toevoegen.
P111: >Klik op Toevoegen aan Teamlidblad (het aantal uren kan worden gewij-
P112: zigd, maar moet wel altijd zijn ingevuld).
P114: Nieuwe items aan een lijst én het teamlidblad toevoegen
P115: Nieuwe activiteiten kunnen gelijktijdig aan een lijst én aan een rubriek
P116: op het teamlidblad worden toegevoegd:
P117: > Selecteer in het vak Lijstkeuze een lijst en vul op de lege regel een
P118: activiteit + uren in.
P119: > Klik vervolgens op Toevoegen aan Lijst.
B120: B | C120: =K48 -> overige taken | K120: beschikbaar: | N120: =M68 -> 111 | P120: > Selecteer daarna in het vak daaronder de betreffende rubriek en
B121: 1 | C121: Afscheidsavond groep 8 | M121: 3 | P121: tenslotte op Toevoegen aan Teamlidblad.
B122: 2 | C122: Algemene ouderavond | M122: 2
B123: 3 | C123: Bouwvergaderingen 4 x 1:30 uur | M123: 6 | P123: De lijsten kunnen ook direct op de lijst zelf worden ingevuld. Aangeleg-
B124: 4 | C124: Coördinator Rekenen | M124: 20 | P124: de lijsten kunnen bij het ingebruiknemen van een nieuwe planner uit de
B125: 5 | C125: Kerstviering | M125: 3 | P125: oude planner met enkele muisklikken geïmporteerd worden.
B126: 6 | C126: Schoolverlatersactiviteiten | M126: 10
B127: 7 | C127: Studiedagen 2 x 5 uur | M127: 10 | P127: sortering
B128: 8 | C128: Teamvergaderingen 10 x 1:30 uur | M128: 15 | P128: Bij gebruik van het invoerformulier worden de items automatisch
B129: 9 | C129: Werkgroep Taal en Lezen | M129: 20 | P129: gesorteerd. Sorteer bij rechtstreeks invullen door op de sorteerpijlen
B130: 10 | C130: Werkgroep Wereldorientatie | M130: 15 | P130: bovenaan de pagina te klikken.
B131: 11
B132: 12 | P132: overzicht per activiteit
B133: 13 | P133: Met het invoerformulier kan ook een overzicht worden gemaakt van de
B134: 14 | P134: teamleden die eenzelfde activiteit gemeen hebben:
B135: 15 | P135: > Kies een lijst en een activiteit.
B136: 16 | P136: > Klik nu op de knop Teamoverzicht.
B137: 17 | P137: > Het overzicht wordt onderaan de gekozen lijst getoond.
B138: 18
B139: 19 | P139: overzicht van alle activiteiten overige taken van alle teamleden
B140: 20 | P140: Op het werkblad act.overzicht kun je een totaaloverzicht maken van alle
B141: 21 | P141: activiteiten en teamleden. Een leeg overzicht met alleen activiteiten kun je
B142: 22 | P142: aan het begin van het werkverdelingstraject als intekenlijst voor de overige
B143: 23 | P143: taken gebruiken.
B144: 24
B145: 25 | P145: Let op:
B146: 26 | P146: De op deze pagina vermelde activiteiten en uren zijn een specificatie
B147: 27 | P147: van de op de eerste pagina berekende uren voor deze twee taak-
B148: 28 | P148: onderdelen. Er mogen dus nooit méér uren worden ingepland dan er
B149: 29 | P149: beschikbaar zijn. Het aantal teveel ingeplande uren wordt in het rood
B150: 30 | P150: afgedrukt en mag niet genegeerd worden.
B151: 31
B152: 32
B153: 33
B154: 34
B155: 35
K156: totaal : | M156: =SUM(M121:M155) -> 104
K157: Nog beschikbaar: | N157: =N120-M156 -> 7

Sheet 6
B2: =lesurenberekening!I5 -> Voorbeelden | P2: toelichting teamlidblad OP en OOP met lesondersteunende taken
H3: naam: | K3: =INDIRECT("formatieoverzicht!C"&(4+N3)) -> Faassen, Han van (deels ambulant) | N3: =MID(CELL("bestandsnaam",A1),SEARCH("]",CELL("bestandsnaam",A1),1)+1,99) -> 6
E4: =lesurenberekening!E5 -> 2026 | F4: / | G4: =lesurenberekening!G5 -> 2027 | H4: aanstelling: | K4: =INDIRECT("formatieoverzicht!D"&(4+N3)) -> 1.333333333
B5: =INDIRECT("formatieoverzicht!AR"&(4+N3)) -> 0 | H5: wtf: | K5: =INDIRECT("formatieoverzicht!E"&(4+N3)) -> 0.8000000119 | P5: Klik op dit icoon voor meer informatie
B6: OVERZICHT IN- EN UITGEROOSTERDE LES- EN ARBEIDSUREN | K6: OVERZICHT GEPLANDE JAARTAAK
B7: A jaartotaal les- en arbeidsuren | E7: lestijd bouw: | G7: =INDIRECT("formatieoverzicht!"&"AF"&N3+4) -> 1 | I7: arbeidsuren | K7: G PDI-budget duurzame inzetbaarheid | P7: Dit teamlidblad is voor het OP en OOP met lesondersteunende en/of | R7: standaardtijden
E8: o | G8: m | P8: behandeltaken zoals een onderwijsassistent of logopedist. | R8: o | T8: m | V8: arb.uren
C9: maandag | D9: =IF(INDIRECT("formatieoverzicht!V"&(N3+4))=2,"A","") ->  | E9: =R9 -> 0.1354166667 | F9: =IF(INDIRECT("formatieoverzicht!W"&(N3+4))=2,"A","") ->  | G9: =T9 -> 0.08333333333 | H9: =IF(INDIRECT("formatieoverzicht!V"&(N3+4))>0,lesurenberekening!E98,0) -> 0.2083333333 | I9: =V9 -> 0.3541666667 | J9: =IF(INDIRECT("formatieoverzicht!W"&(N3+4))>0,lesurenberekening!G98,0) -> 0.1458333333 | M9: vlg. wtf | N9: opname | R9: =IF(AND(INDIRECT("formatieoverzicht!V"&(N3+4))=1,INDIRECT("formatieoverzicht!AF"&(N3+4))=1),lesurenberekening!E11,IF(AND(INDIRECT("formatieoverzicht!V"&(N3+4))=1,INDIRECT("formatieoverzicht!AF"&(N3+4))=2),lesurenberekening!I11,IF(AND(INDIRECT("formatieoverzicht!V"&(N3+4))=1,INDIRECT("formatieoverzicht!AF"&(N3+4))=3),lesurenberekening!M11,IF(AND(INDIRECT("formatieoverzicht!V"&(N3+4))=3,INDIRECT("formatieoverzicht!AF"&(N3+4))=1),lesurenberekening!E11,IF(AND(INDIRECT("formatieoverzicht!V"&(N3+4))=3,INDIRECT("formatieoverzicht!AF"&(N3+4))=2),lesurenberekening!I11,IF(AND(INDIRECT("formatieoverzicht!V"&(N3+4))=3,INDIRECT("formatieoverzicht!AF"&(N3+4))=3),lesurenberekening!M11,0)))))) -> 0.1354166667 | T9: =IF(AND(INDIRECT("formatieoverzicht!W"&(N3+4))=1,INDIRECT("formatieoverzicht!AF"&(N3+4))=1),lesurenberekening!G11,IF(AND(INDIRECT("formatieoverzicht!W"&(N3+4))=1,INDIRECT("formatieoverzicht!AF"&(N3+4))=2),lesurenberekening!K11,IF(AND(INDIRECT("formatieoverzicht!W"&(N3+4))=1,INDIRECT("formatieoverzicht!AF"&(N3+4))=3),lesurenberekening!O11,IF(AND(INDIRECT("formatieoverzicht!W"&(N3+4))=3,INDIRECT("formatieoverzicht!AF"&(N3+4))=1),lesurenberekening!G11,IF(AND(INDIRECT("formatieoverzicht!W"&(N3+4))=3,INDIRECT("formatieoverzicht!AF"&(N3+4))=2),lesurenberekening!K11,IF(AND(INDIRECT("formatieoverzicht!W"&(N3+4))=3,INDIRECT("formatieoverzicht!AF"&(N3+4))=3),lesurenberekening!O11,0)))))) -> 0.08333333333 | V9: =H9+J9 -> 0.3541666667
C10: dinsdag | D10: =IF(INDIRECT("formatieoverzicht!X"&(N3+4))=2,"A","") ->  | E10: =R10 -> 0.1354166667 | F10: =IF(INDIRECT("formatieoverzicht!Y"&(N3+4))=2,"A","") ->  | G10: =T10 -> 0.08333333333 | H10: =IF(INDIRECT("formatieoverzicht!X"&(N3+4))>0,lesurenberekening!E99,0) -> 0.2083333333 | I10: =V10 -> 0.3541666667 | J10: =IF(INDIRECT("formatieoverzicht!Y"&(N3+4))>0,lesurenberekening!G99,0) -> 0.1458333333 | K10: basisbudget | M10: =INDIRECT("formatieoverzicht!J"&(4+N3)) -> 32 | N10: =INDIRECT("formatieoverzicht!Q"&(4+N3)) -> 0 | P10: A t/m D | R10: =IF(AND(INDIRECT("formatieoverzicht!X"&(N3+4))=1,INDIRECT("formatieoverzicht!AF"&(N3+4))=1),lesurenberekening!E12,IF(AND(INDIRECT("formatieoverzicht!X"&(N3+4))=1,INDIRECT("formatieoverzicht!AF"&(N3+4))=2),lesurenberekening!I12,IF(AND(INDIRECT("formatieoverzicht!X"&(N3+4))=1,INDIRECT("formatieoverzicht!AF"&(N3+4))=3),lesurenberekening!M12,IF(AND(INDIRECT("formatieoverzicht!X"&(N3+4))=3,INDIRECT("formatieoverzicht!AF"&(N3+4))=1),lesurenberekening!E12,IF(AND(INDIRECT("formatieoverzicht!X"&(N3+4))=3,INDIRECT("formatieoverzicht!AF"&(N3+4))=2),lesurenberekening!I12,IF(AND(INDIRECT("formatieoverzicht!X"&(N3+4))=3,INDIRECT("formatieoverzicht!AF"&(N3+4))=3),lesurenberekening!M12,0)))))) -> 0.1354166667 | T10: =IF(AND(INDIRECT("formatieoverzicht!Y"&(N3+4))=1,INDIRECT("formatieoverzicht!AF"&(N3+4))=1),lesurenberekening!G12,IF(AND(INDIRECT("formatieoverzicht!Y"&(N3+4))=1,INDIRECT("formatieoverzicht!AF"&(N3+4))=2),lesurenberekening!K12,IF(AND(INDIRECT("formatieoverzicht!Y"&(N3+4))=1,INDIRECT("formatieoverzicht!AF"&(N3+4))=3),lesurenberekening!O12,IF(AND(INDIRECT("formatieoverzicht!Y"&(N3+4))=3,INDIRECT("formatieoverzicht!AF"&(N3+4))=1),lesurenberekening!G12,IF(AND(INDIRECT("formatieoverzicht!Y"&(N3+4))=3,INDIRECT("formatieoverzicht!AF"&(N3+4))=2),lesurenberekening!K12,IF(AND(INDIRECT("formatieoverzicht!Y"&(N3+4))=3,INDIRECT("formatieoverzicht!AF"&(N3+4))=3),lesurenberekening!O12,0)))))) -> 0.08333333333 | V10: =H10+J10 -> 0.3541666667
C11: woensdag | D11: =IF(INDIRECT("formatieoverzicht!Z"&(N3+4))=2,"A","") ->  | E11: =R11 -> 0.1458333333 | F11: =IF(INDIRECT("formatieoverzicht!AA"&(N3+4))=2,"A","") ->  | G11: =T11 -> 0 | H11: =IF(INDIRECT("formatieoverzicht!Z"&(N3+4))>0,lesurenberekening!E100,0) -> 0.25 | I11: =V11 -> 0.25 | J11: =IF(INDIRECT("formatieoverzicht!AA"&(N3+4))>0,lesurenberekening!G100,0) -> 0 | K11: bijzonder budget | M11: =INDIRECT("formatieoverzicht!K"&(4+N3)) -> 0 | N11: =INDIRECT("formatieoverzicht!R"&(4+N3)) -> 0 | P11: In deze rubrieken is alles automatisch berekend. | R11: =IF(AND(INDIRECT("formatieoverzicht!Z"&(N3+4))=1,INDIRECT("formatieoverzicht!AF"&(N3+4))=1),lesurenberekening!E13,IF(AND(INDIRECT("formatieoverzicht!Z"&(N3+4))=1,INDIRECT("formatieoverzicht!AF"&(N3+4))=2),lesurenberekening!I13,IF(AND(INDIRECT("formatieoverzicht!Z"&(N3+4))=1,INDIRECT("formatieoverzicht!AF"&(N3+4))=3),lesurenberekening!M13,IF(AND(INDIRECT("formatieoverzicht!Z"&(N3+4))=3,INDIRECT("formatieoverzicht!AF"&(N3+4))=1),lesurenberekening!E13,IF(AND(INDIRECT("formatieoverzicht!Z"&(N3+4))=3,INDIRECT("formatieoverzicht!AF"&(N3+4))=2),lesurenberekening!I13,IF(AND(INDIRECT("formatieoverzicht!Z"&(N3+4))=3,INDIRECT("formatieoverzicht!AF"&(N3+4))=3),lesurenberekening!M13,0)))))) -> 0.1458333333 | T11: =IF(AND(INDIRECT("formatieoverzicht!AA"&(N3+4))=1,INDIRECT("formatieoverzicht!AF"&(N3+4))=1),lesurenberekening!G13,IF(AND(INDIRECT("formatieoverzicht!AA"&(N3+4))=1,INDIRECT("formatieoverzicht!AF"&(N3+4))=2),lesurenberekening!K13,IF(AND(INDIRECT("formatieoverzicht!AA"&(N3+4))=1,INDIRECT("formatieoverzicht!AF"&(N3+4))=3),lesurenberekening!O13,IF(AND(INDIRECT("formatieoverzicht!AA"&(N3+4))=3,INDIRECT("formatieoverzicht!AF"&(N3+4))=1),lesurenberekening!G13,IF(AND(INDIRECT("formatieoverzicht!AA"&(N3+4))=3,INDIRECT("formatieoverzicht!AF"&(N3+4))=2),lesurenberekening!K13,IF(AND(INDIRECT("formatieoverzicht!AA"&(N3+4))=3,INDIRECT("formatieoverzicht!AF"&(N3+4))=3),lesurenberekening!O13,0)))))) -> 0 | V11: =H11+J11 -> 0.25
C12: donderdag | D12: =IF(INDIRECT("formatieoverzicht!AB"&(N3+4))=2,"A","") -> A | E12: =R12 -> 0 | F12: =IF(INDIRECT("formatieoverzicht!AC"&(N3+4))=2,"A","") -> A | G12: =T12 -> 0 | H12: =IF(INDIRECT("formatieoverzicht!AB"&(N3+4))>0,lesurenberekening!E101,0) -> 0.2083333333 | I12: =V12 -> 0.3541666667 | J12: =IF(INDIRECT("formatieoverzicht!AC"&(N3+4))>0,lesurenberekening!G101,0) -> 0.1458333333 | R12: =IF(AND(INDIRECT("formatieoverzicht!AB"&(N3+4))=1,INDIRECT("formatieoverzicht!AF"&(N3+4))=1),lesurenberekening!E14,IF(AND(INDIRECT("formatieoverzicht!AB"&(N3+4))=1,INDIRECT("formatieoverzicht!AF"&(N3+4))=2),lesurenberekening!I14,IF(AND(INDIRECT("formatieoverzicht!AB"&(N3+4))=1,INDIRECT("formatieoverzicht!AF"&(N3+4))=3),lesurenberekening!M14,IF(AND(INDIRECT("formatieoverzicht!AB"&(N3+4))=3,INDIRECT("formatieoverzicht!AF"&(N3+4))=1),lesurenberekening!E14,IF(AND(INDIRECT("formatieoverzicht!AB"&(N3+4))=3,INDIRECT("formatieoverzicht!AF"&(N3+4))=2),lesurenberekening!I14,IF(AND(INDIRECT("formatieoverzicht!AB"&(N3+4))=3,INDIRECT("formatieoverzicht!AF"&(N3+4))=3),lesurenberekening!M14,0)))))) -> 0 | T12: =IF(AND(INDIRECT("formatieoverzicht!AC"&(N3+4))=1,INDIRECT("formatieoverzicht!AF"&(N3+4))=1),lesurenberekening!G14,IF(AND(INDIRECT("formatieoverzicht!AC"&(N3+4))=1,INDIRECT("formatieoverzicht!AF"&(N3+4))=2),lesurenberekening!K14,IF(AND(INDIRECT("formatieoverzicht!AC"&(N3+4))=1,INDIRECT("formatieoverzicht!AF"&(N3+4))=3),lesurenberekening!O14,IF(AND(INDIRECT("formatieoverzicht!AC"&(N3+4))=3,INDIRECT("formatieoverzicht!AF"&(N3+4))=1),lesurenberekening!G14,IF(AND(INDIRECT("formatieoverzicht!AC"&(N3+4))=3,INDIRECT("formatieoverzicht!AF"&(N3+4))=2),lesurenberekening!K14,IF(AND(INDIRECT("formatieoverzicht!AC"&(N3+4))=3,INDIRECT("formatieoverzicht!AF"&(N3+4))=3),lesurenberekening!O14,0)))))) -> 0 | V12: =H12+J12 -> 0.3541666667
C13: vrijdag | D13: =IF(INDIRECT("formatieoverzicht!AD"&(N3+4))=2,"A","") ->  | E13: =R13 -> 0 | F13: =IF(INDIRECT("formatieoverzicht!AE"&(N3+4))=2,"A","") ->  | G13: =T13 -> 0 | H13: =IF(INDIRECT("formatieoverzicht!AD"&(N3+4))>0,lesurenberekening!E102,0) -> 0 | I13: =V13 -> 0 | J13: =IF(INDIRECT("formatieoverzicht!AE"&(N3+4))>0,lesurenberekening!G102,0) -> 0 | K13: ingezet uit spaarsaldo | L13: + | M13: =INDIRECT("formatieoverzicht!M"&(4+N3)) -> 0 | P13: In rubriek A staat voor ambulante dagdelen een A. | R13: =IF(AND(INDIRECT("formatieoverzicht!AD"&(N3+4))=1,INDIRECT("formatieoverzicht!AF"&(N3+4))=1),lesurenberekening!E15,IF(AND(INDIRECT("formatieoverzicht!AD"&(N3+4))=1,INDIRECT("formatieoverzicht!AF"&(N3+4))=2),lesurenberekening!I15,IF(AND(INDIRECT("formatieoverzicht!AD"&(N3+4))=1,INDIRECT("formatieoverzicht!AF"&(N3+4))=3),lesurenberekening!M15,IF(AND(INDIRECT("formatieoverzicht!AD"&(N3+4))=3,INDIRECT("formatieoverzicht!AF"&(N3+4))=1),lesurenberekening!E15,IF(AND(INDIRECT("formatieoverzicht!AD"&(N3+4))=3,INDIRECT("formatieoverzicht!AF"&(N3+4))=2),lesurenberekening!I15,IF(AND(INDIRECT("formatieoverzicht!AD"&(N3+4))=3,INDIRECT("formatieoverzicht!AF"&(N3+4))=3),lesurenberekening!M15,0)))))) -> 0 | T13: =IF(AND(INDIRECT("formatieoverzicht!AE"&(N3+4))=1,INDIRECT("formatieoverzicht!AF"&(N3+4))=1),lesurenberekening!G15,IF(AND(INDIRECT("formatieoverzicht!AE"&(N3+4))=1,INDIRECT("formatieoverzicht!AF"&(N3+4))=2),lesurenberekening!K15,IF(AND(INDIRECT("formatieoverzicht!AE"&(N3+4))=1,INDIRECT("formatieoverzicht!AF"&(N3+4))=3),lesurenberekening!O15,IF(AND(INDIRECT("formatieoverzicht!AE"&(N3+4))=3,INDIRECT("formatieoverzicht!AF"&(N3+4))=1),lesurenberekening!G15,IF(AND(INDIRECT("formatieoverzicht!AE"&(N3+4))=3,INDIRECT("formatieoverzicht!AF"&(N3+4))=2),lesurenberekening!K15,IF(AND(INDIRECT("formatieoverzicht!AE"&(N3+4))=3,INDIRECT("formatieoverzicht!AF"&(N3+4))=3),lesurenberekening!O15,0)))))) -> 0 | V13: =H13+J13 -> 0
K14: beschikbaar | M14: =M10+M11+M12+M13 -> 32 | N14: =SUM(N10:N13) -> 0 | P14: Indien noodzakelijk, kunnen in rubriek A de les- en arbeidsuren hand-
P15: matig worden aangepast. Klik op de resetknop eronder om de standaard-
G16: reset uren | K16: opgenomen verlof d.i. | M16: =INDIRECT("formatieoverzicht!O"&(4+N3)) -> 0 | P16: tijden en de koppeling met het werkblad lesurenberekening te herstellen.
C17: ingeroosterd per week | E17: =E9+G9+E10+G10+E11+G11+E12+G12+E13+G13 -> 0.5833333333 | I17: =SUM(I9:I13) -> 1.3125 | K17: waarvan lesuren | N17: =ROUND(MaxLestaak/1659*M16,0) -> 0
C18: in 52 weken | E18: =52*E17 -> 30.33333333 | I18: =52*I17 -> 68.25 | K18: sparen* | L18: _ | M18: =INDIRECT("formatieoverzicht!P"&(4+N3)) -> 0 | P18: E + F
B19: =WEEKDAY(CONCATENATE(C19,G4)) -> 1900-01-04 | C19: 29 september | D19: =IF(MOD(G4,4)=0,WEEKDAY(CONCATENATE(C19,G4),2),0) -> 0 | E19: =IF(D19=1,E9+G9,IF(D19=2,E10+G10,IF(D19=3,E11+G11,IF(D19=4,E12+G12,IF(D19=5,E13+G13,0))))) -> 0 | F19: (in schrikkeljaar) | I19: =IF(D19=1,I9,IF(D19=2,I10,IF(D19=3,I11,IF(D19=4,I12,IF(D19=5,I13,0))))) -> 0 | K19: over na aftrek verlof | M19: =INDIRECT("formatieoverzicht!T"&(4+N3)) -> 32 | P19: Hier kunnen de dagen en uren worden ingevuld waarop het teamlid nog
B20: =WEEKDAY(CONCATENATE(C20,G4)) -> 1900-01-05 | C20: 30 september | D20: =WEEKDAY(CONCATENATE(C20,G4),2) -> 4 | E20: =IF(D20=1,E9+G9,IF(D20=2,E10+G10,IF(D20=3,E11+G11,IF(D20=4,E12+G12,IF(D20=5,E13+G13,0))))) -> 0 | F20: + | H20: + | I20: =IF(D20=1,I9,IF(D20=2,I10,IF(D20=3,I11,IF(D20=4,I12,IF(D20=5,I13,0))))) -> 0.3541666667 | P20: individueel wordt uit- of ingeroosterd.
C21: totaal A | E21: =E18+E19+E20 -> 30.33333333 | I21: =I18+I19+I20 -> 68.60416667 | K21: ="spaarsaldo eind "&lesurenberekening!E5-1&"/"&lesurenberekening!G5-1 -> spaarsaldo eind 2025/2026 | M21: =INDIRECT("formatieoverzicht!U"&(4+N3)) -> 0
B22: B hele vakantieweken | E22: lesuren | G22: datum | I22: arbeidsuren | P22: Vul alle kolommen handmatig in. Denk om de dubbele punt achter de
K23: * Sparen tot 57 jr. : max. 3 jaar; vanaf 57 jr.: max. 5 jaar | P23: uren. Wanneer is afgesproken een aantal dagen door te werken in één
C24: herfstvakantie | D24: =lesurenberekening!D25 -> 1 | E24: =E17*D24 -> 0.5833333333 | G24: =lesurenberekening!E25 -> 17-10-26 | I24: =I17*D24 -> 1.3125 | K24: H ingeroosterde arbeidsuren | M24: wtf 1,0: | N24: =jaartaak -> 1659 | P24: of meer vakantieweken, vul je in F het totaal van die arbeidsuren in.
C25: kerstvakantie | D25: =lesurenberekening!D26 -> 2 | E25: =E17*D25 -> 1.166666667 | G25: =lesurenberekening!E26 -> 19-12-26 | I25: =I17*D25 -> 2.625 | O25: Volgens het inrooster- percentage voltijders
C26: voorjaarsvakantie | D26: =lesurenberekening!D27 -> 1 | E26: =E17*D26 -> 0.5833333333 | G26: =lesurenberekening!E27 -> 20-2-27 | I26: =I17*D26 -> 1.3125 | K26: bruto arbeidsduur (wtf x 1659) | M26: =ROUND(K5*jaartaak,0) -> 1327 | P26: Wanneer je hier bij meerdere teamleden hetzelfde moet invullen, kun je
C27: meivakantie | D27: =lesurenberekening!D28 -> 2 | E27: =E17*D27 -> 1.166666667 | G27: =lesurenberekening!E28 -> 24-4-27 | I27: =I17*D27 -> 2.625 | K27: opgenomen verlof d.i. | L27: _ | M27: =M16 -> 0 | P27: dat op meerdere teamlidbladen tegelijk in één keer invullen.
C28: =lesurenberekening!C29 -> 0 | D28: =lesurenberekening!D29 -> 0 | E28: =E17*D28 -> 0 | G28: =lesurenberekening!E29 -> 00:00:00 | I28: =I17*D28 -> 0 | K28: netto arbeidsduur | M28: =M26-M27 -> 1327
C29: zomervakantie | D29: =lesurenberekening!D30 -> 6 | E29: =E17*D29 -> 3.5 | G29: =lesurenberekening!E30 -> 17-7-27 | I29: =I17*D29 -> 7.875 | K29: ingeroosterd: (A + F) - (B t/m E) | M29: =ROUND(((I21+I73)-(I30+I43+I55+I64))*24,0) -> 1277 | O29: =ROUND(O31*M28,0) -> 1274 | P29: G
C30: totaal af B | E30: =SUM(E24:E29) -> 7 | I30: =SUM(I24:I29) -> 15.75 | K30: =IF(lesurenberekening!E117="ja","verschil","") -> verschil | M30: =IF(lesurenberekening!E117="ja",(M29-M28),0) -> -50 | O30: =IF(O29<>0,O29-M28,0) -> -53 | P30: Het aantal lesuren dat een verlof PDI bevat is gebaseerd op artikel
B31: C hele vakantie (v) - of studiedagen (s) | E31: lesuren | G31: datum | I31: arbeidsuren | K31: =IF(lesurenberekening!E117="ja","inroosteringspercentage", "") -> inroosteringspercentage | M31: =ROUND(IF(lesurenberekening!E117="ja",IF(M28>0,M29/M28*100,0),0),1) -> 96.2 | N31: =IF(lesurenberekening!E117="ja","%","") -> % | O31: =lesurenberekening!E112*100&" %" -> 96 % | P31: 9.6 lid 6 (CAO-PO 2024). Het PDI-deel professionalisering blijft dus even
B32: =lesurenberekening!B34 -> 2027-03-26 | C32: =IF(lesurenberekening!C34="","",lesurenberekening!C34) -> goede vrijdag | D32: =lesurenberekening!D34 -> v | E32: =(INDIRECT("E"&8+F32)+INDIRECT("G"&8+F32)) -> 0 | F32: =WEEKDAY(G32,2) -> 5 | G32: =lesurenberekening!E34 -> 2027-03-26 | I32: =IF(D32="v",INDIRECT("I"&8+F32),0) -> 0 | P32: groot als vóór de verlofopname.
B33: =lesurenberekening!B35 -> 2027-05-06 | C33: =IF(lesurenberekening!C35="","",lesurenberekening!C35) -> hemelvaartsdag | D33: =lesurenberekening!D35 -> v | E33: =(INDIRECT("E"&8+F33)+INDIRECT("G"&8+F33)) -> 0 | F33: =WEEKDAY(G33,2) -> 4 | G33: =lesurenberekening!E35 -> 2027-05-06 | I33: =IF(D33="v",INDIRECT("I"&8+F33),0) -> 0.3541666667 | K33: I ingeroosterde lesuren | M33: wtf 1,0: | N33: =MaxLestaak -> 940
B34: =lesurenberekening!B36 -> 2027-05-07 | C34: =IF(lesurenberekening!C36="","",lesurenberekening!C36) -> vrijdag na hemelvaartsdag | D34: =lesurenberekening!D36 -> v | E34: =(INDIRECT("E"&8+F34)+INDIRECT("G"&8+F34)) -> 0 | F34: 5 | G34: =lesurenberekening!E36 -> 2027-05-07 | I34: =IF(D34="v",INDIRECT("I"&8+F34),0) -> 0 | P34: H + I
B35: =lesurenberekening!B37 -> 2027-05-17 | C35: =IF(lesurenberekening!C37="","",lesurenberekening!C37) -> 2e pinksterdag | D35: =lesurenberekening!D37 -> v | E35: 0.21875 | F35: 1 | G35: =lesurenberekening!E37 -> 2027-05-17 | I35: 0.3541666667 | K35: maximale lestaak vlg. wtf | M35: =ROUND(K5*MaxLestaak,0) -> 752 | P35: De weergave van het inroosterverschil en het inroosterpercentage kan
B36: =lesurenberekening!B38 -> 2027-07-16 | C36: =IF(lesurenberekening!C38="","",lesurenberekening!C38) -> laatste dag voor zomervakantie | D36: =lesurenberekening!D38 -> v | E36: 0 | F36: 5 | G36: =lesurenberekening!E38 -> 2027-07-16 | I36: 0 | K36: lesuren opgenomen verlof d.i. | L36: _ | M36: =N17 -> 0 | P36: in rubriek G op het eerste werkblad Lesurenberekening aan of uit
B37: =lesurenberekening!B39 -> 2027-03-25 | C37: =IF(lesurenberekening!C39="","",lesurenberekening!C39) -> studiedag 1 | D37: =lesurenberekening!D39 -> s | E37: 0 | F37: 4 | G37: =lesurenberekening!E39 -> 2027-03-25 | I37: 0 | K37: netto maximale lestaak | M37: =M35-M36 -> 752 | P37: worden gezet.
B38: =lesurenberekening!B40 -> 2027-04-27 | C38: =IF(lesurenberekening!C40="","",lesurenberekening!C40) -> studiedag 2 | D38: =lesurenberekening!D40 -> s | E38: 0.21875 | F38: 2 | G38: =lesurenberekening!E40 -> 2027-04-27 | I38: 0 | K38: ingeroosterd: (A + F) - (B t/m E) | L38: _ | M38: =ROUND(((E21+E73)-(E30+E43+E55+E64))*24,0) -> 550
B39: =lesurenberekening!B41 ->  | C39: =IF(lesurenberekening!C41="","",lesurenberekening!C41) ->  | D39: =lesurenberekening!D41 -> 0 | E39: 0 | F39: 6 | G39: =lesurenberekening!E41 -> 00:00:00 | I39: 0 | K39: =IF(lesurenberekening!E117="ja","verschil","") -> verschil | M39: =IF(lesurenberekening!E118="ja",M38-M37,"") -> -202 | P39: Wanneer in rubriek G (instellingen) op het eerste werkblad Lesuren-
B40: =lesurenberekening!B42 ->  | C40: =IF(lesurenberekening!C42="","",lesurenberekening!C42) ->  | D40: =lesurenberekening!D42 -> 0 | E40: 0 | F40: 6 | G40: =lesurenberekening!E42 -> 00:00:00 | I40: 0 | K40: =IF(lesurenberekening!E118="ja"," inroosteringspercentage","") -> inroosteringspercentage | M40: =ROUND(IF(lesurenberekening!E118="ja",IF(M37>0,M38/M37*100,0),0),1) -> 73.1 | N40: =IF(lesurenberekening!E118="ja","%","") -> % | P40: berekening het inroosteringspercentage van de voltijders is ingevuld,
B41: =lesurenberekening!B43 ->  | C41: =IF(lesurenberekening!C43="","",lesurenberekening!C43) ->  | D41: =lesurenberekening!D43 -> 0 | E41: 0 | F41: 6 | G41: =lesurenberekening!E43 -> 00:00:00 | I41: 0 | P41: wordt naast rubriek H ter referentie het daaraan evenredig aantal in te
B42: =lesurenberekening!B44 ->  | C42: =IF(lesurenberekening!C44="","",lesurenberekening!C44) ->  | D42: =lesurenberekening!D44 -> 0 | E42: 0 | F42: 6 | G42: =lesurenberekening!E44 -> 00:00:00 | I42: 0 | K42: J opbouw ingeroosterde jaartaak | N42: =IF(M52>0,"na verlof-opname", "") ->  | P42: roosteren arbeidsuren getoond.
C43: totaal af C | E43: =SUM(E32:E42) -> 0.4375 | I43: =SUM(I32:I42) -> 0.7083333333
B44: D overige dagdelen en uren | E44: lesuren | G44: datum | I44: arbeidsuren | K44: =IF(M58>0,"Inzet spaarsaldo PDI-budget","") ->  | M44: =M58 -> 0 | N44: =IF(M52>0,M58,0) -> 0 | O44: =IF(M52>0,N44,M44) -> 0 | P44: J
B45: =IF(G45="","",G45) -> 00:00:00 | C45: =lesurenberekening!C48 -> 0 | D45: =IF(G$7=1,lesurenberekening!G48,IF(G$7=2,lesurenberekening!I48,IF(G$7=3,lesurenberekening!K48,0))) -> 0 | E45: =IF((INDIRECT("E"&8+F45)+INDIRECT("G"&8+F45))<>0,D45,0) -> 0 | F45: =WEEKDAY(G45,2) -> 6 | G45: =lesurenberekening!E48 -> 00:00:00 | I45: =IF(AND(INDIRECT("I"&8+F45)<>0,E45<>0),lesurenberekening!O48,0) -> 0 | K45: PDI-budget dit schooljaar | M45: =IF(M52=0,(ROUND(K5*professionalisering,0)+M19)-M59,ROUND(K5*professionalisering,0)+M19) -> 98 | N45: =IF(M52>0,ROUND((N50/M50)*M45,0)-M59,0) -> 0 | O45: =IF(M52>0,N45,M45) -> 98 | P45: overige & ambulante (functie)taken
B46: =IF(G46="","",G46) -> 00:00:00 | C46: =lesurenberekening!C49 -> 0 | D46: =IF(G$7=1,lesurenberekening!G49,IF(G$7=2,lesurenberekening!I49,IF(G$7=3,lesurenberekening!K49,0))) -> 0 | E46: =IF((INDIRECT("E"&8+F46)+INDIRECT("G"&8+F46))<>0,D46,0) -> 0 | F46: =WEEKDAY(G46,2) -> 6 | G46: =lesurenberekening!E49 -> 00:00:00 | I46: =IF(AND(INDIRECT("I"&8+F46)<>0,E46<>0),lesurenberekening!O49,0) -> 0 | K46: ingeroosterde lestaak | M46: =M38 -> 550 | O46: =M46 -> 550 | P46: Wanneer er sprake is van ambulante uren, zal het aantal uren dat over-
B47: =IF(G47="","",G47) -> 00:00:00 | C47: =lesurenberekening!C50 -> 0 | D47: =IF(G$7=1,lesurenberekening!G50,IF(G$7=2,lesurenberekening!I50,IF(G$7=3,lesurenberekening!K50,0))) -> 0 | E47: =IF((INDIRECT("E"&8+F47)+INDIRECT("G"&8+F47))<>0,D47,0) -> 0 | F47: 6 | G47: =lesurenberekening!E50 -> 00:00:00 | I47: =IF(AND(INDIRECT("I"&8+F47)<>0,E47<>0),lesurenberekening!O50,0) -> 0 | K47: voor- en nawerk* | M47: =IF(N47=0,ROUND(nawerk*M46,0),ROUND(N47*M46,0)) -> 220 | O47: =M47 -> 220 | P47: blijft voor de overige taken groter zijn. Onderaan rubriek K kan
B48: 00:00:00 | C48: =lesurenberekening!C51 -> 0 | D48: =IF(G$7=1,lesurenberekening!G51,IF(G$7=2,lesurenberekening!I51,IF(G$7=3,lesurenberekening!K51,0))) -> 0 | E48: 0 | F48: 6 | G48: =lesurenberekening!E51 -> 00:00:00 | I48: =IF(AND(INDIRECT("I"&8+F48)<>0,E48<>0),lesurenberekening!O51,0) -> 0 | K48: =IF(COUNTIF(D9:F13,"A")>0,"overige & amb. taken","overige taken") -> overige & amb. taken | M48: =M50-(M44+M45+M46+M47) -> 459 | N48: =IF(M52>0,ROUND((N50/M50)*M48,0),M48) -> 459 | O48: =IF(M52>0,N48,M48) -> 459 | P48: het aantal uren voor de ambulante taken worden ingevuld; de over-
B49: 00:00:00 | C49: =lesurenberekening!C52 -> 0 | D49: =IF(G$7=1,lesurenberekening!G52,IF(G$7=2,lesurenberekening!I52,IF(G$7=3,lesurenberekening!K52,0))) -> 0 | E49: 0 | F49: 6 | G49: =lesurenberekening!E52 -> 00:00:00 | I49: =IF(AND(INDIRECT("I"&8+F49)<>0,E49<>0),lesurenberekening!O52,0) -> 0 | O49: =M48 -> 459 | P49: blijvende uren gaan dan naar de overige taken (zie rubriek C, pag. 2).
B50: =IF(G50="","",G50) -> 00:00:00 | C50: =lesurenberekening!C53 -> 0 | D50: =IF(G$7=1,lesurenberekening!G53,IF(G$7=2,lesurenberekening!I53,IF(G$7=3,lesurenberekening!K53,0))) -> 0 | E50: =IF((INDIRECT("E"&8+F50)+INDIRECT("G"&8+F50))<>0,D50,0) -> 0 | F50: 6 | G50: =lesurenberekening!E53 -> 00:00:00 | I50: =IF(AND(INDIRECT("I"&8+F50)<>0,E50<>0),lesurenberekening!O53,0) -> 0 | K50: netto arbeidsduur | M50: =M28 -> 1327 | N50: =IF(M52>0,(M50-M52),0) -> 0
B51: =IF(G51="","",G51) -> 00:00:00 | C51: =lesurenberekening!C54 -> 0 | D51: =IF(G$7=1,lesurenberekening!G54,IF(G$7=2,lesurenberekening!I54,IF(G$7=3,lesurenberekening!K54,0))) -> 0 | E51: 0 | F51: 6 | G51: =lesurenberekening!E54 -> 00:00:00 | I51: =IF(AND(INDIRECT("I"&8+F51)<>0,E51<>0),lesurenberekening!O54,0) -> 0 | P51: verlofopname
B52: =IF(G52="","",G52) -> 00:00:00 | C52: =lesurenberekening!C55 -> 0 | D52: =IF(G$7=1,lesurenberekening!G55,IF(G$7=2,lesurenberekening!I55,IF(G$7=3,lesurenberekening!K55,0))) -> 0 | E52: 0 | F52: 6 | G52: =lesurenberekening!E55 -> 00:00:00 | I52: =IF(AND(INDIRECT("I"&8+F52)<>0,E52<>0),lesurenberekening!O55,0) -> 0 | K52: opname overig verlof dit schooljaar: | P52: Dit vakje mag slechts in bepaalde gevallen worden ingevuld. Klik op de
B53: =IF(G53="","",G53) -> 00:00:00 | C53: =lesurenberekening!C56 -> 0 | D53: =IF(G$7=1,lesurenberekening!G56,IF(G$7=2,lesurenberekening!I56,IF(G$7=3,lesurenberekening!K56,0))) -> 0 | E53: 0 | F53: 6 | G53: =lesurenberekening!E56 -> 00:00:00 | I53: =IF(AND(INDIRECT("I"&8+F53)<>0,E53<>0),lesurenberekening!O56,0) -> 0 | P53: icoon of houd de muisaanwijzer boven de tooltip voor meer informatie.
B54: 00:00:00 | C54: =lesurenberekening!C57 -> 0 | D54: =IF(G$7=1,lesurenberekening!G57,IF(G$7=2,lesurenberekening!I57,IF(G$7=3,lesurenberekening!K57,0))) -> 0 | E54: 0 | F54: 6 | G54: =lesurenberekening!E57 -> 00:00:00 | I54: =IF(AND(INDIRECT("I"&8+F54)<>0,E54<>0),lesurenberekening!O57,0) -> 0 | K54: *afgesproken reguliere opslagfactor: | N54: =nawerk -> 0.4
C55: totaal af D | E55: =SUM(E45:E54) -> 0 | I55: =SUM(I45:I54) -> 0 | K55: K PDI-budget en overige taken(zie inzet op pag. 2) | P55: voor- en nawerk
B56: E individueel uitgeroosterd | E56: lesuren | G56: datum | I56: arbeidsuren | K56: sparen PDI-budget | P56: In dit vakje kan een afwijkende individuele opslagfactor worden inge-
K57: Spaarsaldo eind vorig schooljaar | P57: vuld. Dit kan een grótere factor zijn bij beginnnende leerkrachten, of
K58: Inzet uit spaarsaldo in dit schooljaar | P58: juist een kleinere bij OOP'ers met lesondersteunende taken indien dat
K59: Te sparen in dit schooljaar | P59: is afgesproken.
K60: Spaarsaldo eind van dit schooljaar | M60: =(M57+M59)-M58 -> 0
K61: inzet PDI-budget | P61: K
N62: % | P62: Hier zie je in hoeverre de uren van deze twee taakonderdelen al met
K63: beschikbaar | M63: =IF(M52=0,(M44+M45),N44+N45) -> 98 | P63: activiteiten zijn gevuld op de tweede pagina van dit teamlidblad.
C64: totaal af E | E64: =SUM(E57:E63) -> 0 | I64: =SUM(I57:I63) -> 0 | K64: ingevuld | L64: _ | M64: =M109 -> 0 | N64: =IF(M63>0,IF(100,M64/M63*100,0),0) -> 0 | P64: Dit is ook te zien geheel rechts op het Formatieoverzicht.
B65: F individueel ingeroosterd | E65: lesuren | G65: datum | I65: arbeidsuren | K65: =IF(M63<0,"teveel ingepland","nog beschikbaar") -> nog beschikbaar | M65: =IF(M63<M64,0,N110) -> 98 | P65: In deze rubriek kun je ook het spaarsaldo (niet voor verlof) bijhouden en
C66: 3 dagen in zomervakantie | I66: 1.0625 | P66: de inzet uit of de inleg in het spaarsaldo invullen. De inzet van veel
K67: inzet overige taken | P67: gespaarde uren kan er toe leiden dat er geen of zelfs een negatief aantal
K68: beschikbaar | M68: =N48-M72 -> 459 | P68: overblijft' voor de overige taken. Dit kan dan alleeen worden opgelost
K69: ingevuld | L69: _ | M69: =M156 -> 131 | N69: =IF(M68>0,IF(100,M69/M68*100,0),0) -> 28.54030501 | P69: door zoveel lesuren uit te roosteren dat er een klein minimaal noodzake-
K70: =IF(M70<0,"teveel ingepland","nog beschikbaar") -> nog beschikbaar | M70: =IF(M68<M69,0,N157) -> 328 | P70: lijk aantal uren voor de overige taken overblijft.
K72: ambulante functietaken: | P72: ambulante functietaken
C73: totaal bij F | E73: =SUM(E66:E72) -> 0 | I73: =SUM(I66:I72) -> 1.0625 | P73: Bij (deels) ambulante teamleden moeten de overblijvende uren verdeeld
B74: opmerkingen | E74: =((E21+E73)-(E30+E43+E55+E64)) -> 22.89583333 | G74: < ingeroosterd > | I74: =((I21+I73)-(I30+I43+I55+I64)) -> 53.20833333 | P74: worden over de ambulante functietaken en de overige taken.
B75: Deze deeltijder is op donderdag ambulant. Hierdoor worden er minder ingeroosterde lesuren berekend ( zie rubriek I). Omdat er minder lesuren zijn ingeroosterd blijven er heel veel uren over voor de overige taken (zie rubriek J). Deze uren zijn voor een deel bestemd voor de ambulante functietaken en voor een deel voor de overige taken. Door op het invoerformulier van deze leerkracht de ambulante dagdelen als lesdagdelen aan te klikken, zie je dat er dan 173 uur voor de overige taken zouden worden berekend. Als je nu onderaan rubriek K voor de ambulante functietaken 286 uur invult, blijven er op de tweede pagina in rubriek B vanzelf 173 uur over voor de overige taken. Probeer maar uit. Het percentage van de inroosterde arbeidsuren komt vrijwel overeen met dat van de voltijders, dus daar hoeft verder niets aan te gebeuren. | P75: Vul, indien van toepassing, hier de uren voor de ambulante taken in, óf
P76: vul de verdeling op pag. 2 in rubriek C in (dus niet in beide tegelijk!).
P78: opmerkingenvak
P79: Druk op Alt+Enter voor een nieuwe regel.
P80: Dubbelklik op het vak wanneer niet de hele tekst zichtbaar is. Alleen het
P81: zichtbare deel wordt afgedrukt.
G82: 2e pagina
B83: OVERZICHT GEPLANDE ACTIVITEITEN PDI EN OVERIGE TAKEN | P83: Teamlidblad 2e pagina
P85: overzicht van geplande activiteiten en uren p.d.i. en overige taken
C86: schooljaar | E86: =E4 -> 2026 | F86: / | G86: =G4 -> 2027 | H86: naam: | K86: =K3 -> Faassen, Han van (deels ambulant) | P86: Op deze pagina worden de geplande activiteiten en uren ingevuld.
P87: Een regel moet aan de linkerkant geselecteerd worden om in te vullen.
B88: A | C88: PDI-budget | K88: beschikbaar: | M88: uren | N88: =M63 -> 98 | P88: De uren worden hier als gewone hele getallen ingevoerd zonder
B89: 1 | P89: dubbele punt.
B90: 2
B91: 3 | P91: invoerformulier voor de activiteiten
B92: 4 | P92: Voor het maken van overzichten is het noodzakelijk dat activiteiten
B93: 5 | P93: uniform gespeld worden. Bovendien worden de overzichten gemaakt
B94: 6 | P94: op basis van de drie lijsten (zie de drie tabs onderaan het scherm).
B95: 7 | P95: Voer activiteiten daarom altijd zoveel mogelijk in via het activiteiten-
B96: 8 | P96: invoerformulier. Je roept dit formulier op door op een willekeurige plek
B97: 9 | P97: op de nummerrij te klikken.
B98: 10
B99: 11
B100: 12 | P100: HET ACTIVITEITENINVOERFORMULIER
B101: 13
B102: 14 | P102: Onderstaande informatie vind je ook door op de informatie-icoontjes op
B103: 15 | P103: het invoerformulier te klikken.
B104: 16
B105: 17 | P105: Lijstitem aan teamblad toevoegen
B106: 18 | P106: > Roep het formulier op door op de nummerrij te klikken en selecteer in
B107: 19 | P107: het vak Lijstkeuze de betreffende lijst.
B108: 20 | P108: > Klik op het pijltje aan het eind van de lege regel; de lijst verschijnt.
K109: totaal: | M109: =SUM(M89:M108) -> 0 | P109: > Selecteer een activiteit en klik in het vak Teamblad rubr. A of B de
N110: =N88-M109 -> 98 | P110: rubriek waaraan je de activiteit wilt toevoegen.
P111: >Klik op Toevoegen aan Teamlidblad (het aantal uren kan worden gewij-
P112: zigd, maar moet wel altijd zijn ingevuld).
P114: Nieuwe items aan een lijst én het teamlidblad toevoegen
P115: Nieuwe activiteiten kunnen gelijktijdig aan een lijst én aan een rubriek
P116: op het teamlidblad worden toegevoegd:
P117: > Selecteer in het vak Lijstkeuze een lijst en vul op de lege regel een
P118: activiteit + uren in.
P119: > Klik vervolgens op Toevoegen aan Lijst.
B120: B | C120: =K48 -> overige & amb. taken | K120: beschikbaar: | N120: =M68 -> 459 | P120: > Selecteer daarna in het vak daaronder de betreffende rubriek en
B121: 1 | C121: Afscheidsavond groep 8 | M121: 3 | P121: tenslotte op Toevoegen aan Teamlidblad.
B122: 2 | C122: Algemene ouderavond | M122: 2
B123: 3 | C123: Bouwvergaderingen 4 x 1:30 uur | M123: 6 | P123: De lijsten kunnen ook direct op de lijst zelf worden ingevuld. Aangeleg-
B124: 4 | C124: Coördinator ICT Beheer | M124: 40 | P124: de lijsten kunnen bij het ingebruiknemen van een nieuwe planner uit de
B125: 5 | C125: MR-lid | M125: 20 | P125: oude planner met enkele muisklikken geïmporteerd worden.
B126: 6 | C126: MR-lid | M126: 20
B127: 7 | C127: Studiedagen 2 x 5 uur | M127: 10 | P127: sortering
B128: 8 | C128: Teamvergaderingen 10 x 1:30 uur | M128: 15 | P128: Bij gebruik van het invoerformulier worden de items automatisch
B129: 9 | C129: Werkgroep Wereldorientatie | M129: 15 | P129: gesorteerd. Sorteer bij rechtstreeks invullen door op de sorteerpijlen
B130: 10 | P130: bovenaan de pagina te klikken.
B131: 11
B132: 12 | P132: overzicht per activiteit
B133: 13 | P133: Met het invoerformulier kan ook een overzicht worden gemaakt van de
B134: 14 | P134: teamleden die eenzelfde activiteit gemeen hebben:
B135: 15 | P135: > Kies een lijst en een activiteit.
B136: 16 | P136: > Klik nu op de knop Teamoverzicht.
B137: 17 | P137: > Het overzicht wordt onderaan de gekozen lijst getoond.
B138: 18
B139: 19 | P139: overzicht van alle activiteiten overige taken van alle teamleden
B140: 20 | P140: Op het werkblad act.overzicht kun je een totaaloverzicht maken van alle
B141: 21 | P141: activiteiten en teamleden. Een leeg overzicht met alleen activiteiten kun je
B142: 22 | P142: aan het begin van het werkverdelingstraject als intekenlijst voor de overige
B143: 23 | P143: taken gebruiken.
B144: 24
B145: 25 | P145: Let op:
B146: 26 | P146: De op deze pagina vermelde activiteiten en uren zijn een specificatie
B147: 27 | P147: van de op de eerste pagina berekende uren voor deze twee taak-
B148: 28 | P148: onderdelen. Er mogen dus nooit méér uren worden ingepland dan er
B149: 29 | P149: beschikbaar zijn. Het aantal teveel ingeplande uren wordt in het rood
B150: 30 | P150: afgedrukt en mag niet genegeerd worden.
B151: 31
B152: 32
B153: 33
B154: 34
B155: 35
K156: totaal : | M156: =SUM(M121:M155) -> 131
K157: Nog beschikbaar: | N157: =N120-M156 -> 328

Sheet 7
B2: =lesurenberekening!I5 -> Voorbeelden | P2: toelichting teamlidblad OP en OOP met lesondersteunende taken
H3: naam: | K3: =INDIRECT("formatieoverzicht!C"&(4+N3)) -> Ginniken, Els van (OOP) | N3: =MID(CELL("bestandsnaam",A1),SEARCH("]",CELL("bestandsnaam",A1),1)+1,99) -> 7
E4: =lesurenberekening!E5 -> 2026 | F4: / | G4: =lesurenberekening!G5 -> 2027 | H4: aanstelling: | K4: =INDIRECT("formatieoverzicht!D"&(4+N3)) -> 1.666666667
B5: =INDIRECT("formatieoverzicht!AR"&(4+N3)) -> 0 | H5: wtf: | K5: =INDIRECT("formatieoverzicht!E"&(4+N3)) -> 1 | P5: Klik op dit icoon voor meer informatie
B6: OVERZICHT IN- EN UITGEROOSTERDE LES- EN ARBEIDSUREN | K6: OVERZICHT GEPLANDE JAARTAAK
B7: A jaartotaal les- en arbeidsuren | E7: lestijd bouw: | G7: =INDIRECT("formatieoverzicht!"&"AF"&N3+4) -> 1 | I7: arbeidsuren | K7: G PDI-budget duurzame inzetbaarheid | P7: Dit teamlidblad is voor het OP en OOP met lesondersteunende en/of | R7: standaardtijden
E8: o | G8: m | P8: behandeltaken zoals een onderwijsassistent of logopedist. | R8: o | T8: m | V8: arb.uren
C9: maandag | D9: =IF(INDIRECT("formatieoverzicht!V"&(N3+4))=2,"A","") ->  | E9: =R9 -> 0.1354166667 | F9: =IF(INDIRECT("formatieoverzicht!W"&(N3+4))=2,"A","") ->  | G9: =T9 -> 0.08333333333 | H9: =IF(INDIRECT("formatieoverzicht!V"&(N3+4))>0,lesurenberekening!E98,0) -> 0.2083333333 | I9: =V9 -> 0.3541666667 | J9: =IF(INDIRECT("formatieoverzicht!W"&(N3+4))>0,lesurenberekening!G98,0) -> 0.1458333333 | M9: vlg. wtf | N9: opname | R9: =IF(AND(INDIRECT("formatieoverzicht!V"&(N3+4))=1,INDIRECT("formatieoverzicht!AF"&(N3+4))=1),lesurenberekening!E11,IF(AND(INDIRECT("formatieoverzicht!V"&(N3+4))=1,INDIRECT("formatieoverzicht!AF"&(N3+4))=2),lesurenberekening!I11,IF(AND(INDIRECT("formatieoverzicht!V"&(N3+4))=1,INDIRECT("formatieoverzicht!AF"&(N3+4))=3),lesurenberekening!M11,IF(AND(INDIRECT("formatieoverzicht!V"&(N3+4))=3,INDIRECT("formatieoverzicht!AF"&(N3+4))=1),lesurenberekening!E11,IF(AND(INDIRECT("formatieoverzicht!V"&(N3+4))=3,INDIRECT("formatieoverzicht!AF"&(N3+4))=2),lesurenberekening!I11,IF(AND(INDIRECT("formatieoverzicht!V"&(N3+4))=3,INDIRECT("formatieoverzicht!AF"&(N3+4))=3),lesurenberekening!M11,0)))))) -> 0.1354166667 | T9: =IF(AND(INDIRECT("formatieoverzicht!W"&(N3+4))=1,INDIRECT("formatieoverzicht!AF"&(N3+4))=1),lesurenberekening!G11,IF(AND(INDIRECT("formatieoverzicht!W"&(N3+4))=1,INDIRECT("formatieoverzicht!AF"&(N3+4))=2),lesurenberekening!K11,IF(AND(INDIRECT("formatieoverzicht!W"&(N3+4))=1,INDIRECT("formatieoverzicht!AF"&(N3+4))=3),lesurenberekening!O11,IF(AND(INDIRECT("formatieoverzicht!W"&(N3+4))=3,INDIRECT("formatieoverzicht!AF"&(N3+4))=1),lesurenberekening!G11,IF(AND(INDIRECT("formatieoverzicht!W"&(N3+4))=3,INDIRECT("formatieoverzicht!AF"&(N3+4))=2),lesurenberekening!K11,IF(AND(INDIRECT("formatieoverzicht!W"&(N3+4))=3,INDIRECT("formatieoverzicht!AF"&(N3+4))=3),lesurenberekening!O11,0)))))) -> 0.08333333333 | V9: =H9+J9 -> 0.3541666667
C10: dinsdag | D10: =IF(INDIRECT("formatieoverzicht!X"&(N3+4))=2,"A","") ->  | E10: =R10 -> 0.1354166667 | F10: =IF(INDIRECT("formatieoverzicht!Y"&(N3+4))=2,"A","") ->  | G10: =T10 -> 0.08333333333 | H10: =IF(INDIRECT("formatieoverzicht!X"&(N3+4))>0,lesurenberekening!E99,0) -> 0.2083333333 | I10: =V10 -> 0.3541666667 | J10: =IF(INDIRECT("formatieoverzicht!Y"&(N3+4))>0,lesurenberekening!G99,0) -> 0.1458333333 | K10: basisbudget | M10: =INDIRECT("formatieoverzicht!J"&(4+N3)) -> 40 | N10: =INDIRECT("formatieoverzicht!Q"&(4+N3)) -> 0 | P10: A t/m D | R10: =IF(AND(INDIRECT("formatieoverzicht!X"&(N3+4))=1,INDIRECT("formatieoverzicht!AF"&(N3+4))=1),lesurenberekening!E12,IF(AND(INDIRECT("formatieoverzicht!X"&(N3+4))=1,INDIRECT("formatieoverzicht!AF"&(N3+4))=2),lesurenberekening!I12,IF(AND(INDIRECT("formatieoverzicht!X"&(N3+4))=1,INDIRECT("formatieoverzicht!AF"&(N3+4))=3),lesurenberekening!M12,IF(AND(INDIRECT("formatieoverzicht!X"&(N3+4))=3,INDIRECT("formatieoverzicht!AF"&(N3+4))=1),lesurenberekening!E12,IF(AND(INDIRECT("formatieoverzicht!X"&(N3+4))=3,INDIRECT("formatieoverzicht!AF"&(N3+4))=2),lesurenberekening!I12,IF(AND(INDIRECT("formatieoverzicht!X"&(N3+4))=3,INDIRECT("formatieoverzicht!AF"&(N3+4))=3),lesurenberekening!M12,0)))))) -> 0.1354166667 | T10: =IF(AND(INDIRECT("formatieoverzicht!Y"&(N3+4))=1,INDIRECT("formatieoverzicht!AF"&(N3+4))=1),lesurenberekening!G12,IF(AND(INDIRECT("formatieoverzicht!Y"&(N3+4))=1,INDIRECT("formatieoverzicht!AF"&(N3+4))=2),lesurenberekening!K12,IF(AND(INDIRECT("formatieoverzicht!Y"&(N3+4))=1,INDIRECT("formatieoverzicht!AF"&(N3+4))=3),lesurenberekening!O12,IF(AND(INDIRECT("formatieoverzicht!Y"&(N3+4))=3,INDIRECT("formatieoverzicht!AF"&(N3+4))=1),lesurenberekening!G12,IF(AND(INDIRECT("formatieoverzicht!Y"&(N3+4))=3,INDIRECT("formatieoverzicht!AF"&(N3+4))=2),lesurenberekening!K12,IF(AND(INDIRECT("formatieoverzicht!Y"&(N3+4))=3,INDIRECT("formatieoverzicht!AF"&(N3+4))=3),lesurenberekening!O12,0)))))) -> 0.08333333333 | V10: =H10+J10 -> 0.3541666667
C11: woensdag | D11: =IF(INDIRECT("formatieoverzicht!Z"&(N3+4))=2,"A","") ->  | E11: =R11 -> 0.1458333333 | F11: =IF(INDIRECT("formatieoverzicht!AA"&(N3+4))=2,"A","") ->  | G11: =T11 -> 0 | H11: =IF(INDIRECT("formatieoverzicht!Z"&(N3+4))>0,lesurenberekening!E100,0) -> 0.25 | I11: =V11 -> 0.25 | J11: =IF(INDIRECT("formatieoverzicht!AA"&(N3+4))>0,lesurenberekening!G100,0) -> 0 | K11: bijzonder budget | M11: =INDIRECT("formatieoverzicht!K"&(4+N3)) -> 0 | N11: =INDIRECT("formatieoverzicht!R"&(4+N3)) -> 0 | P11: In deze rubrieken is alles automatisch berekend. | R11: =IF(AND(INDIRECT("formatieoverzicht!Z"&(N3+4))=1,INDIRECT("formatieoverzicht!AF"&(N3+4))=1),lesurenberekening!E13,IF(AND(INDIRECT("formatieoverzicht!Z"&(N3+4))=1,INDIRECT("formatieoverzicht!AF"&(N3+4))=2),lesurenberekening!I13,IF(AND(INDIRECT("formatieoverzicht!Z"&(N3+4))=1,INDIRECT("formatieoverzicht!AF"&(N3+4))=3),lesurenberekening!M13,IF(AND(INDIRECT("formatieoverzicht!Z"&(N3+4))=3,INDIRECT("formatieoverzicht!AF"&(N3+4))=1),lesurenberekening!E13,IF(AND(INDIRECT("formatieoverzicht!Z"&(N3+4))=3,INDIRECT("formatieoverzicht!AF"&(N3+4))=2),lesurenberekening!I13,IF(AND(INDIRECT("formatieoverzicht!Z"&(N3+4))=3,INDIRECT("formatieoverzicht!AF"&(N3+4))=3),lesurenberekening!M13,0)))))) -> 0.1458333333 | T11: =IF(AND(INDIRECT("formatieoverzicht!AA"&(N3+4))=1,INDIRECT("formatieoverzicht!AF"&(N3+4))=1),lesurenberekening!G13,IF(AND(INDIRECT("formatieoverzicht!AA"&(N3+4))=1,INDIRECT("formatieoverzicht!AF"&(N3+4))=2),lesurenberekening!K13,IF(AND(INDIRECT("formatieoverzicht!AA"&(N3+4))=1,INDIRECT("formatieoverzicht!AF"&(N3+4))=3),lesurenberekening!O13,IF(AND(INDIRECT("formatieoverzicht!AA"&(N3+4))=3,INDIRECT("formatieoverzicht!AF"&(N3+4))=1),lesurenberekening!G13,IF(AND(INDIRECT("formatieoverzicht!AA"&(N3+4))=3,INDIRECT("formatieoverzicht!AF"&(N3+4))=2),lesurenberekening!K13,IF(AND(INDIRECT("formatieoverzicht!AA"&(N3+4))=3,INDIRECT("formatieoverzicht!AF"&(N3+4))=3),lesurenberekening!O13,0)))))) -> 0 | V11: =H11+J11 -> 0.25
C12: donderdag | D12: =IF(INDIRECT("formatieoverzicht!AB"&(N3+4))=2,"A","") ->  | E12: =R12 -> 0.1354166667 | F12: =IF(INDIRECT("formatieoverzicht!AC"&(N3+4))=2,"A","") ->  | G12: =T12 -> 0.08333333333 | H12: =IF(INDIRECT("formatieoverzicht!AB"&(N3+4))>0,lesurenberekening!E101,0) -> 0.2083333333 | I12: =V12 -> 0.3541666667 | J12: =IF(INDIRECT("formatieoverzicht!AC"&(N3+4))>0,lesurenberekening!G101,0) -> 0.1458333333 | R12: =IF(AND(INDIRECT("formatieoverzicht!AB"&(N3+4))=1,INDIRECT("formatieoverzicht!AF"&(N3+4))=1),lesurenberekening!E14,IF(AND(INDIRECT("formatieoverzicht!AB"&(N3+4))=1,INDIRECT("formatieoverzicht!AF"&(N3+4))=2),lesurenberekening!I14,IF(AND(INDIRECT("formatieoverzicht!AB"&(N3+4))=1,INDIRECT("formatieoverzicht!AF"&(N3+4))=3),lesurenberekening!M14,IF(AND(INDIRECT("formatieoverzicht!AB"&(N3+4))=3,INDIRECT("formatieoverzicht!AF"&(N3+4))=1),lesurenberekening!E14,IF(AND(INDIRECT("formatieoverzicht!AB"&(N3+4))=3,INDIRECT("formatieoverzicht!AF"&(N3+4))=2),lesurenberekening!I14,IF(AND(INDIRECT("formatieoverzicht!AB"&(N3+4))=3,INDIRECT("formatieoverzicht!AF"&(N3+4))=3),lesurenberekening!M14,0)))))) -> 0.1354166667 | T12: =IF(AND(INDIRECT("formatieoverzicht!AC"&(N3+4))=1,INDIRECT("formatieoverzicht!AF"&(N3+4))=1),lesurenberekening!G14,IF(AND(INDIRECT("formatieoverzicht!AC"&(N3+4))=1,INDIRECT("formatieoverzicht!AF"&(N3+4))=2),lesurenberekening!K14,IF(AND(INDIRECT("formatieoverzicht!AC"&(N3+4))=1,INDIRECT("formatieoverzicht!AF"&(N3+4))=3),lesurenberekening!O14,IF(AND(INDIRECT("formatieoverzicht!AC"&(N3+4))=3,INDIRECT("formatieoverzicht!AF"&(N3+4))=1),lesurenberekening!G14,IF(AND(INDIRECT("formatieoverzicht!AC"&(N3+4))=3,INDIRECT("formatieoverzicht!AF"&(N3+4))=2),lesurenberekening!K14,IF(AND(INDIRECT("formatieoverzicht!AC"&(N3+4))=3,INDIRECT("formatieoverzicht!AF"&(N3+4))=3),lesurenberekening!O14,0)))))) -> 0.08333333333 | V12: =H12+J12 -> 0.3541666667
C13: vrijdag | D13: =IF(INDIRECT("formatieoverzicht!AD"&(N3+4))=2,"A","") ->  | E13: =R13 -> 0.1354166667 | F13: =IF(INDIRECT("formatieoverzicht!AE"&(N3+4))=2,"A","") ->  | G13: =T13 -> 0.08333333333 | H13: =IF(INDIRECT("formatieoverzicht!AD"&(N3+4))>0,lesurenberekening!E102,0) -> 0.2083333333 | I13: =V13 -> 0.3541666667 | J13: =IF(INDIRECT("formatieoverzicht!AE"&(N3+4))>0,lesurenberekening!G102,0) -> 0.1458333333 | K13: ingezet uit spaarsaldo | L13: + | M13: =INDIRECT("formatieoverzicht!M"&(4+N3)) -> 0 | P13: In rubriek A staat voor ambulante dagdelen een A. | R13: =IF(AND(INDIRECT("formatieoverzicht!AD"&(N3+4))=1,INDIRECT("formatieoverzicht!AF"&(N3+4))=1),lesurenberekening!E15,IF(AND(INDIRECT("formatieoverzicht!AD"&(N3+4))=1,INDIRECT("formatieoverzicht!AF"&(N3+4))=2),lesurenberekening!I15,IF(AND(INDIRECT("formatieoverzicht!AD"&(N3+4))=1,INDIRECT("formatieoverzicht!AF"&(N3+4))=3),lesurenberekening!M15,IF(AND(INDIRECT("formatieoverzicht!AD"&(N3+4))=3,INDIRECT("formatieoverzicht!AF"&(N3+4))=1),lesurenberekening!E15,IF(AND(INDIRECT("formatieoverzicht!AD"&(N3+4))=3,INDIRECT("formatieoverzicht!AF"&(N3+4))=2),lesurenberekening!I15,IF(AND(INDIRECT("formatieoverzicht!AD"&(N3+4))=3,INDIRECT("formatieoverzicht!AF"&(N3+4))=3),lesurenberekening!M15,0)))))) -> 0.1354166667 | T13: =IF(AND(INDIRECT("formatieoverzicht!AE"&(N3+4))=1,INDIRECT("formatieoverzicht!AF"&(N3+4))=1),lesurenberekening!G15,IF(AND(INDIRECT("formatieoverzicht!AE"&(N3+4))=1,INDIRECT("formatieoverzicht!AF"&(N3+4))=2),lesurenberekening!K15,IF(AND(INDIRECT("formatieoverzicht!AE"&(N3+4))=1,INDIRECT("formatieoverzicht!AF"&(N3+4))=3),lesurenberekening!O15,IF(AND(INDIRECT("formatieoverzicht!AE"&(N3+4))=3,INDIRECT("formatieoverzicht!AF"&(N3+4))=1),lesurenberekening!G15,IF(AND(INDIRECT("formatieoverzicht!AE"&(N3+4))=3,INDIRECT("formatieoverzicht!AF"&(N3+4))=2),lesurenberekening!K15,IF(AND(INDIRECT("formatieoverzicht!AE"&(N3+4))=3,INDIRECT("formatieoverzicht!AF"&(N3+4))=3),lesurenberekening!O15,0)))))) -> 0.08333333333 | V13: =H13+J13 -> 0.3541666667
K14: beschikbaar | M14: =M10+M11+M12+M13 -> 40 | N14: =SUM(N10:N13) -> 0 | P14: Indien noodzakelijk, kunnen in rubriek A de les- en arbeidsuren hand-
P15: matig worden aangepast. Klik op de resetknop eronder om de standaard-
G16: reset uren | K16: opgenomen verlof d.i. | M16: =INDIRECT("formatieoverzicht!O"&(4+N3)) -> 0 | P16: tijden en de koppeling met het werkblad lesurenberekening te herstellen.
C17: ingeroosterd per week | E17: =E9+G9+E10+G10+E11+G11+E12+G12+E13+G13 -> 1.020833333 | I17: =SUM(I9:I13) -> 1.666666667 | K17: waarvan lesuren | N17: =ROUND(MaxLestaak/1659*M16,0) -> 0
C18: in 52 weken | E18: =52*E17 -> 53.08333333 | I18: =52*I17 -> 86.66666667 | K18: sparen* | L18: _ | M18: =INDIRECT("formatieoverzicht!P"&(4+N3)) -> 0 | P18: E + F
B19: =WEEKDAY(CONCATENATE(C19,G4)) -> 1900-01-04 | C19: 29 september | D19: =IF(MOD(G4,4)=0,WEEKDAY(CONCATENATE(C19,G4),2),0) -> 0 | E19: =IF(D19=1,E9+G9,IF(D19=2,E10+G10,IF(D19=3,E11+G11,IF(D19=4,E12+G12,IF(D19=5,E13+G13,0))))) -> 0 | F19: (in schrikkeljaar) | I19: =IF(D19=1,I9,IF(D19=2,I10,IF(D19=3,I11,IF(D19=4,I12,IF(D19=5,I13,0))))) -> 0 | K19: over na aftrek verlof | M19: =INDIRECT("formatieoverzicht!T"&(4+N3)) -> 40 | P19: Hier kunnen de dagen en uren worden ingevuld waarop het teamlid nog
B20: =WEEKDAY(CONCATENATE(C20,G4)) -> 1900-01-05 | C20: 30 september | D20: =WEEKDAY(CONCATENATE(C20,G4),2) -> 4 | E20: =IF(D20=1,E9+G9,IF(D20=2,E10+G10,IF(D20=3,E11+G11,IF(D20=4,E12+G12,IF(D20=5,E13+G13,0))))) -> 0.21875 | F20: + | H20: + | I20: =IF(D20=1,I9,IF(D20=2,I10,IF(D20=3,I11,IF(D20=4,I12,IF(D20=5,I13,0))))) -> 0.3541666667 | P20: individueel wordt uit- of ingeroosterd.
C21: totaal A | E21: =E18+E19+E20 -> 53.30208333 | I21: =I18+I19+I20 -> 87.02083333 | K21: ="spaarsaldo eind "&lesurenberekening!E5-1&"/"&lesurenberekening!G5-1 -> spaarsaldo eind 2025/2026 | M21: =INDIRECT("formatieoverzicht!U"&(4+N3)) -> 0
B22: B hele vakantieweken | E22: lesuren | G22: datum | I22: arbeidsuren | P22: Vul alle kolommen handmatig in. Denk om de dubbele punt achter de
K23: * Sparen tot 57 jr. : max. 3 jaar; vanaf 57 jr.: max. 5 jaar | P23: uren. Wanneer is afgesproken een aantal dagen door te werken in één
C24: herfstvakantie | D24: =lesurenberekening!D25 -> 1 | E24: =E17*D24 -> 1.020833333 | G24: =lesurenberekening!E25 -> 17-10-26 | I24: =I17*D24 -> 1.666666667 | K24: H ingeroosterde arbeidsuren | M24: wtf 1,0: | N24: =jaartaak -> 1659 | P24: of meer vakantieweken, vul je in F het totaal van die arbeidsuren in.
C25: kerstvakantie | D25: =lesurenberekening!D26 -> 2 | E25: =E17*D25 -> 2.041666667 | G25: =lesurenberekening!E26 -> 19-12-26 | I25: =I17*D25 -> 3.333333333 | O25: Volgens het inrooster- percentage voltijders
C26: voorjaarsvakantie | D26: =lesurenberekening!D27 -> 1 | E26: =E17*D26 -> 1.020833333 | G26: =lesurenberekening!E27 -> 20-2-27 | I26: =I17*D26 -> 1.666666667 | K26: bruto arbeidsduur (wtf x 1659) | M26: =ROUND(K5*jaartaak,0) -> 1659 | P26: Wanneer je hier bij meerdere teamleden hetzelfde moet invullen, kun je
C27: meivakantie | D27: =lesurenberekening!D28 -> 2 | E27: =E17*D27 -> 2.041666667 | G27: =lesurenberekening!E28 -> 24-4-27 | I27: =I17*D27 -> 3.333333333 | K27: opgenomen verlof d.i. | L27: _ | M27: =M16 -> 0 | P27: dat op meerdere teamlidbladen tegelijk in één keer invullen.
C28: =lesurenberekening!C29 -> 0 | D28: =lesurenberekening!D29 -> 0 | E28: =E17*D28 -> 0 | G28: =lesurenberekening!E29 -> 00:00:00 | I28: =I17*D28 -> 0 | K28: netto arbeidsduur | M28: =M26-M27 -> 1659
C29: zomervakantie | D29: =lesurenberekening!D30 -> 6 | E29: =E17*D29 -> 6.125 | G29: =lesurenberekening!E30 -> 17-7-27 | I29: =I17*D29 -> 10 | K29: ingeroosterd: (A + F) - (B t/m E) | M29: =ROUND(((I21+I73)-(I30+I43+I55+I64))*24,0) -> 1592 | O29: =ROUND(O31*M28,0) -> 1593 | P29: G
C30: totaal af B | E30: =SUM(E24:E29) -> 12.25 | I30: =SUM(I24:I29) -> 20 | K30: =IF(lesurenberekening!E117="ja","verschil","") -> verschil | M30: =IF(lesurenberekening!E117="ja",(M29-M28),0) -> -67 | O30: =IF(O29<>0,O29-M28,0) -> -66 | P30: Het aantal lesuren dat een verlof PDI bevat is gebaseerd op artikel
B31: C hele vakantie (v) - of studiedagen (s) | E31: lesuren | G31: datum | I31: arbeidsuren | K31: =IF(lesurenberekening!E117="ja","inroosteringspercentage", "") -> inroosteringspercentage | M31: =ROUND(IF(lesurenberekening!E117="ja",IF(M28>0,M29/M28*100,0),0),1) -> 96 | N31: =IF(lesurenberekening!E117="ja","%","") -> % | O31: =lesurenberekening!E112*100&" %" -> 96 % | P31: 9.6 lid 6 (CAO-PO 2024). Het PDI-deel professionalisering blijft dus even
B32: =lesurenberekening!B34 -> 2027-03-26 | C32: =IF(lesurenberekening!C34="","",lesurenberekening!C34) -> goede vrijdag | D32: =lesurenberekening!D34 -> v | E32: =(INDIRECT("E"&8+F32)+INDIRECT("G"&8+F32)) -> 0.21875 | F32: =WEEKDAY(G32,2) -> 5 | G32: =lesurenberekening!E34 -> 2027-03-26 | I32: =IF(D32="v",INDIRECT("I"&8+F32),0) -> 0.3541666667 | P32: groot als vóór de verlofopname.
B33: =lesurenberekening!B35 -> 2027-05-06 | C33: =IF(lesurenberekening!C35="","",lesurenberekening!C35) -> hemelvaartsdag | D33: =lesurenberekening!D35 -> v | E33: =(INDIRECT("E"&8+F33)+INDIRECT("G"&8+F33)) -> 0.21875 | F33: =WEEKDAY(G33,2) -> 4 | G33: =lesurenberekening!E35 -> 2027-05-06 | I33: =IF(D33="v",INDIRECT("I"&8+F33),0) -> 0.3541666667 | K33: I ingeroosterde lesuren | M33: wtf 1,0: | N33: =MaxLestaak -> 940
B34: =lesurenberekening!B36 -> 2027-05-07 | C34: =IF(lesurenberekening!C36="","",lesurenberekening!C36) -> vrijdag na hemelvaartsdag | D34: =lesurenberekening!D36 -> v | E34: =(INDIRECT("E"&8+F34)+INDIRECT("G"&8+F34)) -> 0.21875 | F34: 5 | G34: =lesurenberekening!E36 -> 2027-05-07 | I34: =IF(D34="v",INDIRECT("I"&8+F34),0) -> 0.3541666667 | P34: H + I
B35: =lesurenberekening!B37 -> 2027-05-17 | C35: =IF(lesurenberekening!C37="","",lesurenberekening!C37) -> 2e pinksterdag | D35: =lesurenberekening!D37 -> v | E35: 0.21875 | F35: 1 | G35: =lesurenberekening!E37 -> 2027-05-17 | I35: 0.3541666667 | K35: maximale lestaak vlg. wtf | M35: =ROUND(K5*MaxLestaak,0) -> 940 | P35: De weergave van het inroosterverschil en het inroosterpercentage kan
B36: =lesurenberekening!B38 -> 2027-07-16 | C36: =IF(lesurenberekening!C38="","",lesurenberekening!C38) -> laatste dag voor zomervakantie | D36: =lesurenberekening!D38 -> v | E36: 0.21875 | F36: 5 | G36: =lesurenberekening!E38 -> 2027-07-16 | I36: 0.3541666667 | K36: lesuren opgenomen verlof d.i. | L36: _ | M36: =N17 -> 0 | P36: in rubriek G op het eerste werkblad Lesurenberekening aan of uit
B37: =lesurenberekening!B39 -> 2027-03-25 | C37: =IF(lesurenberekening!C39="","",lesurenberekening!C39) -> studiedag 1 | D37: =lesurenberekening!D39 -> s | E37: 0.21875 | F37: 4 | G37: =lesurenberekening!E39 -> 2027-03-25 | I37: 0 | K37: netto maximale lestaak | M37: =M35-M36 -> 940 | P37: worden gezet.
B38: =lesurenberekening!B40 -> 2027-04-27 | C38: =IF(lesurenberekening!C40="","",lesurenberekening!C40) -> studiedag 2 | D38: =lesurenberekening!D40 -> s | E38: 0.21875 | F38: 2 | G38: =lesurenberekening!E40 -> 2027-04-27 | I38: 0 | K38: ingeroosterd: (A + F) - (B t/m E) | L38: _ | M38: =ROUND(((E21+E73)-(E30+E43+E55+E64))*24,0) -> 949
B39: =lesurenberekening!B41 ->  | C39: =IF(lesurenberekening!C41="","",lesurenberekening!C41) ->  | D39: =lesurenberekening!D41 -> 0 | E39: 0 | F39: 6 | G39: =lesurenberekening!E41 -> 00:00:00 | I39: 0 | K39: =IF(lesurenberekening!E117="ja","verschil","") -> verschil | M39: =IF(lesurenberekening!E118="ja",M38-M37,"") -> 9 | P39: Wanneer in rubriek G (instellingen) op het eerste werkblad Lesuren-
B40: =lesurenberekening!B42 ->  | C40: =IF(lesurenberekening!C42="","",lesurenberekening!C42) ->  | D40: =lesurenberekening!D42 -> 0 | E40: 0 | F40: 6 | G40: =lesurenberekening!E42 -> 00:00:00 | I40: 0 | K40: =IF(lesurenberekening!E118="ja"," inroosteringspercentage","") -> inroosteringspercentage | M40: =ROUND(IF(lesurenberekening!E118="ja",IF(M37>0,M38/M37*100,0),0),1) -> 101 | N40: =IF(lesurenberekening!E118="ja","%","") -> % | P40: berekening het inroosteringspercentage van de voltijders is ingevuld,
B41: =lesurenberekening!B43 ->  | C41: =IF(lesurenberekening!C43="","",lesurenberekening!C43) ->  | D41: =lesurenberekening!D43 -> 0 | E41: 0 | F41: 6 | G41: =lesurenberekening!E43 -> 00:00:00 | I41: 0 | P41: wordt naast rubriek H ter referentie het daaraan evenredig aantal in te
B42: =lesurenberekening!B44 ->  | C42: =IF(lesurenberekening!C44="","",lesurenberekening!C44) ->  | D42: =lesurenberekening!D44 -> 0 | E42: 0 | F42: 6 | G42: =lesurenberekening!E44 -> 00:00:00 | I42: 0 | K42: J opbouw ingeroosterde jaartaak | N42: =IF(M52>0,"na verlof-opname", "") ->  | P42: roosteren arbeidsuren getoond.
